Workbook

Sheet AVISO LEGAL
H2: Fecha de actualización: | J2: 2018-02-08
J23: www.ree.es

Sheet Estructura mensual nacional
O1: 12
M4: Sistema eléctrico
M5: Horizonte temporal
M6: Periodo
C8: Ene. | D8: Feb. | E8: Mar. | F8: Abr. | G8: May. | H8: Jun. | I8: Jul. | J8: Ago. | K8: Sep. | L8: Oct. | M8: Nov. | N8: Dic. | O8: =OFFSET(Año!B19,($O$1-1),0) -> 2018
B10: Hidráulica | C10: =OFFSET(Estructura!C66,0,($O$1-1)*12) -> 9.4 | D10: =OFFSET(Estructura!D66,0,($O$1-1)*12) -> - | E10: =OFFSET(Estructura!E66,0,($O$1-1)*12) -> - | F10: =OFFSET(Estructura!F66,0,($O$1-1)*12) -> - | G10: =OFFSET(Estructura!G66,0,($O$1-1)*12) -> - | H10: =OFFSET(Estructura!H66,0,($O$1-1)*12) -> - | I10: =OFFSET(Estructura!I66,0,($O$1-1)*12) -> - | J10: =OFFSET(Estructura!J66,0,($O$1-1)*12) -> - | K10: =OFFSET(Estructura!K66,0,($O$1-1)*12) -> - | L10: =OFFSET(Estructura!L66,0,($O$1-1)*12) -> - | M10: =OFFSET(Estructura!M66,0,($O$1-1)*12) -> - | N10: =OFFSET(Estructura!N66,0,($O$1-1)*12) -> - | O10: =OFFSET(Estructura!C147,0,($O$1-1)) -> 9.4
B11: Turbinación bombeo
B12: Nuclear | C12: =OFFSET(Estructura!C68,0,($O$1-1)*12) -> 22.2 | D12: =OFFSET(Estructura!D68,0,($O$1-1)*12) -> - | E12: =OFFSET(Estructura!E68,0,($O$1-1)*12) -> - | F12: =OFFSET(Estructura!F68,0,($O$1-1)*12) -> - | G12: =OFFSET(Estructura!G68,0,($O$1-1)*12) -> - | H12: =OFFSET(Estructura!H68,0,($O$1-1)*12) -> - | I12: =OFFSET(Estructura!I68,0,($O$1-1)*12) -> - | J12: =OFFSET(Estructura!J68,0,($O$1-1)*12) -> - | K12: =OFFSET(Estructura!K68,0,($O$1-1)*12) -> - | L12: =OFFSET(Estructura!L68,0,($O$1-1)*12) -> - | M12: =OFFSET(Estructura!M68,0,($O$1-1)*12) -> - | N12: =OFFSET(Estructura!N68,0,($O$1-1)*12) -> - | O12: =OFFSET(Estructura!C149,0,($O$1-1)) -> 22.2
B13: Carbón | C13: =OFFSET(Estructura!C69,0,($O$1-1)*12) -> 14.1 | D13: =OFFSET(Estructura!D69,0,($O$1-1)*12) -> - | E13: =OFFSET(Estructura!E69,0,($O$1-1)*12) -> - | F13: =OFFSET(Estructura!F69,0,($O$1-1)*12) -> - | G13: =OFFSET(Estructura!G69,0,($O$1-1)*12) -> - | H13: =OFFSET(Estructura!H69,0,($O$1-1)*12) -> - | I13: =OFFSET(Estructura!I69,0,($O$1-1)*12) -> - | J13: =OFFSET(Estructura!J69,0,($O$1-1)*12) -> - | K13: =OFFSET(Estructura!K69,0,($O$1-1)*12) -> - | L13: =OFFSET(Estructura!L69,0,($O$1-1)*12) -> - | M13: =OFFSET(Estructura!M69,0,($O$1-1)*12) -> - | N13: =OFFSET(Estructura!N69,0,($O$1-1)*12) -> - | O13: =OFFSET(Estructura!C150,0,($O$1-1)) -> 14.1
B14: Fuel + Gas (2) | C14: =OFFSET(Estructura!C70,0,($O$1-1)*12) -> 2.5 | D14: =OFFSET(Estructura!D70,0,($O$1-1)*12) -> - | E14: =OFFSET(Estructura!E70,0,($O$1-1)*12) -> - | F14: =OFFSET(Estructura!F70,0,($O$1-1)*12) -> - | G14: =OFFSET(Estructura!G70,0,($O$1-1)*12) -> - | H14: =OFFSET(Estructura!H70,0,($O$1-1)*12) -> - | I14: =OFFSET(Estructura!I70,0,($O$1-1)*12) -> - | J14: =OFFSET(Estructura!J70,0,($O$1-1)*12) -> - | K14: =OFFSET(Estructura!K70,0,($O$1-1)*12) -> - | L14: =OFFSET(Estructura!L70,0,($O$1-1)*12) -> - | M14: =OFFSET(Estructura!M70,0,($O$1-1)*12) -> - | N14: =OFFSET(Estructura!N70,0,($O$1-1)*12) -> - | O14: =OFFSET(Estructura!C151,0,($O$1-1)) -> 2.5
B15: Ciclo combinado (3) | C15: =OFFSET(Estructura!C71,0,($O$1-1)*12) -> 11.2 | D15: =OFFSET(Estructura!D71,0,($O$1-1)*12) -> - | E15: =OFFSET(Estructura!E71,0,($O$1-1)*12) -> - | F15: =OFFSET(Estructura!F71,0,($O$1-1)*12) -> - | G15: =OFFSET(Estructura!G71,0,($O$1-1)*12) -> - | H15: =OFFSET(Estructura!H71,0,($O$1-1)*12) -> - | I15: =OFFSET(Estructura!I71,0,($O$1-1)*12) -> - | J15: =OFFSET(Estructura!J71,0,($O$1-1)*12) -> - | K15: =OFFSET(Estructura!K71,0,($O$1-1)*12) -> - | L15: =OFFSET(Estructura!L71,0,($O$1-1)*12) -> - | M15: =OFFSET(Estructura!M71,0,($O$1-1)*12) -> - | N15: =OFFSET(Estructura!N71,0,($O$1-1)*12) -> - | O15: =OFFSET(Estructura!C152,0,($O$1-1)) -> 11.2
B16: Hidroeólica | C16: =OFFSET(Estructura!C72,0,($O$1-1)*12) -> 0 | D16: =OFFSET(Estructura!D72,0,($O$1-1)*12) -> - | E16: =OFFSET(Estructura!E72,0,($O$1-1)*12) -> - | F16: =OFFSET(Estructura!F72,0,($O$1-1)*12) -> - | G16: =OFFSET(Estructura!G72,0,($O$1-1)*12) -> - | H16: =OFFSET(Estructura!H72,0,($O$1-1)*12) -> - | I16: =OFFSET(Estructura!I72,0,($O$1-1)*12) -> - | J16: =OFFSET(Estructura!J72,0,($O$1-1)*12) -> - | K16: =OFFSET(Estructura!K72,0,($O$1-1)*12) -> - | L16: =OFFSET(Estructura!L72,0,($O$1-1)*12) -> - | M16: =OFFSET(Estructura!M72,0,($O$1-1)*12) -> - | N16: =OFFSET(Estructura!N72,0,($O$1-1)*12) -> - | O16: =OFFSET(Estructura!C153,0,($O$1-1)) -> 0
B17: Eólica | C17: =OFFSET(Estructura!C73,0,($O$1-1)*12) -> 23.3 | D17: =OFFSET(Estructura!D73,0,($O$1-1)*12) -> - | E17: =OFFSET(Estructura!E73,0,($O$1-1)*12) -> - | F17: =OFFSET(Estructura!F73,0,($O$1-1)*12) -> - | G17: =OFFSET(Estructura!G73,0,($O$1-1)*12) -> - | H17: =OFFSET(Estructura!H73,0,($O$1-1)*12) -> - | I17: =OFFSET(Estructura!I73,0,($O$1-1)*12) -> - | J17: =OFFSET(Estructura!J73,0,($O$1-1)*12) -> - | K17: =OFFSET(Estructura!K73,0,($O$1-1)*12) -> - | L17: =OFFSET(Estructura!L73,0,($O$1-1)*12) -> - | M17: =OFFSET(Estructura!M73,0,($O$1-1)*12) -> - | N17: =OFFSET(Estructura!N73,0,($O$1-1)*12) -> - | O17: =OFFSET(Estructura!C154,0,($O$1-1)) -> 23.3
B18: Solar fotovoltaica | C18: =OFFSET(Estructura!C74,0,($O$1-1)*12) -> 1.9 | D18: =OFFSET(Estructura!D74,0,($O$1-1)*12) -> - | E18: =OFFSET(Estructura!E74,0,($O$1-1)*12) -> - | F18: =OFFSET(Estructura!F74,0,($O$1-1)*12) -> - | G18: =OFFSET(Estructura!G74,0,($O$1-1)*12) -> - | H18: =OFFSET(Estructura!H74,0,($O$1-1)*12) -> - | I18: =OFFSET(Estructura!I74,0,($O$1-1)*12) -> - | J18: =OFFSET(Estructura!J74,0,($O$1-1)*12) -> - | K18: =OFFSET(Estructura!K74,0,($O$1-1)*12) -> - | L18: =OFFSET(Estructura!L74,0,($O$1-1)*12) -> - | M18: =OFFSET(Estructura!M74,0,($O$1-1)*12) -> - | N18: =OFFSET(Estructura!N74,0,($O$1-1)*12) -> - | O18: =OFFSET(Estructura!C155,0,($O$1-1)) -> 1.9
B19: Solar térmica | C19: =OFFSET(Estructura!C75,0,($O$1-1)*12) -> 0.6 | D19: =OFFSET(Estructura!D75,0,($O$1-1)*12) -> - | E19: =OFFSET(Estructura!E75,0,($O$1-1)*12) -> - | F19: =OFFSET(Estructura!F75,0,($O$1-1)*12) -> - | G19: =OFFSET(Estructura!G75,0,($O$1-1)*12) -> - | H19: =OFFSET(Estructura!H75,0,($O$1-1)*12) -> - | I19: =OFFSET(Estructura!I75,0,($O$1-1)*12) -> - | J19: =OFFSET(Estructura!J75,0,($O$1-1)*12) -> - | K19: =OFFSET(Estructura!K75,0,($O$1-1)*12) -> - | L19: =OFFSET(Estructura!L75,0,($O$1-1)*12) -> - | M19: =OFFSET(Estructura!M75,0,($O$1-1)*12) -> - | N19: =OFFSET(Estructura!N75,0,($O$1-1)*12) -> - | O19: =OFFSET(Estructura!C156,0,($O$1-1)) -> 0.6
B20: Térmica renovable (4)/Otras renovables (5) | C20: =OFFSET(Estructura!C76,0,($O$1-1)*12) -> 1.3 | D20: =OFFSET(Estructura!D76,0,($O$1-1)*12) -> - | E20: =OFFSET(Estructura!E76,0,($O$1-1)*12) -> - | F20: =OFFSET(Estructura!F76,0,($O$1-1)*12) -> - | G20: =OFFSET(Estructura!G76,0,($O$1-1)*12) -> - | H20: =OFFSET(Estructura!H76,0,($O$1-1)*12) -> - | I20: =OFFSET(Estructura!I76,0,($O$1-1)*12) -> - | J20: =OFFSET(Estructura!J76,0,($O$1-1)*12) -> - | K20: =OFFSET(Estructura!K76,0,($O$1-1)*12) -> - | L20: =OFFSET(Estructura!L76,0,($O$1-1)*12) -> - | M20: =OFFSET(Estructura!M76,0,($O$1-1)*12) -> - | N20: =OFFSET(Estructura!N76,0,($O$1-1)*12) -> - | O20: =OFFSET(Estructura!C157,0,($O$1-1)) -> 1.3
B21: Cogeneración y resto (4)/Cogeneración | C21: =OFFSET(Estructura!C77,0,($O$1-1)*12) -> 11.1 | D21: =OFFSET(Estructura!D77,0,($O$1-1)*12) -> - | E21: =OFFSET(Estructura!E77,0,($O$1-1)*12) -> - | F21: =OFFSET(Estructura!F77,0,($O$1-1)*12) -> - | G21: =OFFSET(Estructura!G77,0,($O$1-1)*12) -> - | H21: =OFFSET(Estructura!H77,0,($O$1-1)*12) -> - | I21: =OFFSET(Estructura!I77,0,($O$1-1)*12) -> - | J21: =OFFSET(Estructura!J77,0,($O$1-1)*12) -> - | K21: =OFFSET(Estructura!K77,0,($O$1-1)*12) -> - | L21: =OFFSET(Estructura!L77,0,($O$1-1)*12) -> - | M21: =OFFSET(Estructura!M77,0,($O$1-1)*12) -> - | N21: =OFFSET(Estructura!N77,0,($O$1-1)*12) -> - | O21: =OFFSET(Estructura!C158,0,($O$1-1)) -> 11.1
B22: Residuos no renovables (6) | C22: =OFFSET(Estructura!C78,0,($O$1-1)*12) -> 1 | D22: =OFFSET(Estructura!D78,0,($O$1-1)*12) -> - | E22: =OFFSET(Estructura!E78,0,($O$1-1)*12) -> - | F22: =OFFSET(Estructura!F78,0,($O$1-1)*12) -> - | G22: =OFFSET(Estructura!G78,0,($O$1-1)*12) -> - | H22: =OFFSET(Estructura!H78,0,($O$1-1)*12) -> - | I22: =OFFSET(Estructura!I78,0,($O$1-1)*12) -> - | J22: =OFFSET(Estructura!J78,0,($O$1-1)*12) -> - | K22: =OFFSET(Estructura!K78,0,($O$1-1)*12) -> - | L22: =OFFSET(Estructura!L78,0,($O$1-1)*12) -> - | M22: =OFFSET(Estructura!M78,0,($O$1-1)*12) -> - | N22: =OFFSET(Estructura!N78,0,($O$1-1)*12) -> - | O22: =OFFSET(Estructura!C159,0,($O$1-1)) -> 1
B23: Residuos renovables (6) | C23: =OFFSET(Estructura!C79,0,($O$1-1)*12) -> 0.3 | D23: =OFFSET(Estructura!D79,0,($O$1-1)*12) -> - | E23: =OFFSET(Estructura!E79,0,($O$1-1)*12) -> - | F23: =OFFSET(Estructura!F79,0,($O$1-1)*12) -> - | G23: =OFFSET(Estructura!G79,0,($O$1-1)*12) -> - | H23: =OFFSET(Estructura!H79,0,($O$1-1)*12) -> - | I23: =OFFSET(Estructura!I79,0,($O$1-1)*12) -> - | J23: =OFFSET(Estructura!J79,0,($O$1-1)*12) -> - | K23: =OFFSET(Estructura!K79,0,($O$1-1)*12) -> - | L23: =OFFSET(Estructura!L79,0,($O$1-1)*12) -> - | M23: =OFFSET(Estructura!M79,0,($O$1-1)*12) -> - | N23: =OFFSET(Estructura!N79,0,($O$1-1)*12) -> - | O23: =OFFSET(Estructura!C160,0,($O$1-1)) -> 0.3
B24: Generación renovable (7) | C24: =OFFSET(Estructura!C80,0,($O$1-1)*12) -> 36.8 | D24: =OFFSET(Estructura!D80,0,($O$1-1)*12) -> - | E24: =OFFSET(Estructura!E80,0,($O$1-1)*12) -> - | F24: =OFFSET(Estructura!F80,0,($O$1-1)*12) -> - | G24: =OFFSET(Estructura!G80,0,($O$1-1)*12) -> - | H24: =OFFSET(Estructura!H80,0,($O$1-1)*12) -> - | I24: =OFFSET(Estructura!I80,0,($O$1-1)*12) -> - | J24: =OFFSET(Estructura!J80,0,($O$1-1)*12) -> - | K24: =OFFSET(Estructura!K80,0,($O$1-1)*12) -> - | L24: =OFFSET(Estructura!L80,0,($O$1-1)*12) -> - | M24: =OFFSET(Estructura!M80,0,($O$1-1)*12) -> - | N24: =OFFSET(Estructura!N80,0,($O$1-1)*12) -> - | O24: =OFFSET(Estructura!C161,0,($O$1-1)) -> 36.8
B25: Generación no renovable | C25: =OFFSET(Estructura!C81,0,($O$1-1)*12) -> 63.2 | D25: =OFFSET(Estructura!D81,0,($O$1-1)*12) -> - | E25: =OFFSET(Estructura!E81,0,($O$1-1)*12) -> - | F25: =OFFSET(Estructura!F81,0,($O$1-1)*12) -> - | G25: =OFFSET(Estructura!G81,0,($O$1-1)*12) -> - | H25: =OFFSET(Estructura!H81,0,($O$1-1)*12) -> - | I25: =OFFSET(Estructura!I81,0,($O$1-1)*12) -> - | J25: =OFFSET(Estructura!J81,0,($O$1-1)*12) -> - | K25: =OFFSET(Estructura!K81,0,($O$1-1)*12) -> - | L25: =OFFSET(Estructura!L81,0,($O$1-1)*12) -> - | M25: =OFFSET(Estructura!M81,0,($O$1-1)*12) -> - | N25: =OFFSET(Estructura!N81,0,($O$1-1)*12) -> - | O25: =OFFSET(Estructura!C162,0,($O$1-1)) -> 63.2
B26: (1) Asignación de unidades de producción según combustible principal.
B27: (2) En el sistema eléctrico de Baleares y Canarias se incluye la generación con grupos auxiliares.
B28: (3) Incluye funcionamiento en ciclo abierto. En el sistema eléctrico de Canarias utiliza gasoil como combustible principal.
B29: (4) Incluye residuos hasta el 31/12/2014.
B30: (5) Otras renovables incluyen biogás, biomasa, hidráulica marina y geotérmica.
B31: (6) Generación incluida en otras renovables y cogeneración hasta el 31/12/2014.
B32: (7) Incluye hidráulica, hidroeólica, eólica, solar fotovoltaica, solar térmica y térmica renovable/otras renovables y residuos renovables. No incluye la turbinación bombeo.

Sheet Estructura anual nacional
I1: 2
G4: Sistema eléctrico
G5: Horizonte temporal
G6: Periodo
C8: =OFFSET(Estructura!C146,0,($I$1-1)*7) -> 2014 | D8: =OFFSET(Estructura!D146,0,($I$1-1)*7) -> 2015 | E8: =OFFSET(Estructura!E146,0,($I$1-1)*7) -> 2016 | F8: =OFFSET(Estructura!F146,0,($I$1-1)*7) -> 2017 | G8: =OFFSET(Estructura!G146,0,($I$1-1)*7) -> 2018 | H8: =OFFSET(Estructura!H146,0,($I$1-1)*7) -> 2019 | I8: =OFFSET(Estructura!I146,0,($I$1-1)*7) -> 2020
B10: Hidráulica | C10: =OFFSET(Estructura!C147,0,($I$1-1)*7) -> 14.7 | D10: =OFFSET(Estructura!D147,0,($I$1-1)*7) -> 10.6 | E10: =OFFSET(Estructura!E147,0,($I$1-1)*7) -> 13.7 | F10: =OFFSET(Estructura!F147,0,($I$1-1)*7) -> 7 | G10: =OFFSET(Estructura!G147,0,($I$1-1)*7) -> 9.4 | H10: =OFFSET(Estructura!H147,0,($I$1-1)*7) -> - | I10: =OFFSET(Estructura!I147,0,($I$1-1)*7) -> -
B11: Turbinación bombeo
B12: Nuclear | C12: =OFFSET(Estructura!C149,0,($I$1-1)*7) -> 20.6 | D12: =OFFSET(Estructura!D149,0,($I$1-1)*7) -> 20.4 | E12: =OFFSET(Estructura!E149,0,($I$1-1)*7) -> 21.4 | F12: =OFFSET(Estructura!F149,0,($I$1-1)*7) -> 21.2 | G12: =OFFSET(Estructura!G149,0,($I$1-1)*7) -> 22.2 | H12: =OFFSET(Estructura!H149,0,($I$1-1)*7) -> - | I12: =OFFSET(Estructura!I149,0,($I$1-1)*7) -> -
B13: Carbón | C13: =OFFSET(Estructura!C150,0,($I$1-1)*7) -> 16.2 | D13: =OFFSET(Estructura!D150,0,($I$1-1)*7) -> 19.7 | E13: =OFFSET(Estructura!E150,0,($I$1-1)*7) -> 14.3 | F13: =OFFSET(Estructura!F150,0,($I$1-1)*7) -> 17.2 | G13: =OFFSET(Estructura!G150,0,($I$1-1)*7) -> 14.1 | H13: =OFFSET(Estructura!H150,0,($I$1-1)*7) -> - | I13: =OFFSET(Estructura!I150,0,($I$1-1)*7) -> -
B14: Fuel + Gas (2) | C14: =OFFSET(Estructura!C151,0,($I$1-1)*7) -> 2.3 | D14: =OFFSET(Estructura!D151,0,($I$1-1)*7) -> 2.4 | E14: =OFFSET(Estructura!E151,0,($I$1-1)*7) -> 2.6 | F14: =OFFSET(Estructura!F151,0,($I$1-1)*7) -> 2.7 | G14: =OFFSET(Estructura!G151,0,($I$1-1)*7) -> 2.5 | H14: =OFFSET(Estructura!H151,0,($I$1-1)*7) -> - | I14: =OFFSET(Estructura!I151,0,($I$1-1)*7) -> -
B15: Ciclo combinado (3) | C15: =OFFSET(Estructura!C152,0,($I$1-1)*7) -> 9.4 | D15: =OFFSET(Estructura!D152,0,($I$1-1)*7) -> 10.9 | E15: =OFFSET(Estructura!E152,0,($I$1-1)*7) -> 11.2 | F15: =OFFSET(Estructura!F152,0,($I$1-1)*7) -> 14.2 | G15: =OFFSET(Estructura!G152,0,($I$1-1)*7) -> 11.2 | H15: =OFFSET(Estructura!H152,0,($I$1-1)*7) -> - | I15: =OFFSET(Estructura!I152,0,($I$1-1)*7) -> -
B16: Hidroeólica | C16: =OFFSET(Estructura!C153,0,($I$1-1)*7) -> 0 | D16: =OFFSET(Estructura!D153,0,($I$1-1)*7) -> 0 | E16: =OFFSET(Estructura!E153,0,($I$1-1)*7) -> 0 | F16: =OFFSET(Estructura!F153,0,($I$1-1)*7) -> 0 | G16: =OFFSET(Estructura!G153,0,($I$1-1)*7) -> 0 | H16: =OFFSET(Estructura!H153,0,($I$1-1)*7) -> - | I16: =OFFSET(Estructura!I153,0,($I$1-1)*7) -> -
B17: Eólica | C17: =OFFSET(Estructura!C154,0,($I$1-1)*7) -> 19.1 | D17: =OFFSET(Estructura!D154,0,($I$1-1)*7) -> 18 | E17: =OFFSET(Estructura!E154,0,($I$1-1)*7) -> 18.2 | F17: =OFFSET(Estructura!F154,0,($I$1-1)*7) -> 18.2 | G17: =OFFSET(Estructura!G154,0,($I$1-1)*7) -> 23.3 | H17: =OFFSET(Estructura!H154,0,($I$1-1)*7) -> - | I17: =OFFSET(Estructura!I154,0,($I$1-1)*7) -> -
B18: Solar fotovoltaica | C18: =OFFSET(Estructura!C155,0,($I$1-1)*7) -> 3.1 | D18: =OFFSET(Estructura!D155,0,($I$1-1)*7) -> 3.1 | E18: =OFFSET(Estructura!E155,0,($I$1-1)*7) -> 3 | F18: =OFFSET(Estructura!F155,0,($I$1-1)*7) -> 3.2 | G18: =OFFSET(Estructura!G155,0,($I$1-1)*7) -> 1.9 | H18: =OFFSET(Estructura!H155,0,($I$1-1)*7) -> - | I18: =OFFSET(Estructura!I155,0,($I$1-1)*7) -> -
B19: Solar térmica | C19: =OFFSET(Estructura!C156,0,($I$1-1)*7) -> 1.9 | D19: =OFFSET(Estructura!D156,0,($I$1-1)*7) -> 1.9 | E19: =OFFSET(Estructura!E156,0,($I$1-1)*7) -> 1.9 | F19: =OFFSET(Estructura!F156,0,($I$1-1)*7) -> 2 | G19: =OFFSET(Estructura!G156,0,($I$1-1)*7) -> 0.6 | H19: =OFFSET(Estructura!H156,0,($I$1-1)*7) -> - | I19: =OFFSET(Estructura!I156,0,($I$1-1)*7) -> -
B20: Térmica renovable (4)/Otras renovables (5) | C20: =OFFSET(Estructura!C157,0,($I$1-1)*7) -> 1.8 | D20: =OFFSET(Estructura!D157,0,($I$1-1)*7) -> 1.2 | E20: =OFFSET(Estructura!E157,0,($I$1-1)*7) -> 1.3 | F20: =OFFSET(Estructura!F157,0,($I$1-1)*7) -> 1.4 | G20: =OFFSET(Estructura!G157,0,($I$1-1)*7) -> 1.3 | H20: =OFFSET(Estructura!H157,0,($I$1-1)*7) -> - | I20: =OFFSET(Estructura!I157,0,($I$1-1)*7) -> -
B21: Cogeneración y resto (4)/Cogeneración | C21: =OFFSET(Estructura!C158,0,($I$1-1)*7) -> 9.6 | D21: =OFFSET(Estructura!D158,0,($I$1-1)*7) -> 9.5 | E21: =OFFSET(Estructura!E158,0,($I$1-1)*7) -> 9.9 | F21: =OFFSET(Estructura!F158,0,($I$1-1)*7) -> 10.7 | G21: =OFFSET(Estructura!G158,0,($I$1-1)*7) -> 11.1 | H21: =OFFSET(Estructura!H158,0,($I$1-1)*7) -> - | I21: =OFFSET(Estructura!I158,0,($I$1-1)*7) -> -
B22: Residuos no renovables (6) | C22: =OFFSET(Estructura!C159,0,($I$1-1)*7) -> - | D22: =OFFSET(Estructura!D159,0,($I$1-1)*7) -> 0.9 | E22: =OFFSET(Estructura!E159,0,($I$1-1)*7) -> 1 | F22: =OFFSET(Estructura!F159,0,($I$1-1)*7) -> 1 | G22: =OFFSET(Estructura!G159,0,($I$1-1)*7) -> 1 | H22: =OFFSET(Estructura!H159,0,($I$1-1)*7) -> - | I22: =OFFSET(Estructura!I159,0,($I$1-1)*7) -> -
B23: Residuos renovables (6) | C23: =OFFSET(Estructura!C160,0,($I$1-1)*7) -> - | D23: =OFFSET(Estructura!D160,0,($I$1-1)*7) -> 0.3 | E23: =OFFSET(Estructura!E160,0,($I$1-1)*7) -> 0.3 | F23: =OFFSET(Estructura!F160,0,($I$1-1)*7) -> 0.3 | G23: =OFFSET(Estructura!G160,0,($I$1-1)*7) -> 0.3 | H23: =OFFSET(Estructura!H160,0,($I$1-1)*7) -> - | I23: =OFFSET(Estructura!I160,0,($I$1-1)*7) -> -
B24: Generación renovable (7) | C24: =OFFSET(Estructura!C161,0,($I$1-1)*7) -> 40.6 | D24: =OFFSET(Estructura!D161,0,($I$1-1)*7) -> 35.1 | E24: =OFFSET(Estructura!E161,0,($I$1-1)*7) -> 38.4 | F24: =OFFSET(Estructura!F161,0,($I$1-1)*7) -> 32.1 | G24: =OFFSET(Estructura!G161,0,($I$1-1)*7) -> 36.8 | H24: =OFFSET(Estructura!H161,0,($I$1-1)*7) -> - | I24: =OFFSET(Estructura!I161,0,($I$1-1)*7) -> -
B25: Generación no renovable | C25: =OFFSET(Estructura!C162,0,($I$1-1)*7) -> 59.4 | D25: =OFFSET(Estructura!D162,0,($I$1-1)*7) -> 64.9 | E25: =OFFSET(Estructura!E162,0,($I$1-1)*7) -> 61.6 | F25: =OFFSET(Estructura!F162,0,($I$1-1)*7) -> 67.9 | G25: =OFFSET(Estructura!G162,0,($I$1-1)*7) -> 63.2 | H25: =OFFSET(Estructura!H162,0,($I$1-1)*7) -> - | I25: =OFFSET(Estructura!I162,0,($I$1-1)*7) -> -
B26: (1) Asignación de unidades de producción según combustible principal.
B27: (2) En el sistema eléctrico de Baleares y Canarias se incluye la generación con grupos auxiliares.
B28: (3) Incluye funcionamiento en ciclo abierto. En el sistema eléctrico de Canarias utiliza gasoil como combustible principal.
B29: (4) Incluye residuos hasta el 31/12/2014.
B30: (5) Otras renovables incluyen biogás, biomasa, hidráulica marina y geotérmica.
B31: (6) Generación incluida en otras renovables y cogeneración hasta el 31/12/2014.
B32: (7) Incluye hidráulica, hidroeólica, eólica, solar fotovoltaica, solar térmica y térmica renovable/otras renovables y residuos renovables. No incluye la turbinación bombeo.
B33: =IF(I1<2,"",IF(MONTH(FACT)=1,"",CONCATENATE(" Para el año ",YEAR(FACT)," valores acumulados hasta ",TEXT(FACT-30,"mmmm")," de ",YEAR(FACT),"."))) -> Para el año 2018 valores acumulados hasta enero de 2018.

Sheet Estructura mensual Peninsular
O1: 29
M4: Sistema eléctrico
M5: Horizonte temporal
M6: Periodo
C8: Ene. | D8: Feb. | E8: Mar. | F8: Abr. | G8: May. | H8: Jun. | I8: Jul. | J8: Ago. | K8: Sep. | L8: Oct. | M8: Nov. | N8: Dic. | O8: =OFFSET(Año!B2,($O$1-1),0) -> 2018
B10: Hidráulica | C10: =OFFSET(Estructura!C3,0,($O$1-1)*12) -> 9.9 | D10: =OFFSET(Estructura!D3,0,($O$1-1)*12) -> - | E10: =OFFSET(Estructura!E3,0,($O$1-1)*12) -> - | F10: =OFFSET(Estructura!F3,0,($O$1-1)*12) -> - | G10: =OFFSET(Estructura!G3,0,($O$1-1)*12) -> - | H10: =OFFSET(Estructura!H3,0,($O$1-1)*12) -> - | I10: =OFFSET(Estructura!I3,0,($O$1-1)*12) -> - | J10: =OFFSET(Estructura!J3,0,($O$1-1)*12) -> - | K10: =OFFSET(Estructura!K3,0,($O$1-1)*12) -> - | L10: =OFFSET(Estructura!L3,0,($O$1-1)*12) -> - | M10: =OFFSET(Estructura!M3,0,($O$1-1)*12) -> - | N10: =OFFSET(Estructura!N3,0,($O$1-1)*12) -> - | O10: =OFFSET(Estructura!C84,0,($O$1-1)) -> 9.9
B11: Turbinación bombeo
B12: Nuclear | C12: =OFFSET(Estructura!C5,0,($O$1-1)*12) -> 23.4 | D12: =OFFSET(Estructura!D5,0,($O$1-1)*12) -> - | E12: =OFFSET(Estructura!E5,0,($O$1-1)*12) -> - | F12: =OFFSET(Estructura!F5,0,($O$1-1)*12) -> - | G12: =OFFSET(Estructura!G5,0,($O$1-1)*12) -> - | H12: =OFFSET(Estructura!H5,0,($O$1-1)*12) -> - | I12: =OFFSET(Estructura!I5,0,($O$1-1)*12) -> - | J12: =OFFSET(Estructura!J5,0,($O$1-1)*12) -> - | K12: =OFFSET(Estructura!K5,0,($O$1-1)*12) -> - | L12: =OFFSET(Estructura!L5,0,($O$1-1)*12) -> - | M12: =OFFSET(Estructura!M5,0,($O$1-1)*12) -> - | N12: =OFFSET(Estructura!N5,0,($O$1-1)*12) -> - | O12: =OFFSET(Estructura!C86,0,($O$1-1)) -> 23.4
B13: Carbón | C13: =OFFSET(Estructura!C6,0,($O$1-1)*12) -> 13.9 | D13: =OFFSET(Estructura!D6,0,($O$1-1)*12) -> - | E13: =OFFSET(Estructura!E6,0,($O$1-1)*12) -> - | F13: =OFFSET(Estructura!F6,0,($O$1-1)*12) -> - | G13: =OFFSET(Estructura!G6,0,($O$1-1)*12) -> - | H13: =OFFSET(Estructura!H6,0,($O$1-1)*12) -> - | I13: =OFFSET(Estructura!I6,0,($O$1-1)*12) -> - | J13: =OFFSET(Estructura!J6,0,($O$1-1)*12) -> - | K13: =OFFSET(Estructura!K6,0,($O$1-1)*12) -> - | L13: =OFFSET(Estructura!L6,0,($O$1-1)*12) -> - | M13: =OFFSET(Estructura!M6,0,($O$1-1)*12) -> - | N13: =OFFSET(Estructura!N6,0,($O$1-1)*12) -> - | O13: =OFFSET(Estructura!C87,0,($O$1-1)) -> 13.9
B14: Fuel + Gas | C14: =OFFSET(Estructura!C7,0,($O$1-1)*12) -> 0 | D14: =OFFSET(Estructura!D7,0,($O$1-1)*12) -> - | E14: =OFFSET(Estructura!E7,0,($O$1-1)*12) -> - | F14: =OFFSET(Estructura!F7,0,($O$1-1)*12) -> - | G14: =OFFSET(Estructura!G7,0,($O$1-1)*12) -> - | H14: =OFFSET(Estructura!H7,0,($O$1-1)*12) -> - | I14: =OFFSET(Estructura!I7,0,($O$1-1)*12) -> - | J14: =OFFSET(Estructura!J7,0,($O$1-1)*12) -> - | K14: =OFFSET(Estructura!K7,0,($O$1-1)*12) -> - | L14: =OFFSET(Estructura!L7,0,($O$1-1)*12) -> - | M14: =OFFSET(Estructura!M7,0,($O$1-1)*12) -> - | N14: =OFFSET(Estructura!N7,0,($O$1-1)*12) -> - | O14: =OFFSET(Estructura!C88,0,($O$1-1)) -> -
B15: Ciclo combinado (2) | C15: =OFFSET(Estructura!C8,0,($O$1-1)*12) -> 10.5 | D15: =OFFSET(Estructura!D8,0,($O$1-1)*12) -> - | E15: =OFFSET(Estructura!E8,0,($O$1-1)*12) -> - | F15: =OFFSET(Estructura!F8,0,($O$1-1)*12) -> - | G15: =OFFSET(Estructura!G8,0,($O$1-1)*12) -> - | H15: =OFFSET(Estructura!H8,0,($O$1-1)*12) -> - | I15: =OFFSET(Estructura!I8,0,($O$1-1)*12) -> - | J15: =OFFSET(Estructura!J8,0,($O$1-1)*12) -> - | K15: =OFFSET(Estructura!K8,0,($O$1-1)*12) -> - | L15: =OFFSET(Estructura!L8,0,($O$1-1)*12) -> - | M15: =OFFSET(Estructura!M8,0,($O$1-1)*12) -> - | N15: =OFFSET(Estructura!N8,0,($O$1-1)*12) -> - | O15: =OFFSET(Estructura!C89,0,($O$1-1)) -> 10.5
B16: Eólica | C16: =OFFSET(Estructura!C9,0,($O$1-1)*12) -> 24.3 | D16: =OFFSET(Estructura!D9,0,($O$1-1)*12) -> - | E16: =OFFSET(Estructura!E9,0,($O$1-1)*12) -> - | F16: =OFFSET(Estructura!F9,0,($O$1-1)*12) -> - | G16: =OFFSET(Estructura!G9,0,($O$1-1)*12) -> - | H16: =OFFSET(Estructura!H9,0,($O$1-1)*12) -> - | I16: =OFFSET(Estructura!I9,0,($O$1-1)*12) -> - | J16: =OFFSET(Estructura!J9,0,($O$1-1)*12) -> - | K16: =OFFSET(Estructura!K9,0,($O$1-1)*12) -> - | L16: =OFFSET(Estructura!L9,0,($O$1-1)*12) -> - | M16: =OFFSET(Estructura!M9,0,($O$1-1)*12) -> - | N16: =OFFSET(Estructura!N9,0,($O$1-1)*12) -> - | O16: =OFFSET(Estructura!C90,0,($O$1-1)) -> 24.3
B17: Solar fotovoltaica | C17: =OFFSET(Estructura!C10,0,($O$1-1)*12) -> 1.9 | D17: =OFFSET(Estructura!D10,0,($O$1-1)*12) -> - | E17: =OFFSET(Estructura!E10,0,($O$1-1)*12) -> - | F17: =OFFSET(Estructura!F10,0,($O$1-1)*12) -> - | G17: =OFFSET(Estructura!G10,0,($O$1-1)*12) -> - | H17: =OFFSET(Estructura!H10,0,($O$1-1)*12) -> - | I17: =OFFSET(Estructura!I10,0,($O$1-1)*12) -> - | J17: =OFFSET(Estructura!J10,0,($O$1-1)*12) -> - | K17: =OFFSET(Estructura!K10,0,($O$1-1)*12) -> - | L17: =OFFSET(Estructura!L10,0,($O$1-1)*12) -> - | M17: =OFFSET(Estructura!M10,0,($O$1-1)*12) -> - | N17: =OFFSET(Estructura!N10,0,($O$1-1)*12) -> - | O17: =OFFSET(Estructura!C91,0,($O$1-1)) -> 1.9
B18: Solar térmica | C18: =OFFSET(Estructura!C11,0,($O$1-1)*12) -> 0.6 | D18: =OFFSET(Estructura!D11,0,($O$1-1)*12) -> - | E18: =OFFSET(Estructura!E11,0,($O$1-1)*12) -> - | F18: =OFFSET(Estructura!F11,0,($O$1-1)*12) -> - | G18: =OFFSET(Estructura!G11,0,($O$1-1)*12) -> - | H18: =OFFSET(Estructura!H11,0,($O$1-1)*12) -> - | I18: =OFFSET(Estructura!I11,0,($O$1-1)*12) -> - | J18: =OFFSET(Estructura!J11,0,($O$1-1)*12) -> - | K18: =OFFSET(Estructura!K11,0,($O$1-1)*12) -> - | L18: =OFFSET(Estructura!L11,0,($O$1-1)*12) -> - | M18: =OFFSET(Estructura!M11,0,($O$1-1)*12) -> - | N18: =OFFSET(Estructura!N11,0,($O$1-1)*12) -> - | O18: =OFFSET(Estructura!C92,0,($O$1-1)) -> 0.6
B19: Térmica renovable (3)/Otras renovables (4) | C19: =OFFSET(Estructura!C12,0,($O$1-1)*12) -> 1.4 | D19: =OFFSET(Estructura!D12,0,($O$1-1)*12) -> - | E19: =OFFSET(Estructura!E12,0,($O$1-1)*12) -> - | F19: =OFFSET(Estructura!F12,0,($O$1-1)*12) -> - | G19: =OFFSET(Estructura!G12,0,($O$1-1)*12) -> - | H19: =OFFSET(Estructura!H12,0,($O$1-1)*12) -> - | I19: =OFFSET(Estructura!I12,0,($O$1-1)*12) -> - | J19: =OFFSET(Estructura!J12,0,($O$1-1)*12) -> - | K19: =OFFSET(Estructura!K12,0,($O$1-1)*12) -> - | L19: =OFFSET(Estructura!L12,0,($O$1-1)*12) -> - | M19: =OFFSET(Estructura!M12,0,($O$1-1)*12) -> - | N19: =OFFSET(Estructura!N12,0,($O$1-1)*12) -> - | O19: =OFFSET(Estructura!C93,0,($O$1-1)) -> 1.4
B20: Cogeneración y resto (3)/Cogeneración | C20: =OFFSET(Estructura!C13,0,($O$1-1)*12) -> 11.6 | D20: =OFFSET(Estructura!D13,0,($O$1-1)*12) -> - | E20: =OFFSET(Estructura!E13,0,($O$1-1)*12) -> - | F20: =OFFSET(Estructura!F13,0,($O$1-1)*12) -> - | G20: =OFFSET(Estructura!G13,0,($O$1-1)*12) -> - | H20: =OFFSET(Estructura!H13,0,($O$1-1)*12) -> - | I20: =OFFSET(Estructura!I13,0,($O$1-1)*12) -> - | J20: =OFFSET(Estructura!J13,0,($O$1-1)*12) -> - | K20: =OFFSET(Estructura!K13,0,($O$1-1)*12) -> - | L20: =OFFSET(Estructura!L13,0,($O$1-1)*12) -> - | M20: =OFFSET(Estructura!M13,0,($O$1-1)*12) -> - | N20: =OFFSET(Estructura!N13,0,($O$1-1)*12) -> - | O20: =OFFSET(Estructura!C94,0,($O$1-1)) -> 11.6
B21: Residuos no renovables (5) | C21: =OFFSET(Estructura!C14,0,($O$1-1)*12) -> 1 | D21: =OFFSET(Estructura!D14,0,($O$1-1)*12) -> - | E21: =OFFSET(Estructura!E14,0,($O$1-1)*12) -> - | F21: =OFFSET(Estructura!F14,0,($O$1-1)*12) -> - | G21: =OFFSET(Estructura!G14,0,($O$1-1)*12) -> - | H21: =OFFSET(Estructura!H14,0,($O$1-1)*12) -> - | I21: =OFFSET(Estructura!I14,0,($O$1-1)*12) -> - | J21: =OFFSET(Estructura!J14,0,($O$1-1)*12) -> - | K21: =OFFSET(Estructura!K14,0,($O$1-1)*12) -> - | L21: =OFFSET(Estructura!L14,0,($O$1-1)*12) -> - | M21: =OFFSET(Estructura!M14,0,($O$1-1)*12) -> - | N21: =OFFSET(Estructura!N14,0,($O$1-1)*12) -> - | O21: =OFFSET(Estructura!C95,0,($O$1-1)) -> 1
B22: Residuos renovables (5) | C22: =OFFSET(Estructura!C15,0,($O$1-1)*12) -> 0.3 | D22: =OFFSET(Estructura!D15,0,($O$1-1)*12) -> - | E22: =OFFSET(Estructura!E15,0,($O$1-1)*12) -> - | F22: =OFFSET(Estructura!F15,0,($O$1-1)*12) -> - | G22: =OFFSET(Estructura!G15,0,($O$1-1)*12) -> - | H22: =OFFSET(Estructura!H15,0,($O$1-1)*12) -> - | I22: =OFFSET(Estructura!I15,0,($O$1-1)*12) -> - | J22: =OFFSET(Estructura!J15,0,($O$1-1)*12) -> - | K22: =OFFSET(Estructura!K15,0,($O$1-1)*12) -> - | L22: =OFFSET(Estructura!L15,0,($O$1-1)*12) -> - | M22: =OFFSET(Estructura!M15,0,($O$1-1)*12) -> - | N22: =OFFSET(Estructura!N15,0,($O$1-1)*12) -> - | O22: =OFFSET(Estructura!C96,0,($O$1-1)) -> 0.3
B23: Generación renovable (6) | C23: =OFFSET(Estructura!C16,0,($O$1-1)*12) -> 38.4 | D23: =OFFSET(Estructura!D16,0,($O$1-1)*12) -> - | E23: =OFFSET(Estructura!E16,0,($O$1-1)*12) -> - | F23: =OFFSET(Estructura!F16,0,($O$1-1)*12) -> - | G23: =OFFSET(Estructura!G16,0,($O$1-1)*12) -> - | H23: =OFFSET(Estructura!H16,0,($O$1-1)*12) -> - | I23: =OFFSET(Estructura!I16,0,($O$1-1)*12) -> - | J23: =OFFSET(Estructura!J16,0,($O$1-1)*12) -> - | K23: =OFFSET(Estructura!K16,0,($O$1-1)*12) -> - | L23: =OFFSET(Estructura!L16,0,($O$1-1)*12) -> - | M23: =OFFSET(Estructura!M16,0,($O$1-1)*12) -> - | N23: =OFFSET(Estructura!N16,0,($O$1-1)*12) -> - | O23: =OFFSET(Estructura!C97,0,($O$1-1)) -> 38.4
B24: Generación no renovable | C24: =OFFSET(Estructura!C17,0,($O$1-1)*12) -> 61.6 | D24: =OFFSET(Estructura!D17,0,($O$1-1)*12) -> - | E24: =OFFSET(Estructura!E17,0,($O$1-1)*12) -> - | F24: =OFFSET(Estructura!F17,0,($O$1-1)*12) -> - | G24: =OFFSET(Estructura!G17,0,($O$1-1)*12) -> - | H24: =OFFSET(Estructura!H17,0,($O$1-1)*12) -> - | I24: =OFFSET(Estructura!I17,0,($O$1-1)*12) -> - | J24: =OFFSET(Estructura!J17,0,($O$1-1)*12) -> - | K24: =OFFSET(Estructura!K17,0,($O$1-1)*12) -> - | L24: =OFFSET(Estructura!L17,0,($O$1-1)*12) -> - | M24: =OFFSET(Estructura!M17,0,($O$1-1)*12) -> - | N24: =OFFSET(Estructura!N17,0,($O$1-1)*12) -> - | O24: =OFFSET(Estructura!C98,0,($O$1-1)) -> 61.6
B25: (1) Asignación de unidades de producción según combustible principal.
B26: (2) Incluye funcionamiento en ciclo abierto.
B27: (3) Incluye residuos hasta el 31/12/2014.
B28: (4) Otras renovables incluyen biogás, biomasa, hidráulica marina y geotérmica.
B29: (5) Generación incluida en otras renovables y cogeneración hasta el 31/12/2014.
B30: (6) Incluye hidráulica, eólica, solar fotovoltaica, solar térmica y térmica renovable/otras renovables y residuos renovables. No incluye la turbinación bombeo.

Sheet Estructura anual Peninsular
J1: 4
H4: Sistema eléctrico
H5: Horizonte temporal
H6: Periodo
C8: =OFFSET(Estructura!C83,0,($J$1-1)*8) -> 2014 | D8: =OFFSET(Estructura!D83,0,($J$1-1)*8) -> 2015 | E8: =OFFSET(Estructura!E83,0,($J$1-1)*8) -> 2016 | F8: =OFFSET(Estructura!F83,0,($J$1-1)*8) -> 2017 | G8: =OFFSET(Estructura!G83,0,($J$1-1)*8) -> 2018 | H8: =OFFSET(Estructura!H83,0,($J$1-1)*8) -> 2019 | I8: =OFFSET(Estructura!I83,0,($J$1-1)*8) -> 2020 | J8: =OFFSET(Estructura!J83,0,($J$1-1)*8) -> 2021
B10: Hidráulica | C10: =OFFSET(Estructura!C84,0,($J$1-1)*8) -> 15.4 | D10: =OFFSET(Estructura!D84,0,($J$1-1)*8) -> 11.1 | E10: =OFFSET(Estructura!E84,0,($J$1-1)*8) -> 14.5 | F10: =OFFSET(Estructura!F84,0,($J$1-1)*8) -> 7.4 | G10: =OFFSET(Estructura!G84,0,($J$1-1)*8) -> 9.9 | H10: =OFFSET(Estructura!H84,0,($J$1-1)*8) -> - | I10: =OFFSET(Estructura!I84,0,($J$1-1)*8) -> - | J10: =OFFSET(Estructura!J84,0,($J$1-1)*8) -> -
B11: Turbinación bombeo
B12: Nuclear | C12: =OFFSET(Estructura!C86,0,($J$1-1)*8) -> 21.6 | D12: =OFFSET(Estructura!D86,0,($J$1-1)*8) -> 21.5 | E12: =OFFSET(Estructura!E86,0,($J$1-1)*8) -> 22.6 | F12: =OFFSET(Estructura!F86,0,($J$1-1)*8) -> 22.4 | G12: =OFFSET(Estructura!G86,0,($J$1-1)*8) -> 23.4 | H12: =OFFSET(Estructura!H86,0,($J$1-1)*8) -> - | I12: =OFFSET(Estructura!I86,0,($J$1-1)*8) -> - | J12: =OFFSET(Estructura!J86,0,($J$1-1)*8) -> -
B13: Carbón | C13: =OFFSET(Estructura!C87,0,($J$1-1)*8) -> 16.2 | D13: =OFFSET(Estructura!D87,0,($J$1-1)*8) -> 20 | E13: =OFFSET(Estructura!E87,0,($J$1-1)*8) -> 14.2 | F13: =OFFSET(Estructura!F87,0,($J$1-1)*8) -> 17.1 | G13: =OFFSET(Estructura!G87,0,($J$1-1)*8) -> 13.9 | H13: =OFFSET(Estructura!H87,0,($J$1-1)*8) -> - | I13: =OFFSET(Estructura!I87,0,($J$1-1)*8) -> - | J13: =OFFSET(Estructura!J87,0,($J$1-1)*8) -> -
B14: Fuel + Gas | C14: =OFFSET(Estructura!C88,0,($J$1-1)*8) -> - | D14: =OFFSET(Estructura!D88,0,($J$1-1)*8) -> - | E14: =OFFSET(Estructura!E88,0,($J$1-1)*8) -> - | F14: =OFFSET(Estructura!F88,0,($J$1-1)*8) -> - | G14: =OFFSET(Estructura!G88,0,($J$1-1)*8) -> - | H14: =OFFSET(Estructura!H88,0,($J$1-1)*8) -> - | I14: =OFFSET(Estructura!I88,0,($J$1-1)*8) -> - | J14: =OFFSET(Estructura!J88,0,($J$1-1)*8) -> -
B15: Ciclo combinado (2) | C15: =OFFSET(Estructura!C89,0,($J$1-1)*8) -> 8.4 | D15: =OFFSET(Estructura!D89,0,($J$1-1)*8) -> 9.9 | E15: =OFFSET(Estructura!E89,0,($J$1-1)*8) -> 10.3 | F15: =OFFSET(Estructura!F89,0,($J$1-1)*8) -> 13.6 | G15: =OFFSET(Estructura!G89,0,($J$1-1)*8) -> 10.5 | H15: =OFFSET(Estructura!H89,0,($J$1-1)*8) -> - | I15: =OFFSET(Estructura!I89,0,($J$1-1)*8) -> - | J15: =OFFSET(Estructura!J89,0,($J$1-1)*8) -> -
B16: Eólica | C16: =OFFSET(Estructura!C90,0,($J$1-1)*8) -> 20 | D16: =OFFSET(Estructura!D90,0,($J$1-1)*8) -> 18.8 | E16: =OFFSET(Estructura!E90,0,($J$1-1)*8) -> 19 | F16: =OFFSET(Estructura!F90,0,($J$1-1)*8) -> 19.1 | G16: =OFFSET(Estructura!G90,0,($J$1-1)*8) -> 24.3 | H16: =OFFSET(Estructura!H90,0,($J$1-1)*8) -> - | I16: =OFFSET(Estructura!I90,0,($J$1-1)*8) -> - | J16: =OFFSET(Estructura!J90,0,($J$1-1)*8) -> -
B17: Solar fotovoltaica | C17: =OFFSET(Estructura!C91,0,($J$1-1)*8) -> 3.1 | D17: =OFFSET(Estructura!D91,0,($J$1-1)*8) -> 3.1 | E17: =OFFSET(Estructura!E91,0,($J$1-1)*8) -> 3.1 | F17: =OFFSET(Estructura!F91,0,($J$1-1)*8) -> 3.2 | G17: =OFFSET(Estructura!G91,0,($J$1-1)*8) -> 1.9 | H17: =OFFSET(Estructura!H91,0,($J$1-1)*8) -> - | I17: =OFFSET(Estructura!I91,0,($J$1-1)*8) -> - | J17: =OFFSET(Estructura!J91,0,($J$1-1)*8) -> -
B18: Solar térmica | C18: =OFFSET(Estructura!C92,0,($J$1-1)*8) -> 2 | D18: =OFFSET(Estructura!D92,0,($J$1-1)*8) -> 2 | E18: =OFFSET(Estructura!E92,0,($J$1-1)*8) -> 2 | F18: =OFFSET(Estructura!F92,0,($J$1-1)*8) -> 2.2 | G18: =OFFSET(Estructura!G92,0,($J$1-1)*8) -> 0.6 | H18: =OFFSET(Estructura!H92,0,($J$1-1)*8) -> - | I18: =OFFSET(Estructura!I92,0,($J$1-1)*8) -> - | J18: =OFFSET(Estructura!J92,0,($J$1-1)*8) -> -
B19: Térmica renovable (3)/Otras renovables (4) | C19: =OFFSET(Estructura!C93,0,($J$1-1)*8) -> 1.9 | D19: =OFFSET(Estructura!D93,0,($J$1-1)*8) -> 1.2 | E19: =OFFSET(Estructura!E93,0,($J$1-1)*8) -> 1.4 | F19: =OFFSET(Estructura!F93,0,($J$1-1)*8) -> 1.4 | G19: =OFFSET(Estructura!G93,0,($J$1-1)*8) -> 1.4 | H19: =OFFSET(Estructura!H93,0,($J$1-1)*8) -> - | I19: =OFFSET(Estructura!I93,0,($J$1-1)*8) -> - | J19: =OFFSET(Estructura!J93,0,($J$1-1)*8) -> -
B20: Cogeneración y resto (3)/Cogeneración | C20: =OFFSET(Estructura!C94,0,($J$1-1)*8) -> 10.1 | D20: =OFFSET(Estructura!D94,0,($J$1-1)*8) -> 10.1 | E20: =OFFSET(Estructura!E94,0,($J$1-1)*8) -> 10.3 | F20: =OFFSET(Estructura!F94,0,($J$1-1)*8) -> 11.4 | G20: =OFFSET(Estructura!G94,0,($J$1-1)*8) -> 11.6 | H20: =OFFSET(Estructura!H94,0,($J$1-1)*8) -> - | I20: =OFFSET(Estructura!I94,0,($J$1-1)*8) -> - | J20: =OFFSET(Estructura!J94,0,($J$1-1)*8) -> -
B21: Residuos no renovables (5) | C21: =OFFSET(Estructura!C95,0,($J$1-1)*8) -> - | D21: =OFFSET(Estructura!D95,0,($J$1-1)*8) -> 0.9 | E21: =OFFSET(Estructura!E95,0,($J$1-1)*8) -> 1 | F21: =OFFSET(Estructura!F95,0,($J$1-1)*8) -> 1 | G21: =OFFSET(Estructura!G95,0,($J$1-1)*8) -> 1 | H21: =OFFSET(Estructura!H95,0,($J$1-1)*8) -> - | I21: =OFFSET(Estructura!I95,0,($J$1-1)*8) -> - | J21: =OFFSET(Estructura!J95,0,($J$1-1)*8) -> -
B22: Residuos renovables (5) | C22: =OFFSET(Estructura!C96,0,($J$1-1)*8) -> - | D22: =OFFSET(Estructura!D96,0,($J$1-1)*8) -> 0.3 | E22: =OFFSET(Estructura!E96,0,($J$1-1)*8) -> 0.3 | F22: =OFFSET(Estructura!F96,0,($J$1-1)*8) -> 0.3 | G22: =OFFSET(Estructura!G96,0,($J$1-1)*8) -> 0.3 | H22: =OFFSET(Estructura!H96,0,($J$1-1)*8) -> - | I22: =OFFSET(Estructura!I96,0,($J$1-1)*8) -> - | J22: =OFFSET(Estructura!J96,0,($J$1-1)*8) -> -
B23: Generación renovable (6) | C23: =OFFSET(Estructura!C97,0,($J$1-1)*8) -> 42.4 | D23: =OFFSET(Estructura!D97,0,($J$1-1)*8) -> 36.5 | E23: =OFFSET(Estructura!E97,0,($J$1-1)*8) -> 40.3 | F23: =OFFSET(Estructura!F97,0,($J$1-1)*8) -> 33.6 | G23: =OFFSET(Estructura!G97,0,($J$1-1)*8) -> 38.4 | H23: =OFFSET(Estructura!H97,0,($J$1-1)*8) -> - | I23: =OFFSET(Estructura!I97,0,($J$1-1)*8) -> - | J23: =OFFSET(Estructura!J97,0,($J$1-1)*8) -> -
B24: Generación no renovable | C24: =OFFSET(Estructura!C98,0,($J$1-1)*8) -> 57.6 | D24: =OFFSET(Estructura!D98,0,($J$1-1)*8) -> 63.5 | E24: =OFFSET(Estructura!E98,0,($J$1-1)*8) -> 59.7 | F24: =OFFSET(Estructura!F98,0,($J$1-1)*8) -> 66.4 | G24: =OFFSET(Estructura!G98,0,($J$1-1)*8) -> 61.6 | H24: =OFFSET(Estructura!H98,0,($J$1-1)*8) -> - | I24: =OFFSET(Estructura!I98,0,($J$1-1)*8) -> - | J24: =OFFSET(Estructura!J98,0,($J$1-1)*8) -> -
B25: (1) Asignación de unidades de producción según combustible principal.
B26: (2) Incluye funcionamiento en ciclo abierto.
B27: (3) Incluye residuos hasta el 31/12/2014.
B28: (4) Otras renovables incluyen biogás, biomasa, hidráulica marina y geotérmica.
B29: (5) Generación incluida en otras renovables y cogeneración hasta el 31/12/2014.
B30: (6) Incluye hidráulica, eólica, solar fotovoltaica, solar térmica y térmica renovable/otras renovables y residuos renovables. No incluye la turbinación bombeo.
B31: =IF(J1<4,"",IF(MONTH(FACT)=1,"",CONCATENATE(" Para el año ",YEAR(FACT)," valores acumulados hasta ",TEXT(FACT-30,"mmmm")," de ",YEAR(FACT),"."))) -> Para el año 2018 valores acumulados hasta enero de 2018.

Sheet Estructura mensual Baleares
O1: 13
M4: Sistema eléctrico
M5: Horizonte temporal
M6: Periodo
C8: Ene. | D8: Feb. | E8: Mar. | F8: Abr. | G8: May. | H8: Jun. | I8: Jul. | J8: Ago. | K8: Sep. | L8: Oct. | M8: Nov. | N8: Dic. | O8: =OFFSET(Año!B18,($O$1-1),0) -> 2018
B10: Carbón | C10: =OFFSET(Estructura!C20,0,($O$1-1)*12) -> 55.6 | D10: =OFFSET(Estructura!D20,0,($O$1-1)*12) -> - | E10: =OFFSET(Estructura!E20,0,($O$1-1)*12) -> - | F10: =OFFSET(Estructura!F20,0,($O$1-1)*12) -> - | G10: =OFFSET(Estructura!G20,0,($O$1-1)*12) -> - | H10: =OFFSET(Estructura!H20,0,($O$1-1)*12) -> - | I10: =OFFSET(Estructura!I20,0,($O$1-1)*12) -> - | J10: =OFFSET(Estructura!J20,0,($O$1-1)*12) -> - | K10: =OFFSET(Estructura!K20,0,($O$1-1)*12) -> - | L10: =OFFSET(Estructura!L20,0,($O$1-1)*12) -> - | M10: =OFFSET(Estructura!M20,0,($O$1-1)*12) -> - | N10: =OFFSET(Estructura!N20,0,($O$1-1)*12) -> - | O10: =OFFSET(Estructura!C101,0,($O$1-1)) -> 55.6
B11: Motores diesel | C11: =OFFSET(Estructura!C21,0,($O$1-1)*12) -> 10.9 | D11: =OFFSET(Estructura!D21,0,($O$1-1)*12) -> - | E11: =OFFSET(Estructura!E21,0,($O$1-1)*12) -> - | F11: =OFFSET(Estructura!F21,0,($O$1-1)*12) -> - | G11: =OFFSET(Estructura!G21,0,($O$1-1)*12) -> - | H11: =OFFSET(Estructura!H21,0,($O$1-1)*12) -> - | I11: =OFFSET(Estructura!I21,0,($O$1-1)*12) -> - | J11: =OFFSET(Estructura!J21,0,($O$1-1)*12) -> - | K11: =OFFSET(Estructura!K21,0,($O$1-1)*12) -> - | L11: =OFFSET(Estructura!L21,0,($O$1-1)*12) -> - | M11: =OFFSET(Estructura!M21,0,($O$1-1)*12) -> - | N11: =OFFSET(Estructura!N21,0,($O$1-1)*12) -> - | O11: =OFFSET(Estructura!C102,0,($O$1-1)) -> 10.9
B12: Turbina de gas | C12: =OFFSET(Estructura!C22,0,($O$1-1)*12) -> 17 | D12: =OFFSET(Estructura!D22,0,($O$1-1)*12) -> - | E12: =OFFSET(Estructura!E22,0,($O$1-1)*12) -> - | F12: =OFFSET(Estructura!F22,0,($O$1-1)*12) -> - | G12: =OFFSET(Estructura!G22,0,($O$1-1)*12) -> - | H12: =OFFSET(Estructura!H22,0,($O$1-1)*12) -> - | I12: =OFFSET(Estructura!I22,0,($O$1-1)*12) -> - | J12: =OFFSET(Estructura!J22,0,($O$1-1)*12) -> - | K12: =OFFSET(Estructura!K22,0,($O$1-1)*12) -> - | L12: =OFFSET(Estructura!L22,0,($O$1-1)*12) -> - | M12: =OFFSET(Estructura!M22,0,($O$1-1)*12) -> - | N12: =OFFSET(Estructura!N22,0,($O$1-1)*12) -> - | O12: =OFFSET(Estructura!C103,0,($O$1-1)) -> 17
B13: Ciclo combinado (2) | C13: =OFFSET(Estructura!C23,0,($O$1-1)*12) -> 9.2 | D13: =OFFSET(Estructura!D23,0,($O$1-1)*12) -> - | E13: =OFFSET(Estructura!E23,0,($O$1-1)*12) -> - | F13: =OFFSET(Estructura!F23,0,($O$1-1)*12) -> - | G13: =OFFSET(Estructura!G23,0,($O$1-1)*12) -> - | H13: =OFFSET(Estructura!H23,0,($O$1-1)*12) -> - | I13: =OFFSET(Estructura!I23,0,($O$1-1)*12) -> - | J13: =OFFSET(Estructura!J23,0,($O$1-1)*12) -> - | K13: =OFFSET(Estructura!K23,0,($O$1-1)*12) -> - | L13: =OFFSET(Estructura!L23,0,($O$1-1)*12) -> - | M13: =OFFSET(Estructura!M23,0,($O$1-1)*12) -> - | N13: =OFFSET(Estructura!N23,0,($O$1-1)*12) -> - | O13: =OFFSET(Estructura!C104,0,($O$1-1)) -> 9.2
B14: Generación auxiliar (3) | C14: =OFFSET(Estructura!C24,0,($O$1-1)*12) -> - | D14: =OFFSET(Estructura!D24,0,($O$1-1)*12) -> - | E14: =OFFSET(Estructura!E24,0,($O$1-1)*12) -> - | F14: =OFFSET(Estructura!F24,0,($O$1-1)*12) -> - | G14: =OFFSET(Estructura!G24,0,($O$1-1)*12) -> - | H14: =OFFSET(Estructura!H24,0,($O$1-1)*12) -> - | I14: =OFFSET(Estructura!I24,0,($O$1-1)*12) -> - | J14: =OFFSET(Estructura!J24,0,($O$1-1)*12) -> - | K14: =OFFSET(Estructura!K24,0,($O$1-1)*12) -> - | L14: =OFFSET(Estructura!L24,0,($O$1-1)*12) -> - | M14: =OFFSET(Estructura!M24,0,($O$1-1)*12) -> - | N14: =OFFSET(Estructura!N24,0,($O$1-1)*12) -> - | O14: =OFFSET(Estructura!C105,0,($O$1-1)) -> -
B15: Eólica | C15: =OFFSET(Estructura!C25,0,($O$1-1)*12) -> 0.1 | D15: =OFFSET(Estructura!D25,0,($O$1-1)*12) -> - | E15: =OFFSET(Estructura!E25,0,($O$1-1)*12) -> - | F15: =OFFSET(Estructura!F25,0,($O$1-1)*12) -> - | G15: =OFFSET(Estructura!G25,0,($O$1-1)*12) -> - | H15: =OFFSET(Estructura!H25,0,($O$1-1)*12) -> - | I15: =OFFSET(Estructura!I25,0,($O$1-1)*12) -> - | J15: =OFFSET(Estructura!J25,0,($O$1-1)*12) -> - | K15: =OFFSET(Estructura!K25,0,($O$1-1)*12) -> - | L15: =OFFSET(Estructura!L25,0,($O$1-1)*12) -> - | M15: =OFFSET(Estructura!M25,0,($O$1-1)*12) -> - | N15: =OFFSET(Estructura!N25,0,($O$1-1)*12) -> - | O15: =OFFSET(Estructura!C106,0,($O$1-1)) -> 0.1
B16: Solar fotovoltaica | C16: =OFFSET(Estructura!C26,0,($O$1-1)*12) -> 1.9 | D16: =OFFSET(Estructura!D26,0,($O$1-1)*12) -> - | E16: =OFFSET(Estructura!E26,0,($O$1-1)*12) -> - | F16: =OFFSET(Estructura!F26,0,($O$1-1)*12) -> - | G16: =OFFSET(Estructura!G26,0,($O$1-1)*12) -> - | H16: =OFFSET(Estructura!H26,0,($O$1-1)*12) -> - | I16: =OFFSET(Estructura!I26,0,($O$1-1)*12) -> - | J16: =OFFSET(Estructura!J26,0,($O$1-1)*12) -> - | K16: =OFFSET(Estructura!K26,0,($O$1-1)*12) -> - | L16: =OFFSET(Estructura!L26,0,($O$1-1)*12) -> - | M16: =OFFSET(Estructura!M26,0,($O$1-1)*12) -> - | N16: =OFFSET(Estructura!N26,0,($O$1-1)*12) -> - | O16: =OFFSET(Estructura!C107,0,($O$1-1)) -> 1.9
B17: Térmica renovable (4)/Otras renovables (5) | C17: =OFFSET(Estructura!C27,0,($O$1-1)*12) -> 0 | D17: =OFFSET(Estructura!D27,0,($O$1-1)*12) -> - | E17: =OFFSET(Estructura!E27,0,($O$1-1)*12) -> - | F17: =OFFSET(Estructura!F27,0,($O$1-1)*12) -> - | G17: =OFFSET(Estructura!G27,0,($O$1-1)*12) -> - | H17: =OFFSET(Estructura!H27,0,($O$1-1)*12) -> - | I17: =OFFSET(Estructura!I27,0,($O$1-1)*12) -> - | J17: =OFFSET(Estructura!J27,0,($O$1-1)*12) -> - | K17: =OFFSET(Estructura!K27,0,($O$1-1)*12) -> - | L17: =OFFSET(Estructura!L27,0,($O$1-1)*12) -> - | M17: =OFFSET(Estructura!M27,0,($O$1-1)*12) -> - | N17: =OFFSET(Estructura!N27,0,($O$1-1)*12) -> - | O17: =OFFSET(Estructura!C108,0,($O$1-1)) -> 0
B18: Cogeneración y resto (4)/Cogeneración | C18: =OFFSET(Estructura!C28,0,($O$1-1)*12) -> 0.9 | D18: =OFFSET(Estructura!D28,0,($O$1-1)*12) -> - | E18: =OFFSET(Estructura!E28,0,($O$1-1)*12) -> - | F18: =OFFSET(Estructura!F28,0,($O$1-1)*12) -> - | G18: =OFFSET(Estructura!G28,0,($O$1-1)*12) -> - | H18: =OFFSET(Estructura!H28,0,($O$1-1)*12) -> - | I18: =OFFSET(Estructura!I28,0,($O$1-1)*12) -> - | J18: =OFFSET(Estructura!J28,0,($O$1-1)*12) -> - | K18: =OFFSET(Estructura!K28,0,($O$1-1)*12) -> - | L18: =OFFSET(Estructura!L28,0,($O$1-1)*12) -> - | M18: =OFFSET(Estructura!M28,0,($O$1-1)*12) -> - | N18: =OFFSET(Estructura!N28,0,($O$1-1)*12) -> - | O18: =OFFSET(Estructura!C109,0,($O$1-1)) -> 0.9
B19: Residuos no renovables (6) | C19: =OFFSET(Estructura!C29,0,($O$1-1)*12) -> 2.2 | D19: =OFFSET(Estructura!D29,0,($O$1-1)*12) -> - | E19: =OFFSET(Estructura!E29,0,($O$1-1)*12) -> - | F19: =OFFSET(Estructura!F29,0,($O$1-1)*12) -> - | G19: =OFFSET(Estructura!G29,0,($O$1-1)*12) -> - | H19: =OFFSET(Estructura!H29,0,($O$1-1)*12) -> - | I19: =OFFSET(Estructura!I29,0,($O$1-1)*12) -> - | J19: =OFFSET(Estructura!J29,0,($O$1-1)*12) -> - | K19: =OFFSET(Estructura!K29,0,($O$1-1)*12) -> - | L19: =OFFSET(Estructura!L29,0,($O$1-1)*12) -> - | M19: =OFFSET(Estructura!M29,0,($O$1-1)*12) -> - | N19: =OFFSET(Estructura!N29,0,($O$1-1)*12) -> - | O19: =OFFSET(Estructura!C110,0,($O$1-1)) -> 2.2
B20: Residuos renovables (6) | C20: =OFFSET(Estructura!C30,0,($O$1-1)*12) -> 2.2 | D20: =OFFSET(Estructura!D30,0,($O$1-1)*12) -> - | E20: =OFFSET(Estructura!E30,0,($O$1-1)*12) -> - | F20: =OFFSET(Estructura!F30,0,($O$1-1)*12) -> - | G20: =OFFSET(Estructura!G30,0,($O$1-1)*12) -> - | H20: =OFFSET(Estructura!H30,0,($O$1-1)*12) -> - | I20: =OFFSET(Estructura!I30,0,($O$1-1)*12) -> - | J20: =OFFSET(Estructura!J30,0,($O$1-1)*12) -> - | K20: =OFFSET(Estructura!K30,0,($O$1-1)*12) -> - | L20: =OFFSET(Estructura!L30,0,($O$1-1)*12) -> - | M20: =OFFSET(Estructura!M30,0,($O$1-1)*12) -> - | N20: =OFFSET(Estructura!N30,0,($O$1-1)*12) -> - | O20: =OFFSET(Estructura!C111,0,($O$1-1)) -> 2.2
B21: Generación renovable (7) | C21: =OFFSET(Estructura!C31,0,($O$1-1)*12) -> 4.2 | D21: =OFFSET(Estructura!D31,0,($O$1-1)*12) -> - | E21: =OFFSET(Estructura!E31,0,($O$1-1)*12) -> - | F21: =OFFSET(Estructura!F31,0,($O$1-1)*12) -> - | G21: =OFFSET(Estructura!G31,0,($O$1-1)*12) -> - | H21: =OFFSET(Estructura!H31,0,($O$1-1)*12) -> - | I21: =OFFSET(Estructura!I31,0,($O$1-1)*12) -> - | J21: =OFFSET(Estructura!J31,0,($O$1-1)*12) -> - | K21: =OFFSET(Estructura!K31,0,($O$1-1)*12) -> - | L21: =OFFSET(Estructura!L31,0,($O$1-1)*12) -> - | M21: =OFFSET(Estructura!M31,0,($O$1-1)*12) -> - | N21: =OFFSET(Estructura!N31,0,($O$1-1)*12) -> - | O21: =OFFSET(Estructura!C112,0,($O$1-1)) -> 4.2
B22: Generación no renovable | C22: =OFFSET(Estructura!C32,0,($O$1-1)*12) -> 95.8 | D22: =OFFSET(Estructura!D32,0,($O$1-1)*12) -> - | E22: =OFFSET(Estructura!E32,0,($O$1-1)*12) -> - | F22: =OFFSET(Estructura!F32,0,($O$1-1)*12) -> - | G22: =OFFSET(Estructura!G32,0,($O$1-1)*12) -> - | H22: =OFFSET(Estructura!H32,0,($O$1-1)*12) -> - | I22: =OFFSET(Estructura!I32,0,($O$1-1)*12) -> - | J22: =OFFSET(Estructura!J32,0,($O$1-1)*12) -> - | K22: =OFFSET(Estructura!K32,0,($O$1-1)*12) -> - | L22: =OFFSET(Estructura!L32,0,($O$1-1)*12) -> - | M22: =OFFSET(Estructura!M32,0,($O$1-1)*12) -> - | N22: =OFFSET(Estructura!N32,0,($O$1-1)*12) -> - | O22: =OFFSET(Estructura!C113,0,($O$1-1)) -> 95.8
B23: (1) Asignación de unidades de producción según combustible principal.
B24: (2) Incluye funcionamiento en ciclo abierto.
B25: (3) Grupos de emergencia que se instalan de forma transitoria en determinadas zonas para cubrir un déficit de generación.
B26: (4) Incluye residuos hasta el 31/12/2014.
B27: (5) Otras renovables incluyen biogás y biomasa.
B28: (6) Generación incluida en otras renovables y cogeneración hasta el 31/12/2014.
B29: (7) Incluye eólica, solar fotovoltaica y térmica renovable/otras renovables y residuos renovables.

Sheet Estructura anual Baleares
J1: 2
H4: Sistema eléctrico
H5: Horizonte temporal
H6: Periodo
C8: =OFFSET(Estructura!C100,0,($J$1-1)*8) -> 2014 | D8: =OFFSET(Estructura!D100,0,($J$1-1)*8) -> 2015 | E8: =OFFSET(Estructura!E100,0,($J$1-1)*8) -> 2016 | F8: =OFFSET(Estructura!F100,0,($J$1-1)*8) -> 2017 | G8: =OFFSET(Estructura!G100,0,($J$1-1)*8) -> 2018 | H8: =OFFSET(Estructura!H100,0,($J$1-1)*8) -> 2019 | I8: =OFFSET(Estructura!I100,0,($J$1-1)*8) -> 2020 | J8: =OFFSET(Estructura!J100,0,($J$1-1)*8) -> 2021
B10: Carbón | C10: =OFFSET(Estructura!C101,0,($J$1-1)*8) -> 50.9 | D10: =OFFSET(Estructura!D101,0,($J$1-1)*8) -> 41.9 | E10: =OFFSET(Estructura!E101,0,($J$1-1)*8) -> 50.3 | F10: =OFFSET(Estructura!F101,0,($J$1-1)*8) -> 53.7 | G10: =OFFSET(Estructura!G101,0,($J$1-1)*8) -> 55.6 | H10: =OFFSET(Estructura!H101,0,($J$1-1)*8) -> - | I10: =OFFSET(Estructura!I101,0,($J$1-1)*8) -> - | J10: =OFFSET(Estructura!J101,0,($J$1-1)*8) -> -
B11: Motores diesel | C11: =OFFSET(Estructura!C102,0,($J$1-1)*8) -> 15.7 | D11: =OFFSET(Estructura!D102,0,($J$1-1)*8) -> 16.4 | E11: =OFFSET(Estructura!E102,0,($J$1-1)*8) -> 21 | F11: =OFFSET(Estructura!F102,0,($J$1-1)*8) -> 16.5 | G11: =OFFSET(Estructura!G102,0,($J$1-1)*8) -> 10.9 | H11: =OFFSET(Estructura!H102,0,($J$1-1)*8) -> - | I11: =OFFSET(Estructura!I102,0,($J$1-1)*8) -> - | J11: =OFFSET(Estructura!J102,0,($J$1-1)*8) -> -
B12: Turbina de gas | C12: =OFFSET(Estructura!C103,0,($J$1-1)*8) -> 13.6 | D12: =OFFSET(Estructura!D103,0,($J$1-1)*8) -> 13.1 | E12: =OFFSET(Estructura!E103,0,($J$1-1)*8) -> 7.4 | F12: =OFFSET(Estructura!F103,0,($J$1-1)*8) -> 11.4 | G12: =OFFSET(Estructura!G103,0,($J$1-1)*8) -> 17 | H12: =OFFSET(Estructura!H103,0,($J$1-1)*8) -> - | I12: =OFFSET(Estructura!I103,0,($J$1-1)*8) -> - | J12: =OFFSET(Estructura!J103,0,($J$1-1)*8) -> -
B13: Ciclo combinado (2) | C13: =OFFSET(Estructura!C104,0,($J$1-1)*8) -> 10 | D13: =OFFSET(Estructura!D104,0,($J$1-1)*8) -> 18.1 | E13: =OFFSET(Estructura!E104,0,($J$1-1)*8) -> 11.8 | F13: =OFFSET(Estructura!F104,0,($J$1-1)*8) -> 8.8 | G13: =OFFSET(Estructura!G104,0,($J$1-1)*8) -> 9.2 | H13: =OFFSET(Estructura!H104,0,($J$1-1)*8) -> - | I13: =OFFSET(Estructura!I104,0,($J$1-1)*8) -> - | J13: =OFFSET(Estructura!J104,0,($J$1-1)*8) -> -
B14: Generación auxiliar (3) | C14: =OFFSET(Estructura!C105,0,($J$1-1)*8) -> 0.2 | D14: =OFFSET(Estructura!D105,0,($J$1-1)*8) -> 0.2 | E14: =OFFSET(Estructura!E105,0,($J$1-1)*8) -> 0.2 | F14: =OFFSET(Estructura!F105,0,($J$1-1)*8) -> 0.3 | G14: =OFFSET(Estructura!G105,0,($J$1-1)*8) -> - | H14: =OFFSET(Estructura!H105,0,($J$1-1)*8) -> - | I14: =OFFSET(Estructura!I105,0,($J$1-1)*8) -> - | J14: =OFFSET(Estructura!J105,0,($J$1-1)*8) -> -
B15: Eólica | C15: =OFFSET(Estructura!C106,0,($J$1-1)*8) -> 0.1 | D15: =OFFSET(Estructura!D106,0,($J$1-1)*8) -> 0.1 | E15: =OFFSET(Estructura!E106,0,($J$1-1)*8) -> 0.1 | F15: =OFFSET(Estructura!F106,0,($J$1-1)*8) -> 0.1 | G15: =OFFSET(Estructura!G106,0,($J$1-1)*8) -> 0.1 | H15: =OFFSET(Estructura!H106,0,($J$1-1)*8) -> - | I15: =OFFSET(Estructura!I106,0,($J$1-1)*8) -> - | J15: =OFFSET(Estructura!J106,0,($J$1-1)*8) -> -
B16: Solar fotovoltaica | C16: =OFFSET(Estructura!C107,0,($J$1-1)*8) -> 2.9 | D16: =OFFSET(Estructura!D107,0,($J$1-1)*8) -> 2.7 | E16: =OFFSET(Estructura!E107,0,($J$1-1)*8) -> 2.6 | F16: =OFFSET(Estructura!F107,0,($J$1-1)*8) -> 2.5 | G16: =OFFSET(Estructura!G107,0,($J$1-1)*8) -> 1.9 | H16: =OFFSET(Estructura!H107,0,($J$1-1)*8) -> - | I16: =OFFSET(Estructura!I107,0,($J$1-1)*8) -> - | J16: =OFFSET(Estructura!J107,0,($J$1-1)*8) -> -
B17: Térmica renovable (4)/Otras renovables (5) | C17: =OFFSET(Estructura!C108,0,($J$1-1)*8) -> 0 | D17: =OFFSET(Estructura!D108,0,($J$1-1)*8) -> 0 | E17: =OFFSET(Estructura!E108,0,($J$1-1)*8) -> 0 | F17: =OFFSET(Estructura!F108,0,($J$1-1)*8) -> 0 | G17: =OFFSET(Estructura!G108,0,($J$1-1)*8) -> 0 | H17: =OFFSET(Estructura!H108,0,($J$1-1)*8) -> - | I17: =OFFSET(Estructura!I108,0,($J$1-1)*8) -> - | J17: =OFFSET(Estructura!J108,0,($J$1-1)*8) -> -
B18: Cogeneración y resto (4)/Cogeneración | C18: =OFFSET(Estructura!C109,0,($J$1-1)*8) -> 6.6 | D18: =OFFSET(Estructura!D109,0,($J$1-1)*8) -> 0.7 | E18: =OFFSET(Estructura!E109,0,($J$1-1)*8) -> 0.8 | F18: =OFFSET(Estructura!F109,0,($J$1-1)*8) -> 0.7 | G18: =OFFSET(Estructura!G109,0,($J$1-1)*8) -> 0.9 | H18: =OFFSET(Estructura!H109,0,($J$1-1)*8) -> - | I18: =OFFSET(Estructura!I109,0,($J$1-1)*8) -> - | J18: =OFFSET(Estructura!J109,0,($J$1-1)*8) -> -
B19: Residuos no renovables (6) | C19: =OFFSET(Estructura!C110,0,($J$1-1)*8) -> - | D19: =OFFSET(Estructura!D110,0,($J$1-1)*8) -> 3.4 | E19: =OFFSET(Estructura!E110,0,($J$1-1)*8) -> 2.9 | F19: =OFFSET(Estructura!F110,0,($J$1-1)*8) -> 3 | G19: =OFFSET(Estructura!G110,0,($J$1-1)*8) -> 2.2 | H19: =OFFSET(Estructura!H110,0,($J$1-1)*8) -> - | I19: =OFFSET(Estructura!I110,0,($J$1-1)*8) -> - | J19: =OFFSET(Estructura!J110,0,($J$1-1)*8) -> -
B20: Residuos renovables (6) | C20: =OFFSET(Estructura!C111,0,($J$1-1)*8) -> - | D20: =OFFSET(Estructura!D111,0,($J$1-1)*8) -> 3.4 | E20: =OFFSET(Estructura!E111,0,($J$1-1)*8) -> 2.9 | F20: =OFFSET(Estructura!F111,0,($J$1-1)*8) -> 3 | G20: =OFFSET(Estructura!G111,0,($J$1-1)*8) -> 2.2 | H20: =OFFSET(Estructura!H111,0,($J$1-1)*8) -> - | I20: =OFFSET(Estructura!I111,0,($J$1-1)*8) -> - | J20: =OFFSET(Estructura!J111,0,($J$1-1)*8) -> -
B21: Generación renovable (7) | C21: =OFFSET(Estructura!C112,0,($J$1-1)*8) -> 3 | D21: =OFFSET(Estructura!D112,0,($J$1-1)*8) -> 6.2 | E21: =OFFSET(Estructura!E112,0,($J$1-1)*8) -> 5.6 | F21: =OFFSET(Estructura!F112,0,($J$1-1)*8) -> 5.6 | G21: =OFFSET(Estructura!G112,0,($J$1-1)*8) -> 4.2 | H21: =OFFSET(Estructura!H112,0,($J$1-1)*8) -> - | I21: =OFFSET(Estructura!I112,0,($J$1-1)*8) -> - | J21: =OFFSET(Estructura!J112,0,($J$1-1)*8) -> -
B22: Generación no renovable | C22: =OFFSET(Estructura!C113,0,($J$1-1)*8) -> 97 | D22: =OFFSET(Estructura!D113,0,($J$1-1)*8) -> 93.8 | E22: =OFFSET(Estructura!E113,0,($J$1-1)*8) -> 94.4 | F22: =OFFSET(Estructura!F113,0,($J$1-1)*8) -> 94.4 | G22: =OFFSET(Estructura!G113,0,($J$1-1)*8) -> 95.8 | H22: =OFFSET(Estructura!H113,0,($J$1-1)*8) -> - | I22: =OFFSET(Estructura!I113,0,($J$1-1)*8) -> - | J22: =OFFSET(Estructura!J113,0,($J$1-1)*8) -> -
B23: (1) Asignación de unidades de producción según combustible principal.
B24: (2) Incluye funcionamiento en ciclo abierto.
B25: (3) Grupos de emergencia que se instalan de forma transitoria en determinadas zonas para cubrir un déficit de generación.
B26: (4) Incluye residuos hasta el 31/12/2014.
B27: (5) Otras renovables incluyen biogás y biomasa.
B28: (6) Generación incluida en otras renovables y cogeneración hasta el 31/12/2014.
B29: (7) Incluye eólica, solar fotovoltaica y térmica renovable/otras renovables y residuos renovables.
B30: =IF(J1<2,"",IF(MONTH(FACT)=1,"",CONCATENATE(" Para el año ",YEAR(FACT)," valores acumulados hasta ",TEXT(FACT-30,"mmmm")," de ",YEAR(FACT),"."))) -> Para el año 2018 valores acumulados hasta enero de 2018.

Sheet Estructura mensual Canarias
O1: 13
M4: Sistema eléctrico
M5: Horizonte temporal
M6: Periodo
C8: Ene. | D8: Feb. | E8: Mar. | F8: Abr. | G8: May. | H8: Jun. | I8: Jul. | J8: Ago. | K8: Sep. | L8: Oct. | M8: Nov. | N8: Dic. | O8: =OFFSET(Año!B18,($O$1-1),0) -> 2018
B10: Hidráulica | C10: =OFFSET(Estructura!C35,0,($O$1-1)*12) -> - | D10: =OFFSET(Estructura!D35,0,($O$1-1)*12) -> - | E10: =OFFSET(Estructura!E35,0,($O$1-1)*12) -> - | F10: =OFFSET(Estructura!F35,0,($O$1-1)*12) -> - | G10: =OFFSET(Estructura!G35,0,($O$1-1)*12) -> - | H10: =OFFSET(Estructura!H35,0,($O$1-1)*12) -> - | I10: =OFFSET(Estructura!I35,0,($O$1-1)*12) -> - | J10: =OFFSET(Estructura!J35,0,($O$1-1)*12) -> - | K10: =OFFSET(Estructura!K35,0,($O$1-1)*12) -> - | L10: =OFFSET(Estructura!L35,0,($O$1-1)*12) -> - | M10: =OFFSET(Estructura!M35,0,($O$1-1)*12) -> - | N10: =OFFSET(Estructura!N35,0,($O$1-1)*12) -> - | O10: =OFFSET(Estructura!C116,0,($O$1-1)) -> -
B11: Motores diesel | C11: =OFFSET(Estructura!C36,0,($O$1-1)*12) -> 24.8 | D11: =OFFSET(Estructura!D36,0,($O$1-1)*12) -> - | E11: =OFFSET(Estructura!E36,0,($O$1-1)*12) -> - | F11: =OFFSET(Estructura!F36,0,($O$1-1)*12) -> - | G11: =OFFSET(Estructura!G36,0,($O$1-1)*12) -> - | H11: =OFFSET(Estructura!H36,0,($O$1-1)*12) -> - | I11: =OFFSET(Estructura!I36,0,($O$1-1)*12) -> - | J11: =OFFSET(Estructura!J36,0,($O$1-1)*12) -> - | K11: =OFFSET(Estructura!K36,0,($O$1-1)*12) -> - | L11: =OFFSET(Estructura!L36,0,($O$1-1)*12) -> - | M11: =OFFSET(Estructura!M36,0,($O$1-1)*12) -> - | N11: =OFFSET(Estructura!N36,0,($O$1-1)*12) -> - | O11: =OFFSET(Estructura!C117,0,($O$1-1)) -> 24.8
B12: Turbina de gas | C12: =OFFSET(Estructura!C37,0,($O$1-1)*12) -> 3 | D12: =OFFSET(Estructura!D37,0,($O$1-1)*12) -> - | E12: =OFFSET(Estructura!E37,0,($O$1-1)*12) -> - | F12: =OFFSET(Estructura!F37,0,($O$1-1)*12) -> - | G12: =OFFSET(Estructura!G37,0,($O$1-1)*12) -> - | H12: =OFFSET(Estructura!H37,0,($O$1-1)*12) -> - | I12: =OFFSET(Estructura!I37,0,($O$1-1)*12) -> - | J12: =OFFSET(Estructura!J37,0,($O$1-1)*12) -> - | K12: =OFFSET(Estructura!K37,0,($O$1-1)*12) -> - | L12: =OFFSET(Estructura!L37,0,($O$1-1)*12) -> - | M12: =OFFSET(Estructura!M37,0,($O$1-1)*12) -> - | N12: =OFFSET(Estructura!N37,0,($O$1-1)*12) -> - | O12: =OFFSET(Estructura!C118,0,($O$1-1)) -> 3
B13: Turbina de vapor | C13: =OFFSET(Estructura!C38,0,($O$1-1)*12) -> 30 | D13: =OFFSET(Estructura!D38,0,($O$1-1)*12) -> - | E13: =OFFSET(Estructura!E38,0,($O$1-1)*12) -> - | F13: =OFFSET(Estructura!F38,0,($O$1-1)*12) -> - | G13: =OFFSET(Estructura!G38,0,($O$1-1)*12) -> - | H13: =OFFSET(Estructura!H38,0,($O$1-1)*12) -> - | I13: =OFFSET(Estructura!I38,0,($O$1-1)*12) -> - | J13: =OFFSET(Estructura!J38,0,($O$1-1)*12) -> - | K13: =OFFSET(Estructura!K38,0,($O$1-1)*12) -> - | L13: =OFFSET(Estructura!L38,0,($O$1-1)*12) -> - | M13: =OFFSET(Estructura!M38,0,($O$1-1)*12) -> - | N13: =OFFSET(Estructura!N38,0,($O$1-1)*12) -> - | O13: =OFFSET(Estructura!C119,0,($O$1-1)) -> 30
B14: Ciclo combinado (2) | C14: =OFFSET(Estructura!C39,0,($O$1-1)*12) -> 31.5 | D14: =OFFSET(Estructura!D39,0,($O$1-1)*12) -> - | E14: =OFFSET(Estructura!E39,0,($O$1-1)*12) -> - | F14: =OFFSET(Estructura!F39,0,($O$1-1)*12) -> - | G14: =OFFSET(Estructura!G39,0,($O$1-1)*12) -> - | H14: =OFFSET(Estructura!H39,0,($O$1-1)*12) -> - | I14: =OFFSET(Estructura!I39,0,($O$1-1)*12) -> - | J14: =OFFSET(Estructura!J39,0,($O$1-1)*12) -> - | K14: =OFFSET(Estructura!K39,0,($O$1-1)*12) -> - | L14: =OFFSET(Estructura!L39,0,($O$1-1)*12) -> - | M14: =OFFSET(Estructura!M39,0,($O$1-1)*12) -> - | N14: =OFFSET(Estructura!N39,0,($O$1-1)*12) -> - | O14: =OFFSET(Estructura!C120,0,($O$1-1)) -> 31.5
B15: Generación auxiliar (3) | C15: =OFFSET(Estructura!C40,0,($O$1-1)*12) -> - | D15: =OFFSET(Estructura!D40,0,($O$1-1)*12) -> - | E15: =OFFSET(Estructura!E40,0,($O$1-1)*12) -> - | F15: =OFFSET(Estructura!F40,0,($O$1-1)*12) -> - | G15: =OFFSET(Estructura!G40,0,($O$1-1)*12) -> - | H15: =OFFSET(Estructura!H40,0,($O$1-1)*12) -> - | I15: =OFFSET(Estructura!I40,0,($O$1-1)*12) -> - | J15: =OFFSET(Estructura!J40,0,($O$1-1)*12) -> - | K15: =OFFSET(Estructura!K40,0,($O$1-1)*12) -> - | L15: =OFFSET(Estructura!L40,0,($O$1-1)*12) -> - | M15: =OFFSET(Estructura!M40,0,($O$1-1)*12) -> - | N15: =OFFSET(Estructura!N40,0,($O$1-1)*12) -> - | O15: =OFFSET(Estructura!C121,0,($O$1-1)) -> -
B16: Hidroeólica | C16: =OFFSET(Estructura!C41,0,($O$1-1)*12) -> 0.3 | D16: =OFFSET(Estructura!D41,0,($O$1-1)*12) -> - | E16: =OFFSET(Estructura!E41,0,($O$1-1)*12) -> - | F16: =OFFSET(Estructura!F41,0,($O$1-1)*12) -> - | G16: =OFFSET(Estructura!G41,0,($O$1-1)*12) -> - | H16: =OFFSET(Estructura!H41,0,($O$1-1)*12) -> - | I16: =OFFSET(Estructura!I41,0,($O$1-1)*12) -> - | J16: =OFFSET(Estructura!J41,0,($O$1-1)*12) -> - | K16: =OFFSET(Estructura!K41,0,($O$1-1)*12) -> - | L16: =OFFSET(Estructura!L41,0,($O$1-1)*12) -> - | M16: =OFFSET(Estructura!M41,0,($O$1-1)*12) -> - | N16: =OFFSET(Estructura!N41,0,($O$1-1)*12) -> - | O16: =OFFSET(Estructura!C122,0,($O$1-1)) -> 0.3
B17: Eólica | C17: =OFFSET(Estructura!C42,0,($O$1-1)*12) -> 8 | D17: =OFFSET(Estructura!D42,0,($O$1-1)*12) -> - | E17: =OFFSET(Estructura!E42,0,($O$1-1)*12) -> - | F17: =OFFSET(Estructura!F42,0,($O$1-1)*12) -> - | G17: =OFFSET(Estructura!G42,0,($O$1-1)*12) -> - | H17: =OFFSET(Estructura!H42,0,($O$1-1)*12) -> - | I17: =OFFSET(Estructura!I42,0,($O$1-1)*12) -> - | J17: =OFFSET(Estructura!J42,0,($O$1-1)*12) -> - | K17: =OFFSET(Estructura!K42,0,($O$1-1)*12) -> - | L17: =OFFSET(Estructura!L42,0,($O$1-1)*12) -> - | M17: =OFFSET(Estructura!M42,0,($O$1-1)*12) -> - | N17: =OFFSET(Estructura!N42,0,($O$1-1)*12) -> - | O17: =OFFSET(Estructura!C123,0,($O$1-1)) -> 8
B18: Solar fotovoltaica | C18: =OFFSET(Estructura!C43,0,($O$1-1)*12) -> 2.4 | D18: =OFFSET(Estructura!D43,0,($O$1-1)*12) -> - | E18: =OFFSET(Estructura!E43,0,($O$1-1)*12) -> - | F18: =OFFSET(Estructura!F43,0,($O$1-1)*12) -> - | G18: =OFFSET(Estructura!G43,0,($O$1-1)*12) -> - | H18: =OFFSET(Estructura!H43,0,($O$1-1)*12) -> - | I18: =OFFSET(Estructura!I43,0,($O$1-1)*12) -> - | J18: =OFFSET(Estructura!J43,0,($O$1-1)*12) -> - | K18: =OFFSET(Estructura!K43,0,($O$1-1)*12) -> - | L18: =OFFSET(Estructura!L43,0,($O$1-1)*12) -> - | M18: =OFFSET(Estructura!M43,0,($O$1-1)*12) -> - | N18: =OFFSET(Estructura!N43,0,($O$1-1)*12) -> - | O18: =OFFSET(Estructura!C124,0,($O$1-1)) -> 2.4
B19: Térmica renovable/Otras renovables (4) | C19: =OFFSET(Estructura!C44,0,($O$1-1)*12) -> - | D19: =OFFSET(Estructura!D44,0,($O$1-1)*12) -> - | E19: =OFFSET(Estructura!E44,0,($O$1-1)*12) -> - | F19: =OFFSET(Estructura!F44,0,($O$1-1)*12) -> - | G19: =OFFSET(Estructura!G44,0,($O$1-1)*12) -> - | H19: =OFFSET(Estructura!H44,0,($O$1-1)*12) -> - | I19: =OFFSET(Estructura!I44,0,($O$1-1)*12) -> - | J19: =OFFSET(Estructura!J44,0,($O$1-1)*12) -> - | K19: =OFFSET(Estructura!K44,0,($O$1-1)*12) -> - | L19: =OFFSET(Estructura!L44,0,($O$1-1)*12) -> - | M19: =OFFSET(Estructura!M44,0,($O$1-1)*12) -> - | N19: =OFFSET(Estructura!N44,0,($O$1-1)*12) -> - | O19: =OFFSET(Estructura!C125,0,($O$1-1)) -> -
B20: Cogeneración y resto/Cogeneración | C20: =OFFSET(Estructura!C45,0,($O$1-1)*12) -> - | D20: =OFFSET(Estructura!D45,0,($O$1-1)*12) -> - | E20: =OFFSET(Estructura!E45,0,($O$1-1)*12) -> - | F20: =OFFSET(Estructura!F45,0,($O$1-1)*12) -> - | G20: =OFFSET(Estructura!G45,0,($O$1-1)*12) -> - | H20: =OFFSET(Estructura!H45,0,($O$1-1)*12) -> - | I20: =OFFSET(Estructura!I45,0,($O$1-1)*12) -> - | J20: =OFFSET(Estructura!J45,0,($O$1-1)*12) -> - | K20: =OFFSET(Estructura!K45,0,($O$1-1)*12) -> - | L20: =OFFSET(Estructura!L45,0,($O$1-1)*12) -> - | M20: =OFFSET(Estructura!M45,0,($O$1-1)*12) -> - | N20: =OFFSET(Estructura!N45,0,($O$1-1)*12) -> - | O20: =OFFSET(Estructura!C126,0,($O$1-1)) -> -
B21: Generación renovable (5) | C21: =OFFSET(Estructura!C46,0,($O$1-1)*12) -> 10.7 | D21: =OFFSET(Estructura!D46,0,($O$1-1)*12) -> - | E21: =OFFSET(Estructura!E46,0,($O$1-1)*12) -> - | F21: =OFFSET(Estructura!F46,0,($O$1-1)*12) -> - | G21: =OFFSET(Estructura!G46,0,($O$1-1)*12) -> - | H21: =OFFSET(Estructura!H46,0,($O$1-1)*12) -> - | I21: =OFFSET(Estructura!I46,0,($O$1-1)*12) -> - | J21: =OFFSET(Estructura!J46,0,($O$1-1)*12) -> - | K21: =OFFSET(Estructura!K46,0,($O$1-1)*12) -> - | L21: =OFFSET(Estructura!L46,0,($O$1-1)*12) -> - | M21: =OFFSET(Estructura!M46,0,($O$1-1)*12) -> - | N21: =OFFSET(Estructura!N46,0,($O$1-1)*12) -> - | O21: =OFFSET(Estructura!C127,0,($O$1-1)) -> 10.7
B22: Generación no renovable | C22: =OFFSET(Estructura!C47,0,($O$1-1)*12) -> 89.3 | D22: =OFFSET(Estructura!D47,0,($O$1-1)*12) -> - | E22: =OFFSET(Estructura!E47,0,($O$1-1)*12) -> - | F22: =OFFSET(Estructura!F47,0,($O$1-1)*12) -> - | G22: =OFFSET(Estructura!G47,0,($O$1-1)*12) -> - | H22: =OFFSET(Estructura!H47,0,($O$1-1)*12) -> - | I22: =OFFSET(Estructura!I47,0,($O$1-1)*12) -> - | J22: =OFFSET(Estructura!J47,0,($O$1-1)*12) -> - | K22: =OFFSET(Estructura!K47,0,($O$1-1)*12) -> - | L22: =OFFSET(Estructura!L47,0,($O$1-1)*12) -> - | M22: =OFFSET(Estructura!M47,0,($O$1-1)*12) -> - | N22: =OFFSET(Estructura!N47,0,($O$1-1)*12) -> - | O22: =OFFSET(Estructura!C128,0,($O$1-1)) -> 89.3
B23: (1) Asignación de unidades de producción según combustible principal.
B24: (2) Utiliza gasoil como combustible principal. Incluye funcionamiento en ciclo abierto.
B25: (3) Grupos de emergencia que se instalan de forma transitoria en determinadas zonas para cubrir un déficit de generación.
B26: (4) Otras renovables incluyen biogás y biomasa.
B27: (5) Incluye hidráulica, hidroeólica, eólica, solar fotovoltaica y térmica renovable/otras renovables.

Sheet Estructura anual Canarias
J1: 2
H4: Sistema eléctrico
H5: Horizonte temporal
H6: Periodo
C8: =OFFSET(Estructura!C115,0,($J$1-1)*8) -> 2014 | D8: =OFFSET(Estructura!D115,0,($J$1-1)*8) -> 2015 | E8: =OFFSET(Estructura!E115,0,($J$1-1)*8) -> 2016 | F8: =OFFSET(Estructura!F115,0,($J$1-1)*8) -> 2017 | G8: =OFFSET(Estructura!G115,0,($J$1-1)*8) -> 2018 | H8: =OFFSET(Estructura!H115,0,($J$1-1)*8) -> 2019 | I8: =OFFSET(Estructura!I115,0,($J$1-1)*8) -> 2020 | J8: =OFFSET(Estructura!J115,0,($J$1-1)*8) -> 2021
B10: Hidráulica | C10: =OFFSET(Estructura!C116,0,($J$1-1)*8) -> 0 | D10: =OFFSET(Estructura!D116,0,($J$1-1)*8) -> 0 | E10: =OFFSET(Estructura!E116,0,($J$1-1)*8) -> 0 | F10: =OFFSET(Estructura!F116,0,($J$1-1)*8) -> 0 | G10: =OFFSET(Estructura!G116,0,($J$1-1)*8) -> - | H10: =OFFSET(Estructura!H116,0,($J$1-1)*8) -> - | I10: =OFFSET(Estructura!I116,0,($J$1-1)*8) -> - | J10: =OFFSET(Estructura!J116,0,($J$1-1)*8) -> -
B11: Motores diesel | C11: =OFFSET(Estructura!C117,0,($J$1-1)*8) -> 25 | D11: =OFFSET(Estructura!D117,0,($J$1-1)*8) -> 25.5 | E11: =OFFSET(Estructura!E117,0,($J$1-1)*8) -> 25.4 | F11: =OFFSET(Estructura!F117,0,($J$1-1)*8) -> 27.6 | G11: =OFFSET(Estructura!G117,0,($J$1-1)*8) -> 24.8 | H11: =OFFSET(Estructura!H117,0,($J$1-1)*8) -> - | I11: =OFFSET(Estructura!I117,0,($J$1-1)*8) -> - | J11: =OFFSET(Estructura!J117,0,($J$1-1)*8) -> -
B12: Turbina de gas | C12: =OFFSET(Estructura!C118,0,($J$1-1)*8) -> 4.2 | D12: =OFFSET(Estructura!D118,0,($J$1-1)*8) -> 3.8 | E12: =OFFSET(Estructura!E118,0,($J$1-1)*8) -> 3.2 | F12: =OFFSET(Estructura!F118,0,($J$1-1)*8) -> 2.8 | G12: =OFFSET(Estructura!G118,0,($J$1-1)*8) -> 3 | H12: =OFFSET(Estructura!H118,0,($J$1-1)*8) -> - | I12: =OFFSET(Estructura!I118,0,($J$1-1)*8) -> - | J12: =OFFSET(Estructura!J118,0,($J$1-1)*8) -> -
B13: Turbina de vapor | C13: =OFFSET(Estructura!C119,0,($J$1-1)*8) -> 24.2 | D13: =OFFSET(Estructura!D119,0,($J$1-1)*8) -> 25.7 | E13: =OFFSET(Estructura!E119,0,($J$1-1)*8) -> 28.9 | F13: =OFFSET(Estructura!F119,0,($J$1-1)*8) -> 28.2 | G13: =OFFSET(Estructura!G119,0,($J$1-1)*8) -> 30 | H13: =OFFSET(Estructura!H119,0,($J$1-1)*8) -> - | I13: =OFFSET(Estructura!I119,0,($J$1-1)*8) -> - | J13: =OFFSET(Estructura!J119,0,($J$1-1)*8) -> -
B14: Ciclo combinado (2) | C14: =OFFSET(Estructura!C120,0,($J$1-1)*8) -> 38.7 | D14: =OFFSET(Estructura!D120,0,($J$1-1)*8) -> 37 | E14: =OFFSET(Estructura!E120,0,($J$1-1)*8) -> 34.5 | F14: =OFFSET(Estructura!F120,0,($J$1-1)*8) -> 33.6 | G14: =OFFSET(Estructura!G120,0,($J$1-1)*8) -> 31.5 | H14: =OFFSET(Estructura!H120,0,($J$1-1)*8) -> - | I14: =OFFSET(Estructura!I120,0,($J$1-1)*8) -> - | J14: =OFFSET(Estructura!J120,0,($J$1-1)*8) -> -
B15: Generación auxiliar (3) | C15: =OFFSET(Estructura!C121,0,($J$1-1)*8) -> - | D15: =OFFSET(Estructura!D121,0,($J$1-1)*8) -> - | E15: =OFFSET(Estructura!E121,0,($J$1-1)*8) -> - | F15: =OFFSET(Estructura!F121,0,($J$1-1)*8) -> - | G15: =OFFSET(Estructura!G121,0,($J$1-1)*8) -> - | H15: =OFFSET(Estructura!H121,0,($J$1-1)*8) -> - | I15: =OFFSET(Estructura!I121,0,($J$1-1)*8) -> - | J15: =OFFSET(Estructura!J121,0,($J$1-1)*8) -> -
B16: Hidroeólica | C16: =OFFSET(Estructura!C122,0,($J$1-1)*8) -> 0 | D16: =OFFSET(Estructura!D122,0,($J$1-1)*8) -> 0.1 | E16: =OFFSET(Estructura!E122,0,($J$1-1)*8) -> 0.2 | F16: =OFFSET(Estructura!F122,0,($J$1-1)*8) -> 0.2 | G16: =OFFSET(Estructura!G122,0,($J$1-1)*8) -> 0.3 | H16: =OFFSET(Estructura!H122,0,($J$1-1)*8) -> - | I16: =OFFSET(Estructura!I122,0,($J$1-1)*8) -> - | J16: =OFFSET(Estructura!J122,0,($J$1-1)*8) -> -
B17: Eólica | C17: =OFFSET(Estructura!C123,0,($J$1-1)*8) -> 4.5 | D17: =OFFSET(Estructura!D123,0,($J$1-1)*8) -> 4.6 | E17: =OFFSET(Estructura!E123,0,($J$1-1)*8) -> 4.5 | F17: =OFFSET(Estructura!F123,0,($J$1-1)*8) -> 4.4 | G17: =OFFSET(Estructura!G123,0,($J$1-1)*8) -> 8 | H17: =OFFSET(Estructura!H123,0,($J$1-1)*8) -> - | I17: =OFFSET(Estructura!I123,0,($J$1-1)*8) -> - | J17: =OFFSET(Estructura!J123,0,($J$1-1)*8) -> -
B18: Solar fotovoltaica | C18: =OFFSET(Estructura!C124,0,($J$1-1)*8) -> 3.3 | D18: =OFFSET(Estructura!D124,0,($J$1-1)*8) -> 3.2 | E18: =OFFSET(Estructura!E124,0,($J$1-1)*8) -> 3.2 | F18: =OFFSET(Estructura!F124,0,($J$1-1)*8) -> 3.1 | G18: =OFFSET(Estructura!G124,0,($J$1-1)*8) -> 2.4 | H18: =OFFSET(Estructura!H124,0,($J$1-1)*8) -> - | I18: =OFFSET(Estructura!I124,0,($J$1-1)*8) -> - | J18: =OFFSET(Estructura!J124,0,($J$1-1)*8) -> -
B19: Térmica renovable/Otras renovables (4) | C19: =OFFSET(Estructura!C125,0,($J$1-1)*8) -> 0.1 | D19: =OFFSET(Estructura!D125,0,($J$1-1)*8) -> 0.1 | E19: =OFFSET(Estructura!E125,0,($J$1-1)*8) -> 0.1 | F19: =OFFSET(Estructura!F125,0,($J$1-1)*8) -> 0.1 | G19: =OFFSET(Estructura!G125,0,($J$1-1)*8) -> - | H19: =OFFSET(Estructura!H125,0,($J$1-1)*8) -> - | I19: =OFFSET(Estructura!I125,0,($J$1-1)*8) -> - | J19: =OFFSET(Estructura!J125,0,($J$1-1)*8) -> -
B20: Cogeneración y resto/Cogeneración | C20: =OFFSET(Estructura!C126,0,($J$1-1)*8) -> - | D20: =OFFSET(Estructura!D126,0,($J$1-1)*8) -> - | E20: =OFFSET(Estructura!E126,0,($J$1-1)*8) -> - | F20: =OFFSET(Estructura!F126,0,($J$1-1)*8) -> - | G20: =OFFSET(Estructura!G126,0,($J$1-1)*8) -> - | H20: =OFFSET(Estructura!H126,0,($J$1-1)*8) -> - | I20: =OFFSET(Estructura!I126,0,($J$1-1)*8) -> - | J20: =OFFSET(Estructura!J126,0,($J$1-1)*8) -> -
B21: Generación renovable (5) | C21: =OFFSET(Estructura!C127,0,($J$1-1)*8) -> 7.9 | D21: =OFFSET(Estructura!D127,0,($J$1-1)*8) -> 8 | E21: =OFFSET(Estructura!E127,0,($J$1-1)*8) -> 8 | F21: =OFFSET(Estructura!F127,0,($J$1-1)*8) -> 7.8 | G21: =OFFSET(Estructura!G127,0,($J$1-1)*8) -> 10.7 | H21: =OFFSET(Estructura!H127,0,($J$1-1)*8) -> - | I21: =OFFSET(Estructura!I127,0,($J$1-1)*8) -> - | J21: =OFFSET(Estructura!J127,0,($J$1-1)*8) -> -
B22: Generación no renovable | C22: =OFFSET(Estructura!C128,0,($J$1-1)*8) -> 92.1 | D22: =OFFSET(Estructura!D128,0,($J$1-1)*8) -> 92 | E22: =OFFSET(Estructura!E128,0,($J$1-1)*8) -> 92 | F22: =OFFSET(Estructura!F128,0,($J$1-1)*8) -> 92.2 | G22: =OFFSET(Estructura!G128,0,($J$1-1)*8) -> 89.3 | H22: =OFFSET(Estructura!H128,0,($J$1-1)*8) -> - | I22: =OFFSET(Estructura!I128,0,($J$1-1)*8) -> - | J22: =OFFSET(Estructura!J128,0,($J$1-1)*8) -> -
B23: (1) Asignación de unidades de producción según combustible principal.
B24: (2) Utiliza gasoil como combustible principal. Incluye funcionamiento en ciclo abierto.
B25: (3) Grupos de emergencia que se instalan de forma transitoria en determinadas zonas para cubrir un déficit de generación.
B26: (4) Otras renovables incluyen biogás y biomasa.
B27: (5) Incluye hidráulica, hidroeólica, eólica, solar fotovoltaica y térmica renovable/otras renovables.
B28: =IF(J1<2,"",IF(MONTH(FACT)=1,"",CONCATENATE(" Para el año ",YEAR(FACT)," valores acumulados hasta ",TEXT(FACT-30,"mmmm")," de ",YEAR(FACT),"."))) -> Para el año 2018 valores acumulados hasta enero de 2018.

Sheet Estructura mensual Ceuta
O1: 12
M4: Sistema eléctrico
M5: Horizonte temporal
M6: Periodo
C8: Ene. | D8: Feb. | E8: Mar. | F8: Abr. | G8: May. | H8: Jun. | I8: Jul. | J8: Ago. | K8: Sep. | L8: Oct. | M8: Nov. | N8: Dic. | O8: =OFFSET(Año!B19,($O$1-1),0) -> 2018
B10: Motores diesel | C10: =OFFSET(Estructura!C50,0,($O$1-1)*12) -> 100 | D10: =OFFSET(Estructura!D50,0,($O$1-1)*12) -> - | E10: =OFFSET(Estructura!E50,0,($O$1-1)*12) -> - | F10: =OFFSET(Estructura!F50,0,($O$1-1)*12) -> - | G10: =OFFSET(Estructura!G50,0,($O$1-1)*12) -> - | H10: =OFFSET(Estructura!H50,0,($O$1-1)*12) -> - | I10: =OFFSET(Estructura!I50,0,($O$1-1)*12) -> - | J10: =OFFSET(Estructura!J50,0,($O$1-1)*12) -> - | K10: =OFFSET(Estructura!K50,0,($O$1-1)*12) -> - | L10: =OFFSET(Estructura!L50,0,($O$1-1)*12) -> - | M10: =OFFSET(Estructura!M50,0,($O$1-1)*12) -> - | N10: =OFFSET(Estructura!N50,0,($O$1-1)*12) -> - | O10: =OFFSET(Estructura!C131,0,($O$1-1)) -> 100
B11: Turbina de gas | C11: =OFFSET(Estructura!C51,0,($O$1-1)*12) -> 0 | D11: =OFFSET(Estructura!D51,0,($O$1-1)*12) -> - | E11: =OFFSET(Estructura!E51,0,($O$1-1)*12) -> - | F11: =OFFSET(Estructura!F51,0,($O$1-1)*12) -> - | G11: =OFFSET(Estructura!G51,0,($O$1-1)*12) -> - | H11: =OFFSET(Estructura!H51,0,($O$1-1)*12) -> - | I11: =OFFSET(Estructura!I51,0,($O$1-1)*12) -> - | J11: =OFFSET(Estructura!J51,0,($O$1-1)*12) -> - | K11: =OFFSET(Estructura!K51,0,($O$1-1)*12) -> - | L11: =OFFSET(Estructura!L51,0,($O$1-1)*12) -> - | M11: =OFFSET(Estructura!M51,0,($O$1-1)*12) -> - | N11: =OFFSET(Estructura!N51,0,($O$1-1)*12) -> - | O11: =OFFSET(Estructura!C132,0,($O$1-1)) -> 0
B12: Generación renovable | C12: =OFFSET(Estructura!C52,0,($O$1-1)*12) -> - | D12: =OFFSET(Estructura!D52,0,($O$1-1)*12) -> - | E12: =OFFSET(Estructura!E52,0,($O$1-1)*12) -> - | F12: =OFFSET(Estructura!F52,0,($O$1-1)*12) -> - | G12: =OFFSET(Estructura!G52,0,($O$1-1)*12) -> - | H12: =OFFSET(Estructura!H52,0,($O$1-1)*12) -> - | I12: =OFFSET(Estructura!I52,0,($O$1-1)*12) -> - | J12: =OFFSET(Estructura!J52,0,($O$1-1)*12) -> - | K12: =OFFSET(Estructura!K52,0,($O$1-1)*12) -> - | L12: =OFFSET(Estructura!L52,0,($O$1-1)*12) -> - | M12: =OFFSET(Estructura!M52,0,($O$1-1)*12) -> - | N12: =OFFSET(Estructura!N52,0,($O$1-1)*12) -> - | O12: =OFFSET(Estructura!C133,0,($O$1-1)) -> -
B13: Generación no renovable | C13: =OFFSET(Estructura!C53,0,($O$1-1)*12) -> 100 | D13: =OFFSET(Estructura!D53,0,($O$1-1)*12) -> - | E13: =OFFSET(Estructura!E53,0,($O$1-1)*12) -> - | F13: =OFFSET(Estructura!F53,0,($O$1-1)*12) -> - | G13: =OFFSET(Estructura!G53,0,($O$1-1)*12) -> - | H13: =OFFSET(Estructura!H53,0,($O$1-1)*12) -> - | I13: =OFFSET(Estructura!I53,0,($O$1-1)*12) -> - | J13: =OFFSET(Estructura!J53,0,($O$1-1)*12) -> - | K13: =OFFSET(Estructura!K53,0,($O$1-1)*12) -> - | L13: =OFFSET(Estructura!L53,0,($O$1-1)*12) -> - | M13: =OFFSET(Estructura!M53,0,($O$1-1)*12) -> - | N13: =OFFSET(Estructura!N53,0,($O$1-1)*12) -> - | O13: =OFFSET(Estructura!C134,0,($O$1-1)) -> 100
B14: (1) Asignación de unidades de producción según combustible principal.

Sheet Estructura anual Ceuta
I1: 2
G4: Sistema eléctrico
G5: Horizonte temporal
G6: Periodo
C8: =OFFSET(Estructura!C136,0,($I$1-1)*7) -> 2014 | D8: =OFFSET(Estructura!D136,0,($I$1-1)*7) -> 2015 | E8: =OFFSET(Estructura!E136,0,($I$1-1)*7) -> 2016 | F8: =OFFSET(Estructura!F136,0,($I$1-1)*7) -> 2017 | G8: =OFFSET(Estructura!G136,0,($I$1-1)*7) -> 2018 | H8: =OFFSET(Estructura!H136,0,($I$1-1)*7) -> 2019 | I8: =OFFSET(Estructura!I136,0,($I$1-1)*7) -> 2020
B10: Motores diesel | C10: =OFFSET(Estructura!C131,0,($I$1-1)*7) -> 100 | D10: =OFFSET(Estructura!D131,0,($I$1-1)*7) -> 99.6 | E10: =OFFSET(Estructura!E131,0,($I$1-1)*7) -> 99.9 | F10: =OFFSET(Estructura!F131,0,($I$1-1)*7) -> 99.9 | G10: =OFFSET(Estructura!G131,0,($I$1-1)*7) -> 100 | H10: =OFFSET(Estructura!H131,0,($I$1-1)*7) -> - | I10: =OFFSET(Estructura!I131,0,($I$1-1)*7) -> -
B11: Turbina de gas | C11: =OFFSET(Estructura!C132,0,($I$1-1)*7) -> 0 | D11: =OFFSET(Estructura!D132,0,($I$1-1)*7) -> 0.4 | E11: =OFFSET(Estructura!E132,0,($I$1-1)*7) -> 0.1 | F11: =OFFSET(Estructura!F132,0,($I$1-1)*7) -> 0.1 | G11: =OFFSET(Estructura!G132,0,($I$1-1)*7) -> 0 | H11: =OFFSET(Estructura!H132,0,($I$1-1)*7) -> - | I11: =OFFSET(Estructura!I132,0,($I$1-1)*7) -> -
B12: Generación renovable | C12: =OFFSET(Estructura!C133,0,($I$1-1)*7) -> - | D12: =OFFSET(Estructura!D133,0,($I$1-1)*7) -> - | E12: =OFFSET(Estructura!E133,0,($I$1-1)*7) -> - | F12: =OFFSET(Estructura!F133,0,($I$1-1)*7) -> - | G12: =OFFSET(Estructura!G133,0,($I$1-1)*7) -> - | H12: =OFFSET(Estructura!H133,0,($I$1-1)*7) -> - | I12: =OFFSET(Estructura!I133,0,($I$1-1)*7) -> -
B13: Generación no renovable | C13: =OFFSET(Estructura!C134,0,($I$1-1)*7) -> 100 | D13: =OFFSET(Estructura!D134,0,($I$1-1)*7) -> 100 | E13: =OFFSET(Estructura!E134,0,($I$1-1)*7) -> 100 | F13: =OFFSET(Estructura!F134,0,($I$1-1)*7) -> 100 | G13: =OFFSET(Estructura!G134,0,($I$1-1)*7) -> 100 | H13: =OFFSET(Estructura!H134,0,($I$1-1)*7) -> - | I13: =OFFSET(Estructura!I134,0,($I$1-1)*7) -> -
B14: (1) Asignación de unidades de producción según combustible principal.
B15: =IF(I1<21,"",IF(MONTH(FACT)=1,"",CONCATENATE(" Para el año ",YEAR(FACT)," valores acumulados hasta ",TEXT(FACT-30,"mmmm")," de ",YEAR(FACT),"."))) -> 

Sheet Estructura mensual Melilla
O1: 12
M4: Sistema eléctrico
M5: Horizonte temporal
M6: Periodo
C8: Ene. | D8: Feb. | E8: Mar. | F8: Abr. | G8: May. | H8: Jun. | I8: Jul. | J8: Ago. | K8: Sep. | L8: Oct. | M8: Nov. | N8: Dic. | O8: =OFFSET(Año!B19,($O$1-1),0) -> 2018
B10: Motores diesel | C10: =OFFSET(Estructura!C56,0,($O$1-1)*12) -> 96.1 | D10: =OFFSET(Estructura!D56,0,($O$1-1)*12) -> - | E10: =OFFSET(Estructura!E56,0,($O$1-1)*12) -> - | F10: =OFFSET(Estructura!F56,0,($O$1-1)*12) -> - | G10: =OFFSET(Estructura!G56,0,($O$1-1)*12) -> - | H10: =OFFSET(Estructura!H56,0,($O$1-1)*12) -> - | I10: =OFFSET(Estructura!I56,0,($O$1-1)*12) -> - | J10: =OFFSET(Estructura!J56,0,($O$1-1)*12) -> - | K10: =OFFSET(Estructura!K56,0,($O$1-1)*12) -> - | L10: =OFFSET(Estructura!L56,0,($O$1-1)*12) -> - | M10: =OFFSET(Estructura!M56,0,($O$1-1)*12) -> - | N10: =OFFSET(Estructura!N56,0,($O$1-1)*12) -> - | O10: =OFFSET(Estructura!C137,0,($O$1-1)) -> 96.1
B11: Turbina de gas | C11: =OFFSET(Estructura!C57,0,($O$1-1)*12) -> 0.1 | D11: =OFFSET(Estructura!D57,0,($O$1-1)*12) -> - | E11: =OFFSET(Estructura!E57,0,($O$1-1)*12) -> - | F11: =OFFSET(Estructura!F57,0,($O$1-1)*12) -> - | G11: =OFFSET(Estructura!G57,0,($O$1-1)*12) -> - | H11: =OFFSET(Estructura!H57,0,($O$1-1)*12) -> - | I11: =OFFSET(Estructura!I57,0,($O$1-1)*12) -> - | J11: =OFFSET(Estructura!J57,0,($O$1-1)*12) -> - | K11: =OFFSET(Estructura!K57,0,($O$1-1)*12) -> - | L11: =OFFSET(Estructura!L57,0,($O$1-1)*12) -> - | M11: =OFFSET(Estructura!M57,0,($O$1-1)*12) -> - | N11: =OFFSET(Estructura!N57,0,($O$1-1)*12) -> - | O11: =OFFSET(Estructura!C138,0,($O$1-1)) -> 0.1
B12: Solar fotovoltaica | C12: =OFFSET(Estructura!C58,0,($O$1-1)*12) -> - | D12: =OFFSET(Estructura!D58,0,($O$1-1)*12) -> - | E12: =OFFSET(Estructura!E58,0,($O$1-1)*12) -> - | F12: =OFFSET(Estructura!F58,0,($O$1-1)*12) -> - | G12: =OFFSET(Estructura!G58,0,($O$1-1)*12) -> - | H12: =OFFSET(Estructura!H58,0,($O$1-1)*12) -> - | I12: =OFFSET(Estructura!I58,0,($O$1-1)*12) -> - | J12: =OFFSET(Estructura!J58,0,($O$1-1)*12) -> - | K12: =OFFSET(Estructura!K58,0,($O$1-1)*12) -> - | L12: =OFFSET(Estructura!L58,0,($O$1-1)*12) -> - | M12: =OFFSET(Estructura!M58,0,($O$1-1)*12) -> - | N12: =OFFSET(Estructura!N58,0,($O$1-1)*12) -> - | O12: =OFFSET(Estructura!C139,0,($O$1-1)) -> -
B13: Cogeneración y resto/Cogeneración | C13: =OFFSET(Estructura!C59,0,($O$1-1)*12) -> - | D13: =OFFSET(Estructura!D59,0,($O$1-1)*12) -> - | E13: =OFFSET(Estructura!E59,0,($O$1-1)*12) -> - | F13: =OFFSET(Estructura!F59,0,($O$1-1)*12) -> - | G13: =OFFSET(Estructura!G59,0,($O$1-1)*12) -> - | H13: =OFFSET(Estructura!H59,0,($O$1-1)*12) -> - | I13: =OFFSET(Estructura!I59,0,($O$1-1)*12) -> - | J13: =OFFSET(Estructura!J59,0,($O$1-1)*12) -> - | K13: =OFFSET(Estructura!K59,0,($O$1-1)*12) -> - | L13: =OFFSET(Estructura!L59,0,($O$1-1)*12) -> - | M13: =OFFSET(Estructura!M59,0,($O$1-1)*12) -> - | N13: =OFFSET(Estructura!N59,0,($O$1-1)*12) -> - | O13: =OFFSET(Estructura!C140,0,($O$1-1)) -> -
B14: Residuos no renovables | C14: =OFFSET(Estructura!C60,0,($O$1-1)*12) -> 1.9 | D14: =OFFSET(Estructura!D60,0,($O$1-1)*12) -> - | E14: =OFFSET(Estructura!E60,0,($O$1-1)*12) -> - | F14: =OFFSET(Estructura!F60,0,($O$1-1)*12) -> - | G14: =OFFSET(Estructura!G60,0,($O$1-1)*12) -> - | H14: =OFFSET(Estructura!H60,0,($O$1-1)*12) -> - | I14: =OFFSET(Estructura!I60,0,($O$1-1)*12) -> - | J14: =OFFSET(Estructura!J60,0,($O$1-1)*12) -> - | K14: =OFFSET(Estructura!K60,0,($O$1-1)*12) -> - | L14: =OFFSET(Estructura!L60,0,($O$1-1)*12) -> - | M14: =OFFSET(Estructura!M60,0,($O$1-1)*12) -> - | N14: =OFFSET(Estructura!N60,0,($O$1-1)*12) -> - | O14: =OFFSET(Estructura!C141,0,($O$1-1)) -> 1.9
B15: Residuos renovables | C15: =OFFSET(Estructura!C61,0,($O$1-1)*12) -> 1.9 | D15: =OFFSET(Estructura!D61,0,($O$1-1)*12) -> - | E15: =OFFSET(Estructura!E61,0,($O$1-1)*12) -> - | F15: =OFFSET(Estructura!F61,0,($O$1-1)*12) -> - | G15: =OFFSET(Estructura!G61,0,($O$1-1)*12) -> - | H15: =OFFSET(Estructura!H61,0,($O$1-1)*12) -> - | I15: =OFFSET(Estructura!I61,0,($O$1-1)*12) -> - | J15: =OFFSET(Estructura!J61,0,($O$1-1)*12) -> - | K15: =OFFSET(Estructura!K61,0,($O$1-1)*12) -> - | L15: =OFFSET(Estructura!L61,0,($O$1-1)*12) -> - | M15: =OFFSET(Estructura!M61,0,($O$1-1)*12) -> - | N15: =OFFSET(Estructura!N61,0,($O$1-1)*12) -> - | O15: =OFFSET(Estructura!C142,0,($O$1-1)) -> 1.9
B16: Generación renovable (2) | C16: =OFFSET(Estructura!C62,0,($O$1-1)*12) -> 1.9 | D16: =OFFSET(Estructura!D62,0,($O$1-1)*12) -> - | E16: =OFFSET(Estructura!E62,0,($O$1-1)*12) -> - | F16: =OFFSET(Estructura!F62,0,($O$1-1)*12) -> - | G16: =OFFSET(Estructura!G62,0,($O$1-1)*12) -> - | H16: =OFFSET(Estructura!H62,0,($O$1-1)*12) -> - | I16: =OFFSET(Estructura!I62,0,($O$1-1)*12) -> - | J16: =OFFSET(Estructura!J62,0,($O$1-1)*12) -> - | K16: =OFFSET(Estructura!K62,0,($O$1-1)*12) -> - | L16: =OFFSET(Estructura!L62,0,($O$1-1)*12) -> - | M16: =OFFSET(Estructura!M62,0,($O$1-1)*12) -> - | N16: =OFFSET(Estructura!N62,0,($O$1-1)*12) -> - | O16: =OFFSET(Estructura!C143,0,($O$1-1)) -> 1.9
B17: Generación no renovable | C17: =OFFSET(Estructura!C63,0,($O$1-1)*12) -> 98.1 | D17: =OFFSET(Estructura!D63,0,($O$1-1)*12) -> - | E17: =OFFSET(Estructura!E63,0,($O$1-1)*12) -> - | F17: =OFFSET(Estructura!F63,0,($O$1-1)*12) -> - | G17: =OFFSET(Estructura!G63,0,($O$1-1)*12) -> - | H17: =OFFSET(Estructura!H63,0,($O$1-1)*12) -> - | I17: =OFFSET(Estructura!I63,0,($O$1-1)*12) -> - | J17: =OFFSET(Estructura!J63,0,($O$1-1)*12) -> - | K17: =OFFSET(Estructura!K63,0,($O$1-1)*12) -> - | L17: =OFFSET(Estructura!L63,0,($O$1-1)*12) -> - | M17: =OFFSET(Estructura!M63,0,($O$1-1)*12) -> - | N17: =OFFSET(Estructura!N63,0,($O$1-1)*12) -> - | O17: =OFFSET(Estructura!C144,0,($O$1-1)) -> 98.1
B18: (1) Asignación de unidades de producción según combustible principal.
B19: (2) Incluye solar fotovoltaica y residuos renovables.

Sheet Estructura anual Melilla
I1: 2
G4: Sistema eléctrico
G5: Horizonte temporal
G6: Periodo
C8: =OFFSET(Estructura!C136,0,($I$1-1)*7) -> 2014 | D8: =OFFSET(Estructura!D136,0,($I$1-1)*7) -> 2015 | E8: =OFFSET(Estructura!E136,0,($I$1-1)*7) -> 2016 | F8: =OFFSET(Estructura!F136,0,($I$1-1)*7) -> 2017 | G8: =OFFSET(Estructura!G136,0,($I$1-1)*7) -> 2018 | H8: =OFFSET(Estructura!H136,0,($I$1-1)*7) -> 2019 | I8: =OFFSET(Estructura!I136,0,($I$1-1)*7) -> 2020
B10: Motores diesel | C10: =OFFSET(Estructura!C137,0,($I$1-1)*7) -> 95.5 | D10: =OFFSET(Estructura!D137,0,($I$1-1)*7) -> 95.7 | E10: =OFFSET(Estructura!E137,0,($I$1-1)*7) -> 95.3 | F10: =OFFSET(Estructura!F137,0,($I$1-1)*7) -> 95.2 | G10: =OFFSET(Estructura!G137,0,($I$1-1)*7) -> 96.1 | H10: =OFFSET(Estructura!H137,0,($I$1-1)*7) -> - | I10: =OFFSET(Estructura!I137,0,($I$1-1)*7) -> -
B11: Turbina de gas | C11: =OFFSET(Estructura!C138,0,($I$1-1)*7) -> 0.3 | D11: =OFFSET(Estructura!D138,0,($I$1-1)*7) -> 0.3 | E11: =OFFSET(Estructura!E138,0,($I$1-1)*7) -> 0.1 | F11: =OFFSET(Estructura!F138,0,($I$1-1)*7) -> 0 | G11: =OFFSET(Estructura!G138,0,($I$1-1)*7) -> 0.1 | H11: =OFFSET(Estructura!H138,0,($I$1-1)*7) -> - | I11: =OFFSET(Estructura!I138,0,($I$1-1)*7) -> -
B12: Solar fotovoltaica | C12: =OFFSET(Estructura!C139,0,($I$1-1)*7) -> 0 | D12: =OFFSET(Estructura!D139,0,($I$1-1)*7) -> 0 | E12: =OFFSET(Estructura!E139,0,($I$1-1)*7) -> 0 | F12: =OFFSET(Estructura!F139,0,($I$1-1)*7) -> 0 | G12: =OFFSET(Estructura!G139,0,($I$1-1)*7) -> - | H12: =OFFSET(Estructura!H139,0,($I$1-1)*7) -> - | I12: =OFFSET(Estructura!I139,0,($I$1-1)*7) -> -
B13: Cogeneración y resto/Cogeneración | C13: =OFFSET(Estructura!C140,0,($I$1-1)*7) -> 4.2 | D13: =OFFSET(Estructura!D140,0,($I$1-1)*7) -> - | E13: =OFFSET(Estructura!E140,0,($I$1-1)*7) -> - | F13: =OFFSET(Estructura!F140,0,($I$1-1)*7) -> - | G13: =OFFSET(Estructura!G140,0,($I$1-1)*7) -> - | H13: =OFFSET(Estructura!H140,0,($I$1-1)*7) -> - | I13: =OFFSET(Estructura!I140,0,($I$1-1)*7) -> -
B14: Residuos no renovables | C14: =OFFSET(Estructura!C141,0,($I$1-1)*7) -> - | D14: =OFFSET(Estructura!D141,0,($I$1-1)*7) -> 2 | E14: =OFFSET(Estructura!E141,0,($I$1-1)*7) -> 2.3 | F14: =OFFSET(Estructura!F141,0,($I$1-1)*7) -> 2.4 | G14: =OFFSET(Estructura!G141,0,($I$1-1)*7) -> 1.9 | H14: =OFFSET(Estructura!H141,0,($I$1-1)*7) -> - | I14: =OFFSET(Estructura!I141,0,($I$1-1)*7) -> -
B15: Residuos renovables | C15: =OFFSET(Estructura!C142,0,($I$1-1)*7) -> - | D15: =OFFSET(Estructura!D142,0,($I$1-1)*7) -> 2 | E15: =OFFSET(Estructura!E142,0,($I$1-1)*7) -> 2.3 | F15: =OFFSET(Estructura!F142,0,($I$1-1)*7) -> 2.4 | G15: =OFFSET(Estructura!G142,0,($I$1-1)*7) -> 1.9 | H15: =OFFSET(Estructura!H142,0,($I$1-1)*7) -> - | I15: =OFFSET(Estructura!I142,0,($I$1-1)*7) -> -
B16: Generación renovable (2) | C16: =OFFSET(Estructura!C143,0,($I$1-1)*7) -> 0 | D16: =OFFSET(Estructura!D143,0,($I$1-1)*7) -> 2 | E16: =OFFSET(Estructura!E143,0,($I$1-1)*7) -> 2.3 | F16: =OFFSET(Estructura!F143,0,($I$1-1)*7) -> 2.4 | G16: =OFFSET(Estructura!G143,0,($I$1-1)*7) -> 1.9 | H16: =OFFSET(Estructura!H143,0,($I$1-1)*7) -> - | I16: =OFFSET(Estructura!I143,0,($I$1-1)*7) -> -
B17: Generación no renovable | C17: =OFFSET(Estructura!C144,0,($I$1-1)*7) -> 100 | D17: =OFFSET(Estructura!D144,0,($I$1-1)*7) -> 98 | E17: =OFFSET(Estructura!E144,0,($I$1-1)*7) -> 97.7 | F17: =OFFSET(Estructura!F144,0,($I$1-1)*7) -> 97.6 | G17: =IF(SUM(G10:G11,G13:G14)=0,"-",SUM(G10:G11,G13:G14)) -> 98.1 | H17: - | I17: -
B18: (1) Asignación de unidades de producción según combustible principal.
B19: (2) Incluye solar fotovoltaica y residuos renovables.
B20: =IF(I1<2,"",IF(MONTH(FACT)=1,"",CONCATENATE(" Para el año ",YEAR(FACT)," valores acumulados hasta ",TEXT(FACT-30,"mmmm")," de ",YEAR(FACT),"."))) -> Para el año 2018 valores acumulados hasta enero de 2018.

Sheet Estructura (hidden)
B2: Estructura de generación mensual peninsular (%) | C2: 1990-01-01 | D2: 1990-02-01 | E2: 1990-03-01 | F2: 1990-04-01 | G2: 1990-05-01 | H2: 1990-06-01 | I2: 1990-07-01 | J2: 1990-08-01 | K2: 1990-09-01 | L2: 1990-10-01 | M2: 1990-11-01 | N2: 1990-12-01 | O2: 1991-01-01 | P2: 1991-02-01 | Q2: 1991-03-01 | R2: 1991-04-01 | S2: 1991-05-01 | T2: 1991-06-01 | U2: 1991-07-01 | V2: 1991-08-01 | W2: 1991-09-01 | X2: 1991-10-01 | Y2: 1991-11-01 | Z2: 1991-12-01 | AA2: 1992-01-01 | AB2: 1992-02-01 | AC2: 1992-03-01 | AD2: 1992-04-01 | AE2: 1992-05-01 | AF2: 1992-06-01 | AG2: 1992-07-01 | AH2: 1992-08-01 | AI2: 1992-09-01 | AJ2: 1992-10-01 | AK2: 1992-11-01 | AL2: 1992-12-01 | AM2: 1993-01-01 | AN2: 1993-02-01 | AO2: 1993-03-01 | AP2: 1993-04-01 | AQ2: 1993-05-01 | AR2: 1993-06-01 | AS2: 1993-07-01 | AT2: 1993-08-01 | AU2: 1993-09-01 | AV2: 1993-10-01 | AW2: 1993-11-01 | AX2: 1993-12-01 | AY2: 1994-01-01 | AZ2: 1994-02-01 | BA2: 1994-03-01 | BB2: 1994-04-01 | BC2: 1994-05-01 | BD2: 1994-06-01 | BE2: 1994-07-01 | BF2: 1994-08-01 | BG2: 1994-09-01 | BH2: 1994-10-01 | BI2: 1994-11-01 | BJ2: 1994-12-01 | BK2: 1995-01-01 | BL2: 1995-02-01 | BM2: 1995-03-01 | BN2: 1995-04-01 | BO2: 1995-05-01 | BP2: 1995-06-01 | BQ2: 1995-07-01 | BR2: 1995-08-01 | BS2: 1995-09-01 | BT2: 1995-10-01 | BU2: 1995-11-01 | BV2: 1995-12-01 | BW2: 1996-01-01 | BX2: 1996-02-01 | BY2: 1996-03-01 | BZ2: 1996-04-01 | CA2: 1996-05-01 | CB2: 1996-06-01 | CC2: 1996-07-01 | CD2: 1996-08-01 | CE2: 1996-09-01 | CF2: 1996-10-01 | CG2: 1996-11-01 | CH2: 1996-12-01 | CI2: 1997-01-01 | CJ2: 1997-02-01 | CK2: 1997-03-01 | CL2: 1997-04-01 | CM2: 1997-05-01 | CN2: 1997-06-01 | CO2: 1997-07-01 | CP2: 1997-08-01 | CQ2: 1997-09-01 | CR2: 1997-10-01 | CS2: 1997-11-01 | CT2: 1997-12-01 | CU2: 1998-01-01 | CV2: 1998-02-01 | CW2: 1998-03-01 | CX2: 1998-04-01 | CY2: 1998-05-01 | CZ2: 1998-06-01 | DA2: 1998-07-01 | DB2: 1998-08-01 | DC2: 1998-09-01 | DD2: 1998-10-01 | DE2: 1998-11-01 | DF2: 1998-12-01 | DG2: 1999-01-01 | DH2: 1999-02-01 | DI2: 1999-03-01 | DJ2: 1999-04-01 | DK2: 1999-05-01 | DL2: 1999-06-01 | DM2: 1999-07-01 | DN2: 1999-08-01 | DO2: 1999-09-01 | DP2: 1999-10-01 | DQ2: 1999-11-01 | DR2: 1999-12-01 | DS2: 2000-01-01 | DT2: 2000-02-01 | DU2: 2000-03-01 | DV2: 2000-04-01 | DW2: 2000-05-01 | DX2: 2000-06-01 | DY2: 2000-07-01 | DZ2: 2000-08-01 | EA2: 2000-09-01 | EB2: 2000-10-01 | EC2: 2000-11-01 | ED2: 2000-12-01 | EE2: 2001-01-01 | EF2: 2001-02-01 | EG2: 2001-03-01 | EH2: 2001-04-01 | EI2: 2001-05-01 | EJ2: 2001-06-01 | EK2: 2001-07-01 | EL2: 2001-08-01 | EM2: 2001-09-01 | EN2: 2001-10-01 | EO2: 2001-11-01 | EP2: 2001-12-01 | EQ2: 2002-01-01 | ER2: 2002-02-01 | ES2: 2002-03-01 | ET2: 2002-04-01 | EU2: 2002-05-01 | EV2: 2002-06-01 | EW2: 2002-07-01 | EX2: 2002-08-01 | EY2: 2002-09-01 | EZ2: 2002-10-01 | FA2: 2002-11-01 | FB2: 2002-12-01 | FC2: 2003-01-01 | FD2: 2003-02-01 | FE2: 2003-03-01 | FF2: 2003-04-01 | FG2: 2003-05-01 | FH2: 2003-06-01 | FI2: 2003-07-01 | FJ2: 2003-08-01 | FK2: 2003-09-01 | FL2: 2003-10-01 | FM2: 2003-11-01 | FN2: 2003-12-01 | FO2: 2004-01-01 | FP2: 2004-02-01 | FQ2: 2004-03-01 | FR2: 2004-04-01 | FS2: 2004-05-01 | FT2: 2004-06-01 | FU2: 2004-07-01 | FV2: 2004-08-01 | FW2: 2004-09-01 | FX2: 2004-10-01 | FY2: 2004-11-01 | FZ2: 2004-12-01 | GA2: 2005-01-01 | GB2: 2005-02-01 | GC2: 2005-03-01 | GD2: 2005-04-01 | GE2: 2005-05-01 | GF2: 2005-06-01 | GG2: 2005-07-01 | GH2: 2005-08-01 | GI2: 2005-09-01 | GJ2: 2005-10-01 | GK2: 2005-11-01 | GL2: 2005-12-01 | GM2: 2006-01-01 | GN2: 2006-02-01 | GO2: 2006-03-01 | GP2: 2006-04-01 | GQ2: 2006-05-01 | GR2: 2006-06-01 | GS2: 2006-07-01 | GT2: 2006-08-01 | GU2: 2006-09-01 | GV2: 2006-10-01 | GW2: 2006-11-01 | GX2: 2006-12-01 | GY2: 2007-01-01 | GZ2: 2007-02-01 | HA2: 2007-03-01 | HB2: 2007-04-01 | HC2: 2007-05-01 | HD2: 2007-06-01 | HE2: 2007-07-01 | HF2: 2007-08-01 | HG2: 2007-09-01 | HH2: 2007-10-01 | HI2: 2007-11-01 | HJ2: 2007-12-01 | HK2: 2008-01-01 | HL2: 2008-02-01 | HM2: 2008-03-01 | HN2: 2008-04-01 | HO2: 2008-05-01 | HP2: 2008-06-01 | HQ2: 2008-07-01 | HR2: 2008-08-01 | HS2: 2008-09-01 | HT2: 2008-10-01 | HU2: 2008-11-01 | HV2: 2008-12-01 | HW2: 2009-01-01 | HX2: 2009-02-01 | HY2: 2009-03-01 | HZ2: 2009-04-01 | IA2: 2009-05-01 | IB2: 2009-06-01 | IC2: 2009-07-01 | ID2: 2009-08-01 | IE2: 2009-09-01 | IF2: 2009-10-01 | IG2: 2009-11-01 | IH2: 2009-12-01 | II2: 2010-01-01 | IJ2: 2010-02-01 | IK2: 2010-03-01 | IL2: 2010-04-01 | IM2: 2010-05-01 | IN2: 2010-06-01 | IO2: 2010-07-01 | IP2: 2010-08-01 | IQ2: 2010-09-01 | IR2: 2010-10-01 | IS2: 2010-11-01 | IT2: 2010-12-01 | IU2: 2011-01-01 | IV2: 2011-02-01 | IW2: 2011-03-01 | IX2: 2011-04-01 | IY2: 2011-05-01 | IZ2: 2011-06-01 | JA2: 2011-07-01 | JB2: 2011-08-01 | JC2: 2011-09-01 | JD2: 2011-10-01 | JE2: 2011-11-01 | JF2: 2011-12-01 | JG2: 2012-01-01 | JH2: 2012-02-01 | JI2: 2012-03-01 | JJ2: 2012-04-01 | JK2: 2012-05-01 | JL2: 2012-06-01 | JM2: 2012-07-01 | JN2: 2012-08-01 | JO2: 2012-09-01 | JP2: 2012-10-01 | JQ2: 2012-11-01 | JR2: 2012-12-01 | JS2: 2013-01-01 | JT2: 2013-02-01 | JU2: 2013-03-01 | JV2: 2013-04-01 | JW2: 2013-05-01 | JX2: 2013-06-01 | JY2: 2013-07-01 | JZ2: 2013-08-01 | KA2: 2013-09-01 | KB2: 2013-10-01 | KC2: 2013-11-01 | KD2: 2013-12-01 | KE2: 2014-01-01 | KF2: 2014-02-01 | KG2: 2014-03-01 | KH2: 2014-04-01 | KI2: 2014-05-01 | KJ2: 2014-06-01 | KK2: 2014-07-01 | KL2: 2014-08-01 | KM2: 2014-09-01 | KN2: 2014-10-01 | KO2: 2014-11-01 | KP2: 2014-12-01 | KQ2: 2015-01-01 | KR2: 2015-02-01 | KS2: 2015-03-01 | KT2: 2015-04-01 | KU2: 2015-05-01 | KV2: 2015-06-01 | KW2: 2015-07-01 | KX2: 2015-08-01 | KY2: 2015-09-01 | KZ2: 2015-10-01 | LA2: 2015-11-01 | LB2: 2015-12-01 | LC2: 2016-01-01 | LD2: 2016-02-01 | LE2: 2016-03-01 | LF2: 2016-04-01 | LG2: 2016-05-01 | LH2: 2016-06-01 | LI2: 2016-07-01 | LJ2: 2016-08-01 | LK2: 2016-09-01 | LL2: 2016-10-01 | LM2: 2016-11-01 | LN2: 2016-12-01 | LO2: 2017-01-01 | LP2: 2017-02-01 | LQ2: 2017-03-01 | LR2: 2017-04-01 | LS2: 2017-05-01 | LT2: 2017-06-01 | LU2: 2017-07-01 | LV2: 2017-08-01 | LW2: 2017-09-01 | LX2: 2017-10-01 | LY2: 2017-11-01 | LZ2: 2017-12-01 | MA2: 2018-01-01 | MB2: 2018-02-01 | MC2: 2018-03-01 | MD2: 2018-04-01 | ME2: 2018-05-01 | MF2: 2018-06-01 | MG2: 2018-07-01 | MH2: 2018-08-01 | MI2: 2018-09-01 | MJ2: 2018-10-01 | MK2: 2018-11-01 | ML2: 2018-12-01
B3: Hidráulica | C3: =IF(Balance!C3="-","-",ROUND((SUM(Balance!C3,Balance!C10)/Balance!C$19)*100,1)) -> 30 | D3: =IF(Balance!D3="-","-",ROUND((SUM(Balance!D3,Balance!D10)/Balance!D$19)*100,1)) -> 31.1 | E3: =IF(Balance!E3="-","-",ROUND((SUM(Balance!E3,Balance!E10)/Balance!E$19)*100,1)) -> 21.3 | F3: =IF(Balance!F3="-","-",ROUND((SUM(Balance!F3,Balance!F10)/Balance!F$19)*100,1)) -> 16.6 | G3: =IF(Balance!G3="-","-",ROUND((SUM(Balance!G3,Balance!G10)/Balance!G$19)*100,1)) -> 17.4 | H3: =IF(Balance!H3="-","-",ROUND((SUM(Balance!H3,Balance!H10)/Balance!H$19)*100,1)) -> 16.8 | I3: =IF(Balance!I3="-","-",ROUND((SUM(Balance!I3,Balance!I10)/Balance!I$19)*100,1)) -> 13.8 | J3: =IF(Balance!J3="-","-",ROUND((SUM(Balance!J3,Balance!J10)/Balance!J$19)*100,1)) -> 12 | K3: =IF(Balance!K3="-","-",ROUND((SUM(Balance!K3,Balance!K10)/Balance!K$19)*100,1)) -> 11.1 | L3: =IF(Balance!L3="-","-",ROUND((SUM(Balance!L3,Balance!L10)/Balance!L$19)*100,1)) -> 12.7 | M3: =IF(Balance!M3="-","-",ROUND((SUM(Balance!M3,Balance!M10)/Balance!M$19)*100,1)) -> 16.8 | N3: =IF(Balance!N3="-","-",ROUND((SUM(Balance!N3,Balance!N10)/Balance!N$19)*100,1)) -> 15.2 | O3: =IF(Balance!O3="-","-",ROUND((SUM(Balance!O3,Balance!O10)/Balance!O$19)*100,1)) -> 19.6 | P3: =IF(Balance!P3="-","-",ROUND((SUM(Balance!P3,Balance!P10)/Balance!P$19)*100,1)) -> 16.6 | Q3: =IF(Balance!Q3="-","-",ROUND((SUM(Balance!Q3,Balance!Q10)/Balance!Q$19)*100,1)) -> 32.6 | R3: =IF(Balance!R3="-","-",ROUND((SUM(Balance!R3,Balance!R10)/Balance!R$19)*100,1)) -> 31.1 | S3: =IF(Balance!S3="-","-",ROUND((SUM(Balance!S3,Balance!S10)/Balance!S$19)*100,1)) -> 25.3 | T3: =IF(Balance!T3="-","-",ROUND((SUM(Balance!T3,Balance!T10)/Balance!T$19)*100,1)) -> 19.2 | U3: =IF(Balance!U3="-","-",ROUND((SUM(Balance!U3,Balance!U10)/Balance!U$19)*100,1)) -> 14.4 | V3: =IF(Balance!V3="-","-",ROUND((SUM(Balance!V3,Balance!V10)/Balance!V$19)*100,1)) -> 10.8 | W3: =IF(Balance!W3="-","-",ROUND((SUM(Balance!W3,Balance!W10)/Balance!W$19)*100,1)) -> 9.8 | X3: =IF(Balance!X3="-","-",ROUND((SUM(Balance!X3,Balance!X10)/Balance!X$19)*100,1)) -> 13.1 | Y3: =IF(Balance!Y3="-","-",ROUND((SUM(Balance!Y3,Balance!Y10)/Balance!Y$19)*100,1)) -> 16.3 | Z3: =IF(Balance!Z3="-","-",ROUND((SUM(Balance!Z3,Balance!Z10)/Balance!Z$19)*100,1)) -> 14.9 | AA3: =IF(Balance!AA3="-","-",ROUND((SUM(Balance!AA3,Balance!AA10)/Balance!AA$19)*100,1)) -> 9.7 | AB3: =IF(Balance!AB3="-","-",ROUND((SUM(Balance!AB3,Balance!AB10)/Balance!AB$19)*100,1)) -> 6.3 | AC3: =IF(Balance!AC3="-","-",ROUND((SUM(Balance!AC3,Balance!AC10)/Balance!AC$19)*100,1)) -> 6.4 | AD3: =IF(Balance!AD3="-","-",ROUND((SUM(Balance!AD3,Balance!AD10)/Balance!AD$19)*100,1)) -> 14 | AE3: =IF(Balance!AE3="-","-",ROUND((SUM(Balance!AE3,Balance!AE10)/Balance!AE$19)*100,1)) -> 13.3 | AF3: =IF(Balance!AF3="-","-",ROUND((SUM(Balance!AF3,Balance!AF10)/Balance!AF$19)*100,1)) -> 14.9 | AG3: =IF(Balance!AG3="-","-",ROUND((SUM(Balance!AG3,Balance!AG10)/Balance!AG$19)*100,1)) -> 13.7 | AH3: =IF(Balance!AH3="-","-",ROUND((SUM(Balance!AH3,Balance!AH10)/Balance!AH$19)*100,1)) -> 10.6 | AI3: =IF(Balance!AI3="-","-",ROUND((SUM(Balance!AI3,Balance!AI10)/Balance!AI$19)*100,1)) -> 10.7 | AJ3: =IF(Balance!AJ3="-","-",ROUND((SUM(Balance!AJ3,Balance!AJ10)/Balance!AJ$19)*100,1)) -> 15.7 | AK3: =IF(Balance!AK3="-","-",ROUND((SUM(Balance!AK3,Balance!AK10)/Balance!AK$19)*100,1)) -> 18.8 | AL3: =IF(Balance!AL3="-","-",ROUND((SUM(Balance!AL3,Balance!AL10)/Balance!AL$19)*100,1)) -> 23.3 | AM3: =IF(Balance!AM3="-","-",ROUND((SUM(Balance!AM3,Balance!AM10)/Balance!AM$19)*100,1)) -> 16.5 | AN3: =IF(Balance!AN3="-","-",ROUND((SUM(Balance!AN3,Balance!AN10)/Balance!AN$19)*100,1)) -> 12.7 | AO3: =IF(Balance!AO3="-","-",ROUND((SUM(Balance!AO3,Balance!AO10)/Balance!AO$19)*100,1)) -> 11.7 | AP3: =IF(Balance!AP3="-","-",ROUND((SUM(Balance!AP3,Balance!AP10)/Balance!AP$19)*100,1)) -> 10.5 | AQ3: =IF(Balance!AQ3="-","-",ROUND((SUM(Balance!AQ3,Balance!AQ10)/Balance!AQ$19)*100,1)) -> 17 | AR3: =IF(Balance!AR3="-","-",ROUND((SUM(Balance!AR3,Balance!AR10)/Balance!AR$19)*100,1)) -> 19.9 | AS3: =IF(Balance!AS3="-","-",ROUND((SUM(Balance!AS3,Balance!AS10)/Balance!AS$19)*100,1)) -> 16 | AT3: =IF(Balance!AT3="-","-",ROUND((SUM(Balance!AT3,Balance!AT10)/Balance!AT$19)*100,1)) -> 11.4 | AU3: =IF(Balance!AU3="-","-",ROUND((SUM(Balance!AU3,Balance!AU10)/Balance!AU$19)*100,1)) -> 10.6 | AV3: =IF(Balance!AV3="-","-",ROUND((SUM(Balance!AV3,Balance!AV10)/Balance!AV$19)*100,1)) -> 23.9 | AW3: =IF(Balance!AW3="-","-",ROUND((SUM(Balance!AW3,Balance!AW10)/Balance!AW$19)*100,1)) -> 27.9 | AX3: =IF(Balance!AX3="-","-",ROUND((SUM(Balance!AX3,Balance!AX10)/Balance!AX$19)*100,1)) -> 21.3 | AY3: =IF(Balance!AY3="-","-",ROUND((SUM(Balance!AY3,Balance!AY10)/Balance!AY$19)*100,1)) -> 28.6 | AZ3: =IF(Balance!AZ3="-","-",ROUND((SUM(Balance!AZ3,Balance!AZ10)/Balance!AZ$19)*100,1)) -> 25.7 | BA3: =IF(Balance!BA3="-","-",ROUND((SUM(Balance!BA3,Balance!BA10)/Balance!BA$19)*100,1)) -> 23.4 | BB3: =IF(Balance!BB3="-","-",ROUND((SUM(Balance!BB3,Balance!BB10)/Balance!BB$19)*100,1)) -> 20.7 | BC3: =IF(Balance!BC3="-","-",ROUND((SUM(Balance!BC3,Balance!BC10)/Balance!BC$19)*100,1)) -> 22.7 | BD3: =IF(Balance!BD3="-","-",ROUND((SUM(Balance!BD3,Balance!BD10)/Balance!BD$19)*100,1)) -> 20.4 | BE3: =IF(Balance!BE3="-","-",ROUND((SUM(Balance!BE3,Balance!BE10)/Balance!BE$19)*100,1)) -> 14.4 | BF3: =IF(Balance!BF3="-","-",ROUND((SUM(Balance!BF3,Balance!BF10)/Balance!BF$19)*100,1)) -> 11.6 | BG3: =IF(Balance!BG3="-","-",ROUND((SUM(Balance!BG3,Balance!BG10)/Balance!BG$19)*100,1)) -> 10.7 | BH3: =IF(Balance!BH3="-","-",ROUND((SUM(Balance!BH3,Balance!BH10)/Balance!BH$19)*100,1)) -> 13.3 | BI3: =IF(Balance!BI3="-","-",ROUND((SUM(Balance!BI3,Balance!BI10)/Balance!BI$19)*100,1)) -> 19.4 | BJ3: =IF(Balance!BJ3="-","-",ROUND((SUM(Balance!BJ3,Balance!BJ10)/Balance!BJ$19)*100,1)) -> 14.5 | BK3: =IF(Balance!BK3="-","-",ROUND((SUM(Balance!BK3,Balance!BK10)/Balance!BK$19)*100,1)) -> 20.7 | BL3: =IF(Balance!BL3="-","-",ROUND((SUM(Balance!BL3,Balance!BL10)/Balance!BL$19)*100,1)) -> 22.9 | BM3: =IF(Balance!BM3="-","-",ROUND((SUM(Balance!BM3,Balance!BM10)/Balance!BM$19)*100,1)) -> 24.7 | BN3: =IF(Balance!BN3="-","-",ROUND((SUM(Balance!BN3,Balance!BN10)/Balance!BN$19)*100,1)) -> 16.4 | BO3: =IF(Balance!BO3="-","-",ROUND((SUM(Balance!BO3,Balance!BO10)/Balance!BO$19)*100,1)) -> 14.4 | BP3: =IF(Balance!BP3="-","-",ROUND((SUM(Balance!BP3,Balance!BP10)/Balance!BP$19)*100,1)) -> 14.4 | BQ3: =IF(Balance!BQ3="-","-",ROUND((SUM(Balance!BQ3,Balance!BQ10)/Balance!BQ$19)*100,1)) -> 12.6 | BR3: =IF(Balance!BR3="-","-",ROUND((SUM(Balance!BR3,Balance!BR10)/Balance!BR$19)*100,1)) -> 9.1 | BS3: =IF(Balance!BS3="-","-",ROUND((SUM(Balance!BS3,Balance!BS10)/Balance!BS$19)*100,1)) -> 7.7 | BT3: =IF(Balance!BT3="-","-",ROUND((SUM(Balance!BT3,Balance!BT10)/Balance!BT$19)*100,1)) -> 8 | BU3: =IF(Balance!BU3="-","-",ROUND((SUM(Balance!BU3,Balance!BU10)/Balance!BU$19)*100,1)) -> 10 | BV3: =IF(Balance!BV3="-","-",ROUND((SUM(Balance!BV3,Balance!BV10)/Balance!BV$19)*100,1)) -> 18.3 | BW3: =IF(Balance!BW3="-","-",ROUND((SUM(Balance!BW3,Balance!BW10)/Balance!BW$19)*100,1)) -> 39.6 | BX3: =IF(Balance!BX3="-","-",ROUND((SUM(Balance!BX3,Balance!BX10)/Balance!BX$19)*100,1)) -> 40.2 | BY3: =IF(Balance!BY3="-","-",ROUND((SUM(Balance!BY3,Balance!BY10)/Balance!BY$19)*100,1)) -> 27.2 | BZ3: =IF(Balance!BZ3="-","-",ROUND((SUM(Balance!BZ3,Balance!BZ10)/Balance!BZ$19)*100,1)) -> 32.2 | CA3: =IF(Balance!CA3="-","-",ROUND((SUM(Balance!CA3,Balance!CA10)/Balance!CA$19)*100,1)) -> 31.7 | CB3: =IF(Balance!CB3="-","-",ROUND((SUM(Balance!CB3,Balance!CB10)/Balance!CB$19)*100,1)) -> 23.6 | CC3: =IF(Balance!CC3="-","-",ROUND((SUM(Balance!CC3,Balance!CC10)/Balance!CC$19)*100,1)) -> 17.6 | CD3: =IF(Balance!CD3="-","-",ROUND((SUM(Balance!CD3,Balance!CD10)/Balance!CD$19)*100,1)) -> 13.4 | CE3: =IF(Balance!CE3="-","-",ROUND((SUM(Balance!CE3,Balance!CE10)/Balance!CE$19)*100,1)) -> 14.8 | CF3: =IF(Balance!CF3="-","-",ROUND((SUM(Balance!CF3,Balance!CF10)/Balance!CF$19)*100,1)) -> 14 | CG3: =IF(Balance!CG3="-","-",ROUND((SUM(Balance!CG3,Balance!CG10)/Balance!CG$19)*100,1)) -> 17 | CH3: =IF(Balance!CH3="-","-",ROUND((SUM(Balance!CH3,Balance!CH10)/Balance!CH$19)*100,1)) -> 30.6 | CI3: =IF(Balance!CI3="-","-",ROUND((SUM(Balance!CI3,Balance!CI10)/Balance!CI$19)*100,1)) -> 36.6 | CJ3: =IF(Balance!CJ3="-","-",ROUND((SUM(Balance!CJ3,Balance!CJ10)/Balance!CJ$19)*100,1)) -> 28.1 | CK3: =IF(Balance!CK3="-","-",ROUND((SUM(Balance!CK3,Balance!CK10)/Balance!CK$19)*100,1)) -> 20.7 | CL3: =IF(Balance!CL3="-","-",ROUND((SUM(Balance!CL3,Balance!CL10)/Balance!CL$19)*100,1)) -> 17.7 | CM3: =IF(Balance!CM3="-","-",ROUND((SUM(Balance!CM3,Balance!CM10)/Balance!CM$19)*100,1)) -> 17 | CN3: =IF(Balance!CN3="-","-",ROUND((SUM(Balance!CN3,Balance!CN10)/Balance!CN$19)*100,1)) -> 18.2 | CO3: =IF(Balance!CO3="-","-",ROUND((SUM(Balance!CO3,Balance!CO10)/Balance!CO$19)*100,1)) -> 14.7 | CP3: =IF(Balance!CP3="-","-",ROUND((SUM(Balance!CP3,Balance!CP10)/Balance!CP$19)*100,1)) -> 13.1 | CQ3: =IF(Balance!CQ3="-","-",ROUND((SUM(Balance!CQ3,Balance!CQ10)/Balance!CQ$19)*100,1)) -> 11.9 | CR3: =IF(Balance!CR3="-","-",ROUND((SUM(Balance!CR3,Balance!CR10)/Balance!CR$19)*100,1)) -> 10.9 | CS3: =IF(Balance!CS3="-","-",ROUND((SUM(Balance!CS3,Balance!CS10)/Balance!CS$19)*100,1)) -> 24.8 | CT3: =IF(Balance!CT3="-","-",ROUND((SUM(Balance!CT3,Balance!CT10)/Balance!CT$19)*100,1)) -> 35.2 | CU3: =IF(Balance!CU3="-","-",ROUND((SUM(Balance!CU3,Balance!CU10)/Balance!CU$19)*100,1)) -> 39.5 | CV3: =IF(Balance!CV3="-","-",ROUND((SUM(Balance!CV3,Balance!CV10)/Balance!CV$19)*100,1)) -> 30.2 | CW3: =IF(Balance!CW3="-","-",ROUND((SUM(Balance!CW3,Balance!CW10)/Balance!CW$19)*100,1)) -> 19.6 | CX3: =IF(Balance!CX3="-","-",ROUND((SUM(Balance!CX3,Balance!CX10)/Balance!CX$19)*100,1)) -> 26.2 | CY3: =IF(Balance!CY3="-","-",ROUND((SUM(Balance!CY3,Balance!CY10)/Balance!CY$19)*100,1)) -> 30.4 | CZ3: =IF(Balance!CZ3="-","-",ROUND((SUM(Balance!CZ3,Balance!CZ10)/Balance!CZ$19)*100,1)) -> 25 | DA3: =IF(Balance!DA3="-","-",ROUND((SUM(Balance!DA3,Balance!DA10)/Balance!DA$19)*100,1)) -> 17.1 | DB3: =IF(Balance!DB3="-","-",ROUND((SUM(Balance!DB3,Balance!DB10)/Balance!DB$19)*100,1)) -> 15.1 | DC3: =IF(Balance!DC3="-","-",ROUND((SUM(Balance!DC3,Balance!DC10)/Balance!DC$19)*100,1)) -> 13 | DD3: =IF(Balance!DD3="-","-",ROUND((SUM(Balance!DD3,Balance!DD10)/Balance!DD$19)*100,1)) -> 14.3 | DE3: =IF(Balance!DE3="-","-",ROUND((SUM(Balance!DE3,Balance!DE10)/Balance!DE$19)*100,1)) -> 10.6 | DF3: =IF(Balance!DF3="-","-",ROUND((SUM(Balance!DF3,Balance!DF10)/Balance!DF$19)*100,1)) -> 8.3 | DG3: =IF(Balance!DG3="-","-",ROUND((SUM(Balance!DG3,Balance!DG10)/Balance!DG$19)*100,1)) -> 8.8 | DH3: =IF(Balance!DH3="-","-",ROUND((SUM(Balance!DH3,Balance!DH10)/Balance!DH$19)*100,1)) -> 9.2 | DI3: =IF(Balance!DI3="-","-",ROUND((SUM(Balance!DI3,Balance!DI10)/Balance!DI$19)*100,1)) -> 13.5 | DJ3: =IF(Balance!DJ3="-","-",ROUND((SUM(Balance!DJ3,Balance!DJ10)/Balance!DJ$19)*100,1)) -> 16.3 | DK3: =IF(Balance!DK3="-","-",ROUND((SUM(Balance!DK3,Balance!DK10)/Balance!DK$19)*100,1)) -> 20.7 | DL3: =IF(Balance!DL3="-","-",ROUND((SUM(Balance!DL3,Balance!DL10)/Balance!DL$19)*100,1)) -> 17.3 | DM3: =IF(Balance!DM3="-","-",ROUND((SUM(Balance!DM3,Balance!DM10)/Balance!DM$19)*100,1)) -> 12.5 | DN3: =IF(Balance!DN3="-","-",ROUND((SUM(Balance!DN3,Balance!DN10)/Balance!DN$19)*100,1)) -> 10.2 | DO3: =IF(Balance!DO3="-","-",ROUND((SUM(Balance!DO3,Balance!DO10)/Balance!DO$19)*100,1)) -> 10.3 | DP3: =IF(Balance!DP3="-","-",ROUND((SUM(Balance!DP3,Balance!DP10)/Balance!DP$19)*100,1)) -> 11.7 | DQ3: =IF(Balance!DQ3="-","-",ROUND((SUM(Balance!DQ3,Balance!DQ10)/Balance!DQ$19)*100,1)) -> 17.9 | DR3: =IF(Balance!DR3="-","-",ROUND((SUM(Balance!DR3,Balance!DR10)/Balance!DR$19)*100,1)) -> 17.1 | DS3: =IF(Balance!DS3="-","-",ROUND((SUM(Balance!DS3,Balance!DS10)/Balance!DS$19)*100,1)) -> 14.4 | DT3: =IF(Balance!DT3="-","-",ROUND((SUM(Balance!DT3,Balance!DT10)/Balance!DT$19)*100,1)) -> 10.5 | DU3: =IF(Balance!DU3="-","-",ROUND((SUM(Balance!DU3,Balance!DU10)/Balance!DU$19)*100,1)) -> 9.5 | DV3: =IF(Balance!DV3="-","-",ROUND((SUM(Balance!DV3,Balance!DV10)/Balance!DV$19)*100,1)) -> 14.7 | DW3: =IF(Balance!DW3="-","-",ROUND((SUM(Balance!DW3,Balance!DW10)/Balance!DW$19)*100,1)) -> 21.7 | DX3: =IF(Balance!DX3="-","-",ROUND((SUM(Balance!DX3,Balance!DX10)/Balance!DX$19)*100,1)) -> 14.6 | DY3: =IF(Balance!DY3="-","-",ROUND((SUM(Balance!DY3,Balance!DY10)/Balance!DY$19)*100,1)) -> 10.5 | DZ3: =IF(Balance!DZ3="-","-",ROUND((SUM(Balance!DZ3,Balance!DZ10)/Balance!DZ$19)*100,1)) -> 11.2 | EA3: =IF(Balance!EA3="-","-",ROUND((SUM(Balance!EA3,Balance!EA10)/Balance!EA$19)*100,1)) -> 11.6 | EB3: =IF(Balance!EB3="-","-",ROUND((SUM(Balance!EB3,Balance!EB10)/Balance!EB$19)*100,1)) -> 11 | EC3: =IF(Balance!EC3="-","-",ROUND((SUM(Balance!EC3,Balance!EC10)/Balance!EC$19)*100,1)) -> 14.9 | ED3: =IF(Balance!ED3="-","-",ROUND((SUM(Balance!ED3,Balance!ED10)/Balance!ED$19)*100,1)) -> 25.8 | EE3: =IF(Balance!EE3="-","-",ROUND((SUM(Balance!EE3,Balance!EE10)/Balance!EE$19)*100,1)) -> 33.9 | EF3: =IF(Balance!EF3="-","-",ROUND((SUM(Balance!EF3,Balance!EF10)/Balance!EF$19)*100,1)) -> 34.9 | EG3: =IF(Balance!EG3="-","-",ROUND((SUM(Balance!EG3,Balance!EG10)/Balance!EG$19)*100,1)) -> 37.8 | EH3: =IF(Balance!EH3="-","-",ROUND((SUM(Balance!EH3,Balance!EH10)/Balance!EH$19)*100,1)) -> 29.1 | EI3: =IF(Balance!EI3="-","-",ROUND((SUM(Balance!EI3,Balance!EI10)/Balance!EI$19)*100,1)) -> 21.1 | EJ3: =IF(Balance!EJ3="-","-",ROUND((SUM(Balance!EJ3,Balance!EJ10)/Balance!EJ$19)*100,1)) -> 15.3 | EK3: =IF(Balance!EK3="-","-",ROUND((SUM(Balance!EK3,Balance!EK10)/Balance!EK$19)*100,1)) -> 11.9 | EL3: =IF(Balance!EL3="-","-",ROUND((SUM(Balance!EL3,Balance!EL10)/Balance!EL$19)*100,1)) -> 11.6 | EM3: =IF(Balance!EM3="-","-",ROUND((SUM(Balance!EM3,Balance!EM10)/Balance!EM$19)*100,1)) -> 9.1 | EN3: =IF(Balance!EN3="-","-",ROUND((SUM(Balance!EN3,Balance!EN10)/Balance!EN$19)*100,1)) -> 10.5 | EO3: =IF(Balance!EO3="-","-",ROUND((SUM(Balance!EO3,Balance!EO10)/Balance!EO$19)*100,1)) -> 11.5 | EP3: =IF(Balance!EP3="-","-",ROUND((SUM(Balance!EP3,Balance!EP10)/Balance!EP$19)*100,1)) -> 8.5 | EQ3: =IF(Balance!EQ3="-","-",ROUND((SUM(Balance!EQ3,Balance!EQ10)/Balance!EQ$19)*100,1)) -> 6.9 | ER3: =IF(Balance!ER3="-","-",ROUND((SUM(Balance!ER3,Balance!ER10)/Balance!ER$19)*100,1)) -> 7.1 | ES3: =IF(Balance!ES3="-","-",ROUND((SUM(Balance!ES3,Balance!ES10)/Balance!ES$19)*100,1)) -> 11 | ET3: =IF(Balance!ET3="-","-",ROUND((SUM(Balance!ET3,Balance!ET10)/Balance!ET$19)*100,1)) -> 11.3 | EU3: =IF(Balance!EU3="-","-",ROUND((SUM(Balance!EU3,Balance!EU10)/Balance!EU$19)*100,1)) -> 11.4 | EV3: =IF(Balance!EV3="-","-",ROUND((SUM(Balance!EV3,Balance!EV10)/Balance!EV$19)*100,1)) -> 11 | EW3: =IF(Balance!EW3="-","-",ROUND((SUM(Balance!EW3,Balance!EW10)/Balance!EW$19)*100,1)) -> 7.4 | EX3: =IF(Balance!EX3="-","-",ROUND((SUM(Balance!EX3,Balance!EX10)/Balance!EX$19)*100,1)) -> 6.2 | EY3: =IF(Balance!EY3="-","-",ROUND((SUM(Balance!EY3,Balance!EY10)/Balance!EY$19)*100,1)) -> 6.1 | EZ3: =IF(Balance!EZ3="-","-",ROUND((SUM(Balance!EZ3,Balance!EZ10)/Balance!EZ$19)*100,1)) -> 6.8 | FA3: =IF(Balance!FA3="-","-",ROUND((SUM(Balance!FA3,Balance!FA10)/Balance!FA$19)*100,1)) -> 11.1 | FB3: =IF(Balance!FB3="-","-",ROUND((SUM(Balance!FB3,Balance!FB10)/Balance!FB$19)*100,1)) -> 22.5 | FC3: =IF(Balance!FC3="-","-",ROUND((SUM(Balance!FC3,Balance!FC10)/Balance!FC$19)*100,1)) -> 27.3 | FD3: =IF(Balance!FD3="-","-",ROUND((SUM(Balance!FD3,Balance!FD10)/Balance!FD$19)*100,1)) -> 23.1 | FE3: =IF(Balance!FE3="-","-",ROUND((SUM(Balance!FE3,Balance!FE10)/Balance!FE$19)*100,1)) -> 24.7 | FF3: =IF(Balance!FF3="-","-",ROUND((SUM(Balance!FF3,Balance!FF10)/Balance!FF$19)*100,1)) -> 22.7 | FG3: =IF(Balance!FG3="-","-",ROUND((SUM(Balance!FG3,Balance!FG10)/Balance!FG$19)*100,1)) -> 20.8 | FH3: =IF(Balance!FH3="-","-",ROUND((SUM(Balance!FH3,Balance!FH10)/Balance!FH$19)*100,1)) -> 12.5 | FI3: =IF(Balance!FI3="-","-",ROUND((SUM(Balance!FI3,Balance!FI10)/Balance!FI$19)*100,1)) -> 9.8 | FJ3: =IF(Balance!FJ3="-","-",ROUND((SUM(Balance!FJ3,Balance!FJ10)/Balance!FJ$19)*100,1)) -> 7.7 | FK3: =IF(Balance!FK3="-","-",ROUND((SUM(Balance!FK3,Balance!FK10)/Balance!FK$19)*100,1)) -> 9 | FL3: =IF(Balance!FL3="-","-",ROUND((SUM(Balance!FL3,Balance!FL10)/Balance!FL$19)*100,1)) -> 10.6 | FM3: =IF(Balance!FM3="-","-",ROUND((SUM(Balance!FM3,Balance!FM10)/Balance!FM$19)*100,1)) -> 17.1 | FN3: =IF(Balance!FN3="-","-",ROUND((SUM(Balance!FN3,Balance!FN10)/Balance!FN$19)*100,1)) -> 24.2 | FO3: =IF(Balance!FO3="-","-",ROUND((SUM(Balance!FO3,Balance!FO10)/Balance!FO$19)*100,1)) -> 18 | FP3: =IF(Balance!FP3="-","-",ROUND((SUM(Balance!FP3,Balance!FP10)/Balance!FP$19)*100,1)) -> 16.9 | FQ3: =IF(Balance!FQ3="-","-",ROUND((SUM(Balance!FQ3,Balance!FQ10)/Balance!FQ$19)*100,1)) -> 15 | FR3: =IF(Balance!FR3="-","-",ROUND((SUM(Balance!FR3,Balance!FR10)/Balance!FR$19)*100,1)) -> 15.8 | FS3: =IF(Balance!FS3="-","-",ROUND((SUM(Balance!FS3,Balance!FS10)/Balance!FS$19)*100,1)) -> 17.5 | FT3: =IF(Balance!FT3="-","-",ROUND((SUM(Balance!FT3,Balance!FT10)/Balance!FT$19)*100,1)) -> 13.7 | FU3: =IF(Balance!FU3="-","-",ROUND((SUM(Balance!FU3,Balance!FU10)/Balance!FU$19)*100,1)) -> 9.9 | FV3: =IF(Balance!FV3="-","-",ROUND((SUM(Balance!FV3,Balance!FV10)/Balance!FV$19)*100,1)) -> 8.9 | FW3: =IF(Balance!FW3="-","-",ROUND((SUM(Balance!FW3,Balance!FW10)/Balance!FW$19)*100,1)) -> 7.8 | FX3: =IF(Balance!FX3="-","-",ROUND((SUM(Balance!FX3,Balance!FX10)/Balance!FX$19)*100,1)) -> 8.8 | FY3: =IF(Balance!FY3="-","-",ROUND((SUM(Balance!FY3,Balance!FY10)/Balance!FY$19)*100,1)) -> 11.5 | FZ3: =IF(Balance!FZ3="-","-",ROUND((SUM(Balance!FZ3,Balance!FZ10)/Balance!FZ$19)*100,1)) -> 8.5 | GA3: =IF(Balance!GA3="-","-",ROUND((SUM(Balance!GA3,Balance!GA10)/Balance!GA$19)*100,1)) -> 6.9 | GB3: =IF(Balance!GB3="-","-",ROUND((SUM(Balance!GB3,Balance!GB10)/Balance!GB$19)*100,1)) -> 7.3 | GC3: =IF(Balance!GC3="-","-",ROUND((SUM(Balance!GC3,Balance!GC10)/Balance!GC$19)*100,1)) -> 8.4 | GD3: =IF(Balance!GD3="-","-",ROUND((SUM(Balance!GD3,Balance!GD10)/Balance!GD$19)*100,1)) -> 10.8 | GE3: =IF(Balance!GE3="-","-",ROUND((SUM(Balance!GE3,Balance!GE10)/Balance!GE$19)*100,1)) -> 11.1 | GF3: =IF(Balance!GF3="-","-",ROUND((SUM(Balance!GF3,Balance!GF10)/Balance!GF$19)*100,1)) -> 8.7 | GG3: =IF(Balance!GG3="-","-",ROUND((SUM(Balance!GG3,Balance!GG10)/Balance!GG$19)*100,1)) -> 5.9 | GH3: =IF(Balance!GH3="-","-",ROUND((SUM(Balance!GH3,Balance!GH10)/Balance!GH$19)*100,1)) -> 5.6 | GI3: =IF(Balance!GI3="-","-",ROUND((SUM(Balance!GI3,Balance!GI10)/Balance!GI$19)*100,1)) -> 4 | GJ3: =IF(Balance!GJ3="-","-",ROUND((SUM(Balance!GJ3,Balance!GJ10)/Balance!GJ$19)*100,1)) -> 4.2 | GK3: =IF(Balance!GK3="-","-",ROUND((SUM(Balance!GK3,Balance!GK10)/Balance!GK$19)*100,1)) -> 6.4 | GL3: =IF(Balance!GL3="-","-",ROUND((SUM(Balance!GL3,Balance!GL10)/Balance!GL$19)*100,1)) -> 7.3 | GM3: =IF(Balance!GM3="-","-",ROUND((SUM(Balance!GM3,Balance!GM10)/Balance!GM$19)*100,1)) -> 6.7 | GN3: =IF(Balance!GN3="-","-",ROUND((SUM(Balance!GN3,Balance!GN10)/Balance!GN$19)*100,1)) -> 5.3 | GO3: =IF(Balance!GO3="-","-",ROUND((SUM(Balance!GO3,Balance!GO10)/Balance!GO$19)*100,1)) -> 13 | GP3: =IF(Balance!GP3="-","-",ROUND((SUM(Balance!GP3,Balance!GP10)/Balance!GP$19)*100,1)) -> 14.4 | GQ3: =IF(Balance!GQ3="-","-",ROUND((SUM(Balance!GQ3,Balance!GQ10)/Balance!GQ$19)*100,1)) -> 10.3 | GR3: =IF(Balance!GR3="-","-",ROUND((SUM(Balance!GR3,Balance!GR10)/Balance!GR$19)*100,1)) -> 7 | GS3: =IF(Balance!GS3="-","-",ROUND((SUM(Balance!GS3,Balance!GS10)/Balance!GS$19)*100,1)) -> 6.3 | GT3: =IF(Balance!GT3="-","-",ROUND((SUM(Balance!GT3,Balance!GT10)/Balance!GT$19)*100,1)) -> 4.9 | GU3: =IF(Balance!GU3="-","-",ROUND((SUM(Balance!GU3,Balance!GU10)/Balance!GU$19)*100,1)) -> 5.2 | GV3: =IF(Balance!GV3="-","-",ROUND((SUM(Balance!GV3,Balance!GV10)/Balance!GV$19)*100,1)) -> 7.7 | GW3: =IF(Balance!GW3="-","-",ROUND((SUM(Balance!GW3,Balance!GW10)/Balance!GW$19)*100,1)) -> 13.9 | GX3: =IF(Balance!GX3="-","-",ROUND((SUM(Balance!GX3,Balance!GX10)/Balance!GX$19)*100,1)) -> 20.9 | GY3: =IF(Balance!GY3="-","-",ROUND((SUM(Balance!GY3,Balance!GY10)/Balance!GY$19)*100,1)) -> 9.3 | GZ3: =IF(Balance!GZ3="-","-",ROUND((SUM(Balance!GZ3,Balance!GZ10)/Balance!GZ$19)*100,1)) -> 13.8 | HA3: =IF(Balance!HA3="-","-",ROUND((SUM(Balance!HA3,Balance!HA10)/Balance!HA$19)*100,1)) -> 16.9 | HB3: =IF(Balance!HB3="-","-",ROUND((SUM(Balance!HB3,Balance!HB10)/Balance!HB$19)*100,1)) -> 13.8 | HC3: =IF(Balance!HC3="-","-",ROUND((SUM(Balance!HC3,Balance!HC10)/Balance!HC$19)*100,1)) -> 13 | HD3: =IF(Balance!HD3="-","-",ROUND((SUM(Balance!HD3,Balance!HD10)/Balance!HD$19)*100,1)) -> 10.7 | HE3: =IF(Balance!HE3="-","-",ROUND((SUM(Balance!HE3,Balance!HE10)/Balance!HE$19)*100,1)) -> 10.5 | HF3: =IF(Balance!HF3="-","-",ROUND((SUM(Balance!HF3,Balance!HF10)/Balance!HF$19)*100,1)) -> 8.1 | HG3: =IF(Balance!HG3="-","-",ROUND((SUM(Balance!HG3,Balance!HG10)/Balance!HG$19)*100,1)) -> 6.2 | HH3: =IF(Balance!HH3="-","-",ROUND((SUM(Balance!HH3,Balance!HH10)/Balance!HH$19)*100,1)) -> 7.5 | HI3: =IF(Balance!HI3="-","-",ROUND((SUM(Balance!HI3,Balance!HI10)/Balance!HI$19)*100,1)) -> 5.6 | HJ3: =IF(Balance!HJ3="-","-",ROUND((SUM(Balance!HJ3,Balance!HJ10)/Balance!HJ$19)*100,1)) -> 4.9 | HK3: =IF(Balance!HK3="-","-",ROUND((SUM(Balance!HK3,Balance!HK10)/Balance!HK$19)*100,1)) -> 5.5 | HL3: =IF(Balance!HL3="-","-",ROUND((SUM(Balance!HL3,Balance!HL10)/Balance!HL$19)*100,1)) -> 4.1 | HM3: =IF(Balance!HM3="-","-",ROUND((SUM(Balance!HM3,Balance!HM10)/Balance!HM$19)*100,1)) -> 4.5 | HN3: =IF(Balance!HN3="-","-",ROUND((SUM(Balance!HN3,Balance!HN10)/Balance!HN$19)*100,1)) -> 11.9 | HO3: =IF(Balance!HO3="-","-",ROUND((SUM(Balance!HO3,Balance!HO10)/Balance!HO$19)*100,1)) -> 15.4 | HP3: =IF(Balance!HP3="-","-",ROUND((SUM(Balance!HP3,Balance!HP10)/Balance!HP$19)*100,1)) -> 14.2 | HQ3: =IF(Balance!HQ3="-","-",ROUND((SUM(Balance!HQ3,Balance!HQ10)/Balance!HQ$19)*100,1)) -> 8.9 | HR3: =IF(Balance!HR3="-","-",ROUND((SUM(Balance!HR3,Balance!HR10)/Balance!HR$19)*100,1)) -> 6.8 | HS3: =IF(Balance!HS3="-","-",ROUND((SUM(Balance!HS3,Balance!HS10)/Balance!HS$19)*100,1)) -> 5.9 | HT3: =IF(Balance!HT3="-","-",ROUND((SUM(Balance!HT3,Balance!HT10)/Balance!HT$19)*100,1)) -> 4.9 | HU3: =IF(Balance!HU3="-","-",ROUND((SUM(Balance!HU3,Balance!HU10)/Balance!HU$19)*100,1)) -> 6.8 | HV3: =IF(Balance!HV3="-","-",ROUND((SUM(Balance!HV3,Balance!HV10)/Balance!HV$19)*100,1)) -> 10.2 | HW3: =IF(Balance!HW3="-","-",ROUND((SUM(Balance!HW3,Balance!HW10)/Balance!HW$19)*100,1)) -> 9 | HX3: =IF(Balance!HX3="-","-",ROUND((SUM(Balance!HX3,Balance!HX10)/Balance!HX$19)*100,1)) -> 16 | HY3: =IF(Balance!HY3="-","-",ROUND((SUM(Balance!HY3,Balance!HY10)/Balance!HY$19)*100,1)) -> 13.1 | HZ3: =IF(Balance!HZ3="-","-",ROUND((SUM(Balance!HZ3,Balance!HZ10)/Balance!HZ$19)*100,1)) -> 11 | IA3: =IF(Balance!IA3="-","-",ROUND((SUM(Balance!IA3,Balance!IA10)/Balance!IA$19)*100,1)) -> 12.7 | IB3: =IF(Balance!IB3="-","-",ROUND((SUM(Balance!IB3,Balance!IB10)/Balance!IB$19)*100,1)) -> 9.9 | IC3: =IF(Balance!IC3="-","-",ROUND((SUM(Balance!IC3,Balance!IC10)/Balance!IC$19)*100,1)) -> 7.4 | ID3: =IF(Balance!ID3="-","-",ROUND((SUM(Balance!ID3,Balance!ID10)/Balance!ID$19)*100,1)) -> 6.5 | IE3: =IF(Balance!IE3="-","-",ROUND((SUM(Balance!IE3,Balance!IE10)/Balance!IE$19)*100,1)) -> 4.6 | IF3: =IF(Balance!IF3="-","-",ROUND((SUM(Balance!IF3,Balance!IF10)/Balance!IF$19)*100,1)) -> 5.8 | IG3: =IF(Balance!IG3="-","-",ROUND((SUM(Balance!IG3,Balance!IG10)/Balance!IG$19)*100,1)) -> 9.2 | IH3: =IF(Balance!IH3="-","-",ROUND((SUM(Balance!IH3,Balance!IH10)/Balance!IH$19)*100,1)) -> 13.6 | II3: =IF(Balance!II3="-","-",ROUND((SUM(Balance!II3,Balance!II10)/Balance!II$19)*100,1)) -> 20.9 | IJ3: =IF(Balance!IJ3="-","-",ROUND((SUM(Balance!IJ3,Balance!IJ10)/Balance!IJ$19)*100,1)) -> 17.7 | IK3: =IF(Balance!IK3="-","-",ROUND((SUM(Balance!IK3,Balance!IK10)/Balance!IK$19)*100,1)) -> 24.3 | IL3: =IF(Balance!IL3="-","-",ROUND((SUM(Balance!IL3,Balance!IL10)/Balance!IL$19)*100,1)) -> 22.5 | IM3: =IF(Balance!IM3="-","-",ROUND((SUM(Balance!IM3,Balance!IM10)/Balance!IM$19)*100,1)) -> 18.2 | IN3: =IF(Balance!IN3="-","-",ROUND((SUM(Balance!IN3,Balance!IN10)/Balance!IN$19)*100,1)) -> 16.5 | IO3: =IF(Balance!IO3="-","-",ROUND((SUM(Balance!IO3,Balance!IO10)/Balance!IO$19)*100,1)) -> 11.9 | IP3: =IF(Balance!IP3="-","-",ROUND((SUM(Balance!IP3,Balance!IP10)/Balance!IP$19)*100,1)) -> 9.1 | IQ3: =IF(Balance!IQ3="-","-",ROUND((SUM(Balance!IQ3,Balance!IQ10)/Balance!IQ$19)*100,1)) -> 7 | IR3: =IF(Balance!IR3="-","-",ROUND((SUM(Balance!IR3,Balance!IR10)/Balance!IR$19)*100,1)) -> 7.2 | IS3: =IF(Balance!IS3="-","-",ROUND((SUM(Balance!IS3,Balance!IS10)/Balance!IS$19)*100,1)) -> 11.4 | IT3: =IF(Balance!IT3="-","-",ROUND((SUM(Balance!IT3,Balance!IT10)/Balance!IT$19)*100,1)) -> 16.4 | IU3: =IF(Balance!IU3="-","-",ROUND((SUM(Balance!IU3,Balance!IU10)/Balance!IU$19)*100,1)) -> 20.7 | IV3: =IF(Balance!IV3="-","-",ROUND((SUM(Balance!IV3,Balance!IV10)/Balance!IV$19)*100,1)) -> 13.6 | IW3: =IF(Balance!IW3="-","-",ROUND((SUM(Balance!IW3,Balance!IW10)/Balance!IW$19)*100,1)) -> 16.1 | IX3: =IF(Balance!IX3="-","-",ROUND((SUM(Balance!IX3,Balance!IX10)/Balance!IX$19)*100,1)) -> 17.1 | IY3: =IF(Balance!IY3="-","-",ROUND((SUM(Balance!IY3,Balance!IY10)/Balance!IY$19)*100,1)) -> 13.5 | IZ3: =IF(Balance!IZ3="-","-",ROUND((SUM(Balance!IZ3,Balance!IZ10)/Balance!IZ$19)*100,1)) -> 9.7 | JA3: =IF(Balance!JA3="-","-",ROUND((SUM(Balance!JA3,Balance!JA10)/Balance!JA$19)*100,1)) -> 7.3 | JB3: =IF(Balance!JB3="-","-",ROUND((SUM(Balance!JB3,Balance!JB10)/Balance!JB$19)*100,1)) -> 7 | JC3: =IF(Balance!JC3="-","-",ROUND((SUM(Balance!JC3,Balance!JC10)/Balance!JC$19)*100,1)) -> 5.6 | JD3: =IF(Balance!JD3="-","-",ROUND((SUM(Balance!JD3,Balance!JD10)/Balance!JD$19)*100,1)) -> 5.9 | JE3: =IF(Balance!JE3="-","-",ROUND((SUM(Balance!JE3,Balance!JE10)/Balance!JE$19)*100,1)) -> 10 | JF3: =IF(Balance!JF3="-","-",ROUND((SUM(Balance!JF3,Balance!JF10)/Balance!JF$19)*100,1)) -> 9.6 | JG3: =IF(Balance!JG3="-","-",ROUND((SUM(Balance!JG3,Balance!JG10)/Balance!JG$19)*100,1)) -> 6.8 | JH3: =IF(Balance!JH3="-","-",ROUND((SUM(Balance!JH3,Balance!JH10)/Balance!JH$19)*100,1)) -> 4.9 | JI3: =IF(Balance!JI3="-","-",ROUND((SUM(Balance!JI3,Balance!JI10)/Balance!JI$19)*100,1)) -> 5.8 | JJ3: =IF(Balance!JJ3="-","-",ROUND((SUM(Balance!JJ3,Balance!JJ10)/Balance!JJ$19)*100,1)) -> 8.2 | JK3: =IF(Balance!JK3="-","-",ROUND((SUM(Balance!JK3,Balance!JK10)/Balance!JK$19)*100,1)) -> 11.8 | JL3: =IF(Balance!JL3="-","-",ROUND((SUM(Balance!JL3,Balance!JL10)/Balance!JL$19)*100,1)) -> 9.7 | JM3: =IF(Balance!JM3="-","-",ROUND((SUM(Balance!JM3,Balance!JM10)/Balance!JM$19)*100,1)) -> 7.4 | JN3: =IF(Balance!JN3="-","-",ROUND((SUM(Balance!JN3,Balance!JN10)/Balance!JN$19)*100,1)) -> 5.9 | JO3: =IF(Balance!JO3="-","-",ROUND((SUM(Balance!JO3,Balance!JO10)/Balance!JO$19)*100,1)) -> 4.8 | JP3: =IF(Balance!JP3="-","-",ROUND((SUM(Balance!JP3,Balance!JP10)/Balance!JP$19)*100,1)) -> 6.4 | JQ3: =IF(Balance!JQ3="-","-",ROUND((SUM(Balance!JQ3,Balance!JQ10)/Balance!JQ$19)*100,1)) -> 9.2 | JR3: =IF(Balance!JR3="-","-",ROUND((SUM(Balance!JR3,Balance!JR10)/Balance!JR$19)*100,1)) -> 11.5 | JS3: =IF(Balance!JS3="-","-",ROUND((SUM(Balance!JS3,Balance!JS10)/Balance!JS$19)*100,1)) -> 12.7 | JT3: =IF(Balance!JT3="-","-",ROUND((SUM(Balance!JT3,Balance!JT10)/Balance!JT$19)*100,1)) -> 16.3 | JU3: =IF(Balance!JU3="-","-",ROUND((SUM(Balance!JU3,Balance!JU10)/Balance!JU$19)*100,1)) -> 20.3 | JV3: =IF(Balance!JV3="-","-",ROUND((SUM(Balance!JV3,Balance!JV10)/Balance!JV$19)*100,1)) -> 25.8 | JW3: =IF(Balance!JW3="-","-",ROUND((SUM(Balance!JW3,Balance!JW10)/Balance!JW$19)*100,1)) -> 18.9 | JX3: =IF(Balance!JX3="-","-",ROUND((SUM(Balance!JX3,Balance!JX10)/Balance!JX$19)*100,1)) -> 16 | JY3: =IF(Balance!JY3="-","-",ROUND((SUM(Balance!JY3,Balance!JY10)/Balance!JY$19)*100,1)) -> 11.8 | JZ3: =IF(Balance!JZ3="-","-",ROUND((SUM(Balance!JZ3,Balance!JZ10)/Balance!JZ$19)*100,1)) -> 10 | KA3: =IF(Balance!KA3="-","-",ROUND((SUM(Balance!KA3,Balance!KA10)/Balance!KA$19)*100,1)) -> 8.8 | KB3: =IF(Balance!KB3="-","-",ROUND((SUM(Balance!KB3,Balance!KB10)/Balance!KB$19)*100,1)) -> 8.9 | KC3: =IF(Balance!KC3="-","-",ROUND((SUM(Balance!KC3,Balance!KC10)/Balance!KC$19)*100,1)) -> 12.8 | KD3: =IF(Balance!KD3="-","-",ROUND((SUM(Balance!KD3,Balance!KD10)/Balance!KD$19)*100,1)) -> 10.7 | KE3: =IF(Balance!KE3="-","-",ROUND((SUM(Balance!KE3,Balance!KE10)/Balance!KE$19)*100,1)) -> 18.5 | KF3: =IF(Balance!KF3="-","-",ROUND((SUM(Balance!KF3,Balance!KF10)/Balance!KF$19)*100,1)) -> 26.7 | KG3: =IF(Balance!KG3="-","-",ROUND((SUM(Balance!KG3,Balance!KG10)/Balance!KG$19)*100,1)) -> 24.3 | KH3: =IF(Balance!KH3="-","-",ROUND((SUM(Balance!KH3,Balance!KH10)/Balance!KH$19)*100,1)) -> 24.7 | KI3: =IF(Balance!KI3="-","-",ROUND((SUM(Balance!KI3,Balance!KI10)/Balance!KI$19)*100,1)) -> 13.9 | KJ3: =IF(Balance!KJ3="-","-",ROUND((SUM(Balance!KJ3,Balance!KJ10)/Balance!KJ$19)*100,1)) -> 12.2 | KK3: =IF(Balance!KK3="-","-",ROUND((SUM(Balance!KK3,Balance!KK10)/Balance!KK$19)*100,1)) -> 10.7 | KL3: =IF(Balance!KL3="-","-",ROUND((SUM(Balance!KL3,Balance!KL10)/Balance!KL$19)*100,1)) -> 9.8 | KM3: =IF(Balance!KM3="-","-",ROUND((SUM(Balance!KM3,Balance!KM10)/Balance!KM$19)*100,1)) -> 8.6 | KN3: =IF(Balance!KN3="-","-",ROUND((SUM(Balance!KN3,Balance!KN10)/Balance!KN$19)*100,1)) -> 8 | KO3: =IF(Balance!KO3="-","-",ROUND((SUM(Balance!KO3,Balance!KO10)/Balance!KO$19)*100,1)) -> 12.1 | KP3: =IF(Balance!KP3="-","-",ROUND((SUM(Balance!KP3,Balance!KP10)/Balance!KP$19)*100,1)) -> 14.8 | KQ3: =IF(Balance!KQ3="-","-",ROUND((SUM(Balance!KQ3,Balance!KQ10)/Balance!KQ$19)*100,1)) -> 10.9 | KR3: =IF(Balance!KR3="-","-",ROUND((SUM(Balance!KR3,Balance!KR10)/Balance!KR$19)*100,1)) -> 16 | KS3: =IF(Balance!KS3="-","-",ROUND((SUM(Balance!KS3,Balance!KS10)/Balance!KS$19)*100,1)) -> 17.3 | KT3: =IF(Balance!KT3="-","-",ROUND((SUM(Balance!KT3,Balance!KT10)/Balance!KT$19)*100,1)) -> 13.5 | KU3: =IF(Balance!KU3="-","-",ROUND((SUM(Balance!KU3,Balance!KU10)/Balance!KU$19)*100,1)) -> 14.6 | KV3: =IF(Balance!KV3="-","-",ROUND((SUM(Balance!KV3,Balance!KV10)/Balance!KV$19)*100,1)) -> 12 | KW3: =IF(Balance!KW3="-","-",ROUND((SUM(Balance!KW3,Balance!KW10)/Balance!KW$19)*100,1)) -> 8.6 | KX3: =IF(Balance!KX3="-","-",ROUND((SUM(Balance!KX3,Balance!KX10)/Balance!KX$19)*100,1)) -> 7.6 | KY3: =IF(Balance!KY3="-","-",ROUND((SUM(Balance!KY3,Balance!KY10)/Balance!KY$19)*100,1)) -> 8 | KZ3: =IF(Balance!KZ3="-","-",ROUND((SUM(Balance!KZ3,Balance!KZ10)/Balance!KZ$19)*100,1)) -> 8.3 | LA3: =IF(Balance!LA3="-","-",ROUND((SUM(Balance!LA3,Balance!LA10)/Balance!LA$19)*100,1)) -> 9.5 | LB3: =IF(Balance!LB3="-","-",ROUND((SUM(Balance!LB3,Balance!LB10)/Balance!LB$19)*100,1)) -> 7 | LC3: =IF(Balance!LC3="-","-",ROUND((SUM(Balance!LC3,Balance!LC10)/Balance!LC$19)*100,1)) -> 15.9 | LD3: =IF(Balance!LD3="-","-",ROUND((SUM(Balance!LD3,Balance!LD10)/Balance!LD$19)*100,1)) -> 19.2 | LE3: =IF(Balance!LE3="-","-",ROUND((SUM(Balance!LE3,Balance!LE10)/Balance!LE$19)*100,1)) -> 19.8 | LF3: =IF(Balance!LF3="-","-",ROUND((SUM(Balance!LF3,Balance!LF10)/Balance!LF$19)*100,1)) -> 25.3 | LG3: =IF(Balance!LG3="-","-",ROUND((SUM(Balance!LG3,Balance!LG10)/Balance!LG$19)*100,1)) -> 26 | LH3: =IF(Balance!LH3="-","-",ROUND((SUM(Balance!LH3,Balance!LH10)/Balance!LH$19)*100,1)) -> 15.1 | LI3: =IF(Balance!LI3="-","-",ROUND((SUM(Balance!LI3,Balance!LI10)/Balance!LI$19)*100,1)) -> 10.5 | LJ3: =IF(Balance!LJ3="-","-",ROUND((SUM(Balance!LJ3,Balance!LJ10)/Balance!LJ$19)*100,1)) -> 9.8 | LK3: =IF(Balance!LK3="-","-",ROUND((SUM(Balance!LK3,Balance!LK10)/Balance!LK$19)*100,1)) -> 8.3 | LL3: =IF(Balance!LL3="-","-",ROUND((SUM(Balance!LL3,Balance!LL10)/Balance!LL$19)*100,1)) -> 7.9 | LM3: =IF(Balance!LM3="-","-",ROUND((SUM(Balance!LM3,Balance!LM10)/Balance!LM$19)*100,1)) -> 7.2 | LN3: =IF(Balance!LN3="-","-",ROUND((SUM(Balance!LN3,Balance!LN10)/Balance!LN$19)*100,1)) -> 8.9 | LO3: =IF(Balance!LO3="-","-",ROUND((SUM(Balance!LO3,Balance!LO10)/Balance!LO$19)*100,1)) -> 8.5 | LP3: =IF(Balance!LP3="-","-",ROUND((SUM(Balance!LP3,Balance!LP10)/Balance!LP$19)*100,1)) -> 9.8 | LQ3: =IF(Balance!LQ3="-","-",ROUND((SUM(Balance!LQ3,Balance!LQ10)/Balance!LQ$19)*100,1)) -> 13.4 | LR3: =IF(Balance!LR3="-","-",ROUND((SUM(Balance!LR3,Balance!LR10)/Balance!LR$19)*100,1)) -> 9.4 | LS3: =IF(Balance!LS3="-","-",ROUND((SUM(Balance!LS3,Balance!LS10)/Balance!LS$19)*100,1)) -> 10.1 | LT3: =IF(Balance!LT3="-","-",ROUND((SUM(Balance!LT3,Balance!LT10)/Balance!LT$19)*100,1)) -> 7.8 | LU3: =IF(Balance!LU3="-","-",ROUND((SUM(Balance!LU3,Balance!LU10)/Balance!LU$19)*100,1)) -> 5.6 | LV3: =IF(Balance!LV3="-","-",ROUND((SUM(Balance!LV3,Balance!LV10)/Balance!LV$19)*100,1)) -> 5.3 | LW3: =IF(Balance!LW3="-","-",ROUND((SUM(Balance!LW3,Balance!LW10)/Balance!LW$19)*100,1)) -> 6.2 | LX3: =IF(Balance!LX3="-","-",ROUND((SUM(Balance!LX3,Balance!LX10)/Balance!LX$19)*100,1)) -> 4.1 | LY3: =IF(Balance!LY3="-","-",ROUND((SUM(Balance!LY3,Balance!LY10)/Balance!LY$19)*100,1)) -> 3.9 | LZ3: =IF(Balance!LZ3="-","-",ROUND((SUM(Balance!LZ3,Balance!LZ10)/Balance!LZ$19)*100,1)) -> 5.4 | MA3: =IF(Balance!MA3="-","-",ROUND((SUM(Balance!MA3,Balance!MA10)/Balance!MA$19)*100,1)) -> 9.9 | MB3: =IF(Balance!MB3="-","-",ROUND((SUM(Balance!MB3,Balance!MB10)/Balance!MB$19)*100,1)) -> - | MC3: =IF(Balance!MC3="-","-",ROUND((SUM(Balance!MC3,Balance!MC10)/Balance!MC$19)*100,1)) -> - | MD3: =IF(Balance!MD3="-","-",ROUND((SUM(Balance!MD3,Balance!MD10)/Balance!MD$19)*100,1)) -> - | ME3: =IF(Balance!ME3="-","-",ROUND((SUM(Balance!ME3,Balance!ME10)/Balance!ME$19)*100,1)) -> - | MF3: =IF(Balance!MF3="-","-",ROUND((SUM(Balance!MF3,Balance!MF10)/Balance!MF$19)*100,1)) -> - | MG3: =IF(Balance!MG3="-","-",ROUND((SUM(Balance!MG3,Balance!MG10)/Balance!MG$19)*100,1)) -> - | MH3: =IF(Balance!MH3="-","-",ROUND((SUM(Balance!MH3,Balance!MH10)/Balance!MH$19)*100,1)) -> - | MI3: =IF(Balance!MI3="-","-",ROUND((SUM(Balance!MI3,Balance!MI10)/Balance!MI$19)*100,1)) -> - | MJ3: =IF(Balance!MJ3="-","-",ROUND((SUM(Balance!MJ3,Balance!MJ10)/Balance!MJ$19)*100,1)) -> - | MK3: =IF(Balance!MK3="-","-",ROUND((SUM(Balance!MK3,Balance!MK10)/Balance!MK$19)*100,1)) -> - | ML3: =IF(Balance!ML3="-","-",ROUND((SUM(Balance!ML3,Balance!ML10)/Balance!ML$19)*100,1)) -> -
B4: Turbinación bombeo | C4: =IF(Balance!C4="-","-",ROUND((Balance!C4/Balance!C$19)*100,1)) -> 1.2 | D4: =IF(Balance!D4="-","-",ROUND((Balance!D4/Balance!D$19)*100,1)) -> 0.8 | E4: =IF(Balance!E4="-","-",ROUND((Balance!E4/Balance!E$19)*100,1)) -> 0.1 | F4: =IF(Balance!F4="-","-",ROUND((Balance!F4/Balance!F$19)*100,1)) -> 0.2 | G4: =IF(Balance!G4="-","-",ROUND((Balance!G4/Balance!G$19)*100,1)) -> 0.3 | H4: =IF(Balance!H4="-","-",ROUND((Balance!H4/Balance!H$19)*100,1)) -> 0.1 | I4: =IF(Balance!I4="-","-",ROUND((Balance!I4/Balance!I$19)*100,1)) -> 0.1 | J4: =IF(Balance!J4="-","-",ROUND((Balance!J4/Balance!J$19)*100,1)) -> 0.3 | K4: =IF(Balance!K4="-","-",ROUND((Balance!K4/Balance!K$19)*100,1)) -> 1 | L4: =IF(Balance!L4="-","-",ROUND((Balance!L4/Balance!L$19)*100,1)) -> 1 | M4: =IF(Balance!M4="-","-",ROUND((Balance!M4/Balance!M$19)*100,1)) -> 0.3 | N4: =IF(Balance!N4="-","-",ROUND((Balance!N4/Balance!N$19)*100,1)) -> 0.8 | O4: =IF(Balance!O4="-","-",ROUND((Balance!O4/Balance!O$19)*100,1)) -> 1.4 | P4: =IF(Balance!P4="-","-",ROUND((Balance!P4/Balance!P$19)*100,1)) -> 1.2 | Q4: =IF(Balance!Q4="-","-",ROUND((Balance!Q4/Balance!Q$19)*100,1)) -> 1 | R4: =IF(Balance!R4="-","-",ROUND((Balance!R4/Balance!R$19)*100,1)) -> 0.1 | S4: =IF(Balance!S4="-","-",ROUND((Balance!S4/Balance!S$19)*100,1)) -> 0.1 | T4: =IF(Balance!T4="-","-",ROUND((Balance!T4/Balance!T$19)*100,1)) -> 0.3 | U4: =IF(Balance!U4="-","-",ROUND((Balance!U4/Balance!U$19)*100,1)) -> 0.3 | V4: =IF(Balance!V4="-","-",ROUND((Balance!V4/Balance!V$19)*100,1)) -> 0.5 | W4: =IF(Balance!W4="-","-",ROUND((Balance!W4/Balance!W$19)*100,1)) -> 0.7 | X4: =IF(Balance!X4="-","-",ROUND((Balance!X4/Balance!X$19)*100,1)) -> 0.5 | Y4: =IF(Balance!Y4="-","-",ROUND((Balance!Y4/Balance!Y$19)*100,1)) -> 1.1 | Z4: =IF(Balance!Z4="-","-",ROUND((Balance!Z4/Balance!Z$19)*100,1)) -> 1.1 | AA4: =IF(Balance!AA4="-","-",ROUND((Balance!AA4/Balance!AA$19)*100,1)) -> 1.3 | AB4: =IF(Balance!AB4="-","-",ROUND((Balance!AB4/Balance!AB$19)*100,1)) -> 0.8 | AC4: =IF(Balance!AC4="-","-",ROUND((Balance!AC4/Balance!AC$19)*100,1)) -> 0.9 | AD4: =IF(Balance!AD4="-","-",ROUND((Balance!AD4/Balance!AD$19)*100,1)) -> 1.8 | AE4: =IF(Balance!AE4="-","-",ROUND((Balance!AE4/Balance!AE$19)*100,1)) -> 1.2 | AF4: =IF(Balance!AF4="-","-",ROUND((Balance!AF4/Balance!AF$19)*100,1)) -> 1.6 | AG4: =IF(Balance!AG4="-","-",ROUND((Balance!AG4/Balance!AG$19)*100,1)) -> 1.6 | AH4: =IF(Balance!AH4="-","-",ROUND((Balance!AH4/Balance!AH$19)*100,1)) -> 1.8 | AI4: =IF(Balance!AI4="-","-",ROUND((Balance!AI4/Balance!AI$19)*100,1)) -> 1.7 | AJ4: =IF(Balance!AJ4="-","-",ROUND((Balance!AJ4/Balance!AJ$19)*100,1)) -> 1.7 | AK4: =IF(Balance!AK4="-","-",ROUND((Balance!AK4/Balance!AK$19)*100,1)) -> 1.1 | AL4: =IF(Balance!AL4="-","-",ROUND((Balance!AL4/Balance!AL$19)*100,1)) -> 1 | AM4: =IF(Balance!AM4="-","-",ROUND((Balance!AM4/Balance!AM$19)*100,1)) -> 0.7 | AN4: =IF(Balance!AN4="-","-",ROUND((Balance!AN4/Balance!AN$19)*100,1)) -> 0.7 | AO4: =IF(Balance!AO4="-","-",ROUND((Balance!AO4/Balance!AO$19)*100,1)) -> 1.1 | AP4: =IF(Balance!AP4="-","-",ROUND((Balance!AP4/Balance!AP$19)*100,1)) -> 1.3 | AQ4: =IF(Balance!AQ4="-","-",ROUND((Balance!AQ4/Balance!AQ$19)*100,1)) -> 1.4 | AR4: =IF(Balance!AR4="-","-",ROUND((Balance!AR4/Balance!AR$19)*100,1)) -> 0.8 | AS4: =IF(Balance!AS4="-","-",ROUND((Balance!AS4/Balance!AS$19)*100,1)) -> 0.8 | AT4: =IF(Balance!AT4="-","-",ROUND((Balance!AT4/Balance!AT$19)*100,1)) -> 1.2 | AU4: =IF(Balance!AU4="-","-",ROUND((Balance!AU4/Balance!AU$19)*100,1)) -> 1.2 | AV4: =IF(Balance!AV4="-","-",ROUND((Balance!AV4/Balance!AV$19)*100,1)) -> 1.1 | AW4: =IF(Balance!AW4="-","-",ROUND((Balance!AW4/Balance!AW$19)*100,1)) -> 0.5 | AX4: =IF(Balance!AX4="-","-",ROUND((Balance!AX4/Balance!AX$19)*100,1)) -> 0.4 | AY4: =IF(Balance!AY4="-","-",ROUND((Balance!AY4/Balance!AY$19)*100,1)) -> 1.6 | AZ4: =IF(Balance!AZ4="-","-",ROUND((Balance!AZ4/Balance!AZ$19)*100,1)) -> 0.7 | BA4: =IF(Balance!BA4="-","-",ROUND((Balance!BA4/Balance!BA$19)*100,1)) -> 0.1 | BB4: =IF(Balance!BB4="-","-",ROUND((Balance!BB4/Balance!BB$19)*100,1)) -> 0.2 | BC4: =IF(Balance!BC4="-","-",ROUND((Balance!BC4/Balance!BC$19)*100,1)) -> 0.3 | BD4: =IF(Balance!BD4="-","-",ROUND((Balance!BD4/Balance!BD$19)*100,1)) -> 0.2 | BE4: =IF(Balance!BE4="-","-",ROUND((Balance!BE4/Balance!BE$19)*100,1)) -> 0.6 | BF4: =IF(Balance!BF4="-","-",ROUND((Balance!BF4/Balance!BF$19)*100,1)) -> 0.2 | BG4: =IF(Balance!BG4="-","-",ROUND((Balance!BG4/Balance!BG$19)*100,1)) -> 1 | BH4: =IF(Balance!BH4="-","-",ROUND((Balance!BH4/Balance!BH$19)*100,1)) -> 1.1 | BI4: =IF(Balance!BI4="-","-",ROUND((Balance!BI4/Balance!BI$19)*100,1)) -> 0.7 | BJ4: =IF(Balance!BJ4="-","-",ROUND((Balance!BJ4/Balance!BJ$19)*100,1)) -> 0.9 | BK4: =IF(Balance!BK4="-","-",ROUND((Balance!BK4/Balance!BK$19)*100,1)) -> 1.2 | BL4: =IF(Balance!BL4="-","-",ROUND((Balance!BL4/Balance!BL$19)*100,1)) -> 0.9 | BM4: =IF(Balance!BM4="-","-",ROUND((Balance!BM4/Balance!BM$19)*100,1)) -> 0.8 | BN4: =IF(Balance!BN4="-","-",ROUND((Balance!BN4/Balance!BN$19)*100,1)) -> 0.8 | BO4: =IF(Balance!BO4="-","-",ROUND((Balance!BO4/Balance!BO$19)*100,1)) -> 0.7 | BP4: =IF(Balance!BP4="-","-",ROUND((Balance!BP4/Balance!BP$19)*100,1)) -> 0.7 | BQ4: =IF(Balance!BQ4="-","-",ROUND((Balance!BQ4/Balance!BQ$19)*100,1)) -> 0.9 | BR4: =IF(Balance!BR4="-","-",ROUND((Balance!BR4/Balance!BR$19)*100,1)) -> 0.9 | BS4: =IF(Balance!BS4="-","-",ROUND((Balance!BS4/Balance!BS$19)*100,1)) -> 1 | BT4: =IF(Balance!BT4="-","-",ROUND((Balance!BT4/Balance!BT$19)*100,1)) -> 1 | BU4: =IF(Balance!BU4="-","-",ROUND((Balance!BU4/Balance!BU$19)*100,1)) -> 0.9 | BV4: =IF(Balance!BV4="-","-",ROUND((Balance!BV4/Balance!BV$19)*100,1)) -> 1.7 | BW4: =IF(Balance!BW4="-","-",ROUND((Balance!BW4/Balance!BW$19)*100,1)) -> 3.6 | BX4: =IF(Balance!BX4="-","-",ROUND((Balance!BX4/Balance!BX$19)*100,1)) -> 1 | BY4: =IF(Balance!BY4="-","-",ROUND((Balance!BY4/Balance!BY$19)*100,1)) -> 0.2 | BZ4: =IF(Balance!BZ4="-","-",ROUND((Balance!BZ4/Balance!BZ$19)*100,1)) -> 0.2 | CA4: =IF(Balance!CA4="-","-",ROUND((Balance!CA4/Balance!CA$19)*100,1)) -> 0.2 | CB4: =IF(Balance!CB4="-","-",ROUND((Balance!CB4/Balance!CB$19)*100,1)) -> 0.4 | CC4: =IF(Balance!CC4="-","-",ROUND((Balance!CC4/Balance!CC$19)*100,1)) -> 0.4 | CD4: =IF(Balance!CD4="-","-",ROUND((Balance!CD4/Balance!CD$19)*100,1)) -> 0.1 | CE4: =IF(Balance!CE4="-","-",ROUND((Balance!CE4/Balance!CE$19)*100,1)) -> 0.1 | CF4: =IF(Balance!CF4="-","-",ROUND((Balance!CF4/Balance!CF$19)*100,1)) -> 0.2 | CG4: =IF(Balance!CG4="-","-",ROUND((Balance!CG4/Balance!CG$19)*100,1)) -> 0.4 | CH4: =IF(Balance!CH4="-","-",ROUND((Balance!CH4/Balance!CH$19)*100,1)) -> 0.9 | CI4: =IF(Balance!CI4="-","-",ROUND((Balance!CI4/Balance!CI$19)*100,1)) -> 1.1 | CJ4: =IF(Balance!CJ4="-","-",ROUND((Balance!CJ4/Balance!CJ$19)*100,1)) -> 0.2 | CK4: =IF(Balance!CK4="-","-",ROUND((Balance!CK4/Balance!CK$19)*100,1)) -> 0.1 | CL4: =IF(Balance!CL4="-","-",ROUND((Balance!CL4/Balance!CL$19)*100,1)) -> 0.1 | CM4: =IF(Balance!CM4="-","-",ROUND((Balance!CM4/Balance!CM$19)*100,1)) -> 0.4 | CN4: =IF(Balance!CN4="-","-",ROUND((Balance!CN4/Balance!CN$19)*100,1)) -> 0.4 | CO4: =IF(Balance!CO4="-","-",ROUND((Balance!CO4/Balance!CO$19)*100,1)) -> 0.6 | CP4: =IF(Balance!CP4="-","-",ROUND((Balance!CP4/Balance!CP$19)*100,1)) -> 0.9 | CQ4: =IF(Balance!CQ4="-","-",ROUND((Balance!CQ4/Balance!CQ$19)*100,1)) -> 1 | CR4: =IF(Balance!CR4="-","-",ROUND((Balance!CR4/Balance!CR$19)*100,1)) -> 0.7 | CS4: =IF(Balance!CS4="-","-",ROUND((Balance!CS4/Balance!CS$19)*100,1)) -> 1.3 | CT4: =IF(Balance!CT4="-","-",ROUND((Balance!CT4/Balance!CT$19)*100,1)) -> 1.7 | CU4: =IF(Balance!CU4="-","-",ROUND((Balance!CU4/Balance!CU$19)*100,1)) -> 1.3 | CV4: =IF(Balance!CV4="-","-",ROUND((Balance!CV4/Balance!CV$19)*100,1)) -> 0.7 | CW4: =IF(Balance!CW4="-","-",ROUND((Balance!CW4/Balance!CW$19)*100,1)) -> 0.6 | CX4: =IF(Balance!CX4="-","-",ROUND((Balance!CX4/Balance!CX$19)*100,1)) -> 1.1 | CY4: =IF(Balance!CY4="-","-",ROUND((Balance!CY4/Balance!CY$19)*100,1)) -> 0.9 | CZ4: =IF(Balance!CZ4="-","-",ROUND((Balance!CZ4/Balance!CZ$19)*100,1)) -> 0.6 | DA4: =IF(Balance!DA4="-","-",ROUND((Balance!DA4/Balance!DA$19)*100,1)) -> 0.9 | DB4: =IF(Balance!DB4="-","-",ROUND((Balance!DB4/Balance!DB$19)*100,1)) -> 1.6 | DC4: =IF(Balance!DC4="-","-",ROUND((Balance!DC4/Balance!DC$19)*100,1)) -> 0.9 | DD4: =IF(Balance!DD4="-","-",ROUND((Balance!DD4/Balance!DD$19)*100,1)) -> 0.8 | DE4: =IF(Balance!DE4="-","-",ROUND((Balance!DE4/Balance!DE$19)*100,1)) -> 1 | DF4: =IF(Balance!DF4="-","-",ROUND((Balance!DF4/Balance!DF$19)*100,1)) -> 1.9 | DG4: =IF(Balance!DG4="-","-",ROUND((Balance!DG4/Balance!DG$19)*100,1)) -> 2 | DH4: =IF(Balance!DH4="-","-",ROUND((Balance!DH4/Balance!DH$19)*100,1)) -> 1.6 | DI4: =IF(Balance!DI4="-","-",ROUND((Balance!DI4/Balance!DI$19)*100,1)) -> 1.1 | DJ4: =IF(Balance!DJ4="-","-",ROUND((Balance!DJ4/Balance!DJ$19)*100,1)) -> 1.1 | DK4: =IF(Balance!DK4="-","-",ROUND((Balance!DK4/Balance!DK$19)*100,1)) -> 1.1 | DL4: =IF(Balance!DL4="-","-",ROUND((Balance!DL4/Balance!DL$19)*100,1)) -> 0.8 | DM4: =IF(Balance!DM4="-","-",ROUND((Balance!DM4/Balance!DM$19)*100,1)) -> 0.9 | DN4: =IF(Balance!DN4="-","-",ROUND((Balance!DN4/Balance!DN$19)*100,1)) -> 1.3 | DO4: =IF(Balance!DO4="-","-",ROUND((Balance!DO4/Balance!DO$19)*100,1)) -> 1.6 | DP4: =IF(Balance!DP4="-","-",ROUND((Balance!DP4/Balance!DP$19)*100,1)) -> 2.3 | DQ4: =IF(Balance!DQ4="-","-",ROUND((Balance!DQ4/Balance!DQ$19)*100,1)) -> 1.4 | DR4: =IF(Balance!DR4="-","-",ROUND((Balance!DR4/Balance!DR$19)*100,1)) -> 1.6 | DS4: =IF(Balance!DS4="-","-",ROUND((Balance!DS4/Balance!DS$19)*100,1)) -> 1.4 | DT4: =IF(Balance!DT4="-","-",ROUND((Balance!DT4/Balance!DT$19)*100,1)) -> 1.4 | DU4: =IF(Balance!DU4="-","-",ROUND((Balance!DU4/Balance!DU$19)*100,1)) -> 1.5 | DV4: =IF(Balance!DV4="-","-",ROUND((Balance!DV4/Balance!DV$19)*100,1)) -> 2.4 | DW4: =IF(Balance!DW4="-","-",ROUND((Balance!DW4/Balance!DW$19)*100,1)) -> 2.8 | DX4: =IF(Balance!DX4="-","-",ROUND((Balance!DX4/Balance!DX$19)*100,1)) -> 1.4 | DY4: =IF(Balance!DY4="-","-",ROUND((Balance!DY4/Balance!DY$19)*100,1)) -> 1.4 | DZ4: =IF(Balance!DZ4="-","-",ROUND((Balance!DZ4/Balance!DZ$19)*100,1)) -> 1.1 | EA4: =IF(Balance!EA4="-","-",ROUND((Balance!EA4/Balance!EA$19)*100,1)) -> 1.1 | EB4: =IF(Balance!EB4="-","-",ROUND((Balance!EB4/Balance!EB$19)*100,1)) -> 1.6 | EC4: =IF(Balance!EC4="-","-",ROUND((Balance!EC4/Balance!EC$19)*100,1)) -> 1.9 | ED4: =IF(Balance!ED4="-","-",ROUND((Balance!ED4/Balance!ED$19)*100,1)) -> 3.1 | EE4: =IF(Balance!EE4="-","-",ROUND((Balance!EE4/Balance!EE$19)*100,1)) -> 2 | EF4: =IF(Balance!EF4="-","-",ROUND((Balance!EF4/Balance!EF$19)*100,1)) -> 1.3 | EG4: =IF(Balance!EG4="-","-",ROUND((Balance!EG4/Balance!EG$19)*100,1)) -> 1.5 | EH4: =IF(Balance!EH4="-","-",ROUND((Balance!EH4/Balance!EH$19)*100,1)) -> 0.9 | EI4: =IF(Balance!EI4="-","-",ROUND((Balance!EI4/Balance!EI$19)*100,1)) -> 0.9 | EJ4: =IF(Balance!EJ4="-","-",ROUND((Balance!EJ4/Balance!EJ$19)*100,1)) -> 1.1 | EK4: =IF(Balance!EK4="-","-",ROUND((Balance!EK4/Balance!EK$19)*100,1)) -> 1.2 | EL4: =IF(Balance!EL4="-","-",ROUND((Balance!EL4/Balance!EL$19)*100,1)) -> 1.2 | EM4: =IF(Balance!EM4="-","-",ROUND((Balance!EM4/Balance!EM$19)*100,1)) -> 1.6 | EN4: =IF(Balance!EN4="-","-",ROUND((Balance!EN4/Balance!EN$19)*100,1)) -> 1.5 | EO4: =IF(Balance!EO4="-","-",ROUND((Balance!EO4/Balance!EO$19)*100,1)) -> 1.3 | EP4: =IF(Balance!EP4="-","-",ROUND((Balance!EP4/Balance!EP$19)*100,1)) -> 2.1 | EQ4: =IF(Balance!EQ4="-","-",ROUND((Balance!EQ4/Balance!EQ$19)*100,1)) -> 2.3 | ER4: =IF(Balance!ER4="-","-",ROUND((Balance!ER4/Balance!ER$19)*100,1)) -> 2.1 | ES4: =IF(Balance!ES4="-","-",ROUND((Balance!ES4/Balance!ES$19)*100,1)) -> 1.9 | ET4: =IF(Balance!ET4="-","-",ROUND((Balance!ET4/Balance!ET$19)*100,1)) -> 1.9 | EU4: =IF(Balance!EU4="-","-",ROUND((Balance!EU4/Balance!EU$19)*100,1)) -> 2.2 | EV4: =IF(Balance!EV4="-","-",ROUND((Balance!EV4/Balance!EV$19)*100,1)) -> 2.5 | EW4: =IF(Balance!EW4="-","-",ROUND((Balance!EW4/Balance!EW$19)*100,1)) -> 2.6 | EX4: =IF(Balance!EX4="-","-",ROUND((Balance!EX4/Balance!EX$19)*100,1)) -> 2.4 | EY4: =IF(Balance!EY4="-","-",ROUND((Balance!EY4/Balance!EY$19)*100,1)) -> 2.4 | EZ4: =IF(Balance!EZ4="-","-",ROUND((Balance!EZ4/Balance!EZ$19)*100,1)) -> 2.2 | FA4: =IF(Balance!FA4="-","-",ROUND((Balance!FA4/Balance!FA$19)*100,1)) -> 2.2 | FB4: =IF(Balance!FB4="-","-",ROUND((Balance!FB4/Balance!FB$19)*100,1)) -> 2.5 | FC4: =IF(Balance!FC4="-","-",ROUND((Balance!FC4/Balance!FC$19)*100,1)) -> 2 | FD4: =IF(Balance!FD4="-","-",ROUND((Balance!FD4/Balance!FD$19)*100,1)) -> 1.4 | FE4: =IF(Balance!FE4="-","-",ROUND((Balance!FE4/Balance!FE$19)*100,1)) -> 1.4 | FF4: =IF(Balance!FF4="-","-",ROUND((Balance!FF4/Balance!FF$19)*100,1)) -> 0.9 | FG4: =IF(Balance!FG4="-","-",ROUND((Balance!FG4/Balance!FG$19)*100,1)) -> 1 | FH4: =IF(Balance!FH4="-","-",ROUND((Balance!FH4/Balance!FH$19)*100,1)) -> 1.5 | FI4: =IF(Balance!FI4="-","-",ROUND((Balance!FI4/Balance!FI$19)*100,1)) -> 1.5 | FJ4: =IF(Balance!FJ4="-","-",ROUND((Balance!FJ4/Balance!FJ$19)*100,1)) -> 1.7 | FK4: =IF(Balance!FK4="-","-",ROUND((Balance!FK4/Balance!FK$19)*100,1)) -> 1.7 | FL4: =IF(Balance!FL4="-","-",ROUND((Balance!FL4/Balance!FL$19)*100,1)) -> 1.4 | FM4: =IF(Balance!FM4="-","-",ROUND((Balance!FM4/Balance!FM$19)*100,1)) -> 1.2 | FN4: =IF(Balance!FN4="-","-",ROUND((Balance!FN4/Balance!FN$19)*100,1)) -> 1.4 | FO4: =IF(Balance!FO4="-","-",ROUND((Balance!FO4/Balance!FO$19)*100,1)) -> 1.3 | FP4: =IF(Balance!FP4="-","-",ROUND((Balance!FP4/Balance!FP$19)*100,1)) -> 1 | FQ4: =IF(Balance!FQ4="-","-",ROUND((Balance!FQ4/Balance!FQ$19)*100,1)) -> 1.1 | FR4: =IF(Balance!FR4="-","-",ROUND((Balance!FR4/Balance!FR$19)*100,1)) -> 1.2 | FS4: =IF(Balance!FS4="-","-",ROUND((Balance!FS4/Balance!FS$19)*100,1)) -> 1.4 | FT4: =IF(Balance!FT4="-","-",ROUND((Balance!FT4/Balance!FT$19)*100,1)) -> 1.5 | FU4: =IF(Balance!FU4="-","-",ROUND((Balance!FU4/Balance!FU$19)*100,1)) -> 1.3 | FV4: =IF(Balance!FV4="-","-",ROUND((Balance!FV4/Balance!FV$19)*100,1)) -> 1.4 | FW4: =IF(Balance!FW4="-","-",ROUND((Balance!FW4/Balance!FW$19)*100,1)) -> 1.4 | FX4: =IF(Balance!FX4="-","-",ROUND((Balance!FX4/Balance!FX$19)*100,1)) -> 1.4 | FY4: =IF(Balance!FY4="-","-",ROUND((Balance!FY4/Balance!FY$19)*100,1)) -> 1.2 | FZ4: =IF(Balance!FZ4="-","-",ROUND((Balance!FZ4/Balance!FZ$19)*100,1)) -> 1.6 | GA4: =IF(Balance!GA4="-","-",ROUND((Balance!GA4/Balance!GA$19)*100,1)) -> 1.7 | GB4: =IF(Balance!GB4="-","-",ROUND((Balance!GB4/Balance!GB$19)*100,1)) -> 1.4 | GC4: =IF(Balance!GC4="-","-",ROUND((Balance!GC4/Balance!GC$19)*100,1)) -> 1.6 | GD4: =IF(Balance!GD4="-","-",ROUND((Balance!GD4/Balance!GD$19)*100,1)) -> 1.6 | GE4: =IF(Balance!GE4="-","-",ROUND((Balance!GE4/Balance!GE$19)*100,1)) -> 2.3 | GF4: =IF(Balance!GF4="-","-",ROUND((Balance!GF4/Balance!GF$19)*100,1)) -> 2.1 | GG4: =IF(Balance!GG4="-","-",ROUND((Balance!GG4/Balance!GG$19)*100,1)) -> 2.2 | GH4: =IF(Balance!GH4="-","-",ROUND((Balance!GH4/Balance!GH$19)*100,1)) -> 1.5 | GI4: =IF(Balance!GI4="-","-",ROUND((Balance!GI4/Balance!GI$19)*100,1)) -> 1.8 | GJ4: =IF(Balance!GJ4="-","-",ROUND((Balance!GJ4/Balance!GJ$19)*100,1)) -> 1.7 | GK4: =IF(Balance!GK4="-","-",ROUND((Balance!GK4/Balance!GK$19)*100,1)) -> 1.5 | GL4: =IF(Balance!GL4="-","-",ROUND((Balance!GL4/Balance!GL$19)*100,1)) -> 1.7 | GM4: =IF(Balance!GM4="-","-",ROUND((Balance!GM4/Balance!GM$19)*100,1)) -> 1.7 | GN4: =IF(Balance!GN4="-","-",ROUND((Balance!GN4/Balance!GN$19)*100,1)) -> 1.7 | GO4: =IF(Balance!GO4="-","-",ROUND((Balance!GO4/Balance!GO$19)*100,1)) -> 1.1 | GP4: =IF(Balance!GP4="-","-",ROUND((Balance!GP4/Balance!GP$19)*100,1)) -> 1.1 | GQ4: =IF(Balance!GQ4="-","-",ROUND((Balance!GQ4/Balance!GQ$19)*100,1)) -> 1.1 | GR4: =IF(Balance!GR4="-","-",ROUND((Balance!GR4/Balance!GR$19)*100,1)) -> 1.2 | GS4: =IF(Balance!GS4="-","-",ROUND((Balance!GS4/Balance!GS$19)*100,1)) -> 1.5 | GT4: =IF(Balance!GT4="-","-",ROUND((Balance!GT4/Balance!GT$19)*100,1)) -> 1.3 | GU4: =IF(Balance!GU4="-","-",ROUND((Balance!GU4/Balance!GU$19)*100,1)) -> 1.6 | GV4: =IF(Balance!GV4="-","-",ROUND((Balance!GV4/Balance!GV$19)*100,1)) -> 1.8 | GW4: =IF(Balance!GW4="-","-",ROUND((Balance!GW4/Balance!GW$19)*100,1)) -> 1.8 | GX4: =IF(Balance!GX4="-","-",ROUND((Balance!GX4/Balance!GX$19)*100,1)) -> 1.1 | GY4: =IF(Balance!GY4="-","-",ROUND((Balance!GY4/Balance!GY$19)*100,1)) -> 1.1 | GZ4: =IF(Balance!GZ4="-","-",ROUND((Balance!GZ4/Balance!GZ$19)*100,1)) -> 1.3 | HA4: =IF(Balance!HA4="-","-",ROUND((Balance!HA4/Balance!HA$19)*100,1)) -> 1.2 | HB4: =IF(Balance!HB4="-","-",ROUND((Balance!HB4/Balance!HB$19)*100,1)) -> 1 | HC4: =IF(Balance!HC4="-","-",ROUND((Balance!HC4/Balance!HC$19)*100,1)) -> 1.3 | HD4: =IF(Balance!HD4="-","-",ROUND((Balance!HD4/Balance!HD$19)*100,1)) -> 1.2 | HE4: =IF(Balance!HE4="-","-",ROUND((Balance!HE4/Balance!HE$19)*100,1)) -> 1 | HF4: =IF(Balance!HF4="-","-",ROUND((Balance!HF4/Balance!HF$19)*100,1)) -> 1.2 | HG4: =IF(Balance!HG4="-","-",ROUND((Balance!HG4/Balance!HG$19)*100,1)) -> 1.1 | HH4: =IF(Balance!HH4="-","-",ROUND((Balance!HH4/Balance!HH$19)*100,1)) -> 1 | HI4: =IF(Balance!HI4="-","-",ROUND((Balance!HI4/Balance!HI$19)*100,1)) -> 1.1 | HJ4: =IF(Balance!HJ4="-","-",ROUND((Balance!HJ4/Balance!HJ$19)*100,1)) -> 1.4 | HK4: =IF(Balance!HK4="-","-",ROUND((Balance!HK4/Balance!HK$19)*100,1)) -> 1.2 | HL4: =IF(Balance!HL4="-","-",ROUND((Balance!HL4/Balance!HL$19)*100,1)) -> 1.2 | HM4: =IF(Balance!HM4="-","-",ROUND((Balance!HM4/Balance!HM$19)*100,1)) -> 1.2 | HN4: =IF(Balance!HN4="-","-",ROUND((Balance!HN4/Balance!HN$19)*100,1)) -> 0.7 | HO4: =IF(Balance!HO4="-","-",ROUND((Balance!HO4/Balance!HO$19)*100,1)) -> 0.7 | HP4: =IF(Balance!HP4="-","-",ROUND((Balance!HP4/Balance!HP$19)*100,1)) -> 0.9 | HQ4: =IF(Balance!HQ4="-","-",ROUND((Balance!HQ4/Balance!HQ$19)*100,1)) -> 0.7 | HR4: =IF(Balance!HR4="-","-",ROUND((Balance!HR4/Balance!HR$19)*100,1)) -> 0.6 | HS4: =IF(Balance!HS4="-","-",ROUND((Balance!HS4/Balance!HS$19)*100,1)) -> 0.7 | HT4: =IF(Balance!HT4="-","-",ROUND((Balance!HT4/Balance!HT$19)*100,1)) -> 0.9 | HU4: =IF(Balance!HU4="-","-",ROUND((Balance!HU4/Balance!HU$19)*100,1)) -> 1.2 | HV4: =IF(Balance!HV4="-","-",ROUND((Balance!HV4/Balance!HV$19)*100,1)) -> 1.3 | HW4: =IF(Balance!HW4="-","-",ROUND((Balance!HW4/Balance!HW$19)*100,1)) -> 1.4 | HX4: =IF(Balance!HX4="-","-",ROUND((Balance!HX4/Balance!HX$19)*100,1)) -> 1.3 | HY4: =IF(Balance!HY4="-","-",ROUND((Balance!HY4/Balance!HY$19)*100,1)) -> 0.9 | HZ4: =IF(Balance!HZ4="-","-",ROUND((Balance!HZ4/Balance!HZ$19)*100,1)) -> 0.9 | IA4: =IF(Balance!IA4="-","-",ROUND((Balance!IA4/Balance!IA$19)*100,1)) -> 0.9 | IB4: =IF(Balance!IB4="-","-",ROUND((Balance!IB4/Balance!IB$19)*100,1)) -> 0.7 | IC4: =IF(Balance!IC4="-","-",ROUND((Balance!IC4/Balance!IC$19)*100,1)) -> 0.7 | ID4: =IF(Balance!ID4="-","-",ROUND((Balance!ID4/Balance!ID$19)*100,1)) -> 0.8 | IE4: =IF(Balance!IE4="-","-",ROUND((Balance!IE4/Balance!IE$19)*100,1)) -> 0.8 | IF4: =IF(Balance!IF4="-","-",ROUND((Balance!IF4/Balance!IF$19)*100,1)) -> 0.9 | IG4: =IF(Balance!IG4="-","-",ROUND((Balance!IG4/Balance!IG$19)*100,1)) -> 1.3 | IH4: =IF(Balance!IH4="-","-",ROUND((Balance!IH4/Balance!IH$19)*100,1)) -> 1.4 | II4: =IF(Balance!II4="-","-",ROUND((Balance!II4/Balance!II$19)*100,1)) -> 2.1 | IJ4: =IF(Balance!IJ4="-","-",ROUND((Balance!IJ4/Balance!IJ$19)*100,1)) -> 1.7 | IK4: =IF(Balance!IK4="-","-",ROUND((Balance!IK4/Balance!IK$19)*100,1)) -> 1.6 | IL4: =IF(Balance!IL4="-","-",ROUND((Balance!IL4/Balance!IL$19)*100,1)) -> 1 | IM4: =IF(Balance!IM4="-","-",ROUND((Balance!IM4/Balance!IM$19)*100,1)) -> 0.9 | IN4: =IF(Balance!IN4="-","-",ROUND((Balance!IN4/Balance!IN$19)*100,1)) -> 0.7 | IO4: =IF(Balance!IO4="-","-",ROUND((Balance!IO4/Balance!IO$19)*100,1)) -> 0.6 | IP4: =IF(Balance!IP4="-","-",ROUND((Balance!IP4/Balance!IP$19)*100,1)) -> 0.7 | IQ4: =IF(Balance!IQ4="-","-",ROUND((Balance!IQ4/Balance!IQ$19)*100,1)) -> 0.7 | IR4: =IF(Balance!IR4="-","-",ROUND((Balance!IR4/Balance!IR$19)*100,1)) -> 1.1 | IS4: =IF(Balance!IS4="-","-",ROUND((Balance!IS4/Balance!IS$19)*100,1)) -> 1 | IT4: =IF(Balance!IT4="-","-",ROUND((Balance!IT4/Balance!IT$19)*100,1)) -> 1.3 | IU4: =IF(Balance!IU4="-","-",ROUND((Balance!IU4/Balance!IU$19)*100,1)) -> 1.1 | IV4: =IF(Balance!IV4="-","-",ROUND((Balance!IV4/Balance!IV$19)*100,1)) -> 0.8 | IW4: =IF(Balance!IW4="-","-",ROUND((Balance!IW4/Balance!IW$19)*100,1)) -> 1 | IX4: =IF(Balance!IX4="-","-",ROUND((Balance!IX4/Balance!IX$19)*100,1)) -> 1 | IY4: =IF(Balance!IY4="-","-",ROUND((Balance!IY4/Balance!IY$19)*100,1)) -> 0.5 | IZ4: =IF(Balance!IZ4="-","-",ROUND((Balance!IZ4/Balance!IZ$19)*100,1)) -> 0.5 | JA4: =IF(Balance!JA4="-","-",ROUND((Balance!JA4/Balance!JA$19)*100,1)) -> 0.5 | JB4: =IF(Balance!JB4="-","-",ROUND((Balance!JB4/Balance!JB$19)*100,1)) -> 0.5 | JC4: =IF(Balance!JC4="-","-",ROUND((Balance!JC4/Balance!JC$19)*100,1)) -> 0.6 | JD4: =IF(Balance!JD4="-","-",ROUND((Balance!JD4/Balance!JD$19)*100,1)) -> 1 | JE4: =IF(Balance!JE4="-","-",ROUND((Balance!JE4/Balance!JE$19)*100,1)) -> 1 | JF4: =IF(Balance!JF4="-","-",ROUND((Balance!JF4/Balance!JF$19)*100,1)) -> 1.2 | JG4: =IF(Balance!JG4="-","-",ROUND((Balance!JG4/Balance!JG$19)*100,1)) -> 1.3 | JH4: =IF(Balance!JH4="-","-",ROUND((Balance!JH4/Balance!JH$19)*100,1)) -> 1.1 | JI4: =IF(Balance!JI4="-","-",ROUND((Balance!JI4/Balance!JI$19)*100,1)) -> 1.2 | JJ4: =IF(Balance!JJ4="-","-",ROUND((Balance!JJ4/Balance!JJ$19)*100,1)) -> 1.4 | JK4: =IF(Balance!JK4="-","-",ROUND((Balance!JK4/Balance!JK$19)*100,1)) -> 1 | JL4: =IF(Balance!JL4="-","-",ROUND((Balance!JL4/Balance!JL$19)*100,1)) -> 0.9 | JM4: =IF(Balance!JM4="-","-",ROUND((Balance!JM4/Balance!JM$19)*100,1)) -> 0.9 | JN4: =IF(Balance!JN4="-","-",ROUND((Balance!JN4/Balance!JN$19)*100,1)) -> 1.1 | JO4: =IF(Balance!JO4="-","-",ROUND((Balance!JO4/Balance!JO$19)*100,1)) -> 1.3 | JP4: =IF(Balance!JP4="-","-",ROUND((Balance!JP4/Balance!JP$19)*100,1)) -> 1.3 | JQ4: =IF(Balance!JQ4="-","-",ROUND((Balance!JQ4/Balance!JQ$19)*100,1)) -> 1.3 | JR4: =IF(Balance!JR4="-","-",ROUND((Balance!JR4/Balance!JR$19)*100,1)) -> 1.5 | JS4: =IF(Balance!JS4="-","-",ROUND((Balance!JS4/Balance!JS$19)*100,1)) -> 1.6 | JT4: =IF(Balance!JT4="-","-",ROUND((Balance!JT4/Balance!JT$19)*100,1)) -> 1.6 | JU4: =IF(Balance!JU4="-","-",ROUND((Balance!JU4/Balance!JU$19)*100,1)) -> 2 | JV4: =IF(Balance!JV4="-","-",ROUND((Balance!JV4/Balance!JV$19)*100,1)) -> 1.8 | JW4: =IF(Balance!JW4="-","-",ROUND((Balance!JW4/Balance!JW$19)*100,1)) -> 1.2 | JX4: =IF(Balance!JX4="-","-",ROUND((Balance!JX4/Balance!JX$19)*100,1)) -> 1.1 | JY4: =IF(Balance!JY4="-","-",ROUND((Balance!JY4/Balance!JY$19)*100,1)) -> 0.8 | JZ4: =IF(Balance!JZ4="-","-",ROUND((Balance!JZ4/Balance!JZ$19)*100,1)) -> 0.8 | KA4: =IF(Balance!KA4="-","-",ROUND((Balance!KA4/Balance!KA$19)*100,1)) -> 0.7 | KB4: =IF(Balance!KB4="-","-",ROUND((Balance!KB4/Balance!KB$19)*100,1)) -> 1 | KC4: =IF(Balance!KC4="-","-",ROUND((Balance!KC4/Balance!KC$19)*100,1)) -> 1.1 | KD4: =IF(Balance!KD4="-","-",ROUND((Balance!KD4/Balance!KD$19)*100,1)) -> 1.5 | KE4: =IF(Balance!KE4="-","-",ROUND((Balance!KE4/Balance!KE$19)*100,1)) -> 1.9 | KF4: =IF(Balance!KF4="-","-",ROUND((Balance!KF4/Balance!KF$19)*100,1)) -> 1.7 | KG4: =IF(Balance!KG4="-","-",ROUND((Balance!KG4/Balance!KG$19)*100,1)) -> 1.6 | KH4: =IF(Balance!KH4="-","-",ROUND((Balance!KH4/Balance!KH$19)*100,1)) -> 1.8 | KI4: =IF(Balance!KI4="-","-",ROUND((Balance!KI4/Balance!KI$19)*100,1)) -> 1.4 | KJ4: =IF(Balance!KJ4="-","-",ROUND((Balance!KJ4/Balance!KJ$19)*100,1)) -> 1 | KK4: =IF(Balance!KK4="-","-",ROUND((Balance!KK4/Balance!KK$19)*100,1)) -> 0.8 | KL4: =IF(Balance!KL4="-","-",ROUND((Balance!KL4/Balance!KL$19)*100,1)) -> 0.7 | KM4: =IF(Balance!KM4="-","-",ROUND((Balance!KM4/Balance!KM$19)*100,1)) -> 0.8 | KN4: =IF(Balance!KN4="-","-",ROUND((Balance!KN4/Balance!KN$19)*100,1)) -> 1.3 | KO4: =IF(Balance!KO4="-","-",ROUND((Balance!KO4/Balance!KO$19)*100,1)) -> 1.6 | KP4: =IF(Balance!KP4="-","-",ROUND((Balance!KP4/Balance!KP$19)*100,1)) -> 1.5 | KQ4: =IF(Balance!KQ4="-","-",ROUND((Balance!KQ4/Balance!KQ$19)*100,1)) -> 1.4 | KR4: =IF(Balance!KR4="-","-",ROUND((Balance!KR4/Balance!KR$19)*100,1)) -> 1.3 | KS4: =IF(Balance!KS4="-","-",ROUND((Balance!KS4/Balance!KS$19)*100,1)) -> 1.5 | KT4: =IF(Balance!KT4="-","-",ROUND((Balance!KT4/Balance!KT$19)*100,1)) -> 1.3 | KU4: =IF(Balance!KU4="-","-",ROUND((Balance!KU4/Balance!KU$19)*100,1)) -> 1.3 | KV4: =IF(Balance!KV4="-","-",ROUND((Balance!KV4/Balance!KV$19)*100,1)) -> 0.6 | KW4: =IF(Balance!KW4="-","-",ROUND((Balance!KW4/Balance!KW$19)*100,1)) -> 0.5 | KX4: =IF(Balance!KX4="-","-",ROUND((Balance!KX4/Balance!KX$19)*100,1)) -> 0.9 | KY4: =IF(Balance!KY4="-","-",ROUND((Balance!KY4/Balance!KY$19)*100,1)) -> 0.8 | KZ4: =IF(Balance!KZ4="-","-",ROUND((Balance!KZ4/Balance!KZ$19)*100,1)) -> 1.3 | LA4: =IF(Balance!LA4="-","-",ROUND((Balance!LA4/Balance!LA$19)*100,1)) -> 1.4 | LB4: =IF(Balance!LB4="-","-",ROUND((Balance!LB4/Balance!LB$19)*100,1)) -> 1.6 | LC4: =IF(Balance!LC4="-","-",ROUND((Balance!LC4/Balance!LC$19)*100,1)) -> 2.1 | LD4: =IF(Balance!LD4="-","-",ROUND((Balance!LD4/Balance!LD$19)*100,1)) -> 2.5 | LE4: =IF(Balance!LE4="-","-",ROUND((Balance!LE4/Balance!LE$19)*100,1)) -> 1.6 | LF4: =IF(Balance!LF4="-","-",ROUND((Balance!LF4/Balance!LF$19)*100,1)) -> 2.1 | LG4: =IF(Balance!LG4="-","-",ROUND((Balance!LG4/Balance!LG$19)*100,1)) -> 1.6 | LH4: =IF(Balance!LH4="-","-",ROUND((Balance!LH4/Balance!LH$19)*100,1)) -> 0.9 | LI4: =IF(Balance!LI4="-","-",ROUND((Balance!LI4/Balance!LI$19)*100,1)) -> 0.4 | LJ4: =IF(Balance!LJ4="-","-",ROUND((Balance!LJ4/Balance!LJ$19)*100,1)) -> 0.5 | LK4: =IF(Balance!LK4="-","-",ROUND((Balance!LK4/Balance!LK$19)*100,1)) -> 0.5 | LL4: =IF(Balance!LL4="-","-",ROUND((Balance!LL4/Balance!LL$19)*100,1)) -> 0.8 | LM4: =IF(Balance!LM4="-","-",ROUND((Balance!LM4/Balance!LM$19)*100,1)) -> 1.2 | LN4: =IF(Balance!LN4="-","-",ROUND((Balance!LN4/Balance!LN$19)*100,1)) -> 1.2 | LO4: =IF(Balance!LO4="-","-",ROUND((Balance!LO4/Balance!LO$19)*100,1)) -> 1.2 | LP4: =IF(Balance!LP4="-","-",ROUND((Balance!LP4/Balance!LP$19)*100,1)) -> 1.3 | LQ4: =IF(Balance!LQ4="-","-",ROUND((Balance!LQ4/Balance!LQ$19)*100,1)) -> 1.2 | LR4: =IF(Balance!LR4="-","-",ROUND((Balance!LR4/Balance!LR$19)*100,1)) -> 1.1 | LS4: =IF(Balance!LS4="-","-",ROUND((Balance!LS4/Balance!LS$19)*100,1)) -> 0.9 | LT4: =IF(Balance!LT4="-","-",ROUND((Balance!LT4/Balance!LT$19)*100,1)) -> 0.4 | LU4: =IF(Balance!LU4="-","-",ROUND((Balance!LU4/Balance!LU$19)*100,1)) -> 0.5 | LV4: =IF(Balance!LV4="-","-",ROUND((Balance!LV4/Balance!LV$19)*100,1)) -> 0.6 | LW4: =IF(Balance!LW4="-","-",ROUND((Balance!LW4/Balance!LW$19)*100,1)) -> 0.6 | LX4: =IF(Balance!LX4="-","-",ROUND((Balance!LX4/Balance!LX$19)*100,1)) -> 0.7 | LY4: =IF(Balance!LY4="-","-",ROUND((Balance!LY4/Balance!LY$19)*100,1)) -> 1 | LZ4: =IF(Balance!LZ4="-","-",ROUND((Balance!LZ4/Balance!LZ$19)*100,1)) -> 1.3 | MA4: =IF(Balance!MA4="-","-",ROUND((Balance!MA4/Balance!MA$19)*100,1)) -> 1.2 | MB4: =IF(Balance!MB4="-","-",ROUND((Balance!MB4/Balance!MB$19)*100,1)) -> - | MC4: =IF(Balance!MC4="-","-",ROUND((Balance!MC4/Balance!MC$19)*100,1)) -> - | MD4: =IF(Balance!MD4="-","-",ROUND((Balance!MD4/Balance!MD$19)*100,1)) -> - | ME4: =IF(Balance!ME4="-","-",ROUND((Balance!ME4/Balance!ME$19)*100,1)) -> - | MF4: =IF(Balance!MF4="-","-",ROUND((Balance!MF4/Balance!MF$19)*100,1)) -> - | MG4: =IF(Balance!MG4="-","-",ROUND((Balance!MG4/Balance!MG$19)*100,1)) -> - | MH4: =IF(Balance!MH4="-","-",ROUND((Balance!MH4/Balance!MH$19)*100,1)) -> - | MI4: =IF(Balance!MI4="-","-",ROUND((Balance!MI4/Balance!MI$19)*100,1)) -> - | MJ4: =IF(Balance!MJ4="-","-",ROUND((Balance!MJ4/Balance!MJ$19)*100,1)) -> - | MK4: =IF(Balance!MK4="-","-",ROUND((Balance!MK4/Balance!MK$19)*100,1)) -> - | ML4: =IF(Balance!ML4="-","-",ROUND((Balance!ML4/Balance!ML$19)*100,1)) -> -
B5: Nuclear | C5: =IF(Balance!C5="-","-",ROUND((Balance!C5/Balance!C$19)*100,1)) -> 39.7 | D5: =IF(Balance!D5="-","-",ROUND((Balance!D5/Balance!D$19)*100,1)) -> 40.5 | E5: =IF(Balance!E5="-","-",ROUND((Balance!E5/Balance!E$19)*100,1)) -> 36.9 | F5: =IF(Balance!F5="-","-",ROUND((Balance!F5/Balance!F$19)*100,1)) -> 43.1 | G5: =IF(Balance!G5="-","-",ROUND((Balance!G5/Balance!G$19)*100,1)) -> 36.7 | H5: =IF(Balance!H5="-","-",ROUND((Balance!H5/Balance!H$19)*100,1)) -> 30.6 | I5: =IF(Balance!I5="-","-",ROUND((Balance!I5/Balance!I$19)*100,1)) -> 36.6 | J5: =IF(Balance!J5="-","-",ROUND((Balance!J5/Balance!J$19)*100,1)) -> 46.9 | K5: =IF(Balance!K5="-","-",ROUND((Balance!K5/Balance!K$19)*100,1)) -> 35.8 | L5: =IF(Balance!L5="-","-",ROUND((Balance!L5/Balance!L$19)*100,1)) -> 33.5 | M5: =IF(Balance!M5="-","-",ROUND((Balance!M5/Balance!M$19)*100,1)) -> 38.2 | N5: =IF(Balance!N5="-","-",ROUND((Balance!N5/Balance!N$19)*100,1)) -> 39.6 | O5: =IF(Balance!O5="-","-",ROUND((Balance!O5/Balance!O$19)*100,1)) -> 37.8 | P5: =IF(Balance!P5="-","-",ROUND((Balance!P5/Balance!P$19)*100,1)) -> 35.6 | Q5: =IF(Balance!Q5="-","-",ROUND((Balance!Q5/Balance!Q$19)*100,1)) -> 34.6 | R5: =IF(Balance!R5="-","-",ROUND((Balance!R5/Balance!R$19)*100,1)) -> 35.4 | S5: =IF(Balance!S5="-","-",ROUND((Balance!S5/Balance!S$19)*100,1)) -> 39.8 | T5: =IF(Balance!T5="-","-",ROUND((Balance!T5/Balance!T$19)*100,1)) -> 38.4 | U5: =IF(Balance!U5="-","-",ROUND((Balance!U5/Balance!U$19)*100,1)) -> 37 | V5: =IF(Balance!V5="-","-",ROUND((Balance!V5/Balance!V$19)*100,1)) -> 47.1 | W5: =IF(Balance!W5="-","-",ROUND((Balance!W5/Balance!W$19)*100,1)) -> 37.3 | X5: =IF(Balance!X5="-","-",ROUND((Balance!X5/Balance!X$19)*100,1)) -> 37.9 | Y5: =IF(Balance!Y5="-","-",ROUND((Balance!Y5/Balance!Y$19)*100,1)) -> 34.6 | Z5: =IF(Balance!Z5="-","-",ROUND((Balance!Z5/Balance!Z$19)*100,1)) -> 35.6 | AA5: =IF(Balance!AA5="-","-",ROUND((Balance!AA5/Balance!AA$19)*100,1)) -> 36.7 | AB5: =IF(Balance!AB5="-","-",ROUND((Balance!AB5/Balance!AB$19)*100,1)) -> 33.8 | AC5: =IF(Balance!AC5="-","-",ROUND((Balance!AC5/Balance!AC$19)*100,1)) -> 31.8 | AD5: =IF(Balance!AD5="-","-",ROUND((Balance!AD5/Balance!AD$19)*100,1)) -> 30.7 | AE5: =IF(Balance!AE5="-","-",ROUND((Balance!AE5/Balance!AE$19)*100,1)) -> 36.5 | AF5: =IF(Balance!AF5="-","-",ROUND((Balance!AF5/Balance!AF$19)*100,1)) -> 40.4 | AG5: =IF(Balance!AG5="-","-",ROUND((Balance!AG5/Balance!AG$19)*100,1)) -> 38.9 | AH5: =IF(Balance!AH5="-","-",ROUND((Balance!AH5/Balance!AH$19)*100,1)) -> 46.1 | AI5: =IF(Balance!AI5="-","-",ROUND((Balance!AI5/Balance!AI$19)*100,1)) -> 35.2 | AJ5: =IF(Balance!AJ5="-","-",ROUND((Balance!AJ5/Balance!AJ$19)*100,1)) -> 40.5 | AK5: =IF(Balance!AK5="-","-",ROUND((Balance!AK5/Balance!AK$19)*100,1)) -> 35.8 | AL5: =IF(Balance!AL5="-","-",ROUND((Balance!AL5/Balance!AL$19)*100,1)) -> 42.1 | AM5: =IF(Balance!AM5="-","-",ROUND((Balance!AM5/Balance!AM$19)*100,1)) -> 39.6 | AN5: =IF(Balance!AN5="-","-",ROUND((Balance!AN5/Balance!AN$19)*100,1)) -> 35.2 | AO5: =IF(Balance!AO5="-","-",ROUND((Balance!AO5/Balance!AO$19)*100,1)) -> 37.5 | AP5: =IF(Balance!AP5="-","-",ROUND((Balance!AP5/Balance!AP$19)*100,1)) -> 36.8 | AQ5: =IF(Balance!AQ5="-","-",ROUND((Balance!AQ5/Balance!AQ$19)*100,1)) -> 35.2 | AR5: =IF(Balance!AR5="-","-",ROUND((Balance!AR5/Balance!AR$19)*100,1)) -> 37.8 | AS5: =IF(Balance!AS5="-","-",ROUND((Balance!AS5/Balance!AS$19)*100,1)) -> 40.3 | AT5: =IF(Balance!AT5="-","-",ROUND((Balance!AT5/Balance!AT$19)*100,1)) -> 44.2 | AU5: =IF(Balance!AU5="-","-",ROUND((Balance!AU5/Balance!AU$19)*100,1)) -> 38.5 | AV5: =IF(Balance!AV5="-","-",ROUND((Balance!AV5/Balance!AV$19)*100,1)) -> 37.7 | AW5: =IF(Balance!AW5="-","-",ROUND((Balance!AW5/Balance!AW$19)*100,1)) -> 32.7 | AX5: =IF(Balance!AX5="-","-",ROUND((Balance!AX5/Balance!AX$19)*100,1)) -> 38.9 | AY5: =IF(Balance!AY5="-","-",ROUND((Balance!AY5/Balance!AY$19)*100,1)) -> 36.3 | AZ5: =IF(Balance!AZ5="-","-",ROUND((Balance!AZ5/Balance!AZ$19)*100,1)) -> 32.3 | BA5: =IF(Balance!BA5="-","-",ROUND((Balance!BA5/Balance!BA$19)*100,1)) -> 32.3 | BB5: =IF(Balance!BB5="-","-",ROUND((Balance!BB5/Balance!BB$19)*100,1)) -> 36.1 | BC5: =IF(Balance!BC5="-","-",ROUND((Balance!BC5/Balance!BC$19)*100,1)) -> 38.9 | BD5: =IF(Balance!BD5="-","-",ROUND((Balance!BD5/Balance!BD$19)*100,1)) -> 33.1 | BE5: =IF(Balance!BE5="-","-",ROUND((Balance!BE5/Balance!BE$19)*100,1)) -> 35.8 | BF5: =IF(Balance!BF5="-","-",ROUND((Balance!BF5/Balance!BF$19)*100,1)) -> 43.4 | BG5: =IF(Balance!BG5="-","-",ROUND((Balance!BG5/Balance!BG$19)*100,1)) -> 41.2 | BH5: =IF(Balance!BH5="-","-",ROUND((Balance!BH5/Balance!BH$19)*100,1)) -> 34.8 | BI5: =IF(Balance!BI5="-","-",ROUND((Balance!BI5/Balance!BI$19)*100,1)) -> 33.2 | BJ5: =IF(Balance!BJ5="-","-",ROUND((Balance!BJ5/Balance!BJ$19)*100,1)) -> 39.2 | BK5: =IF(Balance!BK5="-","-",ROUND((Balance!BK5/Balance!BK$19)*100,1)) -> 37.2 | BL5: =IF(Balance!BL5="-","-",ROUND((Balance!BL5/Balance!BL$19)*100,1)) -> 37 | BM5: =IF(Balance!BM5="-","-",ROUND((Balance!BM5/Balance!BM$19)*100,1)) -> 34 | BN5: =IF(Balance!BN5="-","-",ROUND((Balance!BN5/Balance!BN$19)*100,1)) -> 35.6 | BO5: =IF(Balance!BO5="-","-",ROUND((Balance!BO5/Balance!BO$19)*100,1)) -> 39.1 | BP5: =IF(Balance!BP5="-","-",ROUND((Balance!BP5/Balance!BP$19)*100,1)) -> 37 | BQ5: =IF(Balance!BQ5="-","-",ROUND((Balance!BQ5/Balance!BQ$19)*100,1)) -> 32 | BR5: =IF(Balance!BR5="-","-",ROUND((Balance!BR5/Balance!BR$19)*100,1)) -> 34.9 | BS5: =IF(Balance!BS5="-","-",ROUND((Balance!BS5/Balance!BS$19)*100,1)) -> 31.7 | BT5: =IF(Balance!BT5="-","-",ROUND((Balance!BT5/Balance!BT$19)*100,1)) -> 34.8 | BU5: =IF(Balance!BU5="-","-",ROUND((Balance!BU5/Balance!BU$19)*100,1)) -> 34.7 | BV5: =IF(Balance!BV5="-","-",ROUND((Balance!BV5/Balance!BV$19)*100,1)) -> 38.7 | BW5: =IF(Balance!BW5="-","-",ROUND((Balance!BW5/Balance!BW$19)*100,1)) -> 35.5 | BX5: =IF(Balance!BX5="-","-",ROUND((Balance!BX5/Balance!BX$19)*100,1)) -> 34 | BY5: =IF(Balance!BY5="-","-",ROUND((Balance!BY5/Balance!BY$19)*100,1)) -> 35.9 | BZ5: =IF(Balance!BZ5="-","-",ROUND((Balance!BZ5/Balance!BZ$19)*100,1)) -> 37.7 | CA5: =IF(Balance!CA5="-","-",ROUND((Balance!CA5/Balance!CA$19)*100,1)) -> 41.4 | CB5: =IF(Balance!CB5="-","-",ROUND((Balance!CB5/Balance!CB$19)*100,1)) -> 30 | CC5: =IF(Balance!CC5="-","-",ROUND((Balance!CC5/Balance!CC$19)*100,1)) -> 27.7 | CD5: =IF(Balance!CD5="-","-",ROUND((Balance!CD5/Balance!CD$19)*100,1)) -> 30.7 | CE5: =IF(Balance!CE5="-","-",ROUND((Balance!CE5/Balance!CE$19)*100,1)) -> 31.7 | CF5: =IF(Balance!CF5="-","-",ROUND((Balance!CF5/Balance!CF$19)*100,1)) -> 37.3 | CG5: =IF(Balance!CG5="-","-",ROUND((Balance!CG5/Balance!CG$19)*100,1)) -> 34.4 | CH5: =IF(Balance!CH5="-","-",ROUND((Balance!CH5/Balance!CH$19)*100,1)) -> 37.9 | CI5: =IF(Balance!CI5="-","-",ROUND((Balance!CI5/Balance!CI$19)*100,1)) -> 32.4 | CJ5: =IF(Balance!CJ5="-","-",ROUND((Balance!CJ5/Balance!CJ$19)*100,1)) -> 34.6 | CK5: =IF(Balance!CK5="-","-",ROUND((Balance!CK5/Balance!CK$19)*100,1)) -> 28 | CL5: =IF(Balance!CL5="-","-",ROUND((Balance!CL5/Balance!CL$19)*100,1)) -> 30.4 | CM5: =IF(Balance!CM5="-","-",ROUND((Balance!CM5/Balance!CM$19)*100,1)) -> 36.8 | CN5: =IF(Balance!CN5="-","-",ROUND((Balance!CN5/Balance!CN$19)*100,1)) -> 34.2 | CO5: =IF(Balance!CO5="-","-",ROUND((Balance!CO5/Balance!CO$19)*100,1)) -> 33 | CP5: =IF(Balance!CP5="-","-",ROUND((Balance!CP5/Balance!CP$19)*100,1)) -> 34.2 | CQ5: =IF(Balance!CQ5="-","-",ROUND((Balance!CQ5/Balance!CQ$19)*100,1)) -> 30 | CR5: =IF(Balance!CR5="-","-",ROUND((Balance!CR5/Balance!CR$19)*100,1)) -> 29.4 | CS5: =IF(Balance!CS5="-","-",ROUND((Balance!CS5/Balance!CS$19)*100,1)) -> 29.9 | CT5: =IF(Balance!CT5="-","-",ROUND((Balance!CT5/Balance!CT$19)*100,1)) -> 28.4 | CU5: =IF(Balance!CU5="-","-",ROUND((Balance!CU5/Balance!CU$19)*100,1)) -> 32.1 | CV5: =IF(Balance!CV5="-","-",ROUND((Balance!CV5/Balance!CV$19)*100,1)) -> 36.1 | CW5: =IF(Balance!CW5="-","-",ROUND((Balance!CW5/Balance!CW$19)*100,1)) -> 31.7 | CX5: =IF(Balance!CX5="-","-",ROUND((Balance!CX5/Balance!CX$19)*100,1)) -> 31.3 | CY5: =IF(Balance!CY5="-","-",ROUND((Balance!CY5/Balance!CY$19)*100,1)) -> 34.4 | CZ5: =IF(Balance!CZ5="-","-",ROUND((Balance!CZ5/Balance!CZ$19)*100,1)) -> 35.3 | DA5: =IF(Balance!DA5="-","-",ROUND((Balance!DA5/Balance!DA$19)*100,1)) -> 34.8 | DB5: =IF(Balance!DB5="-","-",ROUND((Balance!DB5/Balance!DB$19)*100,1)) -> 38.3 | DC5: =IF(Balance!DC5="-","-",ROUND((Balance!DC5/Balance!DC$19)*100,1)) -> 31.5 | DD5: =IF(Balance!DD5="-","-",ROUND((Balance!DD5/Balance!DD$19)*100,1)) -> 29.6 | DE5: =IF(Balance!DE5="-","-",ROUND((Balance!DE5/Balance!DE$19)*100,1)) -> 30.3 | DF5: =IF(Balance!DF5="-","-",ROUND((Balance!DF5/Balance!DF$19)*100,1)) -> 29.7 | DG5: =IF(Balance!DG5="-","-",ROUND((Balance!DG5/Balance!DG$19)*100,1)) -> 31.6 | DH5: =IF(Balance!DH5="-","-",ROUND((Balance!DH5/Balance!DH$19)*100,1)) -> 26.3 | DI5: =IF(Balance!DI5="-","-",ROUND((Balance!DI5/Balance!DI$19)*100,1)) -> 26.4 | DJ5: =IF(Balance!DJ5="-","-",ROUND((Balance!DJ5/Balance!DJ$19)*100,1)) -> 26 | DK5: =IF(Balance!DK5="-","-",ROUND((Balance!DK5/Balance!DK$19)*100,1)) -> 34.3 | DL5: =IF(Balance!DL5="-","-",ROUND((Balance!DL5/Balance!DL$19)*100,1)) -> 30.8 | DM5: =IF(Balance!DM5="-","-",ROUND((Balance!DM5/Balance!DM$19)*100,1)) -> 29.3 | DN5: =IF(Balance!DN5="-","-",ROUND((Balance!DN5/Balance!DN$19)*100,1)) -> 36.2 | DO5: =IF(Balance!DO5="-","-",ROUND((Balance!DO5/Balance!DO$19)*100,1)) -> 31.2 | DP5: =IF(Balance!DP5="-","-",ROUND((Balance!DP5/Balance!DP$19)*100,1)) -> 33.8 | DQ5: =IF(Balance!DQ5="-","-",ROUND((Balance!DQ5/Balance!DQ$19)*100,1)) -> 33.1 | DR5: =IF(Balance!DR5="-","-",ROUND((Balance!DR5/Balance!DR$19)*100,1)) -> 31.9 | DS5: =IF(Balance!DS5="-","-",ROUND((Balance!DS5/Balance!DS$19)*100,1)) -> 30.3 | DT5: =IF(Balance!DT5="-","-",ROUND((Balance!DT5/Balance!DT$19)*100,1)) -> 32.9 | DU5: =IF(Balance!DU5="-","-",ROUND((Balance!DU5/Balance!DU$19)*100,1)) -> 30.4 | DV5: =IF(Balance!DV5="-","-",ROUND((Balance!DV5/Balance!DV$19)*100,1)) -> 29.4 | DW5: =IF(Balance!DW5="-","-",ROUND((Balance!DW5/Balance!DW$19)*100,1)) -> 31.5 | DX5: =IF(Balance!DX5="-","-",ROUND((Balance!DX5/Balance!DX$19)*100,1)) -> 32.2 | DY5: =IF(Balance!DY5="-","-",ROUND((Balance!DY5/Balance!DY$19)*100,1)) -> 32.2 | DZ5: =IF(Balance!DZ5="-","-",ROUND((Balance!DZ5/Balance!DZ$19)*100,1)) -> 31.9 | EA5: =IF(Balance!EA5="-","-",ROUND((Balance!EA5/Balance!EA$19)*100,1)) -> 25.3 | EB5: =IF(Balance!EB5="-","-",ROUND((Balance!EB5/Balance!EB$19)*100,1)) -> 27.8 | EC5: =IF(Balance!EC5="-","-",ROUND((Balance!EC5/Balance!EC$19)*100,1)) -> 30 | ED5: =IF(Balance!ED5="-","-",ROUND((Balance!ED5/Balance!ED$19)*100,1)) -> 31.5 | EE5: =IF(Balance!EE5="-","-",ROUND((Balance!EE5/Balance!EE$19)*100,1)) -> 29.2 | EF5: =IF(Balance!EF5="-","-",ROUND((Balance!EF5/Balance!EF$19)*100,1)) -> 28.5 | EG5: =IF(Balance!EG5="-","-",ROUND((Balance!EG5/Balance!EG$19)*100,1)) -> 26.4 | EH5: =IF(Balance!EH5="-","-",ROUND((Balance!EH5/Balance!EH$19)*100,1)) -> 30 | EI5: =IF(Balance!EI5="-","-",ROUND((Balance!EI5/Balance!EI$19)*100,1)) -> 33.8 | EJ5: =IF(Balance!EJ5="-","-",ROUND((Balance!EJ5/Balance!EJ$19)*100,1)) -> 30.3 | EK5: =IF(Balance!EK5="-","-",ROUND((Balance!EK5/Balance!EK$19)*100,1)) -> 31 | EL5: =IF(Balance!EL5="-","-",ROUND((Balance!EL5/Balance!EL$19)*100,1)) -> 31.7 | EM5: =IF(Balance!EM5="-","-",ROUND((Balance!EM5/Balance!EM$19)*100,1)) -> 28.4 | EN5: =IF(Balance!EN5="-","-",ROUND((Balance!EN5/Balance!EN$19)*100,1)) -> 27.9 | EO5: =IF(Balance!EO5="-","-",ROUND((Balance!EO5/Balance!EO$19)*100,1)) -> 29.2 | EP5: =IF(Balance!EP5="-","-",ROUND((Balance!EP5/Balance!EP$19)*100,1)) -> 28.9 | EQ5: =IF(Balance!EQ5="-","-",ROUND((Balance!EQ5/Balance!EQ$19)*100,1)) -> 28.4 | ER5: =IF(Balance!ER5="-","-",ROUND((Balance!ER5/Balance!ER$19)*100,1)) -> 28.3 | ES5: =IF(Balance!ES5="-","-",ROUND((Balance!ES5/Balance!ES$19)*100,1)) -> 24.2 | ET5: =IF(Balance!ET5="-","-",ROUND((Balance!ET5/Balance!ET$19)*100,1)) -> 25.1 | EU5: =IF(Balance!EU5="-","-",ROUND((Balance!EU5/Balance!EU$19)*100,1)) -> 27.3 | EV5: =IF(Balance!EV5="-","-",ROUND((Balance!EV5/Balance!EV$19)*100,1)) -> 28.4 | EW5: =IF(Balance!EW5="-","-",ROUND((Balance!EW5/Balance!EW$19)*100,1)) -> 29.4 | EX5: =IF(Balance!EX5="-","-",ROUND((Balance!EX5/Balance!EX$19)*100,1)) -> 31.6 | EY5: =IF(Balance!EY5="-","-",ROUND((Balance!EY5/Balance!EY$19)*100,1)) -> 26.8 | EZ5: =IF(Balance!EZ5="-","-",ROUND((Balance!EZ5/Balance!EZ$19)*100,1)) -> 30.1 | FA5: =IF(Balance!FA5="-","-",ROUND((Balance!FA5/Balance!FA$19)*100,1)) -> 30 | FB5: =IF(Balance!FB5="-","-",ROUND((Balance!FB5/Balance!FB$19)*100,1)) -> 29.4 | FC5: =IF(Balance!FC5="-","-",ROUND((Balance!FC5/Balance!FC$19)*100,1)) -> 26.5 | FD5: =IF(Balance!FD5="-","-",ROUND((Balance!FD5/Balance!FD$19)*100,1)) -> 25.8 | FE5: =IF(Balance!FE5="-","-",ROUND((Balance!FE5/Balance!FE$19)*100,1)) -> 25.1 | FF5: =IF(Balance!FF5="-","-",ROUND((Balance!FF5/Balance!FF$19)*100,1)) -> 27 | FG5: =IF(Balance!FG5="-","-",ROUND((Balance!FG5/Balance!FG$19)*100,1)) -> 26.8 | FH5: =IF(Balance!FH5="-","-",ROUND((Balance!FH5/Balance!FH$19)*100,1)) -> 23.6 | FI5: =IF(Balance!FI5="-","-",ROUND((Balance!FI5/Balance!FI$19)*100,1)) -> 26.7 | FJ5: =IF(Balance!FJ5="-","-",ROUND((Balance!FJ5/Balance!FJ$19)*100,1)) -> 27.9 | FK5: =IF(Balance!FK5="-","-",ROUND((Balance!FK5/Balance!FK$19)*100,1)) -> 22.3 | FL5: =IF(Balance!FL5="-","-",ROUND((Balance!FL5/Balance!FL$19)*100,1)) -> 23.8 | FM5: =IF(Balance!FM5="-","-",ROUND((Balance!FM5/Balance!FM$19)*100,1)) -> 27.6 | FN5: =IF(Balance!FN5="-","-",ROUND((Balance!FN5/Balance!FN$19)*100,1)) -> 26.7 | FO5: =IF(Balance!FO5="-","-",ROUND((Balance!FO5/Balance!FO$19)*100,1)) -> 25.9 | FP5: =IF(Balance!FP5="-","-",ROUND((Balance!FP5/Balance!FP$19)*100,1)) -> 25.6 | FQ5: =IF(Balance!FQ5="-","-",ROUND((Balance!FQ5/Balance!FQ$19)*100,1)) -> 23.4 | FR5: =IF(Balance!FR5="-","-",ROUND((Balance!FR5/Balance!FR$19)*100,1)) -> 26.7 | FS5: =IF(Balance!FS5="-","-",ROUND((Balance!FS5/Balance!FS$19)*100,1)) -> 25.1 | FT5: =IF(Balance!FT5="-","-",ROUND((Balance!FT5/Balance!FT$19)*100,1)) -> 25.4 | FU5: =IF(Balance!FU5="-","-",ROUND((Balance!FU5/Balance!FU$19)*100,1)) -> 25.9 | FV5: =IF(Balance!FV5="-","-",ROUND((Balance!FV5/Balance!FV$19)*100,1)) -> 27.2 | FW5: =IF(Balance!FW5="-","-",ROUND((Balance!FW5/Balance!FW$19)*100,1)) -> 23.8 | FX5: =IF(Balance!FX5="-","-",ROUND((Balance!FX5/Balance!FX$19)*100,1)) -> 22.4 | FY5: =IF(Balance!FY5="-","-",ROUND((Balance!FY5/Balance!FY$19)*100,1)) -> 24.6 | FZ5: =IF(Balance!FZ5="-","-",ROUND((Balance!FZ5/Balance!FZ$19)*100,1)) -> 24 | GA5: =IF(Balance!GA5="-","-",ROUND((Balance!GA5/Balance!GA$19)*100,1)) -> 24.5 | GB5: =IF(Balance!GB5="-","-",ROUND((Balance!GB5/Balance!GB$19)*100,1)) -> 23.1 | GC5: =IF(Balance!GC5="-","-",ROUND((Balance!GC5/Balance!GC$19)*100,1)) -> 20.5 | GD5: =IF(Balance!GD5="-","-",ROUND((Balance!GD5/Balance!GD$19)*100,1)) -> 19.4 | GE5: =IF(Balance!GE5="-","-",ROUND((Balance!GE5/Balance!GE$19)*100,1)) -> 18.4 | GF5: =IF(Balance!GF5="-","-",ROUND((Balance!GF5/Balance!GF$19)*100,1)) -> 18 | GG5: =IF(Balance!GG5="-","-",ROUND((Balance!GG5/Balance!GG$19)*100,1)) -> 17.5 | GH5: =IF(Balance!GH5="-","-",ROUND((Balance!GH5/Balance!GH$19)*100,1)) -> 22.5 | GI5: =IF(Balance!GI5="-","-",ROUND((Balance!GI5/Balance!GI$19)*100,1)) -> 24.9 | GJ5: =IF(Balance!GJ5="-","-",ROUND((Balance!GJ5/Balance!GJ$19)*100,1)) -> 23.1 | GK5: =IF(Balance!GK5="-","-",ROUND((Balance!GK5/Balance!GK$19)*100,1)) -> 23.7 | GL5: =IF(Balance!GL5="-","-",ROUND((Balance!GL5/Balance!GL$19)*100,1)) -> 23.3 | GM5: =IF(Balance!GM5="-","-",ROUND((Balance!GM5/Balance!GM$19)*100,1)) -> 22.2 | GN5: =IF(Balance!GN5="-","-",ROUND((Balance!GN5/Balance!GN$19)*100,1)) -> 21.8 | GO5: =IF(Balance!GO5="-","-",ROUND((Balance!GO5/Balance!GO$19)*100,1)) -> 21.9 | GP5: =IF(Balance!GP5="-","-",ROUND((Balance!GP5/Balance!GP$19)*100,1)) -> 18.6 | GQ5: =IF(Balance!GQ5="-","-",ROUND((Balance!GQ5/Balance!GQ$19)*100,1)) -> 20.8 | GR5: =IF(Balance!GR5="-","-",ROUND((Balance!GR5/Balance!GR$19)*100,1)) -> 22.5 | GS5: =IF(Balance!GS5="-","-",ROUND((Balance!GS5/Balance!GS$19)*100,1)) -> 20 | GT5: =IF(Balance!GT5="-","-",ROUND((Balance!GT5/Balance!GT$19)*100,1)) -> 24.7 | GU5: =IF(Balance!GU5="-","-",ROUND((Balance!GU5/Balance!GU$19)*100,1)) -> 19.9 | GV5: =IF(Balance!GV5="-","-",ROUND((Balance!GV5/Balance!GV$19)*100,1)) -> 21.8 | GW5: =IF(Balance!GW5="-","-",ROUND((Balance!GW5/Balance!GW$19)*100,1)) -> 23.7 | GX5: =IF(Balance!GX5="-","-",ROUND((Balance!GX5/Balance!GX$19)*100,1)) -> 22.9 | GY5: =IF(Balance!GY5="-","-",ROUND((Balance!GY5/Balance!GY$19)*100,1)) -> 21.8 | GZ5: =IF(Balance!GZ5="-","-",ROUND((Balance!GZ5/Balance!GZ$19)*100,1)) -> 21.9 | HA5: =IF(Balance!HA5="-","-",ROUND((Balance!HA5/Balance!HA$19)*100,1)) -> 21.3 | HB5: =IF(Balance!HB5="-","-",ROUND((Balance!HB5/Balance!HB$19)*100,1)) -> 20.9 | HC5: =IF(Balance!HC5="-","-",ROUND((Balance!HC5/Balance!HC$19)*100,1)) -> 16 | HD5: =IF(Balance!HD5="-","-",ROUND((Balance!HD5/Balance!HD$19)*100,1)) -> 14.6 | HE5: =IF(Balance!HE5="-","-",ROUND((Balance!HE5/Balance!HE$19)*100,1)) -> 16.4 | HF5: =IF(Balance!HF5="-","-",ROUND((Balance!HF5/Balance!HF$19)*100,1)) -> 18.2 | HG5: =IF(Balance!HG5="-","-",ROUND((Balance!HG5/Balance!HG$19)*100,1)) -> 22.1 | HH5: =IF(Balance!HH5="-","-",ROUND((Balance!HH5/Balance!HH$19)*100,1)) -> 21.6 | HI5: =IF(Balance!HI5="-","-",ROUND((Balance!HI5/Balance!HI$19)*100,1)) -> 16.4 | HJ5: =IF(Balance!HJ5="-","-",ROUND((Balance!HJ5/Balance!HJ$19)*100,1)) -> 20.3 | HK5: =IF(Balance!HK5="-","-",ROUND((Balance!HK5/Balance!HK$19)*100,1)) -> 21 | HL5: =IF(Balance!HL5="-","-",ROUND((Balance!HL5/Balance!HL$19)*100,1)) -> 21.7 | HM5: =IF(Balance!HM5="-","-",ROUND((Balance!HM5/Balance!HM$19)*100,1)) -> 22.4 | HN5: =IF(Balance!HN5="-","-",ROUND((Balance!HN5/Balance!HN$19)*100,1)) -> 17.6 | HO5: =IF(Balance!HO5="-","-",ROUND((Balance!HO5/Balance!HO$19)*100,1)) -> 21.4 | HP5: =IF(Balance!HP5="-","-",ROUND((Balance!HP5/Balance!HP$19)*100,1)) -> 20.4 | HQ5: =IF(Balance!HQ5="-","-",ROUND((Balance!HQ5/Balance!HQ$19)*100,1)) -> 18.6 | HR5: =IF(Balance!HR5="-","-",ROUND((Balance!HR5/Balance!HR$19)*100,1)) -> 22.1 | HS5: =IF(Balance!HS5="-","-",ROUND((Balance!HS5/Balance!HS$19)*100,1)) -> 20.2 | HT5: =IF(Balance!HT5="-","-",ROUND((Balance!HT5/Balance!HT$19)*100,1)) -> 19.2 | HU5: =IF(Balance!HU5="-","-",ROUND((Balance!HU5/Balance!HU$19)*100,1)) -> 17.3 | HV5: =IF(Balance!HV5="-","-",ROUND((Balance!HV5/Balance!HV$19)*100,1)) -> 20.2 | HW5: =IF(Balance!HW5="-","-",ROUND((Balance!HW5/Balance!HW$19)*100,1)) -> 21.6 | HX5: =IF(Balance!HX5="-","-",ROUND((Balance!HX5/Balance!HX$19)*100,1)) -> 19.9 | HY5: =IF(Balance!HY5="-","-",ROUND((Balance!HY5/Balance!HY$19)*100,1)) -> 18.5 | HZ5: =IF(Balance!HZ5="-","-",ROUND((Balance!HZ5/Balance!HZ$19)*100,1)) -> 20.3 | IA5: =IF(Balance!IA5="-","-",ROUND((Balance!IA5/Balance!IA$19)*100,1)) -> 18.1 | IB5: =IF(Balance!IB5="-","-",ROUND((Balance!IB5/Balance!IB$19)*100,1)) -> 16.4 | IC5: =IF(Balance!IC5="-","-",ROUND((Balance!IC5/Balance!IC$19)*100,1)) -> 16.9 | ID5: =IF(Balance!ID5="-","-",ROUND((Balance!ID5/Balance!ID$19)*100,1)) -> 23.8 | IE5: =IF(Balance!IE5="-","-",ROUND((Balance!IE5/Balance!IE$19)*100,1)) -> 20.5 | IF5: =IF(Balance!IF5="-","-",ROUND((Balance!IF5/Balance!IF$19)*100,1)) -> 18.4 | IG5: =IF(Balance!IG5="-","-",ROUND((Balance!IG5/Balance!IG$19)*100,1)) -> 18.1 | IH5: =IF(Balance!IH5="-","-",ROUND((Balance!IH5/Balance!IH$19)*100,1)) -> 16.7 | II5: =IF(Balance!II5="-","-",ROUND((Balance!II5/Balance!II$19)*100,1)) -> 18.1 | IJ5: =IF(Balance!IJ5="-","-",ROUND((Balance!IJ5/Balance!IJ$19)*100,1)) -> 20.2 | IK5: =IF(Balance!IK5="-","-",ROUND((Balance!IK5/Balance!IK$19)*100,1)) -> 20.4 | IL5: =IF(Balance!IL5="-","-",ROUND((Balance!IL5/Balance!IL$19)*100,1)) -> 23.3 | IM5: =IF(Balance!IM5="-","-",ROUND((Balance!IM5/Balance!IM$19)*100,1)) -> 20.8 | IN5: =IF(Balance!IN5="-","-",ROUND((Balance!IN5/Balance!IN$19)*100,1)) -> 21.8 | IO5: =IF(Balance!IO5="-","-",ROUND((Balance!IO5/Balance!IO$19)*100,1)) -> 22.2 | IP5: =IF(Balance!IP5="-","-",ROUND((Balance!IP5/Balance!IP$19)*100,1)) -> 24.2 | IQ5: =IF(Balance!IQ5="-","-",ROUND((Balance!IQ5/Balance!IQ$19)*100,1)) -> 23.1 | IR5: =IF(Balance!IR5="-","-",ROUND((Balance!IR5/Balance!IR$19)*100,1)) -> 24.5 | IS5: =IF(Balance!IS5="-","-",ROUND((Balance!IS5/Balance!IS$19)*100,1)) -> 22.2 | IT5: =IF(Balance!IT5="-","-",ROUND((Balance!IT5/Balance!IT$19)*100,1)) -> 20 | IU5: =IF(Balance!IU5="-","-",ROUND((Balance!IU5/Balance!IU$19)*100,1)) -> 19.1 | IV5: =IF(Balance!IV5="-","-",ROUND((Balance!IV5/Balance!IV$19)*100,1)) -> 19.4 | IW5: =IF(Balance!IW5="-","-",ROUND((Balance!IW5/Balance!IW$19)*100,1)) -> 18.2 | IX5: =IF(Balance!IX5="-","-",ROUND((Balance!IX5/Balance!IX$19)*100,1)) -> 21.6 | IY5: =IF(Balance!IY5="-","-",ROUND((Balance!IY5/Balance!IY$19)*100,1)) -> 17.6 | IZ5: =IF(Balance!IZ5="-","-",ROUND((Balance!IZ5/Balance!IZ$19)*100,1)) -> 22.1 | JA5: =IF(Balance!JA5="-","-",ROUND((Balance!JA5/Balance!JA$19)*100,1)) -> 21.3 | JB5: =IF(Balance!JB5="-","-",ROUND((Balance!JB5/Balance!JB$19)*100,1)) -> 24 | JC5: =IF(Balance!JC5="-","-",ROUND((Balance!JC5/Balance!JC$19)*100,1)) -> 22.9 | JD5: =IF(Balance!JD5="-","-",ROUND((Balance!JD5/Balance!JD$19)*100,1)) -> 21.4 | JE5: =IF(Balance!JE5="-","-",ROUND((Balance!JE5/Balance!JE$19)*100,1)) -> 21.1 | JF5: =IF(Balance!JF5="-","-",ROUND((Balance!JF5/Balance!JF$19)*100,1)) -> 21.4 | JG5: =IF(Balance!JG5="-","-",ROUND((Balance!JG5/Balance!JG$19)*100,1)) -> 21.5 | JH5: =IF(Balance!JH5="-","-",ROUND((Balance!JH5/Balance!JH$19)*100,1)) -> 20.8 | JI5: =IF(Balance!JI5="-","-",ROUND((Balance!JI5/Balance!JI$19)*100,1)) -> 24.1 | JJ5: =IF(Balance!JJ5="-","-",ROUND((Balance!JJ5/Balance!JJ$19)*100,1)) -> 24.4 | JK5: =IF(Balance!JK5="-","-",ROUND((Balance!JK5/Balance!JK$19)*100,1)) -> 20.9 | JL5: =IF(Balance!JL5="-","-",ROUND((Balance!JL5/Balance!JL$19)*100,1)) -> 16.1 | JM5: =IF(Balance!JM5="-","-",ROUND((Balance!JM5/Balance!JM$19)*100,1)) -> 22.5 | JN5: =IF(Balance!JN5="-","-",ROUND((Balance!JN5/Balance!JN$19)*100,1)) -> 24.2 | JO5: =IF(Balance!JO5="-","-",ROUND((Balance!JO5/Balance!JO$19)*100,1)) -> 24.8 | JP5: =IF(Balance!JP5="-","-",ROUND((Balance!JP5/Balance!JP$19)*100,1)) -> 24.9 | JQ5: =IF(Balance!JQ5="-","-",ROUND((Balance!JQ5/Balance!JQ$19)*100,1)) -> 18.9 | JR5: =IF(Balance!JR5="-","-",ROUND((Balance!JR5/Balance!JR$19)*100,1)) -> 18.9 | JS5: =IF(Balance!JS5="-","-",ROUND((Balance!JS5/Balance!JS$19)*100,1)) -> 19.3 | JT5: =IF(Balance!JT5="-","-",ROUND((Balance!JT5/Balance!JT$19)*100,1)) -> 20.3 | JU5: =IF(Balance!JU5="-","-",ROUND((Balance!JU5/Balance!JU$19)*100,1)) -> 22.9 | JV5: =IF(Balance!JV5="-","-",ROUND((Balance!JV5/Balance!JV$19)*100,1)) -> 21.4 | JW5: =IF(Balance!JW5="-","-",ROUND((Balance!JW5/Balance!JW$19)*100,1)) -> 19.9 | JX5: =IF(Balance!JX5="-","-",ROUND((Balance!JX5/Balance!JX$19)*100,1)) -> 21.7 | JY5: =IF(Balance!JY5="-","-",ROUND((Balance!JY5/Balance!JY$19)*100,1)) -> 22.2 | JZ5: =IF(Balance!JZ5="-","-",ROUND((Balance!JZ5/Balance!JZ$19)*100,1)) -> 23.4 | KA5: =IF(Balance!KA5="-","-",ROUND((Balance!KA5/Balance!KA$19)*100,1)) -> 22.7 | KB5: =IF(Balance!KB5="-","-",ROUND((Balance!KB5/Balance!KB$19)*100,1)) -> 20.8 | KC5: =IF(Balance!KC5="-","-",ROUND((Balance!KC5/Balance!KC$19)*100,1)) -> 18.7 | KD5: =IF(Balance!KD5="-","-",ROUND((Balance!KD5/Balance!KD$19)*100,1)) -> 17.5 | KE5: =IF(Balance!KE5="-","-",ROUND((Balance!KE5/Balance!KE$19)*100,1)) -> 19.7 | KF5: =IF(Balance!KF5="-","-",ROUND((Balance!KF5/Balance!KF$19)*100,1)) -> 21.9 | KG5: =IF(Balance!KG5="-","-",ROUND((Balance!KG5/Balance!KG$19)*100,1)) -> 24.3 | KH5: =IF(Balance!KH5="-","-",ROUND((Balance!KH5/Balance!KH$19)*100,1)) -> 25.3 | KI5: =IF(Balance!KI5="-","-",ROUND((Balance!KI5/Balance!KI$19)*100,1)) -> 21.4 | KJ5: =IF(Balance!KJ5="-","-",ROUND((Balance!KJ5/Balance!KJ$19)*100,1)) -> 16.9 | KK5: =IF(Balance!KK5="-","-",ROUND((Balance!KK5/Balance!KK$19)*100,1)) -> 19.4 | KL5: =IF(Balance!KL5="-","-",ROUND((Balance!KL5/Balance!KL$19)*100,1)) -> 20.3 | KM5: =IF(Balance!KM5="-","-",ROUND((Balance!KM5/Balance!KM$19)*100,1)) -> 22.9 | KN5: =IF(Balance!KN5="-","-",ROUND((Balance!KN5/Balance!KN$19)*100,1)) -> 25 | KO5: =IF(Balance!KO5="-","-",ROUND((Balance!KO5/Balance!KO$19)*100,1)) -> 21.6 | KP5: =IF(Balance!KP5="-","-",ROUND((Balance!KP5/Balance!KP$19)*100,1)) -> 21.1 | KQ5: =IF(Balance!KQ5="-","-",ROUND((Balance!KQ5/Balance!KQ$19)*100,1)) -> 22.3 | KR5: =IF(Balance!KR5="-","-",ROUND((Balance!KR5/Balance!KR$19)*100,1)) -> 21.2 | KS5: =IF(Balance!KS5="-","-",ROUND((Balance!KS5/Balance!KS$19)*100,1)) -> 23.5 | KT5: =IF(Balance!KT5="-","-",ROUND((Balance!KT5/Balance!KT$19)*100,1)) -> 23.9 | KU5: =IF(Balance!KU5="-","-",ROUND((Balance!KU5/Balance!KU$19)*100,1)) -> 17.6 | KV5: =IF(Balance!KV5="-","-",ROUND((Balance!KV5/Balance!KV$19)*100,1)) -> 18.3 | KW5: =IF(Balance!KW5="-","-",ROUND((Balance!KW5/Balance!KW$19)*100,1)) -> 20 | KX5: =IF(Balance!KX5="-","-",ROUND((Balance!KX5/Balance!KX$19)*100,1)) -> 23 | KY5: =IF(Balance!KY5="-","-",ROUND((Balance!KY5/Balance!KY$19)*100,1)) -> 24.2 | KZ5: =IF(Balance!KZ5="-","-",ROUND((Balance!KZ5/Balance!KZ$19)*100,1)) -> 20.7 | LA5: =IF(Balance!LA5="-","-",ROUND((Balance!LA5/Balance!LA$19)*100,1)) -> 19.9 | LB5: =IF(Balance!LB5="-","-",ROUND((Balance!LB5/Balance!LB$19)*100,1)) -> 23.6 | LC5: =IF(Balance!LC5="-","-",ROUND((Balance!LC5/Balance!LC$19)*100,1)) -> 21.4 | LD5: =IF(Balance!LD5="-","-",ROUND((Balance!LD5/Balance!LD$19)*100,1)) -> 19.2 | LE5: =IF(Balance!LE5="-","-",ROUND((Balance!LE5/Balance!LE$19)*100,1)) -> 23.6 | LF5: =IF(Balance!LF5="-","-",ROUND((Balance!LF5/Balance!LF$19)*100,1)) -> 24.4 | LG5: =IF(Balance!LG5="-","-",ROUND((Balance!LG5/Balance!LG$19)*100,1)) -> 19.9 | LH5: =IF(Balance!LH5="-","-",ROUND((Balance!LH5/Balance!LH$19)*100,1)) -> 24.7 | LI5: =IF(Balance!LI5="-","-",ROUND((Balance!LI5/Balance!LI$19)*100,1)) -> 24 | LJ5: =IF(Balance!LJ5="-","-",ROUND((Balance!LJ5/Balance!LJ$19)*100,1)) -> 24.8 | LK5: =IF(Balance!LK5="-","-",ROUND((Balance!LK5/Balance!LK$19)*100,1)) -> 25.1 | LL5: =IF(Balance!LL5="-","-",ROUND((Balance!LL5/Balance!LL$19)*100,1)) -> 24.7 | LM5: =IF(Balance!LM5="-","-",ROUND((Balance!LM5/Balance!LM$19)*100,1)) -> 18.2 | LN5: =IF(Balance!LN5="-","-",ROUND((Balance!LN5/Balance!LN$19)*100,1)) -> 20.8 | LO5: =IF(Balance!LO5="-","-",ROUND((Balance!LO5/Balance!LO$19)*100,1)) -> 21.9 | LP5: =IF(Balance!LP5="-","-",ROUND((Balance!LP5/Balance!LP$19)*100,1)) -> 23.8 | LQ5: =IF(Balance!LQ5="-","-",ROUND((Balance!LQ5/Balance!LQ$19)*100,1)) -> 26.2 | LR5: =IF(Balance!LR5="-","-",ROUND((Balance!LR5/Balance!LR$19)*100,1)) -> 27.1 | LS5: =IF(Balance!LS5="-","-",ROUND((Balance!LS5/Balance!LS$19)*100,1)) -> 21.7 | LT5: =IF(Balance!LT5="-","-",ROUND((Balance!LT5/Balance!LT$19)*100,1)) -> 19.4 | LU5: =IF(Balance!LU5="-","-",ROUND((Balance!LU5/Balance!LU$19)*100,1)) -> 20.5 | LV5: =IF(Balance!LV5="-","-",ROUND((Balance!LV5/Balance!LV$19)*100,1)) -> 25 | LW5: =IF(Balance!LW5="-","-",ROUND((Balance!LW5/Balance!LW$19)*100,1)) -> 24.7 | LX5: =IF(Balance!LX5="-","-",ROUND((Balance!LX5/Balance!LX$19)*100,1)) -> 21.3 | LY5: =IF(Balance!LY5="-","-",ROUND((Balance!LY5/Balance!LY$19)*100,1)) -> 16.7 | LZ5: =IF(Balance!LZ5="-","-",ROUND((Balance!LZ5/Balance!LZ$19)*100,1)) -> 21.7 | MA5: =IF(Balance!MA5="-","-",ROUND((Balance!MA5/Balance!MA$19)*100,1)) -> 23.4 | MB5: =IF(Balance!MB5="-","-",ROUND((Balance!MB5/Balance!MB$19)*100,1)) -> - | MC5: =IF(Balance!MC5="-","-",ROUND((Balance!MC5/Balance!MC$19)*100,1)) -> - | MD5: =IF(Balance!MD5="-","-",ROUND((Balance!MD5/Balance!MD$19)*100,1)) -> - | ME5: =IF(Balance!ME5="-","-",ROUND((Balance!ME5/Balance!ME$19)*100,1)) -> - | MF5: =IF(Balance!MF5="-","-",ROUND((Balance!MF5/Balance!MF$19)*100,1)) -> - | MG5: =IF(Balance!MG5="-","-",ROUND((Balance!MG5/Balance!MG$19)*100,1)) -> - | MH5: =IF(Balance!MH5="-","-",ROUND((Balance!MH5/Balance!MH$19)*100,1)) -> - | MI5: =IF(Balance!MI5="-","-",ROUND((Balance!MI5/Balance!MI$19)*100,1)) -> - | MJ5: =IF(Balance!MJ5="-","-",ROUND((Balance!MJ5/Balance!MJ$19)*100,1)) -> - | MK5: =IF(Balance!MK5="-","-",ROUND((Balance!MK5/Balance!MK$19)*100,1)) -> - | ML5: =IF(Balance!ML5="-","-",ROUND((Balance!ML5/Balance!ML$19)*100,1)) -> -
B6: Carbón | C6: =IF(Balance!C6="-","-",ROUND((Balance!C6/Balance!C$19)*100,1)) -> 27.2 | D6: =IF(Balance!D6="-","-",ROUND((Balance!D6/Balance!D$19)*100,1)) -> 26.2 | E6: =IF(Balance!E6="-","-",ROUND((Balance!E6/Balance!E$19)*100,1)) -> 40.4 | F6: =IF(Balance!F6="-","-",ROUND((Balance!F6/Balance!F$19)*100,1)) -> 39.1 | G6: =IF(Balance!G6="-","-",ROUND((Balance!G6/Balance!G$19)*100,1)) -> 43.3 | H6: =IF(Balance!H6="-","-",ROUND((Balance!H6/Balance!H$19)*100,1)) -> 48.7 | I6: =IF(Balance!I6="-","-",ROUND((Balance!I6/Balance!I$19)*100,1)) -> 45.4 | J6: =IF(Balance!J6="-","-",ROUND((Balance!J6/Balance!J$19)*100,1)) -> 38.7 | K6: =IF(Balance!K6="-","-",ROUND((Balance!K6/Balance!K$19)*100,1)) -> 49.2 | L6: =IF(Balance!L6="-","-",ROUND((Balance!L6/Balance!L$19)*100,1)) -> 49.6 | M6: =IF(Balance!M6="-","-",ROUND((Balance!M6/Balance!M$19)*100,1)) -> 41.7 | N6: =IF(Balance!N6="-","-",ROUND((Balance!N6/Balance!N$19)*100,1)) -> 40.5 | O6: =IF(Balance!O6="-","-",ROUND((Balance!O6/Balance!O$19)*100,1)) -> 38.7 | P6: =IF(Balance!P6="-","-",ROUND((Balance!P6/Balance!P$19)*100,1)) -> 43.1 | Q6: =IF(Balance!Q6="-","-",ROUND((Balance!Q6/Balance!Q$19)*100,1)) -> 29.7 | R6: =IF(Balance!R6="-","-",ROUND((Balance!R6/Balance!R$19)*100,1)) -> 30.8 | S6: =IF(Balance!S6="-","-",ROUND((Balance!S6/Balance!S$19)*100,1)) -> 32.1 | T6: =IF(Balance!T6="-","-",ROUND((Balance!T6/Balance!T$19)*100,1)) -> 38.7 | U6: =IF(Balance!U6="-","-",ROUND((Balance!U6/Balance!U$19)*100,1)) -> 41.6 | V6: =IF(Balance!V6="-","-",ROUND((Balance!V6/Balance!V$19)*100,1)) -> 38.9 | W6: =IF(Balance!W6="-","-",ROUND((Balance!W6/Balance!W$19)*100,1)) -> 45.4 | X6: =IF(Balance!X6="-","-",ROUND((Balance!X6/Balance!X$19)*100,1)) -> 44.6 | Y6: =IF(Balance!Y6="-","-",ROUND((Balance!Y6/Balance!Y$19)*100,1)) -> 43.8 | Z6: =IF(Balance!Z6="-","-",ROUND((Balance!Z6/Balance!Z$19)*100,1)) -> 43.6 | AA6: =IF(Balance!AA6="-","-",ROUND((Balance!AA6/Balance!AA$19)*100,1)) -> 42 | AB6: =IF(Balance!AB6="-","-",ROUND((Balance!AB6/Balance!AB$19)*100,1)) -> 44.2 | AC6: =IF(Balance!AC6="-","-",ROUND((Balance!AC6/Balance!AC$19)*100,1)) -> 48.2 | AD6: =IF(Balance!AD6="-","-",ROUND((Balance!AD6/Balance!AD$19)*100,1)) -> 46.1 | AE6: =IF(Balance!AE6="-","-",ROUND((Balance!AE6/Balance!AE$19)*100,1)) -> 42.1 | AF6: =IF(Balance!AF6="-","-",ROUND((Balance!AF6/Balance!AF$19)*100,1)) -> 40.3 | AG6: =IF(Balance!AG6="-","-",ROUND((Balance!AG6/Balance!AG$19)*100,1)) -> 41.1 | AH6: =IF(Balance!AH6="-","-",ROUND((Balance!AH6/Balance!AH$19)*100,1)) -> 38 | AI6: =IF(Balance!AI6="-","-",ROUND((Balance!AI6/Balance!AI$19)*100,1)) -> 46.4 | AJ6: =IF(Balance!AJ6="-","-",ROUND((Balance!AJ6/Balance!AJ$19)*100,1)) -> 39 | AK6: =IF(Balance!AK6="-","-",ROUND((Balance!AK6/Balance!AK$19)*100,1)) -> 41.9 | AL6: =IF(Balance!AL6="-","-",ROUND((Balance!AL6/Balance!AL$19)*100,1)) -> 31.7 | AM6: =IF(Balance!AM6="-","-",ROUND((Balance!AM6/Balance!AM$19)*100,1)) -> 40.7 | AN6: =IF(Balance!AN6="-","-",ROUND((Balance!AN6/Balance!AN$19)*100,1)) -> 46.7 | AO6: =IF(Balance!AO6="-","-",ROUND((Balance!AO6/Balance!AO$19)*100,1)) -> 45 | AP6: =IF(Balance!AP6="-","-",ROUND((Balance!AP6/Balance!AP$19)*100,1)) -> 46.8 | AQ6: =IF(Balance!AQ6="-","-",ROUND((Balance!AQ6/Balance!AQ$19)*100,1)) -> 43.2 | AR6: =IF(Balance!AR6="-","-",ROUND((Balance!AR6/Balance!AR$19)*100,1)) -> 38 | AS6: =IF(Balance!AS6="-","-",ROUND((Balance!AS6/Balance!AS$19)*100,1)) -> 40.1 | AT6: =IF(Balance!AT6="-","-",ROUND((Balance!AT6/Balance!AT$19)*100,1)) -> 40.3 | AU6: =IF(Balance!AU6="-","-",ROUND((Balance!AU6/Balance!AU$19)*100,1)) -> 45.4 | AV6: =IF(Balance!AV6="-","-",ROUND((Balance!AV6/Balance!AV$19)*100,1)) -> 33.8 | AW6: =IF(Balance!AW6="-","-",ROUND((Balance!AW6/Balance!AW$19)*100,1)) -> 35 | AX6: =IF(Balance!AX6="-","-",ROUND((Balance!AX6/Balance!AX$19)*100,1)) -> 35.6 | AY6: =IF(Balance!AY6="-","-",ROUND((Balance!AY6/Balance!AY$19)*100,1)) -> 29.5 | AZ6: =IF(Balance!AZ6="-","-",ROUND((Balance!AZ6/Balance!AZ$19)*100,1)) -> 37.3 | BA6: =IF(Balance!BA6="-","-",ROUND((Balance!BA6/Balance!BA$19)*100,1)) -> 39.5 | BB6: =IF(Balance!BB6="-","-",ROUND((Balance!BB6/Balance!BB$19)*100,1)) -> 38.1 | BC6: =IF(Balance!BC6="-","-",ROUND((Balance!BC6/Balance!BC$19)*100,1)) -> 33.8 | BD6: =IF(Balance!BD6="-","-",ROUND((Balance!BD6/Balance!BD$19)*100,1)) -> 41.6 | BE6: =IF(Balance!BE6="-","-",ROUND((Balance!BE6/Balance!BE$19)*100,1)) -> 42.7 | BF6: =IF(Balance!BF6="-","-",ROUND((Balance!BF6/Balance!BF$19)*100,1)) -> 40.3 | BG6: =IF(Balance!BG6="-","-",ROUND((Balance!BG6/Balance!BG$19)*100,1)) -> 42.2 | BH6: =IF(Balance!BH6="-","-",ROUND((Balance!BH6/Balance!BH$19)*100,1)) -> 45.4 | BI6: =IF(Balance!BI6="-","-",ROUND((Balance!BI6/Balance!BI$19)*100,1)) -> 41.7 | BJ6: =IF(Balance!BJ6="-","-",ROUND((Balance!BJ6/Balance!BJ$19)*100,1)) -> 39.7 | BK6: =IF(Balance!BK6="-","-",ROUND((Balance!BK6/Balance!BK$19)*100,1)) -> 35.9 | BL6: =IF(Balance!BL6="-","-",ROUND((Balance!BL6/Balance!BL$19)*100,1)) -> 34.4 | BM6: =IF(Balance!BM6="-","-",ROUND((Balance!BM6/Balance!BM$19)*100,1)) -> 34.8 | BN6: =IF(Balance!BN6="-","-",ROUND((Balance!BN6/Balance!BN$19)*100,1)) -> 41.1 | BO6: =IF(Balance!BO6="-","-",ROUND((Balance!BO6/Balance!BO$19)*100,1)) -> 39.9 | BP6: =IF(Balance!BP6="-","-",ROUND((Balance!BP6/Balance!BP$19)*100,1)) -> 40.9 | BQ6: =IF(Balance!BQ6="-","-",ROUND((Balance!BQ6/Balance!BQ$19)*100,1)) -> 45.2 | BR6: =IF(Balance!BR6="-","-",ROUND((Balance!BR6/Balance!BR$19)*100,1)) -> 48.2 | BS6: =IF(Balance!BS6="-","-",ROUND((Balance!BS6/Balance!BS$19)*100,1)) -> 49.5 | BT6: =IF(Balance!BT6="-","-",ROUND((Balance!BT6/Balance!BT$19)*100,1)) -> 45 | BU6: =IF(Balance!BU6="-","-",ROUND((Balance!BU6/Balance!BU$19)*100,1)) -> 45.4 | BV6: =IF(Balance!BV6="-","-",ROUND((Balance!BV6/Balance!BV$19)*100,1)) -> 33.5 | BW6: =IF(Balance!BW6="-","-",ROUND((Balance!BW6/Balance!BW$19)*100,1)) -> 16.1 | BX6: =IF(Balance!BX6="-","-",ROUND((Balance!BX6/Balance!BX$19)*100,1)) -> 18.1 | BY6: =IF(Balance!BY6="-","-",ROUND((Balance!BY6/Balance!BY$19)*100,1)) -> 29 | BZ6: =IF(Balance!BZ6="-","-",ROUND((Balance!BZ6/Balance!BZ$19)*100,1)) -> 21.8 | CA6: =IF(Balance!CA6="-","-",ROUND((Balance!CA6/Balance!CA$19)*100,1)) -> 20 | CB6: =IF(Balance!CB6="-","-",ROUND((Balance!CB6/Balance!CB$19)*100,1)) -> 38.2 | CC6: =IF(Balance!CC6="-","-",ROUND((Balance!CC6/Balance!CC$19)*100,1)) -> 45.9 | CD6: =IF(Balance!CD6="-","-",ROUND((Balance!CD6/Balance!CD$19)*100,1)) -> 47.8 | CE6: =IF(Balance!CE6="-","-",ROUND((Balance!CE6/Balance!CE$19)*100,1)) -> 44.7 | CF6: =IF(Balance!CF6="-","-",ROUND((Balance!CF6/Balance!CF$19)*100,1)) -> 40.6 | CG6: =IF(Balance!CG6="-","-",ROUND((Balance!CG6/Balance!CG$19)*100,1)) -> 39.2 | CH6: =IF(Balance!CH6="-","-",ROUND((Balance!CH6/Balance!CH$19)*100,1)) -> 21.5 | CI6: =IF(Balance!CI6="-","-",ROUND((Balance!CI6/Balance!CI$19)*100,1)) -> 21.7 | CJ6: =IF(Balance!CJ6="-","-",ROUND((Balance!CJ6/Balance!CJ$19)*100,1)) -> 27 | CK6: =IF(Balance!CK6="-","-",ROUND((Balance!CK6/Balance!CK$19)*100,1)) -> 39.9 | CL6: =IF(Balance!CL6="-","-",ROUND((Balance!CL6/Balance!CL$19)*100,1)) -> 40.4 | CM6: =IF(Balance!CM6="-","-",ROUND((Balance!CM6/Balance!CM$19)*100,1)) -> 35 | CN6: =IF(Balance!CN6="-","-",ROUND((Balance!CN6/Balance!CN$19)*100,1)) -> 36.2 | CO6: =IF(Balance!CO6="-","-",ROUND((Balance!CO6/Balance!CO$19)*100,1)) -> 38.4 | CP6: =IF(Balance!CP6="-","-",ROUND((Balance!CP6/Balance!CP$19)*100,1)) -> 40.1 | CQ6: =IF(Balance!CQ6="-","-",ROUND((Balance!CQ6/Balance!CQ$19)*100,1)) -> 44.4 | CR6: =IF(Balance!CR6="-","-",ROUND((Balance!CR6/Balance!CR$19)*100,1)) -> 44.4 | CS6: =IF(Balance!CS6="-","-",ROUND((Balance!CS6/Balance!CS$19)*100,1)) -> 31.8 | CT6: =IF(Balance!CT6="-","-",ROUND((Balance!CT6/Balance!CT$19)*100,1)) -> 23.5 | CU6: =IF(Balance!CU6="-","-",ROUND((Balance!CU6/Balance!CU$19)*100,1)) -> 18.4 | CV6: =IF(Balance!CV6="-","-",ROUND((Balance!CV6/Balance!CV$19)*100,1)) -> 23.5 | CW6: =IF(Balance!CW6="-","-",ROUND((Balance!CW6/Balance!CW$19)*100,1)) -> 37.6 | CX6: =IF(Balance!CX6="-","-",ROUND((Balance!CX6/Balance!CX$19)*100,1)) -> 31.4 | CY6: =IF(Balance!CY6="-","-",ROUND((Balance!CY6/Balance!CY$19)*100,1)) -> 24.4 | CZ6: =IF(Balance!CZ6="-","-",ROUND((Balance!CZ6/Balance!CZ$19)*100,1)) -> 29 | DA6: =IF(Balance!DA6="-","-",ROUND((Balance!DA6/Balance!DA$19)*100,1)) -> 35.2 | DB6: =IF(Balance!DB6="-","-",ROUND((Balance!DB6/Balance!DB$19)*100,1)) -> 32 | DC6: =IF(Balance!DC6="-","-",ROUND((Balance!DC6/Balance!DC$19)*100,1)) -> 40.3 | DD6: =IF(Balance!DD6="-","-",ROUND((Balance!DD6/Balance!DD$19)*100,1)) -> 42.1 | DE6: =IF(Balance!DE6="-","-",ROUND((Balance!DE6/Balance!DE$19)*100,1)) -> 41 | DF6: =IF(Balance!DF6="-","-",ROUND((Balance!DF6/Balance!DF$19)*100,1)) -> 40 | DG6: =IF(Balance!DG6="-","-",ROUND((Balance!DG6/Balance!DG$19)*100,1)) -> 38.7 | DH6: =IF(Balance!DH6="-","-",ROUND((Balance!DH6/Balance!DH$19)*100,1)) -> 39.7 | DI6: =IF(Balance!DI6="-","-",ROUND((Balance!DI6/Balance!DI$19)*100,1)) -> 40.5 | DJ6: =IF(Balance!DJ6="-","-",ROUND((Balance!DJ6/Balance!DJ$19)*100,1)) -> 40.5 | DK6: =IF(Balance!DK6="-","-",ROUND((Balance!DK6/Balance!DK$19)*100,1)) -> 31 | DL6: =IF(Balance!DL6="-","-",ROUND((Balance!DL6/Balance!DL$19)*100,1)) -> 36.1 | DM6: =IF(Balance!DM6="-","-",ROUND((Balance!DM6/Balance!DM$19)*100,1)) -> 39.6 | DN6: =IF(Balance!DN6="-","-",ROUND((Balance!DN6/Balance!DN$19)*100,1)) -> 36.6 | DO6: =IF(Balance!DO6="-","-",ROUND((Balance!DO6/Balance!DO$19)*100,1)) -> 42.1 | DP6: =IF(Balance!DP6="-","-",ROUND((Balance!DP6/Balance!DP$19)*100,1)) -> 39 | DQ6: =IF(Balance!DQ6="-","-",ROUND((Balance!DQ6/Balance!DQ$19)*100,1)) -> 33.1 | DR6: =IF(Balance!DR6="-","-",ROUND((Balance!DR6/Balance!DR$19)*100,1)) -> 33.8 | DS6: =IF(Balance!DS6="-","-",ROUND((Balance!DS6/Balance!DS$19)*100,1)) -> 36.9 | DT6: =IF(Balance!DT6="-","-",ROUND((Balance!DT6/Balance!DT$19)*100,1)) -> 40.5 | DU6: =IF(Balance!DU6="-","-",ROUND((Balance!DU6/Balance!DU$19)*100,1)) -> 39.5 | DV6: =IF(Balance!DV6="-","-",ROUND((Balance!DV6/Balance!DV$19)*100,1)) -> 35.8 | DW6: =IF(Balance!DW6="-","-",ROUND((Balance!DW6/Balance!DW$19)*100,1)) -> 31.7 | DX6: =IF(Balance!DX6="-","-",ROUND((Balance!DX6/Balance!DX$19)*100,1)) -> 36.2 | DY6: =IF(Balance!DY6="-","-",ROUND((Balance!DY6/Balance!DY$19)*100,1)) -> 39.3 | DZ6: =IF(Balance!DZ6="-","-",ROUND((Balance!DZ6/Balance!DZ$19)*100,1)) -> 40 | EA6: =IF(Balance!EA6="-","-",ROUND((Balance!EA6/Balance!EA$19)*100,1)) -> 41.9 | EB6: =IF(Balance!EB6="-","-",ROUND((Balance!EB6/Balance!EB$19)*100,1)) -> 41.5 | EC6: =IF(Balance!EC6="-","-",ROUND((Balance!EC6/Balance!EC$19)*100,1)) -> 36.9 | ED6: =IF(Balance!ED6="-","-",ROUND((Balance!ED6/Balance!ED$19)*100,1)) -> 24.4 | EE6: =IF(Balance!EE6="-","-",ROUND((Balance!EE6/Balance!EE$19)*100,1)) -> 20.5 | EF6: =IF(Balance!EF6="-","-",ROUND((Balance!EF6/Balance!EF$19)*100,1)) -> 20.4 | EG6: =IF(Balance!EG6="-","-",ROUND((Balance!EG6/Balance!EG$19)*100,1)) -> 19.2 | EH6: =IF(Balance!EH6="-","-",ROUND((Balance!EH6/Balance!EH$19)*100,1)) -> 24.9 | EI6: =IF(Balance!EI6="-","-",ROUND((Balance!EI6/Balance!EI$19)*100,1)) -> 29.8 | EJ6: =IF(Balance!EJ6="-","-",ROUND((Balance!EJ6/Balance!EJ$19)*100,1)) -> 34.7 | EK6: =IF(Balance!EK6="-","-",ROUND((Balance!EK6/Balance!EK$19)*100,1)) -> 36.5 | EL6: =IF(Balance!EL6="-","-",ROUND((Balance!EL6/Balance!EL$19)*100,1)) -> 37.4 | EM6: =IF(Balance!EM6="-","-",ROUND((Balance!EM6/Balance!EM$19)*100,1)) -> 39.8 | EN6: =IF(Balance!EN6="-","-",ROUND((Balance!EN6/Balance!EN$19)*100,1)) -> 38.8 | EO6: =IF(Balance!EO6="-","-",ROUND((Balance!EO6/Balance!EO$19)*100,1)) -> 36.3 | EP6: =IF(Balance!EP6="-","-",ROUND((Balance!EP6/Balance!EP$19)*100,1)) -> 36.9 | EQ6: =IF(Balance!EQ6="-","-",ROUND((Balance!EQ6/Balance!EQ$19)*100,1)) -> 35.8 | ER6: =IF(Balance!ER6="-","-",ROUND((Balance!ER6/Balance!ER$19)*100,1)) -> 38 | ES6: =IF(Balance!ES6="-","-",ROUND((Balance!ES6/Balance!ES$19)*100,1)) -> 39.5 | ET6: =IF(Balance!ET6="-","-",ROUND((Balance!ET6/Balance!ET$19)*100,1)) -> 38.6 | EU6: =IF(Balance!EU6="-","-",ROUND((Balance!EU6/Balance!EU$19)*100,1)) -> 36.8 | EV6: =IF(Balance!EV6="-","-",ROUND((Balance!EV6/Balance!EV$19)*100,1)) -> 34 | EW6: =IF(Balance!EW6="-","-",ROUND((Balance!EW6/Balance!EW$19)*100,1)) -> 33.9 | EX6: =IF(Balance!EX6="-","-",ROUND((Balance!EX6/Balance!EX$19)*100,1)) -> 36.3 | EY6: =IF(Balance!EY6="-","-",ROUND((Balance!EY6/Balance!EY$19)*100,1)) -> 37.4 | EZ6: =IF(Balance!EZ6="-","-",ROUND((Balance!EZ6/Balance!EZ$19)*100,1)) -> 33.3 | FA6: =IF(Balance!FA6="-","-",ROUND((Balance!FA6/Balance!FA$19)*100,1)) -> 33.7 | FB6: =IF(Balance!FB6="-","-",ROUND((Balance!FB6/Balance!FB$19)*100,1)) -> 23.9 | FC6: =IF(Balance!FC6="-","-",ROUND((Balance!FC6/Balance!FC$19)*100,1)) -> 22.6 | FD6: =IF(Balance!FD6="-","-",ROUND((Balance!FD6/Balance!FD$19)*100,1)) -> 27.3 | FE6: =IF(Balance!FE6="-","-",ROUND((Balance!FE6/Balance!FE$19)*100,1)) -> 28.1 | FF6: =IF(Balance!FF6="-","-",ROUND((Balance!FF6/Balance!FF$19)*100,1)) -> 28.5 | FG6: =IF(Balance!FG6="-","-",ROUND((Balance!FG6/Balance!FG$19)*100,1)) -> 29.1 | FH6: =IF(Balance!FH6="-","-",ROUND((Balance!FH6/Balance!FH$19)*100,1)) -> 32.5 | FI6: =IF(Balance!FI6="-","-",ROUND((Balance!FI6/Balance!FI$19)*100,1)) -> 32.9 | FJ6: =IF(Balance!FJ6="-","-",ROUND((Balance!FJ6/Balance!FJ$19)*100,1)) -> 34.9 | FK6: =IF(Balance!FK6="-","-",ROUND((Balance!FK6/Balance!FK$19)*100,1)) -> 35.5 | FL6: =IF(Balance!FL6="-","-",ROUND((Balance!FL6/Balance!FL$19)*100,1)) -> 33.9 | FM6: =IF(Balance!FM6="-","-",ROUND((Balance!FM6/Balance!FM$19)*100,1)) -> 29 | FN6: =IF(Balance!FN6="-","-",ROUND((Balance!FN6/Balance!FN$19)*100,1)) -> 24.1 | FO6: =IF(Balance!FO6="-","-",ROUND((Balance!FO6/Balance!FO$19)*100,1)) -> 26.9 | FP6: =IF(Balance!FP6="-","-",ROUND((Balance!FP6/Balance!FP$19)*100,1)) -> 29.3 | FQ6: =IF(Balance!FQ6="-","-",ROUND((Balance!FQ6/Balance!FQ$19)*100,1)) -> 30 | FR6: =IF(Balance!FR6="-","-",ROUND((Balance!FR6/Balance!FR$19)*100,1)) -> 26.9 | FS6: =IF(Balance!FS6="-","-",ROUND((Balance!FS6/Balance!FS$19)*100,1)) -> 27.7 | FT6: =IF(Balance!FT6="-","-",ROUND((Balance!FT6/Balance!FT$19)*100,1)) -> 29.2 | FU6: =IF(Balance!FU6="-","-",ROUND((Balance!FU6/Balance!FU$19)*100,1)) -> 30.7 | FV6: =IF(Balance!FV6="-","-",ROUND((Balance!FV6/Balance!FV$19)*100,1)) -> 31.9 | FW6: =IF(Balance!FW6="-","-",ROUND((Balance!FW6/Balance!FW$19)*100,1)) -> 31.6 | FX6: =IF(Balance!FX6="-","-",ROUND((Balance!FX6/Balance!FX$19)*100,1)) -> 31.1 | FY6: =IF(Balance!FY6="-","-",ROUND((Balance!FY6/Balance!FY$19)*100,1)) -> 28.9 | FZ6: =IF(Balance!FZ6="-","-",ROUND((Balance!FZ6/Balance!FZ$19)*100,1)) -> 30.8 | GA6: =IF(Balance!GA6="-","-",ROUND((Balance!GA6/Balance!GA$19)*100,1)) -> 30 | GB6: =IF(Balance!GB6="-","-",ROUND((Balance!GB6/Balance!GB$19)*100,1)) -> 28.8 | GC6: =IF(Balance!GC6="-","-",ROUND((Balance!GC6/Balance!GC$19)*100,1)) -> 28.7 | GD6: =IF(Balance!GD6="-","-",ROUND((Balance!GD6/Balance!GD$19)*100,1)) -> 28.3 | GE6: =IF(Balance!GE6="-","-",ROUND((Balance!GE6/Balance!GE$19)*100,1)) -> 28.9 | GF6: =IF(Balance!GF6="-","-",ROUND((Balance!GF6/Balance!GF$19)*100,1)) -> 27.5 | GG6: =IF(Balance!GG6="-","-",ROUND((Balance!GG6/Balance!GG$19)*100,1)) -> 28.2 | GH6: =IF(Balance!GH6="-","-",ROUND((Balance!GH6/Balance!GH$19)*100,1)) -> 28.5 | GI6: =IF(Balance!GI6="-","-",ROUND((Balance!GI6/Balance!GI$19)*100,1)) -> 28.8 | GJ6: =IF(Balance!GJ6="-","-",ROUND((Balance!GJ6/Balance!GJ$19)*100,1)) -> 30.1 | GK6: =IF(Balance!GK6="-","-",ROUND((Balance!GK6/Balance!GK$19)*100,1)) -> 29 | GL6: =IF(Balance!GL6="-","-",ROUND((Balance!GL6/Balance!GL$19)*100,1)) -> 28 | GM6: =IF(Balance!GM6="-","-",ROUND((Balance!GM6/Balance!GM$19)*100,1)) -> 28.2 | GN6: =IF(Balance!GN6="-","-",ROUND((Balance!GN6/Balance!GN$19)*100,1)) -> 25.8 | GO6: =IF(Balance!GO6="-","-",ROUND((Balance!GO6/Balance!GO$19)*100,1)) -> 20.6 | GP6: =IF(Balance!GP6="-","-",ROUND((Balance!GP6/Balance!GP$19)*100,1)) -> 18.5 | GQ6: =IF(Balance!GQ6="-","-",ROUND((Balance!GQ6/Balance!GQ$19)*100,1)) -> 24.6 | GR6: =IF(Balance!GR6="-","-",ROUND((Balance!GR6/Balance!GR$19)*100,1)) -> 25.9 | GS6: =IF(Balance!GS6="-","-",ROUND((Balance!GS6/Balance!GS$19)*100,1)) -> 27.2 | GT6: =IF(Balance!GT6="-","-",ROUND((Balance!GT6/Balance!GT$19)*100,1)) -> 25.2 | GU6: =IF(Balance!GU6="-","-",ROUND((Balance!GU6/Balance!GU$19)*100,1)) -> 25 | GV6: =IF(Balance!GV6="-","-",ROUND((Balance!GV6/Balance!GV$19)*100,1)) -> 22.6 | GW6: =IF(Balance!GW6="-","-",ROUND((Balance!GW6/Balance!GW$19)*100,1)) -> 19.9 | GX6: =IF(Balance!GX6="-","-",ROUND((Balance!GX6/Balance!GX$19)*100,1)) -> 18.3 | GY6: =IF(Balance!GY6="-","-",ROUND((Balance!GY6/Balance!GY$19)*100,1)) -> 25 | GZ6: =IF(Balance!GZ6="-","-",ROUND((Balance!GZ6/Balance!GZ$19)*100,1)) -> 22.4 | HA6: =IF(Balance!HA6="-","-",ROUND((Balance!HA6/Balance!HA$19)*100,1)) -> 21 | HB6: =IF(Balance!HB6="-","-",ROUND((Balance!HB6/Balance!HB$19)*100,1)) -> 28 | HC6: =IF(Balance!HC6="-","-",ROUND((Balance!HC6/Balance!HC$19)*100,1)) -> 27.5 | HD6: =IF(Balance!HD6="-","-",ROUND((Balance!HD6/Balance!HD$19)*100,1)) -> 26.7 | HE6: =IF(Balance!HE6="-","-",ROUND((Balance!HE6/Balance!HE$19)*100,1)) -> 25.3 | HF6: =IF(Balance!HF6="-","-",ROUND((Balance!HF6/Balance!HF$19)*100,1)) -> 27 | HG6: =IF(Balance!HG6="-","-",ROUND((Balance!HG6/Balance!HG$19)*100,1)) -> 24.9 | HH6: =IF(Balance!HH6="-","-",ROUND((Balance!HH6/Balance!HH$19)*100,1)) -> 23.6 | HI6: =IF(Balance!HI6="-","-",ROUND((Balance!HI6/Balance!HI$19)*100,1)) -> 22.9 | HJ6: =IF(Balance!HJ6="-","-",ROUND((Balance!HJ6/Balance!HJ$19)*100,1)) -> 24.3 | HK6: =IF(Balance!HK6="-","-",ROUND((Balance!HK6/Balance!HK$19)*100,1)) -> 19.7 | HL6: =IF(Balance!HL6="-","-",ROUND((Balance!HL6/Balance!HL$19)*100,1)) -> 19.5 | HM6: =IF(Balance!HM6="-","-",ROUND((Balance!HM6/Balance!HM$19)*100,1)) -> 15.3 | HN6: =IF(Balance!HN6="-","-",ROUND((Balance!HN6/Balance!HN$19)*100,1)) -> 13.5 | HO6: =IF(Balance!HO6="-","-",ROUND((Balance!HO6/Balance!HO$19)*100,1)) -> 9.9 | HP6: =IF(Balance!HP6="-","-",ROUND((Balance!HP6/Balance!HP$19)*100,1)) -> 9.1 | HQ6: =IF(Balance!HQ6="-","-",ROUND((Balance!HQ6/Balance!HQ$19)*100,1)) -> 15.1 | HR6: =IF(Balance!HR6="-","-",ROUND((Balance!HR6/Balance!HR$19)*100,1)) -> 13.5 | HS6: =IF(Balance!HS6="-","-",ROUND((Balance!HS6/Balance!HS$19)*100,1)) -> 15.5 | HT6: =IF(Balance!HT6="-","-",ROUND((Balance!HT6/Balance!HT$19)*100,1)) -> 18.2 | HU6: =IF(Balance!HU6="-","-",ROUND((Balance!HU6/Balance!HU$19)*100,1)) -> 17.5 | HV6: =IF(Balance!HV6="-","-",ROUND((Balance!HV6/Balance!HV$19)*100,1)) -> 18.1 | HW6: =IF(Balance!HW6="-","-",ROUND((Balance!HW6/Balance!HW$19)*100,1)) -> 18.2 | HX6: =IF(Balance!HX6="-","-",ROUND((Balance!HX6/Balance!HX$19)*100,1)) -> 13.9 | HY6: =IF(Balance!HY6="-","-",ROUND((Balance!HY6/Balance!HY$19)*100,1)) -> 13.9 | HZ6: =IF(Balance!HZ6="-","-",ROUND((Balance!HZ6/Balance!HZ$19)*100,1)) -> 8.9 | IA6: =IF(Balance!IA6="-","-",ROUND((Balance!IA6/Balance!IA$19)*100,1)) -> 11 | IB6: =IF(Balance!IB6="-","-",ROUND((Balance!IB6/Balance!IB$19)*100,1)) -> 11.4 | IC6: =IF(Balance!IC6="-","-",ROUND((Balance!IC6/Balance!IC$19)*100,1)) -> 13.6 | ID6: =IF(Balance!ID6="-","-",ROUND((Balance!ID6/Balance!ID$19)*100,1)) -> 8.1 | IE6: =IF(Balance!IE6="-","-",ROUND((Balance!IE6/Balance!IE$19)*100,1)) -> 12.6 | IF6: =IF(Balance!IF6="-","-",ROUND((Balance!IF6/Balance!IF$19)*100,1)) -> 14.2 | IG6: =IF(Balance!IG6="-","-",ROUND((Balance!IG6/Balance!IG$19)*100,1)) -> 9.1 | IH6: =IF(Balance!IH6="-","-",ROUND((Balance!IH6/Balance!IH$19)*100,1)) -> 7.8 | II6: =IF(Balance!II6="-","-",ROUND((Balance!II6/Balance!II$19)*100,1)) -> 6.8 | IJ6: =IF(Balance!IJ6="-","-",ROUND((Balance!IJ6/Balance!IJ$19)*100,1)) -> 6 | IK6: =IF(Balance!IK6="-","-",ROUND((Balance!IK6/Balance!IK$19)*100,1)) -> 3.5 | IL6: =IF(Balance!IL6="-","-",ROUND((Balance!IL6/Balance!IL$19)*100,1)) -> 3 | IM6: =IF(Balance!IM6="-","-",ROUND((Balance!IM6/Balance!IM$19)*100,1)) -> 3.9 | IN6: =IF(Balance!IN6="-","-",ROUND((Balance!IN6/Balance!IN$19)*100,1)) -> 6.2 | IO6: =IF(Balance!IO6="-","-",ROUND((Balance!IO6/Balance!IO$19)*100,1)) -> 10.1 | IP6: =IF(Balance!IP6="-","-",ROUND((Balance!IP6/Balance!IP$19)*100,1)) -> 12.6 | IQ6: =IF(Balance!IQ6="-","-",ROUND((Balance!IQ6/Balance!IQ$19)*100,1)) -> 13.6 | IR6: =IF(Balance!IR6="-","-",ROUND((Balance!IR6/Balance!IR$19)*100,1)) -> 9 | IS6: =IF(Balance!IS6="-","-",ROUND((Balance!IS6/Balance!IS$19)*100,1)) -> 7.1 | IT6: =IF(Balance!IT6="-","-",ROUND((Balance!IT6/Balance!IT$19)*100,1)) -> 8.4 | IU6: =IF(Balance!IU6="-","-",ROUND((Balance!IU6/Balance!IU$19)*100,1)) -> 8.3 | IV6: =IF(Balance!IV6="-","-",ROUND((Balance!IV6/Balance!IV$19)*100,1)) -> 11.2 | IW6: =IF(Balance!IW6="-","-",ROUND((Balance!IW6/Balance!IW$19)*100,1)) -> 12.5 | IX6: =IF(Balance!IX6="-","-",ROUND((Balance!IX6/Balance!IX$19)*100,1)) -> 11.8 | IY6: =IF(Balance!IY6="-","-",ROUND((Balance!IY6/Balance!IY$19)*100,1)) -> 14.3 | IZ6: =IF(Balance!IZ6="-","-",ROUND((Balance!IZ6/Balance!IZ$19)*100,1)) -> 12.8 | JA6: =IF(Balance!JA6="-","-",ROUND((Balance!JA6/Balance!JA$19)*100,1)) -> 18.5 | JB6: =IF(Balance!JB6="-","-",ROUND((Balance!JB6/Balance!JB$19)*100,1)) -> 18.5 | JC6: =IF(Balance!JC6="-","-",ROUND((Balance!JC6/Balance!JC$19)*100,1)) -> 21.5 | JD6: =IF(Balance!JD6="-","-",ROUND((Balance!JD6/Balance!JD$19)*100,1)) -> 20.4 | JE6: =IF(Balance!JE6="-","-",ROUND((Balance!JE6/Balance!JE$19)*100,1)) -> 18 | JF6: =IF(Balance!JF6="-","-",ROUND((Balance!JF6/Balance!JF$19)*100,1)) -> 16.7 | JG6: =IF(Balance!JG6="-","-",ROUND((Balance!JG6/Balance!JG$19)*100,1)) -> 21.4 | JH6: =IF(Balance!JH6="-","-",ROUND((Balance!JH6/Balance!JH$19)*100,1)) -> 21.3 | JI6: =IF(Balance!JI6="-","-",ROUND((Balance!JI6/Balance!JI$19)*100,1)) -> 19.6 | JJ6: =IF(Balance!JJ6="-","-",ROUND((Balance!JJ6/Balance!JJ$19)*100,1)) -> 11.8 | JK6: =IF(Balance!JK6="-","-",ROUND((Balance!JK6/Balance!JK$19)*100,1)) -> 17.6 | JL6: =IF(Balance!JL6="-","-",ROUND((Balance!JL6/Balance!JL$19)*100,1)) -> 23.3 | JM6: =IF(Balance!JM6="-","-",ROUND((Balance!JM6/Balance!JM$19)*100,1)) -> 20.7 | JN6: =IF(Balance!JN6="-","-",ROUND((Balance!JN6/Balance!JN$19)*100,1)) -> 21.4 | JO6: =IF(Balance!JO6="-","-",ROUND((Balance!JO6/Balance!JO$19)*100,1)) -> 17.8 | JP6: =IF(Balance!JP6="-","-",ROUND((Balance!JP6/Balance!JP$19)*100,1)) -> 18.8 | JQ6: =IF(Balance!JQ6="-","-",ROUND((Balance!JQ6/Balance!JQ$19)*100,1)) -> 18.2 | JR6: =IF(Balance!JR6="-","-",ROUND((Balance!JR6/Balance!JR$19)*100,1)) -> 15.6 | JS6: =IF(Balance!JS6="-","-",ROUND((Balance!JS6/Balance!JS$19)*100,1)) -> 12.2 | JT6: =IF(Balance!JT6="-","-",ROUND((Balance!JT6/Balance!JT$19)*100,1)) -> 11.1 | JU6: =IF(Balance!JU6="-","-",ROUND((Balance!JU6/Balance!JU$19)*100,1)) -> 5.5 | JV6: =IF(Balance!JV6="-","-",ROUND((Balance!JV6/Balance!JV$19)*100,1)) -> 4.3 | JW6: =IF(Balance!JW6="-","-",ROUND((Balance!JW6/Balance!JW$19)*100,1)) -> 9.5 | JX6: =IF(Balance!JX6="-","-",ROUND((Balance!JX6/Balance!JX$19)*100,1)) -> 12.3 | JY6: =IF(Balance!JY6="-","-",ROUND((Balance!JY6/Balance!JY$19)*100,1)) -> 22.6 | JZ6: =IF(Balance!JZ6="-","-",ROUND((Balance!JZ6/Balance!JZ$19)*100,1)) -> 20.3 | KA6: =IF(Balance!KA6="-","-",ROUND((Balance!KA6/Balance!KA$19)*100,1)) -> 21.8 | KB6: =IF(Balance!KB6="-","-",ROUND((Balance!KB6/Balance!KB$19)*100,1)) -> 19.3 | KC6: =IF(Balance!KC6="-","-",ROUND((Balance!KC6/Balance!KC$19)*100,1)) -> 11.5 | KD6: =IF(Balance!KD6="-","-",ROUND((Balance!KD6/Balance!KD$19)*100,1)) -> 20.4 | KE6: =IF(Balance!KE6="-","-",ROUND((Balance!KE6/Balance!KE$19)*100,1)) -> 9.2 | KF6: =IF(Balance!KF6="-","-",ROUND((Balance!KF6/Balance!KF$19)*100,1)) -> 3.5 | KG6: =IF(Balance!KG6="-","-",ROUND((Balance!KG6/Balance!KG$19)*100,1)) -> 5.3 | KH6: =IF(Balance!KH6="-","-",ROUND((Balance!KH6/Balance!KH$19)*100,1)) -> 6.1 | KI6: =IF(Balance!KI6="-","-",ROUND((Balance!KI6/Balance!KI$19)*100,1)) -> 15.7 | KJ6: =IF(Balance!KJ6="-","-",ROUND((Balance!KJ6/Balance!KJ$19)*100,1)) -> 24.6 | KK6: =IF(Balance!KK6="-","-",ROUND((Balance!KK6/Balance!KK$19)*100,1)) -> 24.4 | KL6: =IF(Balance!KL6="-","-",ROUND((Balance!KL6/Balance!KL$19)*100,1)) -> 24.3 | KM6: =IF(Balance!KM6="-","-",ROUND((Balance!KM6/Balance!KM$19)*100,1)) -> 27.1 | KN6: =IF(Balance!KN6="-","-",ROUND((Balance!KN6/Balance!KN$19)*100,1)) -> 21.4 | KO6: =IF(Balance!KO6="-","-",ROUND((Balance!KO6/Balance!KO$19)*100,1)) -> 15.6 | KP6: =IF(Balance!KP6="-","-",ROUND((Balance!KP6/Balance!KP$19)*100,1)) -> 18.2 | KQ6: =IF(Balance!KQ6="-","-",ROUND((Balance!KQ6/Balance!KQ$19)*100,1)) -> 20.8 | KR6: =IF(Balance!KR6="-","-",ROUND((Balance!KR6/Balance!KR$19)*100,1)) -> 13.2 | KS6: =IF(Balance!KS6="-","-",ROUND((Balance!KS6/Balance!KS$19)*100,1)) -> 11.7 | KT6: =IF(Balance!KT6="-","-",ROUND((Balance!KT6/Balance!KT$19)*100,1)) -> 15 | KU6: =IF(Balance!KU6="-","-",ROUND((Balance!KU6/Balance!KU$19)*100,1)) -> 14 | KV6: =IF(Balance!KV6="-","-",ROUND((Balance!KV6/Balance!KV$19)*100,1)) -> 25.8 | KW6: =IF(Balance!KW6="-","-",ROUND((Balance!KW6/Balance!KW$19)*100,1)) -> 25.3 | KX6: =IF(Balance!KX6="-","-",ROUND((Balance!KX6/Balance!KX$19)*100,1)) -> 24.1 | KY6: =IF(Balance!KY6="-","-",ROUND((Balance!KY6/Balance!KY$19)*100,1)) -> 22.8 | KZ6: =IF(Balance!KZ6="-","-",ROUND((Balance!KZ6/Balance!KZ$19)*100,1)) -> 21.8 | LA6: =IF(Balance!LA6="-","-",ROUND((Balance!LA6/Balance!LA$19)*100,1)) -> 23 | LB6: =IF(Balance!LB6="-","-",ROUND((Balance!LB6/Balance!LB$19)*100,1)) -> 22.5 | LC6: =IF(Balance!LC6="-","-",ROUND((Balance!LC6/Balance!LC$19)*100,1)) -> 11.9 | LD6: =IF(Balance!LD6="-","-",ROUND((Balance!LD6/Balance!LD$19)*100,1)) -> 8.7 | LE6: =IF(Balance!LE6="-","-",ROUND((Balance!LE6/Balance!LE$19)*100,1)) -> 7.7 | LF6: =IF(Balance!LF6="-","-",ROUND((Balance!LF6/Balance!LF$19)*100,1)) -> 4.4 | LG6: =IF(Balance!LG6="-","-",ROUND((Balance!LG6/Balance!LG$19)*100,1)) -> 5.3 | LH6: =IF(Balance!LH6="-","-",ROUND((Balance!LH6/Balance!LH$19)*100,1)) -> 10.5 | LI6: =IF(Balance!LI6="-","-",ROUND((Balance!LI6/Balance!LI$19)*100,1)) -> 16.9 | LJ6: =IF(Balance!LJ6="-","-",ROUND((Balance!LJ6/Balance!LJ$19)*100,1)) -> 16.4 | LK6: =IF(Balance!LK6="-","-",ROUND((Balance!LK6/Balance!LK$19)*100,1)) -> 21.6 | LL6: =IF(Balance!LL6="-","-",ROUND((Balance!LL6/Balance!LL$19)*100,1)) -> 20.8 | LM6: =IF(Balance!LM6="-","-",ROUND((Balance!LM6/Balance!LM$19)*100,1)) -> 21.5 | LN6: =IF(Balance!LN6="-","-",ROUND((Balance!LN6/Balance!LN$19)*100,1)) -> 24.2 | LO6: =IF(Balance!LO6="-","-",ROUND((Balance!LO6/Balance!LO$19)*100,1)) -> 21.4 | LP6: =IF(Balance!LP6="-","-",ROUND((Balance!LP6/Balance!LP$19)*100,1)) -> 16.6 | LQ6: =IF(Balance!LQ6="-","-",ROUND((Balance!LQ6/Balance!LQ$19)*100,1)) -> 8.9 | LR6: =IF(Balance!LR6="-","-",ROUND((Balance!LR6/Balance!LR$19)*100,1)) -> 10.5 | LS6: =IF(Balance!LS6="-","-",ROUND((Balance!LS6/Balance!LS$19)*100,1)) -> 18.5 | LT6: =IF(Balance!LT6="-","-",ROUND((Balance!LT6/Balance!LT$19)*100,1)) -> 20.5 | LU6: =IF(Balance!LU6="-","-",ROUND((Balance!LU6/Balance!LU$19)*100,1)) -> 18.8 | LV6: =IF(Balance!LV6="-","-",ROUND((Balance!LV6/Balance!LV$19)*100,1)) -> 14.6 | LW6: =IF(Balance!LW6="-","-",ROUND((Balance!LW6/Balance!LW$19)*100,1)) -> 14.8 | LX6: =IF(Balance!LX6="-","-",ROUND((Balance!LX6/Balance!LX$19)*100,1)) -> 19.3 | LY6: =IF(Balance!LY6="-","-",ROUND((Balance!LY6/Balance!LY$19)*100,1)) -> 21.6 | LZ6: =IF(Balance!LZ6="-","-",ROUND((Balance!LZ6/Balance!LZ$19)*100,1)) -> 17.9 | MA6: =IF(Balance!MA6="-","-",ROUND((Balance!MA6/Balance!MA$19)*100,1)) -> 13.9 | MB6: =IF(Balance!MB6="-","-",ROUND((Balance!MB6/Balance!MB$19)*100,1)) -> - | MC6: =IF(Balance!MC6="-","-",ROUND((Balance!MC6/Balance!MC$19)*100,1)) -> - | MD6: =IF(Balance!MD6="-","-",ROUND((Balance!MD6/Balance!MD$19)*100,1)) -> - | ME6: =IF(Balance!ME6="-","-",ROUND((Balance!ME6/Balance!ME$19)*100,1)) -> - | MF6: =IF(Balance!MF6="-","-",ROUND((Balance!MF6/Balance!MF$19)*100,1)) -> - | MG6: =IF(Balance!MG6="-","-",ROUND((Balance!MG6/Balance!MG$19)*100,1)) -> - | MH6: =IF(Balance!MH6="-","-",ROUND((Balance!MH6/Balance!MH$19)*100,1)) -> - | MI6: =IF(Balance!MI6="-","-",ROUND((Balance!MI6/Balance!MI$19)*100,1)) -> - | MJ6: =IF(Balance!MJ6="-","-",ROUND((Balance!MJ6/Balance!MJ$19)*100,1)) -> - | MK6: =IF(Balance!MK6="-","-",ROUND((Balance!MK6/Balance!MK$19)*100,1)) -> - | ML6: =IF(Balance!ML6="-","-",ROUND((Balance!ML6/Balance!ML$19)*100,1)) -> -
B7: Fuel + Gas | C7: =IF(Balance!C7="-","-",ROUND((Balance!C7/Balance!C$19)*100,1)) -> 1.6 | D7: =IF(Balance!D7="-","-",ROUND((Balance!D7/Balance!D$19)*100,1)) -> 1 | E7: =IF(Balance!E7="-","-",ROUND((Balance!E7/Balance!E$19)*100,1)) -> 0.9 | F7: =IF(Balance!F7="-","-",ROUND((Balance!F7/Balance!F$19)*100,1)) -> 0.8 | G7: =IF(Balance!G7="-","-",ROUND((Balance!G7/Balance!G$19)*100,1)) -> 1.9 | H7: =IF(Balance!H7="-","-",ROUND((Balance!H7/Balance!H$19)*100,1)) -> 3.5 | I7: =IF(Balance!I7="-","-",ROUND((Balance!I7/Balance!I$19)*100,1)) -> 3.6 | J7: =IF(Balance!J7="-","-",ROUND((Balance!J7/Balance!J$19)*100,1)) -> 1.5 | K7: =IF(Balance!K7="-","-",ROUND((Balance!K7/Balance!K$19)*100,1)) -> 2.2 | L7: =IF(Balance!L7="-","-",ROUND((Balance!L7/Balance!L$19)*100,1)) -> 2.6 | M7: =IF(Balance!M7="-","-",ROUND((Balance!M7/Balance!M$19)*100,1)) -> 2.3 | N7: =IF(Balance!N7="-","-",ROUND((Balance!N7/Balance!N$19)*100,1)) -> 3.2 | O7: =IF(Balance!O7="-","-",ROUND((Balance!O7/Balance!O$19)*100,1)) -> 1.9 | P7: =IF(Balance!P7="-","-",ROUND((Balance!P7/Balance!P$19)*100,1)) -> 2.7 | Q7: =IF(Balance!Q7="-","-",ROUND((Balance!Q7/Balance!Q$19)*100,1)) -> 1.1 | R7: =IF(Balance!R7="-","-",ROUND((Balance!R7/Balance!R$19)*100,1)) -> 1.6 | S7: =IF(Balance!S7="-","-",ROUND((Balance!S7/Balance!S$19)*100,1)) -> 1.8 | T7: =IF(Balance!T7="-","-",ROUND((Balance!T7/Balance!T$19)*100,1)) -> 2.5 | U7: =IF(Balance!U7="-","-",ROUND((Balance!U7/Balance!U$19)*100,1)) -> 5.7 | V7: =IF(Balance!V7="-","-",ROUND((Balance!V7/Balance!V$19)*100,1)) -> 1.7 | W7: =IF(Balance!W7="-","-",ROUND((Balance!W7/Balance!W$19)*100,1)) -> 5.7 | X7: =IF(Balance!X7="-","-",ROUND((Balance!X7/Balance!X$19)*100,1)) -> 2.6 | Y7: =IF(Balance!Y7="-","-",ROUND((Balance!Y7/Balance!Y$19)*100,1)) -> 3 | Z7: =IF(Balance!Z7="-","-",ROUND((Balance!Z7/Balance!Z$19)*100,1)) -> 3.7 | AA7: =IF(Balance!AA7="-","-",ROUND((Balance!AA7/Balance!AA$19)*100,1)) -> 9.2 | AB7: =IF(Balance!AB7="-","-",ROUND((Balance!AB7/Balance!AB$19)*100,1)) -> 13.8 | AC7: =IF(Balance!AC7="-","-",ROUND((Balance!AC7/Balance!AC$19)*100,1)) -> 11.3 | AD7: =IF(Balance!AD7="-","-",ROUND((Balance!AD7/Balance!AD$19)*100,1)) -> 6.2 | AE7: =IF(Balance!AE7="-","-",ROUND((Balance!AE7/Balance!AE$19)*100,1)) -> 5.5 | AF7: =IF(Balance!AF7="-","-",ROUND((Balance!AF7/Balance!AF$19)*100,1)) -> 1.4 | AG7: =IF(Balance!AG7="-","-",ROUND((Balance!AG7/Balance!AG$19)*100,1)) -> 3.4 | AH7: =IF(Balance!AH7="-","-",ROUND((Balance!AH7/Balance!AH$19)*100,1)) -> 2.1 | AI7: =IF(Balance!AI7="-","-",ROUND((Balance!AI7/Balance!AI$19)*100,1)) -> 4.6 | AJ7: =IF(Balance!AJ7="-","-",ROUND((Balance!AJ7/Balance!AJ$19)*100,1)) -> 1.6 | AK7: =IF(Balance!AK7="-","-",ROUND((Balance!AK7/Balance!AK$19)*100,1)) -> 0.7 | AL7: =IF(Balance!AL7="-","-",ROUND((Balance!AL7/Balance!AL$19)*100,1)) -> 0.3 | AM7: =IF(Balance!AM7="-","-",ROUND((Balance!AM7/Balance!AM$19)*100,1)) -> 0.7 | AN7: =IF(Balance!AN7="-","-",ROUND((Balance!AN7/Balance!AN$19)*100,1)) -> 2.9 | AO7: =IF(Balance!AO7="-","-",ROUND((Balance!AO7/Balance!AO$19)*100,1)) -> 2.8 | AP7: =IF(Balance!AP7="-","-",ROUND((Balance!AP7/Balance!AP$19)*100,1)) -> 2.4 | AQ7: =IF(Balance!AQ7="-","-",ROUND((Balance!AQ7/Balance!AQ$19)*100,1)) -> 0.9 | AR7: =IF(Balance!AR7="-","-",ROUND((Balance!AR7/Balance!AR$19)*100,1)) -> 1.1 | AS7: =IF(Balance!AS7="-","-",ROUND((Balance!AS7/Balance!AS$19)*100,1)) -> 0.3 | AT7: =IF(Balance!AT7="-","-",ROUND((Balance!AT7/Balance!AT$19)*100,1)) -> 0.8 | AU7: =IF(Balance!AU7="-","-",ROUND((Balance!AU7/Balance!AU$19)*100,1)) -> 1.6 | AV7: =IF(Balance!AV7="-","-",ROUND((Balance!AV7/Balance!AV$19)*100,1)) -> 0.4 | AW7: =IF(Balance!AW7="-","-",ROUND((Balance!AW7/Balance!AW$19)*100,1)) -> 0.6 | AX7: =IF(Balance!AX7="-","-",ROUND((Balance!AX7/Balance!AX$19)*100,1)) -> 0.6 | AY7: =IF(Balance!AY7="-","-",ROUND((Balance!AY7/Balance!AY$19)*100,1)) -> 0.7 | AZ7: =IF(Balance!AZ7="-","-",ROUND((Balance!AZ7/Balance!AZ$19)*100,1)) -> 0.7 | BA7: =IF(Balance!BA7="-","-",ROUND((Balance!BA7/Balance!BA$19)*100,1)) -> 1 | BB7: =IF(Balance!BB7="-","-",ROUND((Balance!BB7/Balance!BB$19)*100,1)) -> 1.1 | BC7: =IF(Balance!BC7="-","-",ROUND((Balance!BC7/Balance!BC$19)*100,1)) -> 0.2 | BD7: =IF(Balance!BD7="-","-",ROUND((Balance!BD7/Balance!BD$19)*100,1)) -> 0.8 | BE7: =IF(Balance!BE7="-","-",ROUND((Balance!BE7/Balance!BE$19)*100,1)) -> 3 | BF7: =IF(Balance!BF7="-","-",ROUND((Balance!BF7/Balance!BF$19)*100,1)) -> 0.5 | BG7: =IF(Balance!BG7="-","-",ROUND((Balance!BG7/Balance!BG$19)*100,1)) -> 0.7 | BH7: =IF(Balance!BH7="-","-",ROUND((Balance!BH7/Balance!BH$19)*100,1)) -> 1 | BI7: =IF(Balance!BI7="-","-",ROUND((Balance!BI7/Balance!BI$19)*100,1)) -> 0.5 | BJ7: =IF(Balance!BJ7="-","-",ROUND((Balance!BJ7/Balance!BJ$19)*100,1)) -> 1.3 | BK7: =IF(Balance!BK7="-","-",ROUND((Balance!BK7/Balance!BK$19)*100,1)) -> 1.1 | BL7: =IF(Balance!BL7="-","-",ROUND((Balance!BL7/Balance!BL$19)*100,1)) -> 0.3 | BM7: =IF(Balance!BM7="-","-",ROUND((Balance!BM7/Balance!BM$19)*100,1)) -> 1.1 | BN7: =IF(Balance!BN7="-","-",ROUND((Balance!BN7/Balance!BN$19)*100,1)) -> 1 | BO7: =IF(Balance!BO7="-","-",ROUND((Balance!BO7/Balance!BO$19)*100,1)) -> 0.9 | BP7: =IF(Balance!BP7="-","-",ROUND((Balance!BP7/Balance!BP$19)*100,1)) -> 2.4 | BQ7: =IF(Balance!BQ7="-","-",ROUND((Balance!BQ7/Balance!BQ$19)*100,1)) -> 4.6 | BR7: =IF(Balance!BR7="-","-",ROUND((Balance!BR7/Balance!BR$19)*100,1)) -> 2 | BS7: =IF(Balance!BS7="-","-",ROUND((Balance!BS7/Balance!BS$19)*100,1)) -> 4.8 | BT7: =IF(Balance!BT7="-","-",ROUND((Balance!BT7/Balance!BT$19)*100,1)) -> 5.4 | BU7: =IF(Balance!BU7="-","-",ROUND((Balance!BU7/Balance!BU$19)*100,1)) -> 3.5 | BV7: =IF(Balance!BV7="-","-",ROUND((Balance!BV7/Balance!BV$19)*100,1)) -> 2.4 | BW7: =IF(Balance!BW7="-","-",ROUND((Balance!BW7/Balance!BW$19)*100,1)) -> 0.1 | BX7: =IF(Balance!BX7="-","-",ROUND((Balance!BX7/Balance!BX$19)*100,1)) -> 1.3 | BY7: =IF(Balance!BY7="-","-",ROUND((Balance!BY7/Balance!BY$19)*100,1)) -> 1.9 | BZ7: =IF(Balance!BZ7="-","-",ROUND((Balance!BZ7/Balance!BZ$19)*100,1)) -> 1.2 | CA7: =IF(Balance!CA7="-","-",ROUND((Balance!CA7/Balance!CA$19)*100,1)) -> 0.2 | CB7: =IF(Balance!CB7="-","-",ROUND((Balance!CB7/Balance!CB$19)*100,1)) -> 1.3 | CC7: =IF(Balance!CC7="-","-",ROUND((Balance!CC7/Balance!CC$19)*100,1)) -> 2 | CD7: =IF(Balance!CD7="-","-",ROUND((Balance!CD7/Balance!CD$19)*100,1)) -> 1.2 | CE7: =IF(Balance!CE7="-","-",ROUND((Balance!CE7/Balance!CE$19)*100,1)) -> 1.9 | CF7: =IF(Balance!CF7="-","-",ROUND((Balance!CF7/Balance!CF$19)*100,1)) -> 0.7 | CG7: =IF(Balance!CG7="-","-",ROUND((Balance!CG7/Balance!CG$19)*100,1)) -> 1.8 | CH7: =IF(Balance!CH7="-","-",ROUND((Balance!CH7/Balance!CH$19)*100,1)) -> 2 | CI7: =IF(Balance!CI7="-","-",ROUND((Balance!CI7/Balance!CI$19)*100,1)) -> 1.7 | CJ7: =IF(Balance!CJ7="-","-",ROUND((Balance!CJ7/Balance!CJ$19)*100,1)) -> 3 | CK7: =IF(Balance!CK7="-","-",ROUND((Balance!CK7/Balance!CK$19)*100,1)) -> 3.4 | CL7: =IF(Balance!CL7="-","-",ROUND((Balance!CL7/Balance!CL$19)*100,1)) -> 3.7 | CM7: =IF(Balance!CM7="-","-",ROUND((Balance!CM7/Balance!CM$19)*100,1)) -> 3.2 | CN7: =IF(Balance!CN7="-","-",ROUND((Balance!CN7/Balance!CN$19)*100,1)) -> 3.7 | CO7: =IF(Balance!CO7="-","-",ROUND((Balance!CO7/Balance!CO$19)*100,1)) -> 5.7 | CP7: =IF(Balance!CP7="-","-",ROUND((Balance!CP7/Balance!CP$19)*100,1)) -> 4.3 | CQ7: =IF(Balance!CQ7="-","-",ROUND((Balance!CQ7/Balance!CQ$19)*100,1)) -> 5.3 | CR7: =IF(Balance!CR7="-","-",ROUND((Balance!CR7/Balance!CR$19)*100,1)) -> 5.9 | CS7: =IF(Balance!CS7="-","-",ROUND((Balance!CS7/Balance!CS$19)*100,1)) -> 3.8 | CT7: =IF(Balance!CT7="-","-",ROUND((Balance!CT7/Balance!CT$19)*100,1)) -> 3.4 | CU7: =IF(Balance!CU7="-","-",ROUND((Balance!CU7/Balance!CU$19)*100,1)) -> 0.5 | CV7: =IF(Balance!CV7="-","-",ROUND((Balance!CV7/Balance!CV$19)*100,1)) -> 0.7 | CW7: =IF(Balance!CW7="-","-",ROUND((Balance!CW7/Balance!CW$19)*100,1)) -> 1.1 | CX7: =IF(Balance!CX7="-","-",ROUND((Balance!CX7/Balance!CX$19)*100,1)) -> 0.4 | CY7: =IF(Balance!CY7="-","-",ROUND((Balance!CY7/Balance!CY$19)*100,1)) -> 0.3 | CZ7: =IF(Balance!CZ7="-","-",ROUND((Balance!CZ7/Balance!CZ$19)*100,1)) -> 1.4 | DA7: =IF(Balance!DA7="-","-",ROUND((Balance!DA7/Balance!DA$19)*100,1)) -> 3.1 | DB7: =IF(Balance!DB7="-","-",ROUND((Balance!DB7/Balance!DB$19)*100,1)) -> 3.7 | DC7: =IF(Balance!DC7="-","-",ROUND((Balance!DC7/Balance!DC$19)*100,1)) -> 5 | DD7: =IF(Balance!DD7="-","-",ROUND((Balance!DD7/Balance!DD$19)*100,1)) -> 2.7 | DE7: =IF(Balance!DE7="-","-",ROUND((Balance!DE7/Balance!DE$19)*100,1)) -> 6.8 | DF7: =IF(Balance!DF7="-","-",ROUND((Balance!DF7/Balance!DF$19)*100,1)) -> 10.2 | DG7: =IF(Balance!DG7="-","-",ROUND((Balance!DG7/Balance!DG$19)*100,1)) -> 9.2 | DH7: =IF(Balance!DH7="-","-",ROUND((Balance!DH7/Balance!DH$19)*100,1)) -> 12.5 | DI7: =IF(Balance!DI7="-","-",ROUND((Balance!DI7/Balance!DI$19)*100,1)) -> 7.2 | DJ7: =IF(Balance!DJ7="-","-",ROUND((Balance!DJ7/Balance!DJ$19)*100,1)) -> 3.9 | DK7: =IF(Balance!DK7="-","-",ROUND((Balance!DK7/Balance!DK$19)*100,1)) -> 1.2 | DL7: =IF(Balance!DL7="-","-",ROUND((Balance!DL7/Balance!DL$19)*100,1)) -> 3.6 | DM7: =IF(Balance!DM7="-","-",ROUND((Balance!DM7/Balance!DM$19)*100,1)) -> 7.1 | DN7: =IF(Balance!DN7="-","-",ROUND((Balance!DN7/Balance!DN$19)*100,1)) -> 4.8 | DO7: =IF(Balance!DO7="-","-",ROUND((Balance!DO7/Balance!DO$19)*100,1)) -> 3.9 | DP7: =IF(Balance!DP7="-","-",ROUND((Balance!DP7/Balance!DP$19)*100,1)) -> 1 | DQ7: =IF(Balance!DQ7="-","-",ROUND((Balance!DQ7/Balance!DQ$19)*100,1)) -> 2.6 | DR7: =IF(Balance!DR7="-","-",ROUND((Balance!DR7/Balance!DR$19)*100,1)) -> 4.1 | DS7: =IF(Balance!DS7="-","-",ROUND((Balance!DS7/Balance!DS$19)*100,1)) -> 6.2 | DT7: =IF(Balance!DT7="-","-",ROUND((Balance!DT7/Balance!DT$19)*100,1)) -> 3.2 | DU7: =IF(Balance!DU7="-","-",ROUND((Balance!DU7/Balance!DU$19)*100,1)) -> 6.9 | DV7: =IF(Balance!DV7="-","-",ROUND((Balance!DV7/Balance!DV$19)*100,1)) -> 4.8 | DW7: =IF(Balance!DW7="-","-",ROUND((Balance!DW7/Balance!DW$19)*100,1)) -> 1.1 | DX7: =IF(Balance!DX7="-","-",ROUND((Balance!DX7/Balance!DX$19)*100,1)) -> 4.1 | DY7: =IF(Balance!DY7="-","-",ROUND((Balance!DY7/Balance!DY$19)*100,1)) -> 5.4 | DZ7: =IF(Balance!DZ7="-","-",ROUND((Balance!DZ7/Balance!DZ$19)*100,1)) -> 4.7 | EA7: =IF(Balance!EA7="-","-",ROUND((Balance!EA7/Balance!EA$19)*100,1)) -> 9.1 | EB7: =IF(Balance!EB7="-","-",ROUND((Balance!EB7/Balance!EB$19)*100,1)) -> 5.9 | EC7: =IF(Balance!EC7="-","-",ROUND((Balance!EC7/Balance!EC$19)*100,1)) -> 4.5 | ED7: =IF(Balance!ED7="-","-",ROUND((Balance!ED7/Balance!ED$19)*100,1)) -> 2.8 | EE7: =IF(Balance!EE7="-","-",ROUND((Balance!EE7/Balance!EE$19)*100,1)) -> 2.7 | EF7: =IF(Balance!EF7="-","-",ROUND((Balance!EF7/Balance!EF$19)*100,1)) -> 2.4 | EG7: =IF(Balance!EG7="-","-",ROUND((Balance!EG7/Balance!EG$19)*100,1)) -> 2.3 | EH7: =IF(Balance!EH7="-","-",ROUND((Balance!EH7/Balance!EH$19)*100,1)) -> 1.1 | EI7: =IF(Balance!EI7="-","-",ROUND((Balance!EI7/Balance!EI$19)*100,1)) -> 2 | EJ7: =IF(Balance!EJ7="-","-",ROUND((Balance!EJ7/Balance!EJ$19)*100,1)) -> 6.8 | EK7: =IF(Balance!EK7="-","-",ROUND((Balance!EK7/Balance!EK$19)*100,1)) -> 7.7 | EL7: =IF(Balance!EL7="-","-",ROUND((Balance!EL7/Balance!EL$19)*100,1)) -> 7.2 | EM7: =IF(Balance!EM7="-","-",ROUND((Balance!EM7/Balance!EM$19)*100,1)) -> 7.8 | EN7: =IF(Balance!EN7="-","-",ROUND((Balance!EN7/Balance!EN$19)*100,1)) -> 7.6 | EO7: =IF(Balance!EO7="-","-",ROUND((Balance!EO7/Balance!EO$19)*100,1)) -> 7.4 | EP7: =IF(Balance!EP7="-","-",ROUND((Balance!EP7/Balance!EP$19)*100,1)) -> 11.4 | EQ7: =IF(Balance!EQ7="-","-",ROUND((Balance!EQ7/Balance!EQ$19)*100,1)) -> 13.7 | ER7: =IF(Balance!ER7="-","-",ROUND((Balance!ER7/Balance!ER$19)*100,1)) -> 9.6 | ES7: =IF(Balance!ES7="-","-",ROUND((Balance!ES7/Balance!ES$19)*100,1)) -> 8.2 | ET7: =IF(Balance!ET7="-","-",ROUND((Balance!ET7/Balance!ET$19)*100,1)) -> 8.3 | EU7: =IF(Balance!EU7="-","-",ROUND((Balance!EU7/Balance!EU$19)*100,1)) -> 6.2 | EV7: =IF(Balance!EV7="-","-",ROUND((Balance!EV7/Balance!EV$19)*100,1)) -> 9.2 | EW7: =IF(Balance!EW7="-","-",ROUND((Balance!EW7/Balance!EW$19)*100,1)) -> 10.2 | EX7: =IF(Balance!EX7="-","-",ROUND((Balance!EX7/Balance!EX$19)*100,1)) -> 5.3 | EY7: =IF(Balance!EY7="-","-",ROUND((Balance!EY7/Balance!EY$19)*100,1)) -> 7 | EZ7: =IF(Balance!EZ7="-","-",ROUND((Balance!EZ7/Balance!EZ$19)*100,1)) -> 4.9 | FA7: =IF(Balance!FA7="-","-",ROUND((Balance!FA7/Balance!FA$19)*100,1)) -> 2.7 | FB7: =IF(Balance!FB7="-","-",ROUND((Balance!FB7/Balance!FB$19)*100,1)) -> 2 | FC7: =IF(Balance!FC7="-","-",ROUND((Balance!FC7/Balance!FC$19)*100,1)) -> 2.8 | FD7: =IF(Balance!FD7="-","-",ROUND((Balance!FD7/Balance!FD$19)*100,1)) -> 2.6 | FE7: =IF(Balance!FE7="-","-",ROUND((Balance!FE7/Balance!FE$19)*100,1)) -> 1.1 | FF7: =IF(Balance!FF7="-","-",ROUND((Balance!FF7/Balance!FF$19)*100,1)) -> 0.5 | FG7: =IF(Balance!FG7="-","-",ROUND((Balance!FG7/Balance!FG$19)*100,1)) -> 1.3 | FH7: =IF(Balance!FH7="-","-",ROUND((Balance!FH7/Balance!FH$19)*100,1)) -> 6.5 | FI7: =IF(Balance!FI7="-","-",ROUND((Balance!FI7/Balance!FI$19)*100,1)) -> 5.9 | FJ7: =IF(Balance!FJ7="-","-",ROUND((Balance!FJ7/Balance!FJ$19)*100,1)) -> 5.6 | FK7: =IF(Balance!FK7="-","-",ROUND((Balance!FK7/Balance!FK$19)*100,1)) -> 5.1 | FL7: =IF(Balance!FL7="-","-",ROUND((Balance!FL7/Balance!FL$19)*100,1)) -> 3.4 | FM7: =IF(Balance!FM7="-","-",ROUND((Balance!FM7/Balance!FM$19)*100,1)) -> 1.8 | FN7: =IF(Balance!FN7="-","-",ROUND((Balance!FN7/Balance!FN$19)*100,1)) -> 2 | FO7: =IF(Balance!FO7="-","-",ROUND((Balance!FO7/Balance!FO$19)*100,1)) -> 2 | FP7: =IF(Balance!FP7="-","-",ROUND((Balance!FP7/Balance!FP$19)*100,1)) -> 1.7 | FQ7: =IF(Balance!FQ7="-","-",ROUND((Balance!FQ7/Balance!FQ$19)*100,1)) -> 2.9 | FR7: =IF(Balance!FR7="-","-",ROUND((Balance!FR7/Balance!FR$19)*100,1)) -> 0.9 | FS7: =IF(Balance!FS7="-","-",ROUND((Balance!FS7/Balance!FS$19)*100,1)) -> 1.6 | FT7: =IF(Balance!FT7="-","-",ROUND((Balance!FT7/Balance!FT$19)*100,1)) -> 3.7 | FU7: =IF(Balance!FU7="-","-",ROUND((Balance!FU7/Balance!FU$19)*100,1)) -> 5.1 | FV7: =IF(Balance!FV7="-","-",ROUND((Balance!FV7/Balance!FV$19)*100,1)) -> 3.6 | FW7: =IF(Balance!FW7="-","-",ROUND((Balance!FW7/Balance!FW$19)*100,1)) -> 4.8 | FX7: =IF(Balance!FX7="-","-",ROUND((Balance!FX7/Balance!FX$19)*100,1)) -> 2.9 | FY7: =IF(Balance!FY7="-","-",ROUND((Balance!FY7/Balance!FY$19)*100,1)) -> 2.3 | FZ7: =IF(Balance!FZ7="-","-",ROUND((Balance!FZ7/Balance!FZ$19)*100,1)) -> 3.2 | GA7: =IF(Balance!GA7="-","-",ROUND((Balance!GA7/Balance!GA$19)*100,1)) -> 4 | GB7: =IF(Balance!GB7="-","-",ROUND((Balance!GB7/Balance!GB$19)*100,1)) -> 5.2 | GC7: =IF(Balance!GC7="-","-",ROUND((Balance!GC7/Balance!GC$19)*100,1)) -> 6.4 | GD7: =IF(Balance!GD7="-","-",ROUND((Balance!GD7/Balance!GD$19)*100,1)) -> 1.9 | GE7: =IF(Balance!GE7="-","-",ROUND((Balance!GE7/Balance!GE$19)*100,1)) -> 2.7 | GF7: =IF(Balance!GF7="-","-",ROUND((Balance!GF7/Balance!GF$19)*100,1)) -> 5.5 | GG7: =IF(Balance!GG7="-","-",ROUND((Balance!GG7/Balance!GG$19)*100,1)) -> 6.1 | GH7: =IF(Balance!GH7="-","-",ROUND((Balance!GH7/Balance!GH$19)*100,1)) -> 2 | GI7: =IF(Balance!GI7="-","-",ROUND((Balance!GI7/Balance!GI$19)*100,1)) -> 2.5 | GJ7: =IF(Balance!GJ7="-","-",ROUND((Balance!GJ7/Balance!GJ$19)*100,1)) -> 1.8 | GK7: =IF(Balance!GK7="-","-",ROUND((Balance!GK7/Balance!GK$19)*100,1)) -> 1.9 | GL7: =IF(Balance!GL7="-","-",ROUND((Balance!GL7/Balance!GL$19)*100,1)) -> 3.4 | GM7: =IF(Balance!GM7="-","-",ROUND((Balance!GM7/Balance!GM$19)*100,1)) -> 3.1 | GN7: =IF(Balance!GN7="-","-",ROUND((Balance!GN7/Balance!GN$19)*100,1)) -> 2.8 | GO7: =IF(Balance!GO7="-","-",ROUND((Balance!GO7/Balance!GO$19)*100,1)) -> 1.3 | GP7: =IF(Balance!GP7="-","-",ROUND((Balance!GP7/Balance!GP$19)*100,1)) -> 1.5 | GQ7: =IF(Balance!GQ7="-","-",ROUND((Balance!GQ7/Balance!GQ$19)*100,1)) -> 1.1 | GR7: =IF(Balance!GR7="-","-",ROUND((Balance!GR7/Balance!GR$19)*100,1)) -> 2.4 | GS7: =IF(Balance!GS7="-","-",ROUND((Balance!GS7/Balance!GS$19)*100,1)) -> 4.2 | GT7: =IF(Balance!GT7="-","-",ROUND((Balance!GT7/Balance!GT$19)*100,1)) -> 1.6 | GU7: =IF(Balance!GU7="-","-",ROUND((Balance!GU7/Balance!GU$19)*100,1)) -> 3.5 | GV7: =IF(Balance!GV7="-","-",ROUND((Balance!GV7/Balance!GV$19)*100,1)) -> 1.6 | GW7: =IF(Balance!GW7="-","-",ROUND((Balance!GW7/Balance!GW$19)*100,1)) -> 0.6 | GX7: =IF(Balance!GX7="-","-",ROUND((Balance!GX7/Balance!GX$19)*100,1)) -> 0.5 | GY7: =IF(Balance!GY7="-","-",ROUND((Balance!GY7/Balance!GY$19)*100,1)) -> 0.4 | GZ7: =IF(Balance!GZ7="-","-",ROUND((Balance!GZ7/Balance!GZ$19)*100,1)) -> 1 | HA7: =IF(Balance!HA7="-","-",ROUND((Balance!HA7/Balance!HA$19)*100,1)) -> 0.8 | HB7: =IF(Balance!HB7="-","-",ROUND((Balance!HB7/Balance!HB$19)*100,1)) -> 0.5 | HC7: =IF(Balance!HC7="-","-",ROUND((Balance!HC7/Balance!HC$19)*100,1)) -> 0.8 | HD7: =IF(Balance!HD7="-","-",ROUND((Balance!HD7/Balance!HD$19)*100,1)) -> 0.4 | HE7: =IF(Balance!HE7="-","-",ROUND((Balance!HE7/Balance!HE$19)*100,1)) -> 1.2 | HF7: =IF(Balance!HF7="-","-",ROUND((Balance!HF7/Balance!HF$19)*100,1)) -> 1 | HG7: =IF(Balance!HG7="-","-",ROUND((Balance!HG7/Balance!HG$19)*100,1)) -> 1.1 | HH7: =IF(Balance!HH7="-","-",ROUND((Balance!HH7/Balance!HH$19)*100,1)) -> 0.6 | HI7: =IF(Balance!HI7="-","-",ROUND((Balance!HI7/Balance!HI$19)*100,1)) -> 0.8 | HJ7: =IF(Balance!HJ7="-","-",ROUND((Balance!HJ7/Balance!HJ$19)*100,1)) -> 0.7 | HK7: =IF(Balance!HK7="-","-",ROUND((Balance!HK7/Balance!HK$19)*100,1)) -> 0.6 | HL7: =IF(Balance!HL7="-","-",ROUND((Balance!HL7/Balance!HL$19)*100,1)) -> 0.5 | HM7: =IF(Balance!HM7="-","-",ROUND((Balance!HM7/Balance!HM$19)*100,1)) -> 0.3 | HN7: =IF(Balance!HN7="-","-",ROUND((Balance!HN7/Balance!HN$19)*100,1)) -> 0.6 | HO7: =IF(Balance!HO7="-","-",ROUND((Balance!HO7/Balance!HO$19)*100,1)) -> 0.7 | HP7: =IF(Balance!HP7="-","-",ROUND((Balance!HP7/Balance!HP$19)*100,1)) -> 1.1 | HQ7: =IF(Balance!HQ7="-","-",ROUND((Balance!HQ7/Balance!HQ$19)*100,1)) -> 0.6 | HR7: =IF(Balance!HR7="-","-",ROUND((Balance!HR7/Balance!HR$19)*100,1)) -> 1.1 | HS7: =IF(Balance!HS7="-","-",ROUND((Balance!HS7/Balance!HS$19)*100,1)) -> 0.8 | HT7: =IF(Balance!HT7="-","-",ROUND((Balance!HT7/Balance!HT$19)*100,1)) -> 0.9 | HU7: =IF(Balance!HU7="-","-",ROUND((Balance!HU7/Balance!HU$19)*100,1)) -> 1 | HV7: =IF(Balance!HV7="-","-",ROUND((Balance!HV7/Balance!HV$19)*100,1)) -> 0.8 | HW7: =IF(Balance!HW7="-","-",ROUND((Balance!HW7/Balance!HW$19)*100,1)) -> 0.5 | HX7: =IF(Balance!HX7="-","-",ROUND((Balance!HX7/Balance!HX$19)*100,1)) -> 0.5 | HY7: =IF(Balance!HY7="-","-",ROUND((Balance!HY7/Balance!HY$19)*100,1)) -> 0.9 | HZ7: =IF(Balance!HZ7="-","-",ROUND((Balance!HZ7/Balance!HZ$19)*100,1)) -> 0.7 | IA7: =IF(Balance!IA7="-","-",ROUND((Balance!IA7/Balance!IA$19)*100,1)) -> 0.5 | IB7: =IF(Balance!IB7="-","-",ROUND((Balance!IB7/Balance!IB$19)*100,1)) -> 0.7 | IC7: =IF(Balance!IC7="-","-",ROUND((Balance!IC7/Balance!IC$19)*100,1)) -> 0.9 | ID7: =IF(Balance!ID7="-","-",ROUND((Balance!ID7/Balance!ID$19)*100,1)) -> 0.8 | IE7: =IF(Balance!IE7="-","-",ROUND((Balance!IE7/Balance!IE$19)*100,1)) -> 0.7 | IF7: =IF(Balance!IF7="-","-",ROUND((Balance!IF7/Balance!IF$19)*100,1)) -> 0.5 | IG7: =IF(Balance!IG7="-","-",ROUND((Balance!IG7/Balance!IG$19)*100,1)) -> 0.8 | IH7: =IF(Balance!IH7="-","-",ROUND((Balance!IH7/Balance!IH$19)*100,1)) -> 0.7 | II7: =IF(Balance!II7="-","-",ROUND((Balance!II7/Balance!II$19)*100,1)) -> 0.6 | IJ7: =IF(Balance!IJ7="-","-",ROUND((Balance!IJ7/Balance!IJ$19)*100,1)) -> 0.6 | IK7: =IF(Balance!IK7="-","-",ROUND((Balance!IK7/Balance!IK$19)*100,1)) -> 0.1 | IL7: =IF(Balance!IL7="-","-",ROUND((Balance!IL7/Balance!IL$19)*100,1)) -> 0.5 | IM7: =IF(Balance!IM7="-","-",ROUND((Balance!IM7/Balance!IM$19)*100,1)) -> 0.8 | IN7: =IF(Balance!IN7="-","-",ROUND((Balance!IN7/Balance!IN$19)*100,1)) -> 0.8 | IO7: =IF(Balance!IO7="-","-",ROUND((Balance!IO7/Balance!IO$19)*100,1)) -> 0.6 | IP7: =IF(Balance!IP7="-","-",ROUND((Balance!IP7/Balance!IP$19)*100,1)) -> 0.5 | IQ7: =IF(Balance!IQ7="-","-",ROUND((Balance!IQ7/Balance!IQ$19)*100,1)) -> 0.6 | IR7: =IF(Balance!IR7="-","-",ROUND((Balance!IR7/Balance!IR$19)*100,1)) -> 0.6 | IS7: =IF(Balance!IS7="-","-",ROUND((Balance!IS7/Balance!IS$19)*100,1)) -> 0.7 | IT7: =IF(Balance!IT7="-","-",ROUND((Balance!IT7/Balance!IT$19)*100,1)) -> 0.6 | IU7: =IF(Balance!IU7="-","-",ROUND((Balance!IU7/Balance!IU$19)*100,1)) -> 0 | IV7: =IF(Balance!IV7="-","-",ROUND((Balance!IV7/Balance!IV$19)*100,1)) -> 0 | IW7: =IF(Balance!IW7="-","-",ROUND((Balance!IW7/Balance!IW$19)*100,1)) -> 0 | IX7: =IF(Balance!IX7="-","-",ROUND((Balance!IX7/Balance!IX$19)*100,1)) -> 0 | IY7: =IF(Balance!IY7="-","-",ROUND((Balance!IY7/Balance!IY$19)*100,1)) -> 0 | IZ7: =IF(Balance!IZ7="-","-",ROUND((Balance!IZ7/Balance!IZ$19)*100,1)) -> 0 | JA7: =IF(Balance!JA7="-","-",ROUND((Balance!JA7/Balance!JA$19)*100,1)) -> 0 | JB7: =IF(Balance!JB7="-","-",ROUND((Balance!JB7/Balance!JB$19)*100,1)) -> 0 | JC7: =IF(Balance!JC7="-","-",ROUND((Balance!JC7/Balance!JC$19)*100,1)) -> 0 | JD7: =IF(Balance!JD7="-","-",ROUND((Balance!JD7/Balance!JD$19)*100,1)) -> 0 | JE7: =IF(Balance!JE7="-","-",ROUND((Balance!JE7/Balance!JE$19)*100,1)) -> 0 | JF7: =IF(Balance!JF7="-","-",ROUND((Balance!JF7/Balance!JF$19)*100,1)) -> 0 | JG7: =IF(Balance!JG7="-","-",ROUND((Balance!JG7/Balance!JG$19)*100,1)) -> 0 | JH7: =IF(Balance!JH7="-","-",ROUND((Balance!JH7/Balance!JH$19)*100,1)) -> 0 | JI7: =IF(Balance!JI7="-","-",ROUND((Balance!JI7/Balance!JI$19)*100,1)) -> 0 | JJ7: =IF(Balance!JJ7="-","-",ROUND((Balance!JJ7/Balance!JJ$19)*100,1)) -> 0 | JK7: =IF(Balance!JK7="-","-",ROUND((Balance!JK7/Balance!JK$19)*100,1)) -> 0 | JL7: =IF(Balance!JL7="-","-",ROUND((Balance!JL7/Balance!JL$19)*100,1)) -> 0 | JM7: =IF(Balance!JM7="-","-",ROUND((Balance!JM7/Balance!JM$19)*100,1)) -> 0 | JN7: =IF(Balance!JN7="-","-",ROUND((Balance!JN7/Balance!JN$19)*100,1)) -> 0 | JO7: =IF(Balance!JO7="-","-",ROUND((Balance!JO7/Balance!JO$19)*100,1)) -> 0 | JP7: =IF(Balance!JP7="-","-",ROUND((Balance!JP7/Balance!JP$19)*100,1)) -> 0 | JQ7: =IF(Balance!JQ7="-","-",ROUND((Balance!JQ7/Balance!JQ$19)*100,1)) -> 0 | JR7: =IF(Balance!JR7="-","-",ROUND((Balance!JR7/Balance!JR$19)*100,1)) -> 0 | JS7: =IF(Balance!JS7="-","-",ROUND((Balance!JS7/Balance!JS$19)*100,1)) -> 0 | JT7: =IF(Balance!JT7="-","-",ROUND((Balance!JT7/Balance!JT$19)*100,1)) -> 0 | JU7: =IF(Balance!JU7="-","-",ROUND((Balance!JU7/Balance!JU$19)*100,1)) -> 0 | JV7: =IF(Balance!JV7="-","-",ROUND((Balance!JV7/Balance!JV$19)*100,1)) -> 0 | JW7: =IF(Balance!JW7="-","-",ROUND((Balance!JW7/Balance!JW$19)*100,1)) -> 0 | JX7: =IF(Balance!JX7="-","-",ROUND((Balance!JX7/Balance!JX$19)*100,1)) -> 0 | JY7: =IF(Balance!JY7="-","-",ROUND((Balance!JY7/Balance!JY$19)*100,1)) -> 0 | JZ7: =IF(Balance!JZ7="-","-",ROUND((Balance!JZ7/Balance!JZ$19)*100,1)) -> 0 | KA7: =IF(Balance!KA7="-","-",ROUND((Balance!KA7/Balance!KA$19)*100,1)) -> 0 | KB7: =IF(Balance!KB7="-","-",ROUND((Balance!KB7/Balance!KB$19)*100,1)) -> 0 | KC7: =IF(Balance!KC7="-","-",ROUND((Balance!KC7/Balance!KC$19)*100,1)) -> 0 | KD7: =IF(Balance!KD7="-","-",ROUND((Balance!KD7/Balance!KD$19)*100,1)) -> 0 | KE7: =IF(Balance!KE7="-","-",ROUND((Balance!KE7/Balance!KE$19)*100,1)) -> 0 | KF7: =IF(Balance!KF7="-","-",ROUND((Balance!KF7/Balance!KF$19)*100,1)) -> 0 | KG7: =IF(Balance!KG7="-","-",ROUND((Balance!KG7/Balance!KG$19)*100,1)) -> 0 | KH7: =IF(Balance!KH7="-","-",ROUND((Balance!KH7/Balance!KH$19)*100,1)) -> 0 | KI7: =IF(Balance!KI7="-","-",ROUND((Balance!KI7/Balance!KI$19)*100,1)) -> 0 | KJ7: =IF(Balance!KJ7="-","-",ROUND((Balance!KJ7/Balance!KJ$19)*100,1)) -> 0 | KK7: =IF(Balance!KK7="-","-",ROUND((Balance!KK7/Balance!KK$19)*100,1)) -> 0 | KL7: =IF(Balance!KL7="-","-",ROUND((Balance!KL7/Balance!KL$19)*100,1)) -> 0 | KM7: =IF(Balance!KM7="-","-",ROUND((Balance!KM7/Balance!KM$19)*100,1)) -> 0 | KN7: =IF(Balance!KN7="-","-",ROUND((Balance!KN7/Balance!KN$19)*100,1)) -> 0 | KO7: =IF(Balance!KO7="-","-",ROUND((Balance!KO7/Balance!KO$19)*100,1)) -> 0 | KP7: =IF(Balance!KP7="-","-",ROUND((Balance!KP7/Balance!KP$19)*100,1)) -> 0 | KQ7: =IF(Balance!KQ7="-","-",ROUND((Balance!KQ7/Balance!KQ$19)*100,1)) -> 0 | KR7: =IF(Balance!KR7="-","-",ROUND((Balance!KR7/Balance!KR$19)*100,1)) -> 0 | KS7: =IF(Balance!KS7="-","-",ROUND((Balance!KS7/Balance!KS$19)*100,1)) -> 0 | KT7: =IF(Balance!KT7="-","-",ROUND((Balance!KT7/Balance!KT$19)*100,1)) -> 0 | KU7: =IF(Balance!KU7="-","-",ROUND((Balance!KU7/Balance!KU$19)*100,1)) -> 0 | KV7: =IF(Balance!KV7="-","-",ROUND((Balance!KV7/Balance!KV$19)*100,1)) -> 0 | KW7: =IF(Balance!KW7="-","-",ROUND((Balance!KW7/Balance!KW$19)*100,1)) -> 0 | KX7: =IF(Balance!KX7="-","-",ROUND((Balance!KX7/Balance!KX$19)*100,1)) -> 0 | KY7: =IF(Balance!KY7="-","-",ROUND((Balance!KY7/Balance!KY$19)*100,1)) -> 0 | KZ7: =IF(Balance!KZ7="-","-",ROUND((Balance!KZ7/Balance!KZ$19)*100,1)) -> 0 | LA7: =IF(Balance!LA7="-","-",ROUND((Balance!LA7/Balance!LA$19)*100,1)) -> 0 | LB7: =IF(Balance!LB7="-","-",ROUND((Balance!LB7/Balance!LB$19)*100,1)) -> 0 | LC7: =IF(Balance!LC7="-","-",ROUND((Balance!LC7/Balance!LC$19)*100,1)) -> 0 | LD7: =IF(Balance!LD7="-","-",ROUND((Balance!LD7/Balance!LD$19)*100,1)) -> 0 | LE7: =IF(Balance!LE7="-","-",ROUND((Balance!LE7/Balance!LE$19)*100,1)) -> 0 | LF7: =IF(Balance!LF7="-","-",ROUND((Balance!LF7/Balance!LF$19)*100,1)) -> 0 | LG7: =IF(Balance!LG7="-","-",ROUND((Balance!LG7/Balance!LG$19)*100,1)) -> 0 | LH7: =IF(Balance!LH7="-","-",ROUND((Balance!LH7/Balance!LH$19)*100,1)) -> 0 | LI7: =IF(Balance!LI7="-","-",ROUND((Balance!LI7/Balance!LI$19)*100,1)) -> 0 | LJ7: =IF(Balance!LJ7="-","-",ROUND((Balance!LJ7/Balance!LJ$19)*100,1)) -> 0 | LK7: =IF(Balance!LK7="-","-",ROUND((Balance!LK7/Balance!LK$19)*100,1)) -> 0 | LL7: =IF(Balance!LL7="-","-",ROUND((Balance!LL7/Balance!LL$19)*100,1)) -> 0 | LM7: =IF(Balance!LM7="-","-",ROUND((Balance!LM7/Balance!LM$19)*100,1)) -> 0 | LN7: =IF(Balance!LN7="-","-",ROUND((Balance!LN7/Balance!LN$19)*100,1)) -> 0 | LO7: =IF(Balance!LO7="-","-",ROUND((Balance!LO7/Balance!LO$19)*100,1)) -> 0 | LP7: =IF(Balance!LP7="-","-",ROUND((Balance!LP7/Balance!LP$19)*100,1)) -> 0 | LQ7: =IF(Balance!LQ7="-","-",ROUND((Balance!LQ7/Balance!LQ$19)*100,1)) -> 0 | LR7: =IF(Balance!LR7="-","-",ROUND((Balance!LR7/Balance!LR$19)*100,1)) -> 0 | LS7: =IF(Balance!LS7="-","-",ROUND((Balance!LS7/Balance!LS$19)*100,1)) -> 0 | LT7: =IF(Balance!LT7="-","-",ROUND((Balance!LT7/Balance!LT$19)*100,1)) -> 0 | LU7: =IF(Balance!LU7="-","-",ROUND((Balance!LU7/Balance!LU$19)*100,1)) -> 0 | LV7: =IF(Balance!LV7="-","-",ROUND((Balance!LV7/Balance!LV$19)*100,1)) -> 0 | LW7: =IF(Balance!LW7="-","-",ROUND((Balance!LW7/Balance!LW$19)*100,1)) -> 0 | LX7: =IF(Balance!LX7="-","-",ROUND((Balance!LX7/Balance!LX$19)*100,1)) -> 0 | LY7: =IF(Balance!LY7="-","-",ROUND((Balance!LY7/Balance!LY$19)*100,1)) -> 0 | LZ7: =IF(Balance!LZ7="-","-",ROUND((Balance!LZ7/Balance!LZ$19)*100,1)) -> 0 | MA7: =IF(Balance!MA7="-","-",ROUND((Balance!MA7/Balance!MA$19)*100,1)) -> 0 | MB7: =IF(Balance!MB7="-","-",ROUND((Balance!MB7/Balance!MB$19)*100,1)) -> - | MC7: =IF(Balance!MC7="-","-",ROUND((Balance!MC7/Balance!MC$19)*100,1)) -> - | MD7: =IF(Balance!MD7="-","-",ROUND((Balance!MD7/Balance!MD$19)*100,1)) -> - | ME7: =IF(Balance!ME7="-","-",ROUND((Balance!ME7/Balance!ME$19)*100,1)) -> - | MF7: =IF(Balance!MF7="-","-",ROUND((Balance!MF7/Balance!MF$19)*100,1)) -> - | MG7: =IF(Balance!MG7="-","-",ROUND((Balance!MG7/Balance!MG$19)*100,1)) -> - | MH7: =IF(Balance!MH7="-","-",ROUND((Balance!MH7/Balance!MH$19)*100,1)) -> - | MI7: =IF(Balance!MI7="-","-",ROUND((Balance!MI7/Balance!MI$19)*100,1)) -> - | MJ7: =IF(Balance!MJ7="-","-",ROUND((Balance!MJ7/Balance!MJ$19)*100,1)) -> - | MK7: =IF(Balance!MK7="-","-",ROUND((Balance!MK7/Balance!MK$19)*100,1)) -> - | ML7: =IF(Balance!ML7="-","-",ROUND((Balance!ML7/Balance!ML$19)*100,1)) -> -
B8: Ciclo combinado | C8: =IF(Balance!C8="-","-",ROUND((Balance!C8/Balance!C$19)*100,1)) -> - | D8: =IF(Balance!D8="-","-",ROUND((Balance!D8/Balance!D$19)*100,1)) -> - | E8: =IF(Balance!E8="-","-",ROUND((Balance!E8/Balance!E$19)*100,1)) -> - | F8: =IF(Balance!F8="-","-",ROUND((Balance!F8/Balance!F$19)*100,1)) -> - | G8: =IF(Balance!G8="-","-",ROUND((Balance!G8/Balance!G$19)*100,1)) -> - | H8: =IF(Balance!H8="-","-",ROUND((Balance!H8/Balance!H$19)*100,1)) -> - | I8: =IF(Balance!I8="-","-",ROUND((Balance!I8/Balance!I$19)*100,1)) -> - | J8: =IF(Balance!J8="-","-",ROUND((Balance!J8/Balance!J$19)*100,1)) -> - | K8: =IF(Balance!K8="-","-",ROUND((Balance!K8/Balance!K$19)*100,1)) -> - | L8: =IF(Balance!L8="-","-",ROUND((Balance!L8/Balance!L$19)*100,1)) -> - | M8: =IF(Balance!M8="-","-",ROUND((Balance!M8/Balance!M$19)*100,1)) -> - | N8: =IF(Balance!N8="-","-",ROUND((Balance!N8/Balance!N$19)*100,1)) -> - | O8: =IF(Balance!O8="-","-",ROUND((Balance!O8/Balance!O$19)*100,1)) -> - | P8: =IF(Balance!P8="-","-",ROUND((Balance!P8/Balance!P$19)*100,1)) -> - | Q8: =IF(Balance!Q8="-","-",ROUND((Balance!Q8/Balance!Q$19)*100,1)) -> - | R8: =IF(Balance!R8="-","-",ROUND((Balance!R8/Balance!R$19)*100,1)) -> - | S8: =IF(Balance!S8="-","-",ROUND((Balance!S8/Balance!S$19)*100,1)) -> - | T8: =IF(Balance!T8="-","-",ROUND((Balance!T8/Balance!T$19)*100,1)) -> - | U8: =IF(Balance!U8="-","-",ROUND((Balance!U8/Balance!U$19)*100,1)) -> - | V8: =IF(Balance!V8="-","-",ROUND((Balance!V8/Balance!V$19)*100,1)) -> - | W8: =IF(Balance!W8="-","-",ROUND((Balance!W8/Balance!W$19)*100,1)) -> - | X8: =IF(Balance!X8="-","-",ROUND((Balance!X8/Balance!X$19)*100,1)) -> - | Y8: =IF(Balance!Y8="-","-",ROUND((Balance!Y8/Balance!Y$19)*100,1)) -> - | Z8: =IF(Balance!Z8="-","-",ROUND((Balance!Z8/Balance!Z$19)*100,1)) -> - | AA8: =IF(Balance!AA8="-","-",ROUND((Balance!AA8/Balance!AA$19)*100,1)) -> - | AB8: =IF(Balance!AB8="-","-",ROUND((Balance!AB8/Balance!AB$19)*100,1)) -> - | AC8: =IF(Balance!AC8="-","-",ROUND((Balance!AC8/Balance!AC$19)*100,1)) -> - | AD8: =IF(Balance!AD8="-","-",ROUND((Balance!AD8/Balance!AD$19)*100,1)) -> - | AE8: =IF(Balance!AE8="-","-",ROUND((Balance!AE8/Balance!AE$19)*100,1)) -> - | AF8: =IF(Balance!AF8="-","-",ROUND((Balance!AF8/Balance!AF$19)*100,1)) -> - | AG8: =IF(Balance!AG8="-","-",ROUND((Balance!AG8/Balance!AG$19)*100,1)) -> - | AH8: =IF(Balance!AH8="-","-",ROUND((Balance!AH8/Balance!AH$19)*100,1)) -> - | AI8: =IF(Balance!AI8="-","-",ROUND((Balance!AI8/Balance!AI$19)*100,1)) -> - | AJ8: =IF(Balance!AJ8="-","-",ROUND((Balance!AJ8/Balance!AJ$19)*100,1)) -> - | AK8: =IF(Balance!AK8="-","-",ROUND((Balance!AK8/Balance!AK$19)*100,1)) -> - | AL8: =IF(Balance!AL8="-","-",ROUND((Balance!AL8/Balance!AL$19)*100,1)) -> - | AM8: =IF(Balance!AM8="-","-",ROUND((Balance!AM8/Balance!AM$19)*100,1)) -> 0 | AN8: =IF(Balance!AN8="-","-",ROUND((Balance!AN8/Balance!AN$19)*100,1)) -> - | AO8: =IF(Balance!AO8="-","-",ROUND((Balance!AO8/Balance!AO$19)*100,1)) -> - | AP8: =IF(Balance!AP8="-","-",ROUND((Balance!AP8/Balance!AP$19)*100,1)) -> - | AQ8: =IF(Balance!AQ8="-","-",ROUND((Balance!AQ8/Balance!AQ$19)*100,1)) -> - | AR8: =IF(Balance!AR8="-","-",ROUND((Balance!AR8/Balance!AR$19)*100,1)) -> - | AS8: =IF(Balance!AS8="-","-",ROUND((Balance!AS8/Balance!AS$19)*100,1)) -> - | AT8: =IF(Balance!AT8="-","-",ROUND((Balance!AT8/Balance!AT$19)*100,1)) -> - | AU8: =IF(Balance!AU8="-","-",ROUND((Balance!AU8/Balance!AU$19)*100,1)) -> - | AV8: =IF(Balance!AV8="-","-",ROUND((Balance!AV8/Balance!AV$19)*100,1)) -> - | AW8: =IF(Balance!AW8="-","-",ROUND((Balance!AW8/Balance!AW$19)*100,1)) -> - | AX8: =IF(Balance!AX8="-","-",ROUND((Balance!AX8/Balance!AX$19)*100,1)) -> - | AY8: =IF(Balance!AY8="-","-",ROUND((Balance!AY8/Balance!AY$19)*100,1)) -> - | AZ8: =IF(Balance!AZ8="-","-",ROUND((Balance!AZ8/Balance!AZ$19)*100,1)) -> - | BA8: =IF(Balance!BA8="-","-",ROUND((Balance!BA8/Balance!BA$19)*100,1)) -> - | BB8: =IF(Balance!BB8="-","-",ROUND((Balance!BB8/Balance!BB$19)*100,1)) -> - | BC8: =IF(Balance!BC8="-","-",ROUND((Balance!BC8/Balance!BC$19)*100,1)) -> - | BD8: =IF(Balance!BD8="-","-",ROUND((Balance!BD8/Balance!BD$19)*100,1)) -> - | BE8: =IF(Balance!BE8="-","-",ROUND((Balance!BE8/Balance!BE$19)*100,1)) -> - | BF8: =IF(Balance!BF8="-","-",ROUND((Balance!BF8/Balance!BF$19)*100,1)) -> - | BG8: =IF(Balance!BG8="-","-",ROUND((Balance!BG8/Balance!BG$19)*100,1)) -> - | BH8: =IF(Balance!BH8="-","-",ROUND((Balance!BH8/Balance!BH$19)*100,1)) -> - | BI8: =IF(Balance!BI8="-","-",ROUND((Balance!BI8/Balance!BI$19)*100,1)) -> - | BJ8: =IF(Balance!BJ8="-","-",ROUND((Balance!BJ8/Balance!BJ$19)*100,1)) -> - | BK8: =IF(Balance!BK8="-","-",ROUND((Balance!BK8/Balance!BK$19)*100,1)) -> - | BL8: =IF(Balance!BL8="-","-",ROUND((Balance!BL8/Balance!BL$19)*100,1)) -> - | BM8: =IF(Balance!BM8="-","-",ROUND((Balance!BM8/Balance!BM$19)*100,1)) -> - | BN8: =IF(Balance!BN8="-","-",ROUND((Balance!BN8/Balance!BN$19)*100,1)) -> - | BO8: =IF(Balance!BO8="-","-",ROUND((Balance!BO8/Balance!BO$19)*100,1)) -> - | BP8: =IF(Balance!BP8="-","-",ROUND((Balance!BP8/Balance!BP$19)*100,1)) -> - | BQ8: =IF(Balance!BQ8="-","-",ROUND((Balance!BQ8/Balance!BQ$19)*100,1)) -> - | BR8: =IF(Balance!BR8="-","-",ROUND((Balance!BR8/Balance!BR$19)*100,1)) -> - | BS8: =IF(Balance!BS8="-","-",ROUND((Balance!BS8/Balance!BS$19)*100,1)) -> - | BT8: =IF(Balance!BT8="-","-",ROUND((Balance!BT8/Balance!BT$19)*100,1)) -> - | BU8: =IF(Balance!BU8="-","-",ROUND((Balance!BU8/Balance!BU$19)*100,1)) -> - | BV8: =IF(Balance!BV8="-","-",ROUND((Balance!BV8/Balance!BV$19)*100,1)) -> - | BW8: =IF(Balance!BW8="-","-",ROUND((Balance!BW8/Balance!BW$19)*100,1)) -> - | BX8: =IF(Balance!BX8="-","-",ROUND((Balance!BX8/Balance!BX$19)*100,1)) -> - | BY8: =IF(Balance!BY8="-","-",ROUND((Balance!BY8/Balance!BY$19)*100,1)) -> - | BZ8: =IF(Balance!BZ8="-","-",ROUND((Balance!BZ8/Balance!BZ$19)*100,1)) -> - | CA8: =IF(Balance!CA8="-","-",ROUND((Balance!CA8/Balance!CA$19)*100,1)) -> - | CB8: =IF(Balance!CB8="-","-",ROUND((Balance!CB8/Balance!CB$19)*100,1)) -> - | CC8: =IF(Balance!CC8="-","-",ROUND((Balance!CC8/Balance!CC$19)*100,1)) -> - | CD8: =IF(Balance!CD8="-","-",ROUND((Balance!CD8/Balance!CD$19)*100,1)) -> - | CE8: =IF(Balance!CE8="-","-",ROUND((Balance!CE8/Balance!CE$19)*100,1)) -> - | CF8: =IF(Balance!CF8="-","-",ROUND((Balance!CF8/Balance!CF$19)*100,1)) -> - | CG8: =IF(Balance!CG8="-","-",ROUND((Balance!CG8/Balance!CG$19)*100,1)) -> - | CH8: =IF(Balance!CH8="-","-",ROUND((Balance!CH8/Balance!CH$19)*100,1)) -> - | CI8: =IF(Balance!CI8="-","-",ROUND((Balance!CI8/Balance!CI$19)*100,1)) -> - | CJ8: =IF(Balance!CJ8="-","-",ROUND((Balance!CJ8/Balance!CJ$19)*100,1)) -> - | CK8: =IF(Balance!CK8="-","-",ROUND((Balance!CK8/Balance!CK$19)*100,1)) -> - | CL8: =IF(Balance!CL8="-","-",ROUND((Balance!CL8/Balance!CL$19)*100,1)) -> - | CM8: =IF(Balance!CM8="-","-",ROUND((Balance!CM8/Balance!CM$19)*100,1)) -> - | CN8: =IF(Balance!CN8="-","-",ROUND((Balance!CN8/Balance!CN$19)*100,1)) -> - | CO8: =IF(Balance!CO8="-","-",ROUND((Balance!CO8/Balance!CO$19)*100,1)) -> - | CP8: =IF(Balance!CP8="-","-",ROUND((Balance!CP8/Balance!CP$19)*100,1)) -> - | CQ8: =IF(Balance!CQ8="-","-",ROUND((Balance!CQ8/Balance!CQ$19)*100,1)) -> - | CR8: =IF(Balance!CR8="-","-",ROUND((Balance!CR8/Balance!CR$19)*100,1)) -> - | CS8: =IF(Balance!CS8="-","-",ROUND((Balance!CS8/Balance!CS$19)*100,1)) -> - | CT8: =IF(Balance!CT8="-","-",ROUND((Balance!CT8/Balance!CT$19)*100,1)) -> - | CU8: =IF(Balance!CU8="-","-",ROUND((Balance!CU8/Balance!CU$19)*100,1)) -> - | CV8: =IF(Balance!CV8="-","-",ROUND((Balance!CV8/Balance!CV$19)*100,1)) -> - | CW8: =IF(Balance!CW8="-","-",ROUND((Balance!CW8/Balance!CW$19)*100,1)) -> - | CX8: =IF(Balance!CX8="-","-",ROUND((Balance!CX8/Balance!CX$19)*100,1)) -> - | CY8: =IF(Balance!CY8="-","-",ROUND((Balance!CY8/Balance!CY$19)*100,1)) -> - | CZ8: =IF(Balance!CZ8="-","-",ROUND((Balance!CZ8/Balance!CZ$19)*100,1)) -> - | DA8: =IF(Balance!DA8="-","-",ROUND((Balance!DA8/Balance!DA$19)*100,1)) -> - | DB8: =IF(Balance!DB8="-","-",ROUND((Balance!DB8/Balance!DB$19)*100,1)) -> - | DC8: =IF(Balance!DC8="-","-",ROUND((Balance!DC8/Balance!DC$19)*100,1)) -> - | DD8: =IF(Balance!DD8="-","-",ROUND((Balance!DD8/Balance!DD$19)*100,1)) -> - | DE8: =IF(Balance!DE8="-","-",ROUND((Balance!DE8/Balance!DE$19)*100,1)) -> - | DF8: =IF(Balance!DF8="-","-",ROUND((Balance!DF8/Balance!DF$19)*100,1)) -> - | DG8: =IF(Balance!DG8="-","-",ROUND((Balance!DG8/Balance!DG$19)*100,1)) -> - | DH8: =IF(Balance!DH8="-","-",ROUND((Balance!DH8/Balance!DH$19)*100,1)) -> - | DI8: =IF(Balance!DI8="-","-",ROUND((Balance!DI8/Balance!DI$19)*100,1)) -> - | DJ8: =IF(Balance!DJ8="-","-",ROUND((Balance!DJ8/Balance!DJ$19)*100,1)) -> - | DK8: =IF(Balance!DK8="-","-",ROUND((Balance!DK8/Balance!DK$19)*100,1)) -> - | DL8: =IF(Balance!DL8="-","-",ROUND((Balance!DL8/Balance!DL$19)*100,1)) -> - | DM8: =IF(Balance!DM8="-","-",ROUND((Balance!DM8/Balance!DM$19)*100,1)) -> - | DN8: =IF(Balance!DN8="-","-",ROUND((Balance!DN8/Balance!DN$19)*100,1)) -> - | DO8: =IF(Balance!DO8="-","-",ROUND((Balance!DO8/Balance!DO$19)*100,1)) -> - | DP8: =IF(Balance!DP8="-","-",ROUND((Balance!DP8/Balance!DP$19)*100,1)) -> - | DQ8: =IF(Balance!DQ8="-","-",ROUND((Balance!DQ8/Balance!DQ$19)*100,1)) -> - | DR8: =IF(Balance!DR8="-","-",ROUND((Balance!DR8/Balance!DR$19)*100,1)) -> - | DS8: =IF(Balance!DS8="-","-",ROUND((Balance!DS8/Balance!DS$19)*100,1)) -> - | DT8: =IF(Balance!DT8="-","-",ROUND((Balance!DT8/Balance!DT$19)*100,1)) -> - | DU8: =IF(Balance!DU8="-","-",ROUND((Balance!DU8/Balance!DU$19)*100,1)) -> - | DV8: =IF(Balance!DV8="-","-",ROUND((Balance!DV8/Balance!DV$19)*100,1)) -> - | DW8: =IF(Balance!DW8="-","-",ROUND((Balance!DW8/Balance!DW$19)*100,1)) -> - | DX8: =IF(Balance!DX8="-","-",ROUND((Balance!DX8/Balance!DX$19)*100,1)) -> - | DY8: =IF(Balance!DY8="-","-",ROUND((Balance!DY8/Balance!DY$19)*100,1)) -> - | DZ8: =IF(Balance!DZ8="-","-",ROUND((Balance!DZ8/Balance!DZ$19)*100,1)) -> - | EA8: =IF(Balance!EA8="-","-",ROUND((Balance!EA8/Balance!EA$19)*100,1)) -> - | EB8: =IF(Balance!EB8="-","-",ROUND((Balance!EB8/Balance!EB$19)*100,1)) -> - | EC8: =IF(Balance!EC8="-","-",ROUND((Balance!EC8/Balance!EC$19)*100,1)) -> - | ED8: =IF(Balance!ED8="-","-",ROUND((Balance!ED8/Balance!ED$19)*100,1)) -> - | EE8: =IF(Balance!EE8="-","-",ROUND((Balance!EE8/Balance!EE$19)*100,1)) -> - | EF8: =IF(Balance!EF8="-","-",ROUND((Balance!EF8/Balance!EF$19)*100,1)) -> - | EG8: =IF(Balance!EG8="-","-",ROUND((Balance!EG8/Balance!EG$19)*100,1)) -> - | EH8: =IF(Balance!EH8="-","-",ROUND((Balance!EH8/Balance!EH$19)*100,1)) -> - | EI8: =IF(Balance!EI8="-","-",ROUND((Balance!EI8/Balance!EI$19)*100,1)) -> - | EJ8: =IF(Balance!EJ8="-","-",ROUND((Balance!EJ8/Balance!EJ$19)*100,1)) -> - | EK8: =IF(Balance!EK8="-","-",ROUND((Balance!EK8/Balance!EK$19)*100,1)) -> - | EL8: =IF(Balance!EL8="-","-",ROUND((Balance!EL8/Balance!EL$19)*100,1)) -> - | EM8: =IF(Balance!EM8="-","-",ROUND((Balance!EM8/Balance!EM$19)*100,1)) -> - | EN8: =IF(Balance!EN8="-","-",ROUND((Balance!EN8/Balance!EN$19)*100,1)) -> - | EO8: =IF(Balance!EO8="-","-",ROUND((Balance!EO8/Balance!EO$19)*100,1)) -> - | EP8: =IF(Balance!EP8="-","-",ROUND((Balance!EP8/Balance!EP$19)*100,1)) -> - | EQ8: =IF(Balance!EQ8="-","-",ROUND((Balance!EQ8/Balance!EQ$19)*100,1)) -> - | ER8: =IF(Balance!ER8="-","-",ROUND((Balance!ER8/Balance!ER$19)*100,1)) -> - | ES8: =IF(Balance!ES8="-","-",ROUND((Balance!ES8/Balance!ES$19)*100,1)) -> - | ET8: =IF(Balance!ET8="-","-",ROUND((Balance!ET8/Balance!ET$19)*100,1)) -> - | EU8: =IF(Balance!EU8="-","-",ROUND((Balance!EU8/Balance!EU$19)*100,1)) -> 0.7 | EV8: =IF(Balance!EV8="-","-",ROUND((Balance!EV8/Balance!EV$19)*100,1)) -> 1.7 | EW8: =IF(Balance!EW8="-","-",ROUND((Balance!EW8/Balance!EW$19)*100,1)) -> 2.8 | EX8: =IF(Balance!EX8="-","-",ROUND((Balance!EX8/Balance!EX$19)*100,1)) -> 4.5 | EY8: =IF(Balance!EY8="-","-",ROUND((Balance!EY8/Balance!EY$19)*100,1)) -> 6.8 | EZ8: =IF(Balance!EZ8="-","-",ROUND((Balance!EZ8/Balance!EZ$19)*100,1)) -> 6.4 | FA8: =IF(Balance!FA8="-","-",ROUND((Balance!FA8/Balance!FA$19)*100,1)) -> 3.4 | FB8: =IF(Balance!FB8="-","-",ROUND((Balance!FB8/Balance!FB$19)*100,1)) -> 2.7 | FC8: =IF(Balance!FC8="-","-",ROUND((Balance!FC8/Balance!FC$19)*100,1)) -> 2.1 | FD8: =IF(Balance!FD8="-","-",ROUND((Balance!FD8/Balance!FD$19)*100,1)) -> 4.4 | FE8: =IF(Balance!FE8="-","-",ROUND((Balance!FE8/Balance!FE$19)*100,1)) -> 4.1 | FF8: =IF(Balance!FF8="-","-",ROUND((Balance!FF8/Balance!FF$19)*100,1)) -> 2.2 | FG8: =IF(Balance!FG8="-","-",ROUND((Balance!FG8/Balance!FG$19)*100,1)) -> 4.5 | FH8: =IF(Balance!FH8="-","-",ROUND((Balance!FH8/Balance!FH$19)*100,1)) -> 9.4 | FI8: =IF(Balance!FI8="-","-",ROUND((Balance!FI8/Balance!FI$19)*100,1)) -> 9.5 | FJ8: =IF(Balance!FJ8="-","-",ROUND((Balance!FJ8/Balance!FJ$19)*100,1)) -> 9.4 | FK8: =IF(Balance!FK8="-","-",ROUND((Balance!FK8/Balance!FK$19)*100,1)) -> 11 | FL8: =IF(Balance!FL8="-","-",ROUND((Balance!FL8/Balance!FL$19)*100,1)) -> 9.4 | FM8: =IF(Balance!FM8="-","-",ROUND((Balance!FM8/Balance!FM$19)*100,1)) -> 6.3 | FN8: =IF(Balance!FN8="-","-",ROUND((Balance!FN8/Balance!FN$19)*100,1)) -> 4.2 | FO8: =IF(Balance!FO8="-","-",ROUND((Balance!FO8/Balance!FO$19)*100,1)) -> 7.3 | FP8: =IF(Balance!FP8="-","-",ROUND((Balance!FP8/Balance!FP$19)*100,1)) -> 9.7 | FQ8: =IF(Balance!FQ8="-","-",ROUND((Balance!FQ8/Balance!FQ$19)*100,1)) -> 10.7 | FR8: =IF(Balance!FR8="-","-",ROUND((Balance!FR8/Balance!FR$19)*100,1)) -> 9.5 | FS8: =IF(Balance!FS8="-","-",ROUND((Balance!FS8/Balance!FS$19)*100,1)) -> 10.5 | FT8: =IF(Balance!FT8="-","-",ROUND((Balance!FT8/Balance!FT$19)*100,1)) -> 11.5 | FU8: =IF(Balance!FU8="-","-",ROUND((Balance!FU8/Balance!FU$19)*100,1)) -> 12.8 | FV8: =IF(Balance!FV8="-","-",ROUND((Balance!FV8/Balance!FV$19)*100,1)) -> 11.8 | FW8: =IF(Balance!FW8="-","-",ROUND((Balance!FW8/Balance!FW$19)*100,1)) -> 14.8 | FX8: =IF(Balance!FX8="-","-",ROUND((Balance!FX8/Balance!FX$19)*100,1)) -> 14.3 | FY8: =IF(Balance!FY8="-","-",ROUND((Balance!FY8/Balance!FY$19)*100,1)) -> 13.4 | FZ8: =IF(Balance!FZ8="-","-",ROUND((Balance!FZ8/Balance!FZ$19)*100,1)) -> 13.2 | GA8: =IF(Balance!GA8="-","-",ROUND((Balance!GA8/Balance!GA$19)*100,1)) -> 14.8 | GB8: =IF(Balance!GB8="-","-",ROUND((Balance!GB8/Balance!GB$19)*100,1)) -> 15.9 | GC8: =IF(Balance!GC8="-","-",ROUND((Balance!GC8/Balance!GC$19)*100,1)) -> 15.6 | GD8: =IF(Balance!GD8="-","-",ROUND((Balance!GD8/Balance!GD$19)*100,1)) -> 16.7 | GE8: =IF(Balance!GE8="-","-",ROUND((Balance!GE8/Balance!GE$19)*100,1)) -> 17.8 | GF8: =IF(Balance!GF8="-","-",ROUND((Balance!GF8/Balance!GF$19)*100,1)) -> 22.2 | GG8: =IF(Balance!GG8="-","-",ROUND((Balance!GG8/Balance!GG$19)*100,1)) -> 23.4 | GH8: =IF(Balance!GH8="-","-",ROUND((Balance!GH8/Balance!GH$19)*100,1)) -> 21.9 | GI8: =IF(Balance!GI8="-","-",ROUND((Balance!GI8/Balance!GI$19)*100,1)) -> 21.6 | GJ8: =IF(Balance!GJ8="-","-",ROUND((Balance!GJ8/Balance!GJ$19)*100,1)) -> 20 | GK8: =IF(Balance!GK8="-","-",ROUND((Balance!GK8/Balance!GK$19)*100,1)) -> 19.1 | GL8: =IF(Balance!GL8="-","-",ROUND((Balance!GL8/Balance!GL$19)*100,1)) -> 17.5 | GM8: =IF(Balance!GM8="-","-",ROUND((Balance!GM8/Balance!GM$19)*100,1)) -> 22.7 | GN8: =IF(Balance!GN8="-","-",ROUND((Balance!GN8/Balance!GN$19)*100,1)) -> 24.5 | GO8: =IF(Balance!GO8="-","-",ROUND((Balance!GO8/Balance!GO$19)*100,1)) -> 20.3 | GP8: =IF(Balance!GP8="-","-",ROUND((Balance!GP8/Balance!GP$19)*100,1)) -> 24.5 | GQ8: =IF(Balance!GQ8="-","-",ROUND((Balance!GQ8/Balance!GQ$19)*100,1)) -> 23.9 | GR8: =IF(Balance!GR8="-","-",ROUND((Balance!GR8/Balance!GR$19)*100,1)) -> 25.5 | GS8: =IF(Balance!GS8="-","-",ROUND((Balance!GS8/Balance!GS$19)*100,1)) -> 27.9 | GT8: =IF(Balance!GT8="-","-",ROUND((Balance!GT8/Balance!GT$19)*100,1)) -> 23.1 | GU8: =IF(Balance!GU8="-","-",ROUND((Balance!GU8/Balance!GU$19)*100,1)) -> 29.2 | GV8: =IF(Balance!GV8="-","-",ROUND((Balance!GV8/Balance!GV$19)*100,1)) -> 23.8 | GW8: =IF(Balance!GW8="-","-",ROUND((Balance!GW8/Balance!GW$19)*100,1)) -> 19.9 | GX8: =IF(Balance!GX8="-","-",ROUND((Balance!GX8/Balance!GX$19)*100,1)) -> 18 | GY8: =IF(Balance!GY8="-","-",ROUND((Balance!GY8/Balance!GY$19)*100,1)) -> 24.7 | GZ8: =IF(Balance!GZ8="-","-",ROUND((Balance!GZ8/Balance!GZ$19)*100,1)) -> 17.5 | HA8: =IF(Balance!HA8="-","-",ROUND((Balance!HA8/Balance!HA$19)*100,1)) -> 16.5 | HB8: =IF(Balance!HB8="-","-",ROUND((Balance!HB8/Balance!HB$19)*100,1)) -> 19.5 | HC8: =IF(Balance!HC8="-","-",ROUND((Balance!HC8/Balance!HC$19)*100,1)) -> 19.9 | HD8: =IF(Balance!HD8="-","-",ROUND((Balance!HD8/Balance!HD$19)*100,1)) -> 28.5 | HE8: =IF(Balance!HE8="-","-",ROUND((Balance!HE8/Balance!HE$19)*100,1)) -> 28 | HF8: =IF(Balance!HF8="-","-",ROUND((Balance!HF8/Balance!HF$19)*100,1)) -> 23.6 | HG8: =IF(Balance!HG8="-","-",ROUND((Balance!HG8/Balance!HG$19)*100,1)) -> 25.5 | HH8: =IF(Balance!HH8="-","-",ROUND((Balance!HH8/Balance!HH$19)*100,1)) -> 26.9 | HI8: =IF(Balance!HI8="-","-",ROUND((Balance!HI8/Balance!HI$19)*100,1)) -> 31.8 | HJ8: =IF(Balance!HJ8="-","-",ROUND((Balance!HJ8/Balance!HJ$19)*100,1)) -> 29.1 | HK8: =IF(Balance!HK8="-","-",ROUND((Balance!HK8/Balance!HK$19)*100,1)) -> 31.6 | HL8: =IF(Balance!HL8="-","-",ROUND((Balance!HL8/Balance!HL$19)*100,1)) -> 33.8 | HM8: =IF(Balance!HM8="-","-",ROUND((Balance!HM8/Balance!HM$19)*100,1)) -> 28.3 | HN8: =IF(Balance!HN8="-","-",ROUND((Balance!HN8/Balance!HN$19)*100,1)) -> 30 | HO8: =IF(Balance!HO8="-","-",ROUND((Balance!HO8/Balance!HO$19)*100,1)) -> 32.8 | HP8: =IF(Balance!HP8="-","-",ROUND((Balance!HP8/Balance!HP$19)*100,1)) -> 33.9 | HQ8: =IF(Balance!HQ8="-","-",ROUND((Balance!HQ8/Balance!HQ$19)*100,1)) -> 36.3 | HR8: =IF(Balance!HR8="-","-",ROUND((Balance!HR8/Balance!HR$19)*100,1)) -> 36.2 | HS8: =IF(Balance!HS8="-","-",ROUND((Balance!HS8/Balance!HS$19)*100,1)) -> 35.1 | HT8: =IF(Balance!HT8="-","-",ROUND((Balance!HT8/Balance!HT$19)*100,1)) -> 32 | HU8: =IF(Balance!HU8="-","-",ROUND((Balance!HU8/Balance!HU$19)*100,1)) -> 29.2 | HV8: =IF(Balance!HV8="-","-",ROUND((Balance!HV8/Balance!HV$19)*100,1)) -> 23.2 | HW8: =IF(Balance!HW8="-","-",ROUND((Balance!HW8/Balance!HW$19)*100,1)) -> 23.7 | HX8: =IF(Balance!HX8="-","-",ROUND((Balance!HX8/Balance!HX$19)*100,1)) -> 20.4 | HY8: =IF(Balance!HY8="-","-",ROUND((Balance!HY8/Balance!HY$19)*100,1)) -> 23.5 | HZ8: =IF(Balance!HZ8="-","-",ROUND((Balance!HZ8/Balance!HZ$19)*100,1)) -> 27.1 | IA8: =IF(Balance!IA8="-","-",ROUND((Balance!IA8/Balance!IA$19)*100,1)) -> 27.6 | IB8: =IF(Balance!IB8="-","-",ROUND((Balance!IB8/Balance!IB$19)*100,1)) -> 35.4 | IC8: =IF(Balance!IC8="-","-",ROUND((Balance!IC8/Balance!IC$19)*100,1)) -> 36 | ID8: =IF(Balance!ID8="-","-",ROUND((Balance!ID8/Balance!ID$19)*100,1)) -> 36.8 | IE8: =IF(Balance!IE8="-","-",ROUND((Balance!IE8/Balance!IE$19)*100,1)) -> 34.6 | IF8: =IF(Balance!IF8="-","-",ROUND((Balance!IF8/Balance!IF$19)*100,1)) -> 30.4 | IG8: =IF(Balance!IG8="-","-",ROUND((Balance!IG8/Balance!IG$19)*100,1)) -> 25.2 | IH8: =IF(Balance!IH8="-","-",ROUND((Balance!IH8/Balance!IH$19)*100,1)) -> 25.9 | II8: =IF(Balance!II8="-","-",ROUND((Balance!II8/Balance!II$19)*100,1)) -> 21.4 | IJ8: =IF(Balance!IJ8="-","-",ROUND((Balance!IJ8/Balance!IJ$19)*100,1)) -> 20.7 | IK8: =IF(Balance!IK8="-","-",ROUND((Balance!IK8/Balance!IK$19)*100,1)) -> 17.1 | IL8: =IF(Balance!IL8="-","-",ROUND((Balance!IL8/Balance!IL$19)*100,1)) -> 20.8 | IM8: =IF(Balance!IM8="-","-",ROUND((Balance!IM8/Balance!IM$19)*100,1)) -> 21.4 | IN8: =IF(Balance!IN8="-","-",ROUND((Balance!IN8/Balance!IN$19)*100,1)) -> 25.5 | IO8: =IF(Balance!IO8="-","-",ROUND((Balance!IO8/Balance!IO$19)*100,1)) -> 27.9 | IP8: =IF(Balance!IP8="-","-",ROUND((Balance!IP8/Balance!IP$19)*100,1)) -> 25.6 | IQ8: =IF(Balance!IQ8="-","-",ROUND((Balance!IQ8/Balance!IQ$19)*100,1)) -> 28.5 | IR8: =IF(Balance!IR8="-","-",ROUND((Balance!IR8/Balance!IR$19)*100,1)) -> 23.8 | IS8: =IF(Balance!IS8="-","-",ROUND((Balance!IS8/Balance!IS$19)*100,1)) -> 24.1 | IT8: =IF(Balance!IT8="-","-",ROUND((Balance!IT8/Balance!IT$19)*100,1)) -> 20.1 | IU8: =IF(Balance!IU8="-","-",ROUND((Balance!IU8/Balance!IU$19)*100,1)) -> 20.3 | IV8: =IF(Balance!IV8="-","-",ROUND((Balance!IV8/Balance!IV$19)*100,1)) -> 21 | IW8: =IF(Balance!IW8="-","-",ROUND((Balance!IW8/Balance!IW$19)*100,1)) -> 16.5 | IX8: =IF(Balance!IX8="-","-",ROUND((Balance!IX8/Balance!IX$19)*100,1)) -> 13.5 | IY8: =IF(Balance!IY8="-","-",ROUND((Balance!IY8/Balance!IY$19)*100,1)) -> 20 | IZ8: =IF(Balance!IZ8="-","-",ROUND((Balance!IZ8/Balance!IZ$19)*100,1)) -> 22.7 | JA8: =IF(Balance!JA8="-","-",ROUND((Balance!JA8/Balance!JA$19)*100,1)) -> 19.9 | JB8: =IF(Balance!JB8="-","-",ROUND((Balance!JB8/Balance!JB$19)*100,1)) -> 21.3 | JC8: =IF(Balance!JC8="-","-",ROUND((Balance!JC8/Balance!JC$19)*100,1)) -> 20.6 | JD8: =IF(Balance!JD8="-","-",ROUND((Balance!JD8/Balance!JD$19)*100,1)) -> 17.6 | JE8: =IF(Balance!JE8="-","-",ROUND((Balance!JE8/Balance!JE$19)*100,1)) -> 15.6 | JF8: =IF(Balance!JF8="-","-",ROUND((Balance!JF8/Balance!JF$19)*100,1)) -> 14.7 | JG8: =IF(Balance!JG8="-","-",ROUND((Balance!JG8/Balance!JG$19)*100,1)) -> 17.5 | JH8: =IF(Balance!JH8="-","-",ROUND((Balance!JH8/Balance!JH$19)*100,1)) -> 15.6 | JI8: =IF(Balance!JI8="-","-",ROUND((Balance!JI8/Balance!JI$19)*100,1)) -> 13.5 | JJ8: =IF(Balance!JJ8="-","-",ROUND((Balance!JJ8/Balance!JJ$19)*100,1)) -> 10.4 | JK8: =IF(Balance!JK8="-","-",ROUND((Balance!JK8/Balance!JK$19)*100,1)) -> 11.1 | JL8: =IF(Balance!JL8="-","-",ROUND((Balance!JL8/Balance!JL$19)*100,1)) -> 14.2 | JM8: =IF(Balance!JM8="-","-",ROUND((Balance!JM8/Balance!JM$19)*100,1)) -> 14.8 | JN8: =IF(Balance!JN8="-","-",ROUND((Balance!JN8/Balance!JN$19)*100,1)) -> 15.4 | JO8: =IF(Balance!JO8="-","-",ROUND((Balance!JO8/Balance!JO$19)*100,1)) -> 13.5 | JP8: =IF(Balance!JP8="-","-",ROUND((Balance!JP8/Balance!JP$19)*100,1)) -> 14.9 | JQ8: =IF(Balance!JQ8="-","-",ROUND((Balance!JQ8/Balance!JQ$19)*100,1)) -> 13.7 | JR8: =IF(Balance!JR8="-","-",ROUND((Balance!JR8/Balance!JR$19)*100,1)) -> 12.1 | JS8: =IF(Balance!JS8="-","-",ROUND((Balance!JS8/Balance!JS$19)*100,1)) -> 11 | JT8: =IF(Balance!JT8="-","-",ROUND((Balance!JT8/Balance!JT$19)*100,1)) -> 9 | JU8: =IF(Balance!JU8="-","-",ROUND((Balance!JU8/Balance!JU$19)*100,1)) -> 6.6 | JV8: =IF(Balance!JV8="-","-",ROUND((Balance!JV8/Balance!JV$19)*100,1)) -> 5.4 | JW8: =IF(Balance!JW8="-","-",ROUND((Balance!JW8/Balance!JW$19)*100,1)) -> 8.1 | JX8: =IF(Balance!JX8="-","-",ROUND((Balance!JX8/Balance!JX$19)*100,1)) -> 6.9 | JY8: =IF(Balance!JY8="-","-",ROUND((Balance!JY8/Balance!JY$19)*100,1)) -> 9.6 | JZ8: =IF(Balance!JZ8="-","-",ROUND((Balance!JZ8/Balance!JZ$19)*100,1)) -> 11 | KA8: =IF(Balance!KA8="-","-",ROUND((Balance!KA8/Balance!KA$19)*100,1)) -> 10.7 | KB8: =IF(Balance!KB8="-","-",ROUND((Balance!KB8/Balance!KB$19)*100,1)) -> 12.1 | KC8: =IF(Balance!KC8="-","-",ROUND((Balance!KC8/Balance!KC$19)*100,1)) -> 9.3 | KD8: =IF(Balance!KD8="-","-",ROUND((Balance!KD8/Balance!KD$19)*100,1)) -> 12.1 | KE8: =IF(Balance!KE8="-","-",ROUND((Balance!KE8/Balance!KE$19)*100,1)) -> 6.7 | KF8: =IF(Balance!KF8="-","-",ROUND((Balance!KF8/Balance!KF$19)*100,1)) -> 5.9 | KG8: =IF(Balance!KG8="-","-",ROUND((Balance!KG8/Balance!KG$19)*100,1)) -> 5.9 | KH8: =IF(Balance!KH8="-","-",ROUND((Balance!KH8/Balance!KH$19)*100,1)) -> 6.1 | KI8: =IF(Balance!KI8="-","-",ROUND((Balance!KI8/Balance!KI$19)*100,1)) -> 7 | KJ8: =IF(Balance!KJ8="-","-",ROUND((Balance!KJ8/Balance!KJ$19)*100,1)) -> 8.7 | KK8: =IF(Balance!KK8="-","-",ROUND((Balance!KK8/Balance!KK$19)*100,1)) -> 8.5 | KL8: =IF(Balance!KL8="-","-",ROUND((Balance!KL8/Balance!KL$19)*100,1)) -> 10.7 | KM8: =IF(Balance!KM8="-","-",ROUND((Balance!KM8/Balance!KM$19)*100,1)) -> 12.7 | KN8: =IF(Balance!KN8="-","-",ROUND((Balance!KN8/Balance!KN$19)*100,1)) -> 10.4 | KO8: =IF(Balance!KO8="-","-",ROUND((Balance!KO8/Balance!KO$19)*100,1)) -> 9.6 | KP8: =IF(Balance!KP8="-","-",ROUND((Balance!KP8/Balance!KP$19)*100,1)) -> 9 | KQ8: =IF(Balance!KQ8="-","-",ROUND((Balance!KQ8/Balance!KQ$19)*100,1)) -> 9.5 | KR8: =IF(Balance!KR8="-","-",ROUND((Balance!KR8/Balance!KR$19)*100,1)) -> 7.7 | KS8: =IF(Balance!KS8="-","-",ROUND((Balance!KS8/Balance!KS$19)*100,1)) -> 7.3 | KT8: =IF(Balance!KT8="-","-",ROUND((Balance!KT8/Balance!KT$19)*100,1)) -> 8.5 | KU8: =IF(Balance!KU8="-","-",ROUND((Balance!KU8/Balance!KU$19)*100,1)) -> 7.9 | KV8: =IF(Balance!KV8="-","-",ROUND((Balance!KV8/Balance!KV$19)*100,1)) -> 9.1 | KW8: =IF(Balance!KW8="-","-",ROUND((Balance!KW8/Balance!KW$19)*100,1)) -> 14.2 | KX8: =IF(Balance!KX8="-","-",ROUND((Balance!KX8/Balance!KX$19)*100,1)) -> 10.8 | KY8: =IF(Balance!KY8="-","-",ROUND((Balance!KY8/Balance!KY$19)*100,1)) -> 9.9 | KZ8: =IF(Balance!KZ8="-","-",ROUND((Balance!KZ8/Balance!KZ$19)*100,1)) -> 10.5 | LA8: =IF(Balance!LA8="-","-",ROUND((Balance!LA8/Balance!LA$19)*100,1)) -> 10.5 | LB8: =IF(Balance!LB8="-","-",ROUND((Balance!LB8/Balance!LB$19)*100,1)) -> 12.8 | LC8: =IF(Balance!LC8="-","-",ROUND((Balance!LC8/Balance!LC$19)*100,1)) -> 8.7 | LD8: =IF(Balance!LD8="-","-",ROUND((Balance!LD8/Balance!LD$19)*100,1)) -> 6.3 | LE8: =IF(Balance!LE8="-","-",ROUND((Balance!LE8/Balance!LE$19)*100,1)) -> 6.1 | LF8: =IF(Balance!LF8="-","-",ROUND((Balance!LF8/Balance!LF$19)*100,1)) -> 5.7 | LG8: =IF(Balance!LG8="-","-",ROUND((Balance!LG8/Balance!LG$19)*100,1)) -> 7.7 | LH8: =IF(Balance!LH8="-","-",ROUND((Balance!LH8/Balance!LH$19)*100,1)) -> 9.7 | LI8: =IF(Balance!LI8="-","-",ROUND((Balance!LI8/Balance!LI$19)*100,1)) -> 11 | LJ8: =IF(Balance!LJ8="-","-",ROUND((Balance!LJ8/Balance!LJ$19)*100,1)) -> 9.8 | LK8: =IF(Balance!LK8="-","-",ROUND((Balance!LK8/Balance!LK$19)*100,1)) -> 10.7 | LL8: =IF(Balance!LL8="-","-",ROUND((Balance!LL8/Balance!LL$19)*100,1)) -> 16 | LM8: =IF(Balance!LM8="-","-",ROUND((Balance!LM8/Balance!LM$19)*100,1)) -> 16.6 | LN8: =IF(Balance!LN8="-","-",ROUND((Balance!LN8/Balance!LN$19)*100,1)) -> 15.9 | LO8: =IF(Balance!LO8="-","-",ROUND((Balance!LO8/Balance!LO$19)*100,1)) -> 12.1 | LP8: =IF(Balance!LP8="-","-",ROUND((Balance!LP8/Balance!LP$19)*100,1)) -> 7.6 | LQ8: =IF(Balance!LQ8="-","-",ROUND((Balance!LQ8/Balance!LQ$19)*100,1)) -> 7.2 | LR8: =IF(Balance!LR8="-","-",ROUND((Balance!LR8/Balance!LR$19)*100,1)) -> 6.9 | LS8: =IF(Balance!LS8="-","-",ROUND((Balance!LS8/Balance!LS$19)*100,1)) -> 8.5 | LT8: =IF(Balance!LT8="-","-",ROUND((Balance!LT8/Balance!LT$19)*100,1)) -> 15.2 | LU8: =IF(Balance!LU8="-","-",ROUND((Balance!LU8/Balance!LU$19)*100,1)) -> 17.3 | LV8: =IF(Balance!LV8="-","-",ROUND((Balance!LV8/Balance!LV$19)*100,1)) -> 17.1 | LW8: =IF(Balance!LW8="-","-",ROUND((Balance!LW8/Balance!LW$19)*100,1)) -> 16.8 | LX8: =IF(Balance!LX8="-","-",ROUND((Balance!LX8/Balance!LX$19)*100,1)) -> 19.1 | LY8: =IF(Balance!LY8="-","-",ROUND((Balance!LY8/Balance!LY$19)*100,1)) -> 21.1 | LZ8: =IF(Balance!LZ8="-","-",ROUND((Balance!LZ8/Balance!LZ$19)*100,1)) -> 13.2 | MA8: =IF(Balance!MA8="-","-",ROUND((Balance!MA8/Balance!MA$19)*100,1)) -> 10.5 | MB8: =IF(Balance!MB8="-","-",ROUND((Balance!MB8/Balance!MB$19)*100,1)) -> - | MC8: =IF(Balance!MC8="-","-",ROUND((Balance!MC8/Balance!MC$19)*100,1)) -> - | MD8: =IF(Balance!MD8="-","-",ROUND((Balance!MD8/Balance!MD$19)*100,1)) -> - | ME8: =IF(Balance!ME8="-","-",ROUND((Balance!ME8/Balance!ME$19)*100,1)) -> - | MF8: =IF(Balance!MF8="-","-",ROUND((Balance!MF8/Balance!MF$19)*100,1)) -> - | MG8: =IF(Balance!MG8="-","-",ROUND((Balance!MG8/Balance!MG$19)*100,1)) -> - | MH8: =IF(Balance!MH8="-","-",ROUND((Balance!MH8/Balance!MH$19)*100,1)) -> - | MI8: =IF(Balance!MI8="-","-",ROUND((Balance!MI8/Balance!MI$19)*100,1)) -> - | MJ8: =IF(Balance!MJ8="-","-",ROUND((Balance!MJ8/Balance!MJ$19)*100,1)) -> - | MK8: =IF(Balance!MK8="-","-",ROUND((Balance!MK8/Balance!MK$19)*100,1)) -> - | ML8: =IF(Balance!ML8="-","-",ROUND((Balance!ML8/Balance!ML$19)*100,1)) -> -
B9: Eólica | C9: =IF(Balance!C11="-","-",ROUND((Balance!C11/Balance!C$19)*100,1)) -> 0 | D9: =IF(Balance!D11="-","-",ROUND((Balance!D11/Balance!D$19)*100,1)) -> 0 | E9: =IF(Balance!E11="-","-",ROUND((Balance!E11/Balance!E$19)*100,1)) -> 0 | F9: =IF(Balance!F11="-","-",ROUND((Balance!F11/Balance!F$19)*100,1)) -> 0 | G9: =IF(Balance!G11="-","-",ROUND((Balance!G11/Balance!G$19)*100,1)) -> 0 | H9: =IF(Balance!H11="-","-",ROUND((Balance!H11/Balance!H$19)*100,1)) -> 0 | I9: =IF(Balance!I11="-","-",ROUND((Balance!I11/Balance!I$19)*100,1)) -> 0 | J9: =IF(Balance!J11="-","-",ROUND((Balance!J11/Balance!J$19)*100,1)) -> 0 | K9: =IF(Balance!K11="-","-",ROUND((Balance!K11/Balance!K$19)*100,1)) -> 0 | L9: =IF(Balance!L11="-","-",ROUND((Balance!L11/Balance!L$19)*100,1)) -> 0 | M9: =IF(Balance!M11="-","-",ROUND((Balance!M11/Balance!M$19)*100,1)) -> 0 | N9: =IF(Balance!N11="-","-",ROUND((Balance!N11/Balance!N$19)*100,1)) -> 0 | O9: =IF(Balance!O11="-","-",ROUND((Balance!O11/Balance!O$19)*100,1)) -> 0 | P9: =IF(Balance!P11="-","-",ROUND((Balance!P11/Balance!P$19)*100,1)) -> 0 | Q9: =IF(Balance!Q11="-","-",ROUND((Balance!Q11/Balance!Q$19)*100,1)) -> 0 | R9: =IF(Balance!R11="-","-",ROUND((Balance!R11/Balance!R$19)*100,1)) -> 0 | S9: =IF(Balance!S11="-","-",ROUND((Balance!S11/Balance!S$19)*100,1)) -> 0 | T9: =IF(Balance!T11="-","-",ROUND((Balance!T11/Balance!T$19)*100,1)) -> 0 | U9: =IF(Balance!U11="-","-",ROUND((Balance!U11/Balance!U$19)*100,1)) -> 0 | V9: =IF(Balance!V11="-","-",ROUND((Balance!V11/Balance!V$19)*100,1)) -> 0 | W9: =IF(Balance!W11="-","-",ROUND((Balance!W11/Balance!W$19)*100,1)) -> 0 | X9: =IF(Balance!X11="-","-",ROUND((Balance!X11/Balance!X$19)*100,1)) -> 0 | Y9: =IF(Balance!Y11="-","-",ROUND((Balance!Y11/Balance!Y$19)*100,1)) -> 0 | Z9: =IF(Balance!Z11="-","-",ROUND((Balance!Z11/Balance!Z$19)*100,1)) -> 0 | AA9: =IF(Balance!AA11="-","-",ROUND((Balance!AA11/Balance!AA$19)*100,1)) -> 0 | AB9: =IF(Balance!AB11="-","-",ROUND((Balance!AB11/Balance!AB$19)*100,1)) -> 0 | AC9: =IF(Balance!AC11="-","-",ROUND((Balance!AC11/Balance!AC$19)*100,1)) -> 0 | AD9: =IF(Balance!AD11="-","-",ROUND((Balance!AD11/Balance!AD$19)*100,1)) -> 0 | AE9: =IF(Balance!AE11="-","-",ROUND((Balance!AE11/Balance!AE$19)*100,1)) -> 0 | AF9: =IF(Balance!AF11="-","-",ROUND((Balance!AF11/Balance!AF$19)*100,1)) -> 0 | AG9: =IF(Balance!AG11="-","-",ROUND((Balance!AG11/Balance!AG$19)*100,1)) -> 0 | AH9: =IF(Balance!AH11="-","-",ROUND((Balance!AH11/Balance!AH$19)*100,1)) -> 0 | AI9: =IF(Balance!AI11="-","-",ROUND((Balance!AI11/Balance!AI$19)*100,1)) -> 0 | AJ9: =IF(Balance!AJ11="-","-",ROUND((Balance!AJ11/Balance!AJ$19)*100,1)) -> 0 | AK9: =IF(Balance!AK11="-","-",ROUND((Balance!AK11/Balance!AK$19)*100,1)) -> 0 | AL9: =IF(Balance!AL11="-","-",ROUND((Balance!AL11/Balance!AL$19)*100,1)) -> 0.1 | AM9: =IF(Balance!AM11="-","-",ROUND((Balance!AM11/Balance!AM$19)*100,1)) -> 0.1 | AN9: =IF(Balance!AN11="-","-",ROUND((Balance!AN11/Balance!AN$19)*100,1)) -> 0.1 | AO9: =IF(Balance!AO11="-","-",ROUND((Balance!AO11/Balance!AO$19)*100,1)) -> 0.1 | AP9: =IF(Balance!AP11="-","-",ROUND((Balance!AP11/Balance!AP$19)*100,1)) -> 0.1 | AQ9: =IF(Balance!AQ11="-","-",ROUND((Balance!AQ11/Balance!AQ$19)*100,1)) -> 0 | AR9: =IF(Balance!AR11="-","-",ROUND((Balance!AR11/Balance!AR$19)*100,1)) -> 0.1 | AS9: =IF(Balance!AS11="-","-",ROUND((Balance!AS11/Balance!AS$19)*100,1)) -> 0.1 | AT9: =IF(Balance!AT11="-","-",ROUND((Balance!AT11/Balance!AT$19)*100,1)) -> 0.1 | AU9: =IF(Balance!AU11="-","-",ROUND((Balance!AU11/Balance!AU$19)*100,1)) -> 0 | AV9: =IF(Balance!AV11="-","-",ROUND((Balance!AV11/Balance!AV$19)*100,1)) -> 0.1 | AW9: =IF(Balance!AW11="-","-",ROUND((Balance!AW11/Balance!AW$19)*100,1)) -> 0.1 | AX9: =IF(Balance!AX11="-","-",ROUND((Balance!AX11/Balance!AX$19)*100,1)) -> 0 | AY9: =IF(Balance!AY11="-","-",ROUND((Balance!AY11/Balance!AY$19)*100,1)) -> 0.1 | AZ9: =IF(Balance!AZ11="-","-",ROUND((Balance!AZ11/Balance!AZ$19)*100,1)) -> 0 | BA9: =IF(Balance!BA11="-","-",ROUND((Balance!BA11/Balance!BA$19)*100,1)) -> 0.1 | BB9: =IF(Balance!BB11="-","-",ROUND((Balance!BB11/Balance!BB$19)*100,1)) -> 0.1 | BC9: =IF(Balance!BC11="-","-",ROUND((Balance!BC11/Balance!BC$19)*100,1)) -> 0 | BD9: =IF(Balance!BD11="-","-",ROUND((Balance!BD11/Balance!BD$19)*100,1)) -> 0.1 | BE9: =IF(Balance!BE11="-","-",ROUND((Balance!BE11/Balance!BE$19)*100,1)) -> 0 | BF9: =IF(Balance!BF11="-","-",ROUND((Balance!BF11/Balance!BF$19)*100,1)) -> 0 | BG9: =IF(Balance!BG11="-","-",ROUND((Balance!BG11/Balance!BG$19)*100,1)) -> 0 | BH9: =IF(Balance!BH11="-","-",ROUND((Balance!BH11/Balance!BH$19)*100,1)) -> 0.1 | BI9: =IF(Balance!BI11="-","-",ROUND((Balance!BI11/Balance!BI$19)*100,1)) -> 0.1 | BJ9: =IF(Balance!BJ11="-","-",ROUND((Balance!BJ11/Balance!BJ$19)*100,1)) -> 0 | BK9: =IF(Balance!BK11="-","-",ROUND((Balance!BK11/Balance!BK$19)*100,1)) -> 0.1 | BL9: =IF(Balance!BL11="-","-",ROUND((Balance!BL11/Balance!BL$19)*100,1)) -> 0.1 | BM9: =IF(Balance!BM11="-","-",ROUND((Balance!BM11/Balance!BM$19)*100,1)) -> 0.1 | BN9: =IF(Balance!BN11="-","-",ROUND((Balance!BN11/Balance!BN$19)*100,1)) -> 0.1 | BO9: =IF(Balance!BO11="-","-",ROUND((Balance!BO11/Balance!BO$19)*100,1)) -> 0.1 | BP9: =IF(Balance!BP11="-","-",ROUND((Balance!BP11/Balance!BP$19)*100,1)) -> 0.1 | BQ9: =IF(Balance!BQ11="-","-",ROUND((Balance!BQ11/Balance!BQ$19)*100,1)) -> 0.1 | BR9: =IF(Balance!BR11="-","-",ROUND((Balance!BR11/Balance!BR$19)*100,1)) -> 0.1 | BS9: =IF(Balance!BS11="-","-",ROUND((Balance!BS11/Balance!BS$19)*100,1)) -> 0.1 | BT9: =IF(Balance!BT11="-","-",ROUND((Balance!BT11/Balance!BT$19)*100,1)) -> 0.2 | BU9: =IF(Balance!BU11="-","-",ROUND((Balance!BU11/Balance!BU$19)*100,1)) -> 0.1 | BV9: =IF(Balance!BV11="-","-",ROUND((Balance!BV11/Balance!BV$19)*100,1)) -> 0.1 | BW9: =IF(Balance!BW11="-","-",ROUND((Balance!BW11/Balance!BW$19)*100,1)) -> 0.1 | BX9: =IF(Balance!BX11="-","-",ROUND((Balance!BX11/Balance!BX$19)*100,1)) -> 0.2 | BY9: =IF(Balance!BY11="-","-",ROUND((Balance!BY11/Balance!BY$19)*100,1)) -> 0.2 | BZ9: =IF(Balance!BZ11="-","-",ROUND((Balance!BZ11/Balance!BZ$19)*100,1)) -> 0.2 | CA9: =IF(Balance!CA11="-","-",ROUND((Balance!CA11/Balance!CA$19)*100,1)) -> 0.2 | CB9: =IF(Balance!CB11="-","-",ROUND((Balance!CB11/Balance!CB$19)*100,1)) -> 0.2 | CC9: =IF(Balance!CC11="-","-",ROUND((Balance!CC11/Balance!CC$19)*100,1)) -> 0.2 | CD9: =IF(Balance!CD11="-","-",ROUND((Balance!CD11/Balance!CD$19)*100,1)) -> 0.1 | CE9: =IF(Balance!CE11="-","-",ROUND((Balance!CE11/Balance!CE$19)*100,1)) -> 0.2 | CF9: =IF(Balance!CF11="-","-",ROUND((Balance!CF11/Balance!CF$19)*100,1)) -> 0.2 | CG9: =IF(Balance!CG11="-","-",ROUND((Balance!CG11/Balance!CG$19)*100,1)) -> 0.2 | CH9: =IF(Balance!CH11="-","-",ROUND((Balance!CH11/Balance!CH$19)*100,1)) -> 0.3 | CI9: =IF(Balance!CI11="-","-",ROUND((Balance!CI11/Balance!CI$19)*100,1)) -> 0.3 | CJ9: =IF(Balance!CJ11="-","-",ROUND((Balance!CJ11/Balance!CJ$19)*100,1)) -> 0.3 | CK9: =IF(Balance!CK11="-","-",ROUND((Balance!CK11/Balance!CK$19)*100,1)) -> 0.3 | CL9: =IF(Balance!CL11="-","-",ROUND((Balance!CL11/Balance!CL$19)*100,1)) -> 0.4 | CM9: =IF(Balance!CM11="-","-",ROUND((Balance!CM11/Balance!CM$19)*100,1)) -> 0.3 | CN9: =IF(Balance!CN11="-","-",ROUND((Balance!CN11/Balance!CN$19)*100,1)) -> 0.3 | CO9: =IF(Balance!CO11="-","-",ROUND((Balance!CO11/Balance!CO$19)*100,1)) -> 0.4 | CP9: =IF(Balance!CP11="-","-",ROUND((Balance!CP11/Balance!CP$19)*100,1)) -> 0.3 | CQ9: =IF(Balance!CQ11="-","-",ROUND((Balance!CQ11/Balance!CQ$19)*100,1)) -> 0.3 | CR9: =IF(Balance!CR11="-","-",ROUND((Balance!CR11/Balance!CR$19)*100,1)) -> 0.5 | CS9: =IF(Balance!CS11="-","-",ROUND((Balance!CS11/Balance!CS$19)*100,1)) -> 0.5 | CT9: =IF(Balance!CT11="-","-",ROUND((Balance!CT11/Balance!CT$19)*100,1)) -> 0.5 | CU9: =IF(Balance!CU11="-","-",ROUND((Balance!CU11/Balance!CU$19)*100,1)) -> 0.6 | CV9: =IF(Balance!CV11="-","-",ROUND((Balance!CV11/Balance!CV$19)*100,1)) -> 0.5 | CW9: =IF(Balance!CW11="-","-",ROUND((Balance!CW11/Balance!CW$19)*100,1)) -> 0.7 | CX9: =IF(Balance!CX11="-","-",ROUND((Balance!CX11/Balance!CX$19)*100,1)) -> 0.7 | CY9: =IF(Balance!CY11="-","-",ROUND((Balance!CY11/Balance!CY$19)*100,1)) -> 0.6 | CZ9: =IF(Balance!CZ11="-","-",ROUND((Balance!CZ11/Balance!CZ$19)*100,1)) -> 0.5 | DA9: =IF(Balance!DA11="-","-",ROUND((Balance!DA11/Balance!DA$19)*100,1)) -> 0.7 | DB9: =IF(Balance!DB11="-","-",ROUND((Balance!DB11/Balance!DB$19)*100,1)) -> 0.9 | DC9: =IF(Balance!DC11="-","-",ROUND((Balance!DC11/Balance!DC$19)*100,1)) -> 0.7 | DD9: =IF(Balance!DD11="-","-",ROUND((Balance!DD11/Balance!DD$19)*100,1)) -> 0.7 | DE9: =IF(Balance!DE11="-","-",ROUND((Balance!DE11/Balance!DE$19)*100,1)) -> 0.9 | DF9: =IF(Balance!DF11="-","-",ROUND((Balance!DF11/Balance!DF$19)*100,1)) -> 0.9 | DG9: =IF(Balance!DG11="-","-",ROUND((Balance!DG11/Balance!DG$19)*100,1)) -> 1 | DH9: =IF(Balance!DH11="-","-",ROUND((Balance!DH11/Balance!DH$19)*100,1)) -> 1.4 | DI9: =IF(Balance!DI11="-","-",ROUND((Balance!DI11/Balance!DI$19)*100,1)) -> 1.4 | DJ9: =IF(Balance!DJ11="-","-",ROUND((Balance!DJ11/Balance!DJ$19)*100,1)) -> 1.4 | DK9: =IF(Balance!DK11="-","-",ROUND((Balance!DK11/Balance!DK$19)*100,1)) -> 1.2 | DL9: =IF(Balance!DL11="-","-",ROUND((Balance!DL11/Balance!DL$19)*100,1)) -> 1.4 | DM9: =IF(Balance!DM11="-","-",ROUND((Balance!DM11/Balance!DM$19)*100,1)) -> 1.1 | DN9: =IF(Balance!DN11="-","-",ROUND((Balance!DN11/Balance!DN$19)*100,1)) -> 1 | DO9: =IF(Balance!DO11="-","-",ROUND((Balance!DO11/Balance!DO$19)*100,1)) -> 1.1 | DP9: =IF(Balance!DP11="-","-",ROUND((Balance!DP11/Balance!DP$19)*100,1)) -> 1.3 | DQ9: =IF(Balance!DQ11="-","-",ROUND((Balance!DQ11/Balance!DQ$19)*100,1)) -> 2 | DR9: =IF(Balance!DR11="-","-",ROUND((Balance!DR11/Balance!DR$19)*100,1)) -> 1.9 | DS9: =IF(Balance!DS11="-","-",ROUND((Balance!DS11/Balance!DS$19)*100,1)) -> 1.7 | DT9: =IF(Balance!DT11="-","-",ROUND((Balance!DT11/Balance!DT$19)*100,1)) -> 1.9 | DU9: =IF(Balance!DU11="-","-",ROUND((Balance!DU11/Balance!DU$19)*100,1)) -> 2.1 | DV9: =IF(Balance!DV11="-","-",ROUND((Balance!DV11/Balance!DV$19)*100,1)) -> 2.7 | DW9: =IF(Balance!DW11="-","-",ROUND((Balance!DW11/Balance!DW$19)*100,1)) -> 1.5 | DX9: =IF(Balance!DX11="-","-",ROUND((Balance!DX11/Balance!DX$19)*100,1)) -> 2.3 | DY9: =IF(Balance!DY11="-","-",ROUND((Balance!DY11/Balance!DY$19)*100,1)) -> 2.2 | DZ9: =IF(Balance!DZ11="-","-",ROUND((Balance!DZ11/Balance!DZ$19)*100,1)) -> 2 | EA9: =IF(Balance!EA11="-","-",ROUND((Balance!EA11/Balance!EA$19)*100,1)) -> 1.7 | EB9: =IF(Balance!EB11="-","-",ROUND((Balance!EB11/Balance!EB$19)*100,1)) -> 2.6 | EC9: =IF(Balance!EC11="-","-",ROUND((Balance!EC11/Balance!EC$19)*100,1)) -> 3.2 | ED9: =IF(Balance!ED11="-","-",ROUND((Balance!ED11/Balance!ED$19)*100,1)) -> 3.5 | EE9: =IF(Balance!EE11="-","-",ROUND((Balance!EE11/Balance!EE$19)*100,1)) -> 3.2 | EF9: =IF(Balance!EF11="-","-",ROUND((Balance!EF11/Balance!EF$19)*100,1)) -> 3.4 | EG9: =IF(Balance!EG11="-","-",ROUND((Balance!EG11/Balance!EG$19)*100,1)) -> 3.7 | EH9: =IF(Balance!EH11="-","-",ROUND((Balance!EH11/Balance!EH$19)*100,1)) -> 4.3 | EI9: =IF(Balance!EI11="-","-",ROUND((Balance!EI11/Balance!EI$19)*100,1)) -> 2.6 | EJ9: =IF(Balance!EJ11="-","-",ROUND((Balance!EJ11/Balance!EJ$19)*100,1)) -> 2.4 | EK9: =IF(Balance!EK11="-","-",ROUND((Balance!EK11/Balance!EK$19)*100,1)) -> 2.3 | EL9: =IF(Balance!EL11="-","-",ROUND((Balance!EL11/Balance!EL$19)*100,1)) -> 2.2 | EM9: =IF(Balance!EM11="-","-",ROUND((Balance!EM11/Balance!EM$19)*100,1)) -> 3.7 | EN9: =IF(Balance!EN11="-","-",ROUND((Balance!EN11/Balance!EN$19)*100,1)) -> 3.4 | EO9: =IF(Balance!EO11="-","-",ROUND((Balance!EO11/Balance!EO$19)*100,1)) -> 4.3 | EP9: =IF(Balance!EP11="-","-",ROUND((Balance!EP11/Balance!EP$19)*100,1)) -> 2.9 | EQ9: =IF(Balance!EQ11="-","-",ROUND((Balance!EQ11/Balance!EQ$19)*100,1)) -> 3.4 | ER9: =IF(Balance!ER11="-","-",ROUND((Balance!ER11/Balance!ER$19)*100,1)) -> 4.6 | ES9: =IF(Balance!ES11="-","-",ROUND((Balance!ES11/Balance!ES$19)*100,1)) -> 4.6 | ET9: =IF(Balance!ET11="-","-",ROUND((Balance!ET11/Balance!ET$19)*100,1)) -> 3.7 | EU9: =IF(Balance!EU11="-","-",ROUND((Balance!EU11/Balance!EU$19)*100,1)) -> 4.7 | EV9: =IF(Balance!EV11="-","-",ROUND((Balance!EV11/Balance!EV$19)*100,1)) -> 3.6 | EW9: =IF(Balance!EW11="-","-",ROUND((Balance!EW11/Balance!EW$19)*100,1)) -> 3.7 | EX9: =IF(Balance!EX11="-","-",ROUND((Balance!EX11/Balance!EX$19)*100,1)) -> 3.5 | EY9: =IF(Balance!EY11="-","-",ROUND((Balance!EY11/Balance!EY$19)*100,1)) -> 2.9 | EZ9: =IF(Balance!EZ11="-","-",ROUND((Balance!EZ11/Balance!EZ$19)*100,1)) -> 4.9 | FA9: =IF(Balance!FA11="-","-",ROUND((Balance!FA11/Balance!FA$19)*100,1)) -> 5.9 | FB9: =IF(Balance!FB11="-","-",ROUND((Balance!FB11/Balance!FB$19)*100,1)) -> 6.4 | FC9: =IF(Balance!FC11="-","-",ROUND((Balance!FC11/Balance!FC$19)*100,1)) -> 6.7 | FD9: =IF(Balance!FD11="-","-",ROUND((Balance!FD11/Balance!FD$19)*100,1)) -> 5.2 | FE9: =IF(Balance!FE11="-","-",ROUND((Balance!FE11/Balance!FE$19)*100,1)) -> 4.5 | FF9: =IF(Balance!FF11="-","-",ROUND((Balance!FF11/Balance!FF$19)*100,1)) -> 6.6 | FG9: =IF(Balance!FG11="-","-",ROUND((Balance!FG11/Balance!FG$19)*100,1)) -> 5 | FH9: =IF(Balance!FH11="-","-",ROUND((Balance!FH11/Balance!FH$19)*100,1)) -> 3.7 | FI9: =IF(Balance!FI11="-","-",ROUND((Balance!FI11/Balance!FI$19)*100,1)) -> 3.6 | FJ9: =IF(Balance!FJ11="-","-",ROUND((Balance!FJ11/Balance!FJ$19)*100,1)) -> 2.9 | FK9: =IF(Balance!FK11="-","-",ROUND((Balance!FK11/Balance!FK$19)*100,1)) -> 4.2 | FL9: =IF(Balance!FL11="-","-",ROUND((Balance!FL11/Balance!FL$19)*100,1)) -> 5.7 | FM9: =IF(Balance!FM11="-","-",ROUND((Balance!FM11/Balance!FM$19)*100,1)) -> 6.1 | FN9: =IF(Balance!FN11="-","-",ROUND((Balance!FN11/Balance!FN$19)*100,1)) -> 6.9 | FO9: =IF(Balance!FO11="-","-",ROUND((Balance!FO11/Balance!FO$19)*100,1)) -> 8 | FP9: =IF(Balance!FP11="-","-",ROUND((Balance!FP11/Balance!FP$19)*100,1)) -> 5.4 | FQ9: =IF(Balance!FQ11="-","-",ROUND((Balance!FQ11/Balance!FQ$19)*100,1)) -> 6.1 | FR9: =IF(Balance!FR11="-","-",ROUND((Balance!FR11/Balance!FR$19)*100,1)) -> 7.9 | FS9: =IF(Balance!FS11="-","-",ROUND((Balance!FS11/Balance!FS$19)*100,1)) -> 5.3 | FT9: =IF(Balance!FT11="-","-",ROUND((Balance!FT11/Balance!FT$19)*100,1)) -> 5.2 | FU9: =IF(Balance!FU11="-","-",ROUND((Balance!FU11/Balance!FU$19)*100,1)) -> 4.6 | FV9: =IF(Balance!FV11="-","-",ROUND((Balance!FV11/Balance!FV$19)*100,1)) -> 5.6 | FW9: =IF(Balance!FW11="-","-",ROUND((Balance!FW11/Balance!FW$19)*100,1)) -> 5.8 | FX9: =IF(Balance!FX11="-","-",ROUND((Balance!FX11/Balance!FX$19)*100,1)) -> 8.2 | FY9: =IF(Balance!FY11="-","-",ROUND((Balance!FY11/Balance!FY$19)*100,1)) -> 7.3 | FZ9: =IF(Balance!FZ11="-","-",ROUND((Balance!FZ11/Balance!FZ$19)*100,1)) -> 8.2 | GA9: =IF(Balance!GA11="-","-",ROUND((Balance!GA11/Balance!GA$19)*100,1)) -> 8.3 | GB9: =IF(Balance!GB11="-","-",ROUND((Balance!GB11/Balance!GB$19)*100,1)) -> 8.3 | GC9: =IF(Balance!GC11="-","-",ROUND((Balance!GC11/Balance!GC$19)*100,1)) -> 8.2 | GD9: =IF(Balance!GD11="-","-",ROUND((Balance!GD11/Balance!GD$19)*100,1)) -> 9.9 | GE9: =IF(Balance!GE11="-","-",ROUND((Balance!GE11/Balance!GE$19)*100,1)) -> 7.6 | GF9: =IF(Balance!GF11="-","-",ROUND((Balance!GF11/Balance!GF$19)*100,1)) -> 6 | GG9: =IF(Balance!GG11="-","-",ROUND((Balance!GG11/Balance!GG$19)*100,1)) -> 7.3 | GH9: =IF(Balance!GH11="-","-",ROUND((Balance!GH11/Balance!GH$19)*100,1)) -> 8.1 | GI9: =IF(Balance!GI11="-","-",ROUND((Balance!GI11/Balance!GI$19)*100,1)) -> 6.2 | GJ9: =IF(Balance!GJ11="-","-",ROUND((Balance!GJ11/Balance!GJ$19)*100,1)) -> 9.3 | GK9: =IF(Balance!GK11="-","-",ROUND((Balance!GK11/Balance!GK$19)*100,1)) -> 9 | GL9: =IF(Balance!GL11="-","-",ROUND((Balance!GL11/Balance!GL$19)*100,1)) -> 10.2 | GM9: =IF(Balance!GM11="-","-",ROUND((Balance!GM11/Balance!GM$19)*100,1)) -> 6.4 | GN9: =IF(Balance!GN11="-","-",ROUND((Balance!GN11/Balance!GN$19)*100,1)) -> 8.6 | GO9: =IF(Balance!GO11="-","-",ROUND((Balance!GO11/Balance!GO$19)*100,1)) -> 12 | GP9: =IF(Balance!GP11="-","-",ROUND((Balance!GP11/Balance!GP$19)*100,1)) -> 10.3 | GQ9: =IF(Balance!GQ11="-","-",ROUND((Balance!GQ11/Balance!GQ$19)*100,1)) -> 8.1 | GR9: =IF(Balance!GR11="-","-",ROUND((Balance!GR11/Balance!GR$19)*100,1)) -> 6.4 | GS9: =IF(Balance!GS11="-","-",ROUND((Balance!GS11/Balance!GS$19)*100,1)) -> 4.9 | GT9: =IF(Balance!GT11="-","-",ROUND((Balance!GT11/Balance!GT$19)*100,1)) -> 10.4 | GU9: =IF(Balance!GU11="-","-",ROUND((Balance!GU11/Balance!GU$19)*100,1)) -> 6.8 | GV9: =IF(Balance!GV11="-","-",ROUND((Balance!GV11/Balance!GV$19)*100,1)) -> 11 | GW9: =IF(Balance!GW11="-","-",ROUND((Balance!GW11/Balance!GW$19)*100,1)) -> 10.6 | GX9: =IF(Balance!GX11="-","-",ROUND((Balance!GX11/Balance!GX$19)*100,1)) -> 9.3 | GY9: =IF(Balance!GY11="-","-",ROUND((Balance!GY11/Balance!GY$19)*100,1)) -> 8.8 | GZ9: =IF(Balance!GZ11="-","-",ROUND((Balance!GZ11/Balance!GZ$19)*100,1)) -> 13.2 | HA9: =IF(Balance!HA11="-","-",ROUND((Balance!HA11/Balance!HA$19)*100,1)) -> 13.3 | HB9: =IF(Balance!HB11="-","-",ROUND((Balance!HB11/Balance!HB$19)*100,1)) -> 6.5 | HC9: =IF(Balance!HC11="-","-",ROUND((Balance!HC11/Balance!HC$19)*100,1)) -> 12 | HD9: =IF(Balance!HD11="-","-",ROUND((Balance!HD11/Balance!HD$19)*100,1)) -> 8.2 | HE9: =IF(Balance!HE11="-","-",ROUND((Balance!HE11/Balance!HE$19)*100,1)) -> 8 | HF9: =IF(Balance!HF11="-","-",ROUND((Balance!HF11/Balance!HF$19)*100,1)) -> 11.1 | HG9: =IF(Balance!HG11="-","-",ROUND((Balance!HG11/Balance!HG$19)*100,1)) -> 9.2 | HH9: =IF(Balance!HH11="-","-",ROUND((Balance!HH11/Balance!HH$19)*100,1)) -> 8.4 | HI9: =IF(Balance!HI11="-","-",ROUND((Balance!HI11/Balance!HI$19)*100,1)) -> 11.5 | HJ9: =IF(Balance!HJ11="-","-",ROUND((Balance!HJ11/Balance!HJ$19)*100,1)) -> 9.6 | HK9: =IF(Balance!HK11="-","-",ROUND((Balance!HK11/Balance!HK$19)*100,1)) -> 10.5 | HL9: =IF(Balance!HL11="-","-",ROUND((Balance!HL11/Balance!HL$19)*100,1)) -> 8.5 | HM9: =IF(Balance!HM11="-","-",ROUND((Balance!HM11/Balance!HM$19)*100,1)) -> 17.1 | HN9: =IF(Balance!HN11="-","-",ROUND((Balance!HN11/Balance!HN$19)*100,1)) -> 14.6 | HO9: =IF(Balance!HO11="-","-",ROUND((Balance!HO11/Balance!HO$19)*100,1)) -> 7.9 | HP9: =IF(Balance!HP11="-","-",ROUND((Balance!HP11/Balance!HP$19)*100,1)) -> 9.3 | HQ9: =IF(Balance!HQ11="-","-",ROUND((Balance!HQ11/Balance!HQ$19)*100,1)) -> 8.7 | HR9: =IF(Balance!HR11="-","-",ROUND((Balance!HR11/Balance!HR$19)*100,1)) -> 8.7 | HS9: =IF(Balance!HS11="-","-",ROUND((Balance!HS11/Balance!HS$19)*100,1)) -> 9.6 | HT9: =IF(Balance!HT11="-","-",ROUND((Balance!HT11/Balance!HT$19)*100,1)) -> 11 | HU9: =IF(Balance!HU11="-","-",ROUND((Balance!HU11/Balance!HU$19)*100,1)) -> 14.8 | HV9: =IF(Balance!HV11="-","-",ROUND((Balance!HV11/Balance!HV$19)*100,1)) -> 14.9 | HW9: =IF(Balance!HW11="-","-",ROUND((Balance!HW11/Balance!HW$19)*100,1)) -> 13.9 | HX9: =IF(Balance!HX11="-","-",ROUND((Balance!HX11/Balance!HX$19)*100,1)) -> 14.8 | HY9: =IF(Balance!HY11="-","-",ROUND((Balance!HY11/Balance!HY$19)*100,1)) -> 14.5 | HZ9: =IF(Balance!HZ11="-","-",ROUND((Balance!HZ11/Balance!HZ$19)*100,1)) -> 15.3 | IA9: =IF(Balance!IA11="-","-",ROUND((Balance!IA11/Balance!IA$19)*100,1)) -> 13.3 | IB9: =IF(Balance!IB11="-","-",ROUND((Balance!IB11/Balance!IB$19)*100,1)) -> 10.8 | IC9: =IF(Balance!IC11="-","-",ROUND((Balance!IC11/Balance!IC$19)*100,1)) -> 10.3 | ID9: =IF(Balance!ID11="-","-",ROUND((Balance!ID11/Balance!ID$19)*100,1)) -> 10.1 | IE9: =IF(Balance!IE11="-","-",ROUND((Balance!IE11/Balance!IE$19)*100,1)) -> 11.5 | IF9: =IF(Balance!IF11="-","-",ROUND((Balance!IF11/Balance!IF$19)*100,1)) -> 14.5 | IG9: =IF(Balance!IG11="-","-",ROUND((Balance!IG11/Balance!IG$19)*100,1)) -> 21.8 | IH9: =IF(Balance!IH11="-","-",ROUND((Balance!IH11/Balance!IH$19)*100,1)) -> 20.8 | II9: =IF(Balance!II11="-","-",ROUND((Balance!II11/Balance!II$19)*100,1)) -> 17.3 | IJ9: =IF(Balance!IJ11="-","-",ROUND((Balance!IJ11/Balance!IJ$19)*100,1)) -> 20.1 | IK9: =IF(Balance!IK11="-","-",ROUND((Balance!IK11/Balance!IK$19)*100,1)) -> 19 | IL9: =IF(Balance!IL11="-","-",ROUND((Balance!IL11/Balance!IL$19)*100,1)) -> 12.6 | IM9: =IF(Balance!IM11="-","-",ROUND((Balance!IM11/Balance!IM$19)*100,1)) -> 17 | IN9: =IF(Balance!IN11="-","-",ROUND((Balance!IN11/Balance!IN$19)*100,1)) -> 12 | IO9: =IF(Balance!IO11="-","-",ROUND((Balance!IO11/Balance!IO$19)*100,1)) -> 11.5 | IP9: =IF(Balance!IP11="-","-",ROUND((Balance!IP11/Balance!IP$19)*100,1)) -> 12.9 | IQ9: =IF(Balance!IQ11="-","-",ROUND((Balance!IQ11/Balance!IQ$19)*100,1)) -> 10.5 | IR9: =IF(Balance!IR11="-","-",ROUND((Balance!IR11/Balance!IR$19)*100,1)) -> 17.9 | IS9: =IF(Balance!IS11="-","-",ROUND((Balance!IS11/Balance!IS$19)*100,1)) -> 19 | IT9: =IF(Balance!IT11="-","-",ROUND((Balance!IT11/Balance!IT$19)*100,1)) -> 19.1 | IU9: =IF(Balance!IU11="-","-",ROUND((Balance!IU11/Balance!IU$19)*100,1)) -> 16.3 | IV9: =IF(Balance!IV11="-","-",ROUND((Balance!IV11/Balance!IV$19)*100,1)) -> 18.3 | IW9: =IF(Balance!IW11="-","-",ROUND((Balance!IW11/Balance!IW$19)*100,1)) -> 19.7 | IX9: =IF(Balance!IX11="-","-",ROUND((Balance!IX11/Balance!IX$19)*100,1)) -> 16.5 | IY9: =IF(Balance!IY11="-","-",ROUND((Balance!IY11/Balance!IY$19)*100,1)) -> 15.3 | IZ9: =IF(Balance!IZ11="-","-",ROUND((Balance!IZ11/Balance!IZ$19)*100,1)) -> 13.8 | JA9: =IF(Balance!JA11="-","-",ROUND((Balance!JA11/Balance!JA$19)*100,1)) -> 14.4 | JB9: =IF(Balance!JB11="-","-",ROUND((Balance!JB11/Balance!JB$19)*100,1)) -> 12.4 | JC9: =IF(Balance!JC11="-","-",ROUND((Balance!JC11/Balance!JC$19)*100,1)) -> 10.7 | JD9: =IF(Balance!JD11="-","-",ROUND((Balance!JD11/Balance!JD$19)*100,1)) -> 15 | JE9: =IF(Balance!JE11="-","-",ROUND((Balance!JE11/Balance!JE$19)*100,1)) -> 17.8 | JF9: =IF(Balance!JF11="-","-",ROUND((Balance!JF11/Balance!JF$19)*100,1)) -> 20.2 | JG9: =IF(Balance!JG11="-","-",ROUND((Balance!JG11/Balance!JG$19)*100,1)) -> 15.1 | JH9: =IF(Balance!JH11="-","-",ROUND((Balance!JH11/Balance!JH$19)*100,1)) -> 20.2 | JI9: =IF(Balance!JI11="-","-",ROUND((Balance!JI11/Balance!JI$19)*100,1)) -> 16.8 | JJ9: =IF(Balance!JJ11="-","-",ROUND((Balance!JJ11/Balance!JJ$19)*100,1)) -> 24.9 | JK9: =IF(Balance!JK11="-","-",ROUND((Balance!JK11/Balance!JK$19)*100,1)) -> 17.2 | JL9: =IF(Balance!JL11="-","-",ROUND((Balance!JL11/Balance!JL$19)*100,1)) -> 15.8 | JM9: =IF(Balance!JM11="-","-",ROUND((Balance!JM11/Balance!JM$19)*100,1)) -> 13.2 | JN9: =IF(Balance!JN11="-","-",ROUND((Balance!JN11/Balance!JN$19)*100,1)) -> 13.9 | JO9: =IF(Balance!JO11="-","-",ROUND((Balance!JO11/Balance!JO$19)*100,1)) -> 18.4 | JP9: =IF(Balance!JP11="-","-",ROUND((Balance!JP11/Balance!JP$19)*100,1)) -> 14.5 | JQ9: =IF(Balance!JQ11="-","-",ROUND((Balance!JQ11/Balance!JQ$19)*100,1)) -> 21.4 | JR9: =IF(Balance!JR11="-","-",ROUND((Balance!JR11/Balance!JR$19)*100,1)) -> 23.6 | JS9: =IF(Balance!JS11="-","-",ROUND((Balance!JS11/Balance!JS$19)*100,1)) -> 26.5 | JT9: =IF(Balance!JT11="-","-",ROUND((Balance!JT11/Balance!JT$19)*100,1)) -> 24.4 | JU9: =IF(Balance!JU11="-","-",ROUND((Balance!JU11/Balance!JU$19)*100,1)) -> 25.2 | JV9: =IF(Balance!JV11="-","-",ROUND((Balance!JV11/Balance!JV$19)*100,1)) -> 21.1 | JW9: =IF(Balance!JW11="-","-",ROUND((Balance!JW11/Balance!JW$19)*100,1)) -> 19.5 | JX9: =IF(Balance!JX11="-","-",ROUND((Balance!JX11/Balance!JX$19)*100,1)) -> 19.1 | JY9: =IF(Balance!JY11="-","-",ROUND((Balance!JY11/Balance!JY$19)*100,1)) -> 12.3 | JZ9: =IF(Balance!JZ11="-","-",ROUND((Balance!JZ11/Balance!JZ$19)*100,1)) -> 15.9 | KA9: =IF(Balance!KA11="-","-",ROUND((Balance!KA11/Balance!KA$19)*100,1)) -> 15.4 | KB9: =IF(Balance!KB11="-","-",ROUND((Balance!KB11/Balance!KB$19)*100,1)) -> 19 | KC9: =IF(Balance!KC11="-","-",ROUND((Balance!KC11/Balance!KC$19)*100,1)) -> 29.5 | KD9: =IF(Balance!KD11="-","-",ROUND((Balance!KD11/Balance!KD$19)*100,1)) -> 21.6 | KE9: =IF(Balance!KE11="-","-",ROUND((Balance!KE11/Balance!KE$19)*100,1)) -> 28.5 | KF9: =IF(Balance!KF11="-","-",ROUND((Balance!KF11/Balance!KF$19)*100,1)) -> 27.3 | KG9: =IF(Balance!KG11="-","-",ROUND((Balance!KG11/Balance!KG$19)*100,1)) -> 23.2 | KH9: =IF(Balance!KH11="-","-",ROUND((Balance!KH11/Balance!KH$19)*100,1)) -> 19.7 | KI9: =IF(Balance!KI11="-","-",ROUND((Balance!KI11/Balance!KI$19)*100,1)) -> 20.4 | KJ9: =IF(Balance!KJ11="-","-",ROUND((Balance!KJ11/Balance!KJ$19)*100,1)) -> 16.1 | KK9: =IF(Balance!KK11="-","-",ROUND((Balance!KK11/Balance!KK$19)*100,1)) -> 16.3 | KL9: =IF(Balance!KL11="-","-",ROUND((Balance!KL11/Balance!KL$19)*100,1)) -> 13.7 | KM9: =IF(Balance!KM11="-","-",ROUND((Balance!KM11/Balance!KM$19)*100,1)) -> 10.2 | KN9: =IF(Balance!KN11="-","-",ROUND((Balance!KN11/Balance!KN$19)*100,1)) -> 16.5 | KO9: =IF(Balance!KO11="-","-",ROUND((Balance!KO11/Balance!KO$19)*100,1)) -> 25.1 | KP9: =IF(Balance!KP11="-","-",ROUND((Balance!KP11/Balance!KP$19)*100,1)) -> 21.4 | KQ9: =IF(Balance!KQ11="-","-",ROUND((Balance!KQ11/Balance!KQ$19)*100,1)) -> 20.9 | KR9: =IF(Balance!KR11="-","-",ROUND((Balance!KR11/Balance!KR$19)*100,1)) -> 26.8 | KS9: =IF(Balance!KS11="-","-",ROUND((Balance!KS11/Balance!KS$19)*100,1)) -> 22 | KT9: =IF(Balance!KT11="-","-",ROUND((Balance!KT11/Balance!KT$19)*100,1)) -> 19.9 | KU9: =IF(Balance!KU11="-","-",ROUND((Balance!KU11/Balance!KU$19)*100,1)) -> 23.8 | KV9: =IF(Balance!KV11="-","-",ROUND((Balance!KV11/Balance!KV$19)*100,1)) -> 13.9 | KW9: =IF(Balance!KW11="-","-",ROUND((Balance!KW11/Balance!KW$19)*100,1)) -> 12.7 | KX9: =IF(Balance!KX11="-","-",ROUND((Balance!KX11/Balance!KX$19)*100,1)) -> 15 | KY9: =IF(Balance!KY11="-","-",ROUND((Balance!KY11/Balance!KY$19)*100,1)) -> 14.9 | KZ9: =IF(Balance!KZ11="-","-",ROUND((Balance!KZ11/Balance!KZ$19)*100,1)) -> 19.7 | LA9: =IF(Balance!LA11="-","-",ROUND((Balance!LA11/Balance!LA$19)*100,1)) -> 18.6 | LB9: =IF(Balance!LB11="-","-",ROUND((Balance!LB11/Balance!LB$19)*100,1)) -> 17.1 | LC9: =IF(Balance!LC11="-","-",ROUND((Balance!LC11/Balance!LC$19)*100,1)) -> 25.9 | LD9: =IF(Balance!LD11="-","-",ROUND((Balance!LD11/Balance!LD$19)*100,1)) -> 29.3 | LE9: =IF(Balance!LE11="-","-",ROUND((Balance!LE11/Balance!LE$19)*100,1)) -> 24.6 | LF9: =IF(Balance!LF11="-","-",ROUND((Balance!LF11/Balance!LF$19)*100,1)) -> 21.3 | LG9: =IF(Balance!LG11="-","-",ROUND((Balance!LG11/Balance!LG$19)*100,1)) -> 20 | LH9: =IF(Balance!LH11="-","-",ROUND((Balance!LH11/Balance!LH$19)*100,1)) -> 16.5 | LI9: =IF(Balance!LI11="-","-",ROUND((Balance!LI11/Balance!LI$19)*100,1)) -> 16 | LJ9: =IF(Balance!LJ11="-","-",ROUND((Balance!LJ11/Balance!LJ$19)*100,1)) -> 17.4 | LK9: =IF(Balance!LK11="-","-",ROUND((Balance!LK11/Balance!LK$19)*100,1)) -> 13.4 | LL9: =IF(Balance!LL11="-","-",ROUND((Balance!LL11/Balance!LL$19)*100,1)) -> 11.5 | LM9: =IF(Balance!LM11="-","-",ROUND((Balance!LM11/Balance!LM$19)*100,1)) -> 18.8 | LN9: =IF(Balance!LN11="-","-",ROUND((Balance!LN11/Balance!LN$19)*100,1)) -> 12.8 | LO9: =IF(Balance!LO11="-","-",ROUND((Balance!LO11/Balance!LO$19)*100,1)) -> 19.8 | LP9: =IF(Balance!LP11="-","-",ROUND((Balance!LP11/Balance!LP$19)*100,1)) -> 24.5 | LQ9: =IF(Balance!LQ11="-","-",ROUND((Balance!LQ11/Balance!LQ$19)*100,1)) -> 23.3 | LR9: =IF(Balance!LR11="-","-",ROUND((Balance!LR11/Balance!LR$19)*100,1)) -> 23 | LS9: =IF(Balance!LS11="-","-",ROUND((Balance!LS11/Balance!LS$19)*100,1)) -> 18 | LT9: =IF(Balance!LT11="-","-",ROUND((Balance!LT11/Balance!LT$19)*100,1)) -> 15.1 | LU9: =IF(Balance!LU11="-","-",ROUND((Balance!LU11/Balance!LU$19)*100,1)) -> 15.6 | LV9: =IF(Balance!LV11="-","-",ROUND((Balance!LV11/Balance!LV$19)*100,1)) -> 16.2 | LW9: =IF(Balance!LW11="-","-",ROUND((Balance!LW11/Balance!LW$19)*100,1)) -> 14.8 | LX9: =IF(Balance!LX11="-","-",ROUND((Balance!LX11/Balance!LX$19)*100,1)) -> 15.7 | LY9: =IF(Balance!LY11="-","-",ROUND((Balance!LY11/Balance!LY$19)*100,1)) -> 18.3 | LZ9: =IF(Balance!LZ11="-","-",ROUND((Balance!LZ11/Balance!LZ$19)*100,1)) -> 24.8 | MA9: =IF(Balance!MA11="-","-",ROUND((Balance!MA11/Balance!MA$19)*100,1)) -> 24.3 | MB9: =IF(Balance!MB11="-","-",ROUND((Balance!MB11/Balance!MB$19)*100,1)) -> - | MC9: =IF(Balance!MC11="-","-",ROUND((Balance!MC11/Balance!MC$19)*100,1)) -> - | MD9: =IF(Balance!MD11="-","-",ROUND((Balance!MD11/Balance!MD$19)*100,1)) -> - | ME9: =IF(Balance!ME11="-","-",ROUND((Balance!ME11/Balance!ME$19)*100,1)) -> - | MF9: =IF(Balance!MF11="-","-",ROUND((Balance!MF11/Balance!MF$19)*100,1)) -> - | MG9: =IF(Balance!MG11="-","-",ROUND((Balance!MG11/Balance!MG$19)*100,1)) -> - | MH9: =IF(Balance!MH11="-","-",ROUND((Balance!MH11/Balance!MH$19)*100,1)) -> - | MI9: =IF(Balance!MI11="-","-",ROUND((Balance!MI11/Balance!MI$19)*100,1)) -> - | MJ9: =IF(Balance!MJ11="-","-",ROUND((Balance!MJ11/Balance!MJ$19)*100,1)) -> - | MK9: =IF(Balance!MK11="-","-",ROUND((Balance!MK11/Balance!MK$19)*100,1)) -> - | ML9: =IF(Balance!ML11="-","-",ROUND((Balance!ML11/Balance!ML$19)*100,1)) -> -
